Workbook

Sheet Table of Contents
C1: Go to Charts by Pressing Shift and Enter on Menu Item
C3: Sheet Tab | D3: Description | E3: Author
B4: 1 | C4: Table of Contents
B5: 2 | C5: Points
B6: 3 | C6: fin summary
B7: 4 | C7: Graph of Actual and Projected
B8: 5 | C8: Retirements
B9: 6 | C9: Consolidated
B10: 7 | C10: capex est
B11: 8 | C11: capex
B12: 9 | C12: interest
B13: 10 | C13: depn
B14: 11 | C14: tax
B15: 12 | C15: DCF Analysis
B16: 13 | C16: profit model (F)
B17: 14 | C17: cons revenues
B18: 15 | C18: cons expenses
B19: 16 | C19: HT Delhi-NCR
B20: 17 | C20: HTD DCF
B21: 18 | C21: HT Mumbai
B22: 19 | C22: HT Others
B23: 20 | C23: HTO DCF
B24: 21 | C24: HT Mint
B25: 22 | C25: HTM DCF
B26: 23 | C26: Hindustan
B27: 24 | C27: M-Now
B28: 25 | C28: HT-Burda
B29: 26 | C29: Fever-FM
B30: 27 | C30: Internet
B31: 28 | C31: interim_saln_qtr
B32: 29 | C32: interim_saln_cum
B33: 30 | C33: interim_cons_qtr
B34: 31 | C34: interim_cons_cum
B35: 32 | C35: sotp valuation
B36: 33 | C36: earnings changes
B37: 34 | C37: saln finstats
B38: 35 | C38: cash model (F)
B39: 36 | C39: balance model (F)
B40: 37 | C40: Kotakval
B41: 38 | C41: interim_quarterly
B42: 39 | C42: short model

Sheet Points
B2: Overview - What Happened to HT Media
B4: Summary Pages
C5: First, Look at the last period ROIC
C6: Graph the statements with actual and forecast
C7: Terminal year not shown on the summary
C8: Basic problems and bad practice
B10: Financials
C11: Finding Financials
C12: ROIC
C13: Depreciation to Net Assets
C14: Cap Exp to Depreciation
C15: Cap Exp to EBITDA
C16: Historic and Projected Data
C17: EBITDA Margin
C18: Working capital to EBITDA
B21: DCF Page
C22: Concept: Interest Rate, Inflation Rate and Growth Rate
C23: Concept: When ROIC is above WACC Growth Helps, when below growth hurts
C24: WACC versus Terminal Growth Rate and Risk Free Rate
C25: Historic EV/EBITDA and P/E Ratio
C26: Modelling Problems -- Rows Out of Order
C27: Modelling problem -- Show terminal value in separate line and use switch
C28: Modelling problem -- Stable Ratios
C29: No Depreciation to Cap Exp to Depreciation Stats
C30: No ROIC in Last Period
C31: Merged Cells
C32: Error in Discounting
C33: Where do numbers come from
C34: Minority Interest
C35: Hidden Rows
C36: Treatment of Investments in EV - Equity Value Bridge
C37: History of PE and EV to EBITDA
B40: Re-do Depreciation
C41: Set-up - History and Forecast
C42: Clean up - colours and links
C43: Structuring of Corporate Analysis
C45: Implications of depreciation mistakes
C46: ROIC - Fix the calculation
C47: Cap Exp to Depreciation
C48: Taxes
C49: NOPAT - Problem if use (1-g/ROIC)/(k-g)
C50: Alternative Depreciation Methods
C51: Retirement of Existing Assets
C52: New Assets
C53: Using Net Plant

Sheet fin summary
A1: Financial summary of HT Media, March fiscal year-ends, 2008-14E (Rs mn)
B3: 2005 | C3: 2006 | D3: 2007 | E3: 2008 | F3: 2009 | G3: 2010 | H3: 2011 | I3: 2012E | J3: 2013E | K3: 2014E
A4: Profit model
A5: Net sales | B5: ='profit model (F)'!G4 ->  | C5: ='profit model (F)'!H4 -> 8210.105 | D5: ='profit model (F)'!I4 -> 10396.575 | E5: ='profit model (F)'!J4 -> 12032.51 | F5: ='profit model (F)'!K4 -> 13466.1 | G5: ='profit model (F)'!L4 -> 14129.2 | H5: ='profit model (F)'!M4 -> 17673.9 | I5: ='profit model (F)'!N4 -> 20010.08639 | J5: ='profit model (F)'!O4 -> 23529.70664 | K5: ='profit model (F)'!P4 -> 27652.07733
A6: EBITDA | B6: ='profit model (F)'!G8 ->  | C6: ='profit model (F)'!H8 -> 1183.988 | D6: ='profit model (F)'!I8 -> 1680.372 | E6: ='profit model (F)'!J8 -> 1698.97 | F6: ='profit model (F)'!K8 -> 878.8 | G6: ='profit model (F)'!L8 -> 2498.8 | H6: ='profit model (F)'!M8 -> 3171.2 | I6: ='profit model (F)'!N8 -> 2798.190664 | J6: ='profit model (F)'!O8 -> 3128.114417 | K6: ='profit model (F)'!P8 -> 4532.448794
A7: Other income | B7: ='profit model (F)'!G9 ->  | C7: ='profit model (F)'!H9 -> 177.338 | D7: ='profit model (F)'!I9 -> 366.856 | E7: ='profit model (F)'!J9 -> 438.66 | F7: ='profit model (F)'!K9 -> 330.4 | G7: ='profit model (F)'!L9 -> 408.8 | H7: ='profit model (F)'!M9 -> 477.7 | I7: ='profit model (F)'!N9 -> 796.7584558 | J7: ='profit model (F)'!O9 -> 805.3469322 | K7: ='profit model (F)'!P9 -> 859.5423934
A8: Interest | B8: ='profit model (F)'!G10 ->  | C8: ='profit model (F)'!H10 -> -135.4 | D8: ='profit model (F)'!I10 -> -142.9 | E8: ='profit model (F)'!J10 -> -177.9 | F8: ='profit model (F)'!K10 -> -322.8 | G8: ='profit model (F)'!L10 -> -295.1 | H8: ='profit model (F)'!M10 -> -236 | I8: ='profit model (F)'!N10 -> -331.025 | J8: ='profit model (F)'!O10 -> -281.025 | K8: ='profit model (F)'!P10 -> -281.025
A9: Depreciation | B9: ='profit model (F)'!G11 ->  | C9: ='profit model (F)'!H11 -> -385.364 | D9: ='profit model (F)'!I11 -> -435.988 | E9: ='profit model (F)'!J11 -> -569.87 | F9: ='profit model (F)'!K11 -> -688.1 | G9: ='profit model (F)'!L11 -> -706.9 | H9: ='profit model (F)'!M11 -> -841.9 | I9: ='profit model (F)'!N11 -> -893.425 | J9: ='profit model (F)'!O11 -> -855.6881101 | K9: ='profit model (F)'!P11 -> -900.1917638
A10: Pretax profits | B10: ='profit model (F)'!G12 ->  | C10: ='profit model (F)'!H12 -> 840.562 | D10: ='profit model (F)'!I12 -> 1468.34 | E10: ='profit model (F)'!J12 -> 1389.86 | F10: ='profit model (F)'!K12 -> 198.3 | G10: ='profit model (F)'!L12 -> 1905.6 | H10: ='profit model (F)'!M12 -> 2571 | I10: ='profit model (F)'!N12 -> 2370.49912 | J10: ='profit model (F)'!O12 -> 2796.748239 | K10: ='profit model (F)'!P12 -> 4210.774424
A11: Extraordinary items | B11: ='profit model (F)'!G13 ->  | C11: ='profit model (F)'!H13 -> -228.888 | D11: ='profit model (F)'!I13 -> 2.166 | E11: ='profit model (F)'!J13 -> 0 | F11: ='profit model (F)'!K13 -> -189.4 | G11: ='profit model (F)'!L13 -> -20.8 | H11: ='profit model (F)'!M13 -> 0 | I11: ='profit model (F)'!N13 -> 0 | J11: ='profit model (F)'!O13 -> 0 | K11: ='profit model (F)'!P13 -> 0
A12: Tax | B12: ='profit model (F)'!G14 ->  | C12: ='profit model (F)'!H14 -> -64.84 | D12: ='profit model (F)'!I14 -> -572.776 | E12: ='profit model (F)'!J14 -> -519.67 | F12: ='profit model (F)'!K14 -> -40 | G12: ='profit model (F)'!L14 -> -561.5 | H12: ='profit model (F)'!M14 -> -931.5 | I12: ='profit model (F)'!N14 -> -663.7981963 | J12: ='profit model (F)'!O14 -> -801.3119832 | K12: ='profit model (F)'!P14 -> -1284.300388
A13: Deferred taxation | B13: ='profit model (F)'!G15 ->  | C13: ='profit model (F)'!H15 -> -174.128 | D13: ='profit model (F)'!I15 -> 27.011 | E13: ='profit model (F)'!J15 -> 143.07 | F13: ='profit model (F)'!K15 -> -84.9 | G13: ='profit model (F)'!L15 -> 25 | H13: ='profit model (F)'!M15 -> 218.7 | I13: ='profit model (F)'!N15 -> 32.47326585 | J13: ='profit model (F)'!O15 -> 17.93661576 | K13: ='profit model (F)'!P15 -> 29.10125993
A14: Net income | B14: ='profit model (F)'!G16 ->  | C14: ='profit model (F)'!H16 -> 372.706 | D14: ='profit model (F)'!I16 -> 924.741 | E14: ='profit model (F)'!J16 -> 1013.26 | F14: ='profit model (F)'!K16 -> -116 | G14: ='profit model (F)'!L16 -> 1348.3 | H14: ='profit model (F)'!M16 -> 1858.2 | I14: ='profit model (F)'!N16 -> 1739.17419 | J14: ='profit model (F)'!O16 -> 2013.372872 | K14: ='profit model (F)'!P16 -> 2955.575295
A15: Minority interest | B15: ='profit model (F)'!G17 ->  | C15: ='profit model (F)'!H17 -> 0 | D15: ='profit model (F)'!I17 -> -45.691 | E15: ='profit model (F)'!J17 -> 0 | F15: ='profit model (F)'!K17 -> -125 | G15: ='profit model (F)'!L17 -> -10.9 | H15: ='profit model (F)'!M17 -> 49.1 | I15: ='profit model (F)'!N17 -> 64.36743222 | J15: ='profit model (F)'!O17 -> 166.9453445 | K15: ='profit model (F)'!P17 -> 265.9394637
A16: Adjusted net income | B16: ='profit model (F)'!G18 ->  | C16: ='profit model (F)'!H18 -> 601.594 | D16: ='profit model (F)'!I18 -> 969.0710772 | E16: ='profit model (F)'!J18 -> 1013.26 | F16: ='profit model (F)'!K18 -> 79.10569844 | G16: ='profit model (F)'!L18 -> 1374.143997 | H16: ='profit model (F)'!M18 -> 1809.1 | I16: ='profit model (F)'!N18 -> 1674.806757 | J16: ='profit model (F)'!O18 -> 1846.427527 | K16: ='profit model (F)'!P18 -> 2689.635832
A17: Earnings per share (Rs) | B17: ='profit model (F)'!G22 ->  | C17: ='profit model (F)'!H22 -> 2.568401009 | D17: ='profit model (F)'!I22 -> 4.137280512 | E17: ='profit model (F)'!J22 -> 4.325549626 | F17: ='profit model (F)'!K22 -> 0.3366199933 | G17: ='profit model (F)'!L22 -> 5.844934056 | H17: ='profit model (F)'!M22 -> 7.691751701 | I17: ='profit model (F)'!N22 -> 7.12077703 | J17: ='profit model (F)'!O22 -> 7.850457173 | K17: ='profit model (F)'!P22 -> 11.43552649
A19: Balance sheet
A20: Total equity | B20: ='balance model (F)'!G7 ->  | C20: ='balance model (F)'!H7 -> 6932.348 | D20: ='balance model (F)'!I7 -> 7642.054 | E20: ='balance model (F)'!J7 -> 8528.77 | F20: ='balance model (F)'!K7 -> 8485.4 | G20: ='balance model (F)'!L7 -> 9711.3 | H20: ='balance model (F)'!M7 -> 13022 | I20: ='balance model (F)'!N7 -> 14587.20356 | J20: ='balance model (F)'!O7 -> 15885.61508 | K20: ='balance model (F)'!P7 -> 17479.21892
A21: Minority interest | B21: ='balance model (F)'!G8 ->  | C21: ='balance model (F)'!H8 -> 0 | D21: ='balance model (F)'!I8 -> 0.108 | E21: ='balance model (F)'!J8 -> 0.52 | F21: ='balance model (F)'!K8 -> -69.4 | G21: ='balance model (F)'!L8 -> 218.2 | H21: ='balance model (F)'!M8 -> 1298.8 | I21: ='balance model (F)'!N8 -> 1363.167432 | J21: ='balance model (F)'!O8 -> 1530.112777 | K21: ='balance model (F)'!P8 -> 1796.05224
A22: Deferred taxation liability | B22: ='balance model (F)'!G9 ->  | C22: ='balance model (F)'!H9 -> 295.842 | D22: ='balance model (F)'!I9 -> 272.599 | E22: ='balance model (F)'!J9 -> 121.61 | F22: ='balance model (F)'!K9 -> 206.5 | G22: ='balance model (F)'!L9 -> 178.1 | H22: ='balance model (F)'!M9 -> -85.5 | I22: ='balance model (F)'!N9 -> -117.9732658 | J22: ='balance model (F)'!O9 -> -135.9098816 | K22: ='balance model (F)'!P9 -> -165.0111415
A23: Total borrowings | B23: ='balance model (F)'!G13 ->  | C23: ='balance model (F)'!H13 -> 1695.726 | D23: ='balance model (F)'!I13 -> 1657.55 | E23: ='balance model (F)'!J13 -> 2230.67 | F23: ='balance model (F)'!K13 -> 3706.2 | G23: ='balance model (F)'!L13 -> 4020.9 | H23: ='balance model (F)'!M13 -> 3122.5 | I23: ='balance model (F)'!N13 -> 3122.5 | J23: ='balance model (F)'!O13 -> 3122.5 | K23: ='balance model (F)'!P13 -> 3122.5
A24: Current liabilities | B24: ='balance model (F)'!G14 ->  | C24: ='balance model (F)'!H14 -> 1809.406 | D24: ='balance model (F)'!I14 -> 2112.507 | E24: ='balance model (F)'!J14 -> 2803.7 | F24: ='balance model (F)'!K14 -> 5399 | G24: ='balance model (F)'!L14 -> 5764.5 | H24: ='balance model (F)'!M14 -> 6037 | I24: ='balance model (F)'!N14 -> 6536.751512 | J24: ='balance model (F)'!O14 -> 7416.58246 | K24: ='balance model (F)'!P14 -> 8189.499395
A25: Total liabilities and equity | B25: ='balance model (F)'!G15 ->  | C25: ='balance model (F)'!H15 -> 10733.322 | D25: ='balance model (F)'!I15 -> 11684.818 | E25: ='balance model (F)'!J15 -> 13685.27 | F25: ='balance model (F)'!K15 -> 17727.7 | G25: ='balance model (F)'!L15 -> 19893 | H25: ='balance model (F)'!M15 -> 23394.8 | I25: ='balance model (F)'!N15 -> 25491.64924 | J25: ='balance model (F)'!O15 -> 27818.90044 | K25: ='balance model (F)'!P15 -> 30422.25941
A26: Cash | B26: ='balance model (F)'!G17 ->  | C26: ='balance model (F)'!H17 -> 2677.504 | D26: ='balance model (F)'!I17 -> 1104.139 | E26: ='balance model (F)'!J17 -> 773.97 | F26: ='balance model (F)'!K17 -> 705.4 | G26: ='balance model (F)'!L17 -> 1086.8 | H26: ='balance model (F)'!M17 -> 1152.4 | I26: ='balance model (F)'!N17 -> 3002.611395 | J26: ='balance model (F)'!O17 -> 4117.111909 | K26: ='balance model (F)'!P17 -> 5568.156472
A27: Other current assets | B27: ='balance model (F)'!G18 ->  | C27: ='balance model (F)'!H18 -> 3275.594 | D27: ='balance model (F)'!I18 -> 2863.031 | E27: ='balance model (F)'!J18 -> 4424.9 | F27: ='balance model (F)'!K18 -> 6270.3 | G27: ='balance model (F)'!L18 -> 5622.8 | H27: ='balance model (F)'!M18 -> 6403.8 | I27: ='balance model (F)'!N18 -> 7763.862841 | J27: ='balance model (F)'!O18 -> 8960.801641 | K27: ='balance model (F)'!P18 -> 10098.23281
A28: Total fixed assets | B28: ='balance model (F)'!G21+'balance model (F)'!G22 ->  | C28: ='balance model (F)'!H21+'balance model (F)'!H22 -> 3736.403 | D28: ='balance model (F)'!I21+'balance model (F)'!I22 -> 4108.697 | E28: ='balance model (F)'!J21+'balance model (F)'!J22 -> 4751.6 | F28: ='balance model (F)'!K21+'balance model (F)'!K22 -> 6718 | G28: ='balance model (F)'!L21+'balance model (F)'!L22 -> 7572.5 | H28: ='balance model (F)'!M21+'balance model (F)'!M22 -> 7558.9 | I28: ='balance model (F)'!N21+'balance model (F)'!N22 -> 7495.475 | J28: ='balance model (F)'!O21+'balance model (F)'!O22 -> 7511.28689 | K28: ='balance model (F)'!P21+'balance model (F)'!P22 -> 7526.170126
A29: Intangible assets | B29: ='balance model (F)'!G24 ->  | C29: ='balance model (F)'!H24 -> 182.419 | D29: ='balance model (F)'!I24 -> 1098.18 | E29: ='balance model (F)'!J24 -> 1077.75 | F29: ='balance model (F)'!K24 -> 998.2 | G29: ='balance model (F)'!L24 -> 834.3 | H29: ='balance model (F)'!M24 -> 684.7 | I29: ='balance model (F)'!N24 -> 684.7 | J29: ='balance model (F)'!O24 -> 684.7 | K29: ='balance model (F)'!P24 -> 684.7
A30: Investments | B30: ='balance model (F)'!G25 ->  | C30: ='balance model (F)'!H25 -> 861.402 | D30: ='balance model (F)'!I25 -> 2510.017 | E30: ='balance model (F)'!J25 -> 2656.36 | F30: ='balance model (F)'!K25 -> 3035 | G30: ='balance model (F)'!L25 -> 4754.7 | H30: ='balance model (F)'!M25 -> 7595 | I30: ='balance model (F)'!N25 -> 6595 | J30: ='balance model (F)'!O25 -> 6595 | K30: ='balance model (F)'!P25 -> 6595
A31: Total assets | B31: ='balance model (F)'!G27 ->  | C31: ='balance model (F)'!H27 -> 10733.322 | D31: ='balance model (F)'!I27 -> 11684.818 | E31: ='balance model (F)'!J27 -> 13685.27 | F31: ='balance model (F)'!K27 -> 17727.7 | G31: ='balance model (F)'!L27 -> 19893 | H31: ='balance model (F)'!M27 -> 23394.8 | I31: ='balance model (F)'!N27 -> 25541.64924 | J31: ='balance model (F)'!O27 -> 27868.90044 | K31: ='balance model (F)'!P27 -> 30472.25941
A33: Free cash flow
A34: Operating cash flow, excl. working capital | B34: ='cash model (F)'!G14 ->  | C34: ='cash model (F)'!H14 -> 892.908 | D34: ='cash model (F)'!I14 -> 1336.795 | E34: ='cash model (F)'!J14 -> 1242.15 | F34: ='cash model (F)'!K14 -> 586.2 | G34: ='cash model (F)'!L14 -> 2307.6 | H34: ='cash model (F)'!M14 -> 2819.8 | I34: ='cash model (F)'!N14 -> 2134.392468 | J34: ='cash model (F)'!O14 -> 2326.802434 | K34: ='cash model (F)'!P14 -> 3248.148406
A35: Working capital changes | B35: ='cash model (F)'!G12 ->  | C35: ='cash model (F)'!H12 -> -231.623 | D35: ='cash model (F)'!I12 -> -226.034 | E35: ='cash model (F)'!J12 -> -130.91 | F35: ='cash model (F)'!K12 -> 1313.2 | G35: ='cash model (F)'!L12 -> 1695.1 | H35: ='cash model (F)'!M12 -> -328.1 | I35: ='cash model (F)'!N12 -> -860.3113288 | J35: ='cash model (F)'!O12 -> -317.1078517 | K35: ='cash model (F)'!P12 -> -364.5142361
A36: Capital expenditure | B36: ='cash model (F)'!G16+'cash model (F)'!G17 ->  | C36: ='cash model (F)'!H16+'cash model (F)'!H17 -> -327.037 | D36: ='cash model (F)'!I16+'cash model (F)'!I17 -> -866.694 | E36: ='cash model (F)'!J16+'cash model (F)'!J17 -> -1196.38 | F36: ='cash model (F)'!K16+'cash model (F)'!K17 -> -2597 | G36: ='cash model (F)'!L16+'cash model (F)'!L17 -> -1574.8 | H36: ='cash model (F)'!M16+'cash model (F)'!M17 -> -773.2 | I36: ='cash model (F)'!N16+'cash model (F)'!N17 -> -830 | J36: ='cash model (F)'!O16+'cash model (F)'!O17 -> -871.5 | K36: ='cash model (F)'!P16+'cash model (F)'!P17 -> -915.075
A37: Investments | B37: ='cash model (F)'!G18 ->  | C37: ='cash model (F)'!H18 -> 387.678 | D37: ='cash model (F)'!I18 -> -319.222 | E37: ='cash model (F)'!J18 -> -325.33 | F37: ='cash model (F)'!K18 -> -1126.4 | G37: ='cash model (F)'!L18 -> -1778.4 | H37: ='cash model (F)'!M18 -> -3097.7 | I37: ='cash model (F)'!N18 -> 1000 | J37: ='cash model (F)'!O18 -> 0 | K37: ='cash model (F)'!P18 -> 0
A38: Other income | B38: =-'cash model (F)'!G8 ->  | C38: =-'cash model (F)'!H8 -> 130.04 | D38: =-'cash model (F)'!I8 -> 196.621 | E38: =-'cash model (F)'!J8 -> 298.29 | F38: =-'cash model (F)'!K8 -> 205.7 | G38: =-'cash model (F)'!L8 -> 145.7 | H38: =-'cash model (F)'!M8 -> 291.2 | I38: =-'cash model (F)'!N8 -> 796.7584558 | J38: =-'cash model (F)'!O8 -> 805.3469322 | K38: =-'cash model (F)'!P8 -> 859.5423934
A39: Free cash flow | B39: =SUM(B34:B38) ->  | C39: 851.966 | D39: 121.466 | E39: -112.18 | F39: -1618.3 | G39: 795.2 | H39: -1088 | I39: 2240.839595 | J39: 1943.541514 | K39: 2828.101563
A41: Ratios (%)
A42: Debt/equity | B42: ='balance model (F)'!G30 ->  | C42: ='balance model (F)'!H30 -> 23.45989798 | D42: ='balance model (F)'!I30 -> 20.94280065 | E42: ='balance model (F)'!J30 -> 25.78695965 | F42: ='balance model (F)'!K30 -> 42.63969903 | G42: ='balance model (F)'!L30 -> 40.65868506 | H42: ='balance model (F)'!M30 -> 24.13713137 | I42: ='balance model (F)'!N30 -> 21.58027716 | J42: ='balance model (F)'!O30 -> 19.82576791 | K42: ='balance model (F)'!P30 -> 18.03432211
A43: Net debt/equity | B43: ='balance model (F)'!G32 ->  | C43: ='balance model (F)'!H32 -> -13.5826258 | D43: ='balance model (F)'!I32 -> 6.992233267 | E43: ='balance model (F)'!J32 -> 16.83972265 | F43: ='balance model (F)'!K32 -> 34.52409715 | G43: ='balance model (F)'!L32 -> 29.6691407 | H43: ='balance model (F)'!M32 -> 15.22900321 | I43: ='balance model (F)'!N32 -> 0.828576245 | J43: ='balance model (F)'!O32 -> -6.315114451 | K43: ='balance model (F)'!P32 -> -14.12514222
A44: ROAE (%) | B44: ='balance model (F)'!G34 ->  | C44: ='balance model (F)'!H34 -> 0 | D44: ='balance model (F)'!I34 -> 12.79906392 | E44: ='balance model (F)'!J34 -> 12.23372148 | F44: ='balance model (F)'!K34 -> 0.9122871783 | G44: ='balance model (F)'!L34 -> 14.79061203 | H44: ='balance model (F)'!M34 -> 15.85129173 | I44: ='balance model (F)'!N34 -> 12.22231073 | J44: ='balance model (F)'!O34 -> 12.22033468 | K44: ='balance model (F)'!P34 -> 16.26931352
A45: ROACE (%) | B45: ='balance model (F)'!G35 ->  | C45: ='balance model (F)'!H35 -> 21.87540486 | D45: ='balance model (F)'!I35 -> 10.62623992 | E45: ='balance model (F)'!J35 -> 9.598209319 | F45: ='balance model (F)'!K35 -> 3.573897978 | G45: ='balance model (F)'!L35 -> 11.80038671 | H45: ='balance model (F)'!M35 -> 11.94552258 | I45: ='balance model (F)'!N35 -> 11.56011026 | J45: ='balance model (F)'!O35 -> 12.0444663 | K45: ='balance model (F)'!P35 -> 15.88334669

Sheet Graph of Actual and Projected
B2: Row Num | C2: 456
D4: ='saln finstats'!C3 -> 2006 | E4: ='saln finstats'!D3 -> 2007 | F4: ='saln finstats'!E3 -> 2008 | G4: ='saln finstats'!F3 -> 2009 | H4: ='saln finstats'!G3 -> 2010 | I4: ='saln finstats'!H3 -> 2011 | J4: ='saln finstats'!I3 -> 2012E | K4: ='saln finstats'!J3 -> 2013E | L4: ='saln finstats'!K3 -> 2014E | M4: ='saln finstats'!L3 -> 2015E | N4: ='saln finstats'!M3 -> 2016E | O4: ='saln finstats'!N3 -> 2017E | P4: ='saln finstats'!O3 -> 2018E | Q4: ='saln finstats'!P3 -> 2019E | R4: ='saln finstats'!Q3 -> 2020E
D5: =Consolidated!I4 -> TRUE | E5: =Consolidated!J4 -> TRUE | F5: =Consolidated!K4 -> TRUE | G5: =Consolidated!L4 -> TRUE | H5: =Consolidated!M4 -> TRUE | I5: =Consolidated!N4 -> TRUE | J5: =Consolidated!O4 -> FALSE | K5: =Consolidated!P4 -> FALSE | L5: =Consolidated!Q4 -> FALSE | M5: =Consolidated!R4 -> FALSE | N5: =Consolidated!S4 -> FALSE | O5: =Consolidated!T4 -> FALSE | P5: =Consolidated!U4 -> FALSE | Q5: =Consolidated!V4 -> FALSE | R5: =Consolidated!W4 -> FALSE
C7: =INDEX(Consolidated!D:D,'Graph of Actual and Projected'!$C$2) -> 0 | D7: =INDEX(Consolidated!I:I,'Graph of Actual and Projected'!$C$2) -> 0 | E7: =INDEX(Consolidated!J:J,'Graph of Actual and Projected'!$C$2) -> 0 | F7: =INDEX(Consolidated!K:K,'Graph of Actual and Projected'!$C$2) -> 0 | G7: =INDEX(Consolidated!L:L,'Graph of Actual and Projected'!$C$2) -> 0 | H7: =INDEX(Consolidated!M:M,'Graph of Actual and Projected'!$C$2) -> 0 | I7: =INDEX(Consolidated!N:N,'Graph of Actual and Projected'!$C$2) -> 0 | J7: =INDEX(Consolidated!O:O,'Graph of Actual and Projected'!$C$2) -> 0 | K7: =INDEX(Consolidated!P:P,'Graph of Actual and Projected'!$C$2) -> 0 | L7: =INDEX(Consolidated!Q:Q,'Graph of Actual and Projected'!$C$2) -> 0 | M7: =INDEX(Consolidated!R:R,'Graph of Actual and Projected'!$C$2) -> 0 | N7: =INDEX(Consolidated!S:S,'Graph of Actual and Projected'!$C$2) -> 0 | O7: =INDEX(Consolidated!T:T,'Graph of Actual and Projected'!$C$2) -> 0 | P7: =INDEX(Consolidated!U:U,'Graph of Actual and Projected'!$C$2) -> 0 | Q7: =INDEX(Consolidated!V:V,'Graph of Actual and Projected'!$C$2) -> 0 | R7: =INDEX(Consolidated!W:W,'Graph of Actual and Projected'!$C$2) -> 0
D9: =D4 -> 2006 | E9: =E4 -> 2007 | F9: 2008 | G9: 2009 | H9: 2010 | I9: 2011 | J9: 2012E | K9: 2013E | L9: 2014E | M9: 2015E | N9: 2016E | O9: 2017E | P9: 2018E | Q9: 2019E | R9: 2020E
C10: History | D10: =IF(D5,D7) -> 0 | E10: =IF(E5,E7) -> 0 | F10: 0 | G10: 0 | H10: 0 | I10: 0 | J10: FALSE | K10: FALSE | L10: FALSE | M10: FALSE | N10: FALSE | O10: FALSE | P10: FALSE | Q10: FALSE | R10: FALSE
C11: Forecast | D11: =IF(NOT(D5),D7) -> FALSE | E11: =IF(NOT(E5),E7) -> FALSE | F11: FALSE | G11: FALSE | H11: FALSE | I11: FALSE | J11: 0 | K11: 0 | L11: 0 | M11: 0 | N11: 0 | O11: 0 | P11: 0 | Q11: 0 | R11: 0
B29: Depreciation Scenario | C29: 3
D30: =D9 -> 2006 | E30: =E9 -> 2007 | F30: 2008 | G30: 2009 | H30: 2010 | I30: 2011 | J30: 2012E | K30: 2013E | L30: 2014E | M30: 2015E | N30: 2016E | O30: 2017E | P30: 2018E | Q30: 2019E | R30: 2020E
C31: ROIC | D31: =Consolidated!I460 -> 0.1569262402 | E31: =Consolidated!J460 -> 0.1408796478 | F31: =Consolidated!K460 -> 0.1086313198 | G31: =Consolidated!L460 -> 0.01937863463 | H31: =Consolidated!M460 -> 0.1532867128 | I31: =Consolidated!N460 -> 0.1767793035 | J31: =Consolidated!O460 -> 0.1509407598 | K31: =Consolidated!P460 -> 0.1680026099 | L31: =Consolidated!Q460 -> 0.2516764162 | M31: =Consolidated!R460 -> 0.2773920035 | N31: =Consolidated!S460 -> 0.306308707 | O31: =Consolidated!T460 -> 0.3830442334 | P31: =Consolidated!U460 -> 0.4119335384 | Q31: =Consolidated!V460 -> 0.4161381108 | R31: =Consolidated!W460 -> 0.424965656
B32: Modelled Depreciation | C32: 1 | D32: 0.1569262402 | E32: 0.1408796478 | F32: 0.1086313198 | G32: 0.01937863463 | H32: 0.1532867128 | I32: 0.1767793035 | J32: 0.2190621214 | K32: 0.2144417256 | L32: 0.2807582991 | M32: 0.2923856046 | N32: 0.3053098323 | O32: 0.3570102154 | P32: 0.3706565651 | Q32: 0.3662029518 | R32: 0.3660065002
B33: Net Plant Depreciation Expense | C33: 2 | D33: 0.1569262402 | E33: 0.1408796478 | F33: 0.1086313198 | G33: 0.01937863463 | H33: 0.1532867128 | I33: 0.1767793035 | J33: 0.1561598379 | K33: 0.179100797 | L33: 0.2621046793 | M33: 0.2863143292 | N33: 0.3129235149 | O33: 0.3830275868 | P33: 0.4051644079 | Q33: 0.4036097379 | R33: 0.4069672144
B34: Detailed Depreciation Expense | C34: 3 | D34: 0.1569262402 | E34: 0.1408796478 | F34: 0.1086313198 | G34: 0.01937863463 | H34: 0.1532867128 | I34: 0.1767793035 | J34: 0.1509407598 | K34: 0.1680026099 | L34: 0.2516764162 | M34: 0.2773920035 | N34: 0.306308707 | O34: 0.3830442334 | P34: 0.4119335384 | Q34: 0.4161381108 | R34: 0.424965656
C36: NOPAT | D36: =Consolidated!I455 -> 798.624 | E36: =Consolidated!J455 -> 758.9696614 | F36: =Consolidated!K455 -> 706.9284165 | G36: =Consolidated!L455 -> 152.2330308 | H36: =Consolidated!M455 -> 1263.902598 | I36: =Consolidated!N455 -> 1485.37042 | J36: =Consolidated!O455 -> 1371.384318 | K36: =Consolidated!P455 -> 1621.340733 | L36: =Consolidated!Q455 -> 2524.406396 | M36: =Consolidated!R455 -> 2817.294728 | N36: =Consolidated!S455 -> 3085.512588 | O36: =Consolidated!T455 -> 3962.307325 | P36: =Consolidated!U455 -> 4540.110425 | Q36: =Consolidated!V455 -> 4913.050762 | R36: =Consolidated!W455 -> 5336.89933
B37: Modelled Depreciation | C37: 1 | D37: 798.624 | E37: 758.9696614 | F37: 706.9284165 | G37: 152.2330308 | H37: 1263.902598 | I37: 1485.37042 | J37: 2041.479357 | K37: 2214.077165 | L37: 3121.573842 | M37: 3408.211149 | N37: 3656.789857 | O37: 4511.391078 | P37: 5073.126441 | Q37: 5431.993695 | R37: 5831.565309
B38: Net Plant Depreciation Expense | C38: 2 | D38: 798.624 | E38: 758.9696614 | F38: 706.9284165 | G38: 152.2330308 | H38: 1263.902598 | I38: 1485.37042 | J38: 1421.567285 | K38: 1742.417818 | L38: 2674.28472 | M38: 2989.492634 | N38: 3281.475626 | O38: 4174.766572 | P38: 4749.43393 | Q38: 5103.512638 | R38: 5501.686438
B39: Detailed Depreciation Expense | C39: 3 | D39: 798.624 | E39: 758.9696614 | F39: 706.9284165 | G39: 152.2330308 | H39: 1263.902598 | I39: 1485.37042 | J39: 1371.384318 | K39: 1621.340733 | L39: 2524.406396 | M39: 2817.294728 | N39: 3085.512588 | O39: 3962.307325 | P39: 4540.110425 | Q39: 4913.050762 | R39: 5336.89933
L41: (1-g/roic)/(wacc-g) x NOPAT = EV

Sheet Consolidated
B1: Consolidated financials of HT Media, March fiscal year-ends, 2006-20E (Rs mn)
I3: 2006 | J3: 2007 | K3: 2008 | L3: 2009 | M3: 2010 | N3: 2011 | O3: 2012 | P3: 2013 | Q3: 2014 | R3: 2015 | S3: 2016 | T3: 2017 | U3: 2018 | V3: 2019 | W3: 2020
B4: Historic Swith | E4: 2011 | I4: =I3<=$E$4 -> TRUE | J4: =J3<=$E$4 -> TRUE | K4: =K3<=$E$4 -> TRUE | L4: =L3<=$E$4 -> TRUE | M4: =M3<=$E$4 -> TRUE | N4: =N3<=$E$4 -> TRUE | O4: =O3<=$E$4 -> FALSE | P4: =P3<=$E$4 -> FALSE | Q4: =Q3<=$E$4 -> FALSE | R4: =R3<=$E$4 -> FALSE | S4: =S3<=$E$4 -> FALSE | T4: =T3<=$E$4 -> FALSE | U4: =U3<=$E$4 -> FALSE | V4: =V3<=$E$4 -> FALSE | W4: =W3<=$E$4 -> FALSE
A5: P&L statement of HT Media
B6: REVENUES
C7: Print advertising | I7: 6548.385 | J7: 8749.09 | K7: 10073.51 | L7: 11282.1 | M7: 11409.7 | N7: 13947.7 | O7: ='cons revenues'!I10 -> 15349.67713 | P7: ='cons revenues'!J10 -> 17636.10118 | Q7: ='cons revenues'!K10 -> 20903.0487 | R7: ='cons revenues'!L10 -> 22144.16598 | S7: ='cons revenues'!M10 -> 23243.04826 | T7: ='cons revenues'!N10 -> 26385.12398 | U7: ='cons revenues'!O10 -> 29456.23578 | V7: ='cons revenues'!P10 -> 32245.99022 | W7: ='cons revenues'!Q10 -> 35245.0831
C8: Print circulation | I8: 1368.306 | J8: 1362.497 | K8: 1489.04 | L8: 1539.9 | M8: 1832.9 | N8: 1827.7 | O8: ='cons revenues'!I13 -> 1981.7298 | P8: ='cons revenues'!J13 -> 2214.980775 | Q8: ='cons revenues'!K13 -> 2334.53628 | R8: ='cons revenues'!L13 -> 2364.75234 | S8: ='cons revenues'!M13 -> 2555.45685 | T8: ='cons revenues'!N13 -> 2778.6159 | U8: ='cons revenues'!O13 -> 2959.1928 | V8: ='cons revenues'!P13 -> 3189.006 | W8: ='cons revenues'!Q13 -> 3357.702
C9: HT-Burda JV revenues | I9: 0 | J9: 0 | K9: 0 | L9: 0 | M9: 64.3 | N9: 618.3 | O9: ='cons revenues'!I14 -> 1113.40125 | P9: ='cons revenues'!J14 -> 1833.2028 | Q9: ='cons revenues'!K14 -> 2324.52828 | R9: ='cons revenues'!L14 -> 2730.84966 | S9: ='cons revenues'!M14 -> 3096.642948 | T9: ='cons revenues'!N14 -> 3476.096588 | U9: ='cons revenues'!O14 -> 3869.560276 | V9: ='cons revenues'!P14 -> 4277.392905 | W9: ='cons revenues'!Q14 -> 4364.251163
C10: Radio revenues | I10: 0 | J10: 19.079 | K10: 188.02 | L10: 290 | M10: 412 | N10: 620.8 | O10: ='cons revenues'!I15 -> 674.063208 | P10: ='cons revenues'!J15 -> 785.0853834 | Q10: ='cons revenues'!K15 -> 863.5939218 | R10: ='cons revenues'!L15 -> 1020.382169 | S10: ='cons revenues'!M15 -> 1122.420386 | T10: ='cons revenues'!N15 -> 1003.16322 | U10: ='cons revenues'!O15 -> 272.6546187 | V10: ='cons revenues'!P15 -> 0 | W10: ='cons revenues'!Q15 -> 0
C11: Internet revenues | I11: 0 | J11: 0 | K11: 0 | L11: 0 | M11: 41 | N11: 67.4 | O11: ='cons revenues'!I16 -> 200 | P11: ='cons revenues'!J16 -> 300 | Q11: ='cons revenues'!K16 -> 390 | R11: ='cons revenues'!L16 -> 468 | S11: ='cons revenues'!M16 -> 538.2 | T11: ='cons revenues'!N16 -> 618.93 | U11: ='cons revenues'!O16 -> 711.7695 | V11: ='cons revenues'!P16 -> 818.534925 | W11: ='cons revenues'!Q16 -> 941.3151637
C12: Metro Now revenues | I12: 0 | J12: 0 | K12: 65.52 | L12: 53 | M12: 0 | N12: 0 | O12: =N12 -> 0 | P12: =O12 -> 0 | Q12: =P12 -> 0 | R12: =Q12 -> 0 | S12: =R12 -> 0 | T12: =S12 -> 0 | U12: =T12 -> 0 | V12: =U12 -> 0 | W12: =V12 -> 0
C13: Job Reveue - Assumptions | J13: =J14/I14-1 -> -0.212254902 | K13: =K14/J14-1 -> -0.4033645903 | L13: =L14/K14-1 -> 0.738895882 | M13: =M14/L14-1 -> 0.3174767322 | N13: =N14/M14-1 -> 0.5058869702 | O13: 0.15 | P13: 0.1 | Q13: 0.1 | R13: 0.1 | S13: 0.05 | T13: 0.05 | U13: 0.05 | V13: 0.05 | W13: 0.05
C14: Job revenue - History | I14: 236.64 | J14: 186.412 | K14: 111.22 | L14: 193.4 | M14: 254.8 | N14: 383.7 | O14: =N14*1.15 -> 441.255 | P14: =O14*1.1 -> 485.3805 | Q14: =P14*1.1 -> 533.91855 | R14: =Q14*1.1 -> 587.310405 | S14: =R14*1.05 -> 616.6759253 | T14: =S14*1.05 -> 647.5097215 | U14: =T14*1.05 -> 679.8852076 | V14: =U14*1.05 -> 713.879468 | W14: =V14*1.05 -> 749.5734414
C15: Job revenue - History and forecast | I15: =IF(I4,I14,F15*(1+I13)) -> 236.64 | J15: =IF(J4,J14,I15*(1+J13)) -> 186.412 | K15: =IF(K4,K14,J15*(1+K13)) -> 111.22 | L15: =IF(L4,L14,K15*(1+L13)) -> 193.4 | M15: =IF(M4,M14,L15*(1+M13)) -> 254.8 | N15: =IF(N4,N14,M15*(1+N13)) -> 383.7 | O15: =IF(O4,O14,N15*(1+O13)) -> 441.255 | P15: =IF(P4,P14,O15*(1+P13)) -> 485.3805 | Q15: =IF(Q4,Q14,P15*(1+Q13)) -> 533.91855 | R15: =IF(R4,R14,Q15*(1+R13)) -> 587.310405 | S15: =IF(S4,S14,R15*(1+S13)) -> 616.6759253 | T15: =IF(T4,T14,S15*(1+T13)) -> 647.5097215 | U15: =IF(U4,U14,T15*(1+U13)) -> 679.8852076 | V15: =IF(V4,V14,U15*(1+V13)) -> 713.879468 | W15: =IF(W4,W14,V15*(1+W13)) -> 749.5734414
C16: Sale of waste papers | I16: 56.774 | J16: 79.497 | K16: 105.2 | L16: 107.7 | M16: 114.5 | N16: 208.3 | O16: =N16*1.2 -> 249.96 | P16: =O16*1.1 -> 274.956 | Q16: =P16*1.1 -> 302.4516 | R16: =Q16*1.1 -> 332.69676 | S16: =R16*1.05 -> 349.331598 | T16: =S16*1.05 -> 366.7981779 | U16: =T16*1.05 -> 385.1380868 | V16: =U16*1.05 -> 404.3949911 | W16: =V16*1.05 -> 424.6147407
D17: Total revenues | I17: =SUM(I7:I16)-I13-I14 -> 8210.105 | J17: =SUM(J7:J16)-J13-J14 -> 10396.575 | K17: =SUM(K7:K16)-K13-K14 -> 12032.51 | L17: =SUM(L7:L16)-L13-L14 -> 13466.1 | M17: =SUM(M7:M16)-M13-M14 -> 14129.2 | N17: =SUM(N7:N16)-N13-N14 -> 17673.9 | O17: =SUM(O7:O16)-O13-O14 -> 20010.08639 | P17: =SUM(P7:P16)-P13-P14 -> 23529.70664 | Q17: =SUM(Q7:Q16)-Q13-Q14 -> 27652.07733 | R17: =SUM(R7:R16)-R13-R14 -> 29648.15732 | S17: =SUM(S7:S16)-S13-S14 -> 31521.77596 | T17: =SUM(T7:T16)-T13-T14 -> 35276.23759 | U17: =SUM(U7:U16)-U13-U14 -> 38334.43627 | V17: =SUM(V7:V16)-V13-V14 -> 41649.19851 | W17: =SUM(W7:W16)-W13-W14 -> 45082.53961
J18: =(J17/I17-1)*100 -> 26.6314499 | K18: =(K17/J17-1)*100 -> 15.7353263 | L18: =(L17/K17-1)*100 -> 11.91430549 | M18: =(M17/L17-1)*100 -> 4.924217108 | N18: =(N17/M17-1)*100 -> 25.08776152 | O18: =(O17/N17-1)*100 -> 13.21828451 | P18: =(P17/O17-1)*100 -> 17.58923068 | Q18: =(Q17/P17-1)*100 -> 17.51985585 | R18: =(R17/Q17-1)*100 -> 7.218553474 | S18: =(S17/R17-1)*100 -> 6.319511288 | T18: =(T17/S17-1)*100 -> 11.91069193 | U18: =(U17/T17-1)*100 -> 8.669288137 | V18: =(V17/U17-1)*100 -> 8.646957041 | W18: =(W17/V17-1)*100 -> 8.243474607
B19: NEWSPRINT
C20: RM consumed (incl. chg in stock) | I20: 3416.818 | J20: 4349.234 | K20: 4643.23 | L20: 5587.7 | M20: 4760.3 | N20: 6248.9 | O20: ='cons expenses'!I5 -> 7444.033774 | P20: ='cons expenses'!J5 -> 9266.647469 | Q20: ='cons expenses'!K5 -> 10407.94463 | R20: ='cons expenses'!L5 -> 10416.12606 | S20: ='cons expenses'!M5 -> 11025.59651 | T20: ='cons expenses'!N5 -> 12152.30841 | U20: ='cons expenses'!O5 -> 13410.30323 | V20: ='cons expenses'!P5 -> 14766.22402 | W20: ='cons expenses'!Q5 -> 15857.83527
D21: Total RM costs | I21: =I20 -> 3416.818 | J21: =J20 -> 4349.234 | K21: =K20 -> 4643.23 | L21: =L20 -> 5587.7 | M21: =M20 -> 4760.3 | N21: =N20 -> 6248.9 | O21: =O20 -> 7444.033774 | P21: =P20 -> 9266.647469 | Q21: =Q20 -> 10407.94463 | R21: =R20 -> 10416.12606 | S21: =S20 -> 11025.59651 | T21: =T20 -> 12152.30841 | U21: =U20 -> 13410.30323 | V21: =V20 -> 14766.22402 | W21: =W20 -> 15857.83527
J22: =(J21/I21-1)*100 -> 27.28901569 | K22: =(K21/J21-1)*100 -> 6.759719068 | L22: =(L21/K21-1)*100 -> 20.34079725 | M22: =(M21/L21-1)*100 -> -14.80752367 | N22: =(N21/M21-1)*100 -> 31.27113837 | O22: =(O21/N21-1)*100 -> 19.12550647 | P22: =(P21/O21-1)*100 -> 24.4842212 | Q22: =(Q21/P21-1)*100 -> 12.31618193 | R22: =(R21/Q21-1)*100 -> 0.07860752605 | S22: =(S21/R21-1)*100 -> 5.851220015 | T22: =(T21/S21-1)*100 -> 10.21905615 | U22: =(U21/T21-1)*100 -> 10.3519001 | V22: =(V21/U21-1)*100 -> 10.11103747 | W22: =(W21/V21-1)*100 -> 7.392622876
B23: EMPLOYEES
C24: Salary, PF, Staff Welfare | I24: 1183.85 | J24: 1596.224 | K24: 1982.79 | L24: 2419.2 | M24: =2519.8 -> 2519.8 | N24: 3009 | O24: ='cons expenses'!I6 -> 3547.717261 | P24: ='cons expenses'!J6 -> 4266.608661 | Q24: ='cons expenses'!K6 -> 5048.96499 | R24: ='cons expenses'!L6 -> 5807.497998 | S24: ='cons expenses'!M6 -> 6150.573782 | T24: ='cons expenses'!N6 -> 6712.640002 | U24: ='cons expenses'!O6 -> 7103.254248 | V24: ='cons expenses'!P6 -> 7700.703568 | W24: ='cons expenses'!Q6 -> 8444.440219
D25: Employee costs | I25: =I24 -> 1183.85 | J25: =J24 -> 1596.224 | K25: =K24 -> 1982.79 | L25: =L24 -> 2419.2 | M25: =M24 -> 2519.8 | N25: =N24 -> 3009 | O25: =O24 -> 3547.717261 | P25: =P24 -> 4266.608661 | Q25: =Q24 -> 5048.96499 | R25: =R24 -> 5807.497998 | S25: =S24 -> 6150.573782 | T25: =T24 -> 6712.640002 | U25: =U24 -> 7103.254248 | V25: =V24 -> 7700.703568 | W25: =W24 -> 8444.440219
J26: =(J25/I25-1)*100 -> 34.83329814 | K26: =(K25/J25-1)*100 -> 24.21752837 | L26: =(L25/K25-1)*100 -> 22.00989515 | M26: =(M25/L25-1)*100 -> 4.158399471 | N26: =(N25/M25-1)*100 -> 19.41423923 | O26: =(O25/N25-1)*100 -> 17.90353145 | P26: =(P25/O25-1)*100 -> 20.2634919 | Q26: =(Q25/P25-1)*100 -> 18.33672574 | R26: =(R25/Q25-1)*100 -> 15.02353471 | S26: =(S25/R25-1)*100 -> 5.907462813 | T26: =(T25/S25-1)*100 -> 9.138435521 | U26: =(U25/T25-1)*100 -> 5.81908528 | V26: =(V25/U25-1)*100 -> 8.410924051 | W26: =(W25/V25-1)*100 -> 9.658035065
B27: SG&A AND OTHER
C28: Radio operating cost | I28: =0 -> 0 | J28: =9.7+5.6 -> 15.3 | K28: =48.4+22.8 -> 71.2 | L28: =12.9+6 -> 18.9 | M28: =47.3+28.4 -> 75.7 | N28: =40.1+32.9 -> 73 | O28: =-SUM('Fever-FM'!I7:I8) -> 78.78979181 | P28: =-SUM('Fever-FM'!J7:J8) -> 86.34031463 | Q28: =-SUM('Fever-FM'!K7:K8) -> 92.77687013 | R28: =-SUM('Fever-FM'!L7:L8) -> 102.5423868 | S28: =-SUM('Fever-FM'!M7:M8) -> 110.3275415 | T28: =-SUM('Fever-FM'!N7:N8) -> 96.4787416 | U28: =-SUM('Fever-FM'!O7:O8) -> 30.98290912 | V28: =-SUM('Fever-FM'!P7:P8) -> 0 | W28: =-SUM('Fever-FM'!Q7:Q8) -> 0
C29: Internet operating cost | I29: =0 -> 0 | J29: =0 -> 0 | K29: =0 -> 0 | L29: 100 | M29: 100 | N29: 125 | O29: =-Internet!I7 -> 150 | P29: =-Internet!J7 -> 172.5 | Q29: =-Internet!K7 -> 193.2 | R29: =-Internet!L7 -> 216.384 | S29: =-Internet!M7 -> 238.0224 | T29: =-Internet!N7 -> 261.82464 | U29: =-Internet!O7 -> 288.007104 | V29: =-Internet!P7 -> 316.8078144 | W29: =-Internet!Q7 -> 348.4885958
C30: Printing and service charges | I30: 360.536 | J30: 190.284 | K30: 222.39 | L30: 242.3 | M30: =222.4 -> 222.4 | N30: 314.2 | O30: =N30*'cons expenses'!I27/'cons expenses'!H27 -> 349.0214115 | P30: =O30*'cons expenses'!J27/'cons expenses'!I27 -> 395.3858003 | Q30: =P30*'cons expenses'!K27/'cons expenses'!J27 -> 440.0102931 | R30: =Q30*'cons expenses'!L27/'cons expenses'!K27*1.05 -> 459.5076397 | S30: =R30*'cons expenses'!M27/'cons expenses'!L27 -> 473.0021888 | T30: =S30*'cons expenses'!N27/'cons expenses'!M27 -> 509.6142327 | U30: =T30*'cons expenses'!O27/'cons expenses'!N27 -> 547.9850239 | V30: =U30*'cons expenses'!P27/'cons expenses'!O27 -> 586.8097799 | W30: =V30*'cons expenses'!Q27/'cons expenses'!P27 -> 614.1970327
C31: Consumption of stores and spares | I31: 219.13 | J31: 300.821 | K31: 329.06 | L31: 360.5 | M31: =391.2 -> 391.2 | N31: 463.1 | O31: =N31*'cons expenses'!I27/'cons expenses'!H27 -> 514.4233471 | P31: =O31*'cons expenses'!J27/'cons expenses'!I27 -> 582.7599112 | Q31: =P31*'cons expenses'!K27/'cons expenses'!J27 -> 648.5320392 | R31: =Q31*'cons expenses'!L27/'cons expenses'!K27*1.05 -> 677.2692169 | S31: =R31*'cons expenses'!M27/'cons expenses'!L27 -> 697.1588594 | T31: =S31*'cons expenses'!N27/'cons expenses'!M27 -> 751.1214232 | U31: =T31*'cons expenses'!O27/'cons expenses'!N27 -> 807.6762081 | V31: =U31*'cons expenses'!P27/'cons expenses'!O27 -> 864.9000925 | W31: =V31*'cons expenses'!Q27/'cons expenses'!P27 -> 905.2662185
C32: News services and dispatches | I32: 131.008 | J32: 152.277 | K32: 214.02 | L32: 301.5 | M32: =239.6 -> 239.6 | N32: 280.3 | O32: =N32*1.15 -> 322.345 | P32: =O32*1.15 -> 370.69675 | Q32: =P32*1.12 -> 415.18036 | R32: =Q32*1.12 -> 465.0020032 | S32: =R32*1.08 -> 502.2021635 | T32: =S32*1.08 -> 542.3783365 | U32: =T32*1.08 -> 585.7686035 | V32: =U32*1.08 -> 632.6300917 | W32: =V32*1.08 -> 683.2404991
C33: Power and fuel | I33: 128.039 | J33: 160.724 | K33: 190.65 | L33: 211.5 | M33: =230.3 -> 230.3 | N33: 368.8 | O33: =N33*1.15 -> 424.12 | P33: =O33*1.15 -> 487.738 | Q33: =P33*1.12 -> 546.26656 | R33: =Q33*1.12 -> 611.8185472 | S33: =R33*1.08 -> 660.764031 | T33: =S33*1.08 -> 713.6251535 | U33: =T33*1.08 -> 770.7151657 | V33: =U33*1.08 -> 832.372379 | W33: =V33*1.08 -> 898.9621693
C34: Repair and maintenance | I34: =75.639+20.494+0.593 -> 96.726 | J34: =90.093+35.132+2.26 -> 127.485 | K34: =96.38+40.89+3.77 -> 141.04 | L34: =107.3+29.1+6.8 -> 143.2 | M34: =144.1+24.7+7.4 -> 176.2 | N34: =139+26.6+29.1 -> 194.7 | O34: =N34*1.15 -> 223.905 | P34: =O34*1.15 -> 257.49075 | Q34: =P34*1.12 -> 288.38964 | R34: =Q34*1.12 -> 322.9963968 | S34: =R34*1.08 -> 348.8361085 | T34: =S34*1.08 -> 376.7429972 | U34: =T34*1.08 -> 406.882437 | V34: =U34*1.08 -> 439.433032 | W34: =V34*1.08 -> 474.5876745
C35: Communication expenses | I35: 82.506 | J35: 95.747 | K35: 105.49 | L35: 124.4 | M35: =126 -> 126 | N35: 130.1 | O35: =N35*1.15 -> 149.615 | P35: =O35*1.15 -> 172.05725 | Q35: =P35*1.12 -> 192.70412 | R35: =Q35*1.12 -> 215.8286144 | S35: =R35*1.08 -> 233.0949036 | T35: =S35*1.08 -> 251.7424958 | U35: =T35*1.08 -> 271.8818955 | V35: =U35*1.08 -> 293.6324471 | W35: =V35*1.08 -> 317.1230429
C36: Traveling and conveyance | I36: 135.711 | J36: 165.895 | K36: 192.42 | L36: 214.8 | M36: =214.6 -> 214.6 | N36: 261.6 | O36: =N36*1.15 -> 300.84 | P36: =O36*1.15 -> 345.966 | Q36: =P36*1.12 -> 387.48192 | R36: =Q36*1.12 -> 433.9797504 | S36: =R36*1.08 -> 468.6981304 | T36: =S36*1.08 -> 506.1939809 | U36: =T36*1.08 -> 546.6894993 | V36: =U36*1.08 -> 590.4246593 | W36: =V36*1.08 -> 637.658632
C37: Advertising and sales promotion | I37: 681.567 | J37: 715.732 | K37: 1150.41 | L37: 1540.9 | M37: =1158.8 -> 1158.8 | N37: 1353.3 | O37: =8.35%*(O17-O9) -> 1577.873209 | P37: =7.75%*(P17-P9) -> 1681.479048 | Q37: =7.25%*(Q17-Q9) -> 1836.247306 | R37: =7%*(R17-R9) -> 1884.211536 | S37: =6.75%*(S17-S9) -> 1918.696479 | T37: =6.5%*(T17-T9) -> 2067.009165 | U37: =6.25%*(U17-U9) -> 2154.05475 | V37: =6%*(V17-V9) -> 2242.308336 | W37: =6%*(W17-W9) -> 2443.097307
C38: Bad debt w/off, provision for doubtful debts | I38: 21.318 | J38: =18.799 -> 18.799 | K38: 1.77 | L38: =101.9+27.4+0.7 -> 130 | M38: =0.5+133.2+55 -> 188.7 | N38: =6.7+73.5+14+68.7 -> 162.9 | O38: =2.5%*O7 -> 383.7419282 | P38: =1.75%*P7 -> 308.6317707 | Q38: =1.5%*Q7 -> 313.5457304 | R38: =1.5%*R7 -> 332.1624897 | S38: =1.25%*S7 -> 290.5381032 | T38: =1.25%*T7 -> 329.8140498 | U38: =1.25%*U7 -> 368.2029473 | V38: =1.25%*V7 -> 403.0748777 | W38: =1.25%*W7 -> 440.5635387
C39: Miscellaneous and other expenses | I39: =2425.449-SUM(I28:I38) -> 568.908 | J39: =2770.745-SUM(J28:J38) -> 827.681 | K39: =3707.52-SUM(K28:K38) -> 1089.07 | L39: =4580.4-SUM(L28:L38) -> 1192.4 | M39: =4350.3-SUM(M28:M38) -> 1226.8 | N39: =5244.8-SUM(N28:N38) -> 1517.8 | O39: =N39*1.15 -> 1745.47 | P39: =O39*1.15 -> 2007.2905 | Q39: =P39*1.15 -> 2308.384075 | R39: =Q39*1.15 -> 2654.641686 | S39: =R39*1.1 -> 2920.105855 | T39: =S39*1.1 -> 3212.11644 | U39: =T39*1.05 -> 3372.722262 | V39: =U39*1.1 -> 3709.994489 | W39: =V39*1.1 -> 4080.993937
D40: SG&A and other costs | I40: =SUM(I28:I39) -> 2425.449 | J40: =SUM(J28:J39) -> 2770.745 | K40: =SUM(K28:K39) -> 3707.52 | L40: =SUM(L28:L39) -> 4580.4 | M40: =SUM(M28:M39) -> 4350.3 | N40: =SUM(N28:N39) -> 5244.8 | O40: =SUM(O28:O39) -> 6220.144688 | P40: =SUM(P28:P39) -> 6868.336095 | Q40: =SUM(Q28:Q39) -> 7662.718914 | R40: =SUM(R28:R39) -> 8376.344267 | S40: =SUM(S28:S39) -> 8861.446763 | T40: =SUM(T28:T39) -> 9618.661657 | U40: =SUM(U28:U39) -> 10151.56881 | V40: =SUM(V28:V39) -> 10912.388 | W40: =SUM(W28:W39) -> 11844.17865
J41: =(J40/I40-1)*100 -> 14.23637438 | K41: =(K40/J40-1)*100 -> 33.80949889 | L41: =(L40/K40-1)*100 -> 23.54350078 | M41: =(M40/L40-1)*100 -> -5.023578727 | N41: =(N40/M40-1)*100 -> 20.56180034 | O41: =(O40/N40-1)*100 -> 18.59641335 | P41: =(P40/O40-1)*100 -> 10.42084131 | Q41: =(Q40/P40-1)*100 -> 11.56586993 | R41: =(R40/Q40-1)*100 -> 9.31295225 | S41: =(S40/R40-1)*100 -> 5.791339044 | T41: =(T40/S40-1)*100 -> 8.545048159 | U41: =(U40/T40-1)*100 -> 5.540346129 | V41: =(V40/U40-1)*100 -> 7.494597214 | W41: =(W40/V40-1)*100 -> 8.53883357
B42: EBITDA | I42: =I17-I21-I25-I40 -> 1183.988 | J42: =J17-J21-J25-J40 -> 1680.372 | K42: =K17-K21-K25-K40 -> 1698.97 | L42: =L17-L21-L25-L40 -> 878.8 | M42: =M17-M21-M25-M40 -> 2498.8 | N42: =N17-N21-N25-N40 -> 3171.2 | O42: =O17-O21-O25-O40 -> 2798.190664 | P42: =P17-P21-P25-P40 -> 3128.114417 | Q42: =Q17-Q21-Q25-Q40 -> 4532.448794 | R42: =R17-R21-R25-R40 -> 5048.188993 | S42: =S17-S21-S25-S40 -> 5484.158908 | T42: =T17-T21-T25-T40 -> 6792.627522 | U42: =U17-U21-U25-U40 -> 7669.309982 | V42: =V17-V21-V25-V40 -> 8269.88292 | W42: =W17-W21-W25-W40 -> 8936.085468
J43: =(J42/I42-1)*100 -> 41.92474924 | K43: =(K42/J42-1)*100 -> 1.106778737 | L43: =(L42/K42-1)*100 -> -48.27454281 | M43: =(M42/L42-1)*100 -> 184.3422849 | N43: =(N42/M42-1)*100 -> 26.90891628 | O43: =(O42/N42-1)*100 -> -11.76240337 | P43: =(P42/O42-1)*100 -> 11.79061016 | Q43: =(Q42/P42-1)*100 -> 44.89395814 | R43: =(R42/Q42-1)*100 -> 11.37884227 | S43: =(S42/R42-1)*100 -> 8.636164681 | T43: =(T42/S42-1)*100 -> 23.85905725 | U43: =(U42/T42-1)*100 -> 12.90638205 | V43: =(V42/U42-1)*100 -> 7.830860142 | W43: =(W42/V42-1)*100 -> 8.055767584
B44: OTHER INCOME
C45: Interest income | I45: 111.355 | J45: 151.1 | K45: 66.51 | L45: 205.7 | M45: 167.8 | N45: 291.2 | O45: =O403+6%*N226 -> 510.2584558 | P45: =P403+6%*O226 -> 568.8469322 | Q45: =Q403+6%*P226 -> 623.0423934 | R45: =R403+6%*Q226 -> 719.2175309 | S45: =S403+6%*R226 -> 777.5186367 | T45: =T403+6%*S226 -> 795.1162885 | U45: =U403+6%*T226 -> 796.1806483 | V45: =V403+6%*U226 -> 783.485317 | W45: =W403+6%*V226 -> 761.1804829
C46: Other income | I46: 65.983 | J46: 215.756 | K46: 372.15 | L46: 124.7 | M46: 241 | N46: 186.5 | O46: =N46+100 -> 286.5 | P46: =O46-50 -> 236.5 | Q46: =P46 -> 236.5 | R46: =Q46 -> 236.5 | S46: =R46 -> 236.5 | T46: =S46 -> 236.5 | U46: =T46 -> 236.5 | V46: =U46 -> 236.5 | W46: =V46 -> 236.5
D47: Total other income | I47: =SUM(I45:I46) -> 177.338 | J47: =SUM(J45:J46) -> 366.856 | K47: =SUM(K45:K46) -> 438.66 | L47: =SUM(L45:L46) -> 330.4 | M47: =SUM(M45:M46) -> 408.8 | N47: =SUM(N45:N46) -> 477.7 | O47: =SUM(O45:O46) -> 796.7584558 | P47: =SUM(P45:P46) -> 805.3469322 | Q47: =SUM(Q45:Q46) -> 859.5423934 | R47: =SUM(R45:R46) -> 955.7175309 | S47: =SUM(S45:S46) -> 1014.018637 | T47: =SUM(T45:T46) -> 1031.616288 | U47: =SUM(U45:U46) -> 1032.680648 | V47: =SUM(V45:V46) -> 1019.985317 | W47: =SUM(W45:W46) -> 997.6804829
B49: FINANCE CHARGES
C50: Interest expenses | I50: 135.4 | J50: 142.9 | K50: 177.9 | L50: 322.8 | M50: 295.1 | N50: 236 | O50: =interest!BE8+interest!BE18+50 -> 331.025 | P50: =interest!BJ8+interest!BJ18 -> 281.025 | Q50: =interest!BO8+interest!BO18 -> 281.025 | R50: =interest!BT8+interest!BT18 -> 281.025 | S50: =interest!BY8+interest!BY18 -> 281.025 | T50: =interest!CD8+interest!CD18 -> 281.025 | U50: =interest!CI8+interest!CI18 -> 281.025 | V50: =interest!CN8+interest!CN18 -> 281.025 | W50: =interest!CS8+interest!CS18 -> 281.025
D51: Total finance expenses | I51: =I50 -> 135.4 | J51: =J50 -> 142.9 | K51: =K50 -> 177.9 | L51: =L50 -> 322.8 | M51: =M50 -> 295.1 | N51: =N50 -> 236 | O51: =O50 -> 331.025 | P51: =P50 -> 281.025 | Q51: =Q50 -> 281.025 | R51: =R50 -> 281.025 | S51: =S50 -> 281.025 | T51: =T50 -> 281.025 | U51: =U50 -> 281.025 | V51: =V50 -> 281.025 | W51: =W50 -> 281.025
B53: Gross profit | I53: =I42-I51+I47 -> 1225.926 | J53: =J42-J51+J47 -> 1904.328 | K53: =K42-K51+K47 -> 1959.73 | L53: =L42-L51+L47 -> 886.4 | M53: =M42-M51+M47 -> 2612.5 | N53: =N42-N51+N47 -> 3412.9 | O53: =O42-O51+O47 -> 3263.92412 | P53: =P42-P51+P47 -> 3652.436349 | Q53: =Q42-Q51+Q47 -> 5110.966187 | R53: =R42-R51+R47 -> 5722.881524 | S53: =S42-S51+S47 -> 6217.152545 | T53: =T42-T51+T47 -> 7543.218811 | U53: =U42-U51+U47 -> 8420.96563 | V53: =V42-V51+V47 -> 9008.843237 | W53: =W42-W51+W47 -> 9652.740951
B55: Depreciation and Plant
C56: Plant Balance
D57: Historic Gross Plant | I57: 4398.321 | J57: 5189.433 | K57: 6203.43 | L57: 8667.6 | M57: 10066.3 | N57: 10721.1 | O57: =IF(O4,O217+O219) -> FALSE | P57: =IF(P4,P217+P219) -> FALSE | Q57: =IF(Q4,Q217+Q219) -> FALSE | R57: =IF(R4,R217+R219) -> FALSE | S57: =IF(S4,S217+S219) -> FALSE | T57: =IF(T4,T217+T219) -> FALSE | U57: =IF(U4,U217+U219) -> FALSE | V57: =IF(V4,V217+V219) -> FALSE | W57: =IF(W4,W217+W219) -> FALSE
D58: Historic Net Plant | I58: 3736.403 | J58: 4108.697 | K58: 4751.6 | L58: 6718 | M58: 7572.5 | N58: 7558.9 | O58: =IF(O4,O220) -> FALSE | P58: =IF(P4,P220) -> FALSE | Q58: =IF(Q4,Q220) -> FALSE | R58: =IF(R4,R220) -> FALSE | S58: =IF(S4,S220) -> FALSE | T58: =IF(T4,T220) -> FALSE | U58: =IF(U4,U220) -> FALSE | V58: =IF(V4,V220) -> FALSE | W58: =IF(W4,W220) -> FALSE
D59: Implied Accumulated Depreciation | I59: 661.918 | J59: 1080.736 | K59: 1451.83 | L59: 1949.6 | M59: 2493.8 | N59: 3162.2 | O59: =O57-O58 -> 0 | P59: =P57-P58 -> 0 | Q59: =Q57-Q58 -> 0 | R59: =R57-R58 -> 0 | S59: =S57-S58 -> 0 | T59: =T57-T58 -> 0 | U59: =U57-U58 -> 0 | V59: =V57-V58 -> 0 | W59: =W57-W58 -> 0
D60: Historic Accumulated Depreciation | I60: =IF(I4,I218) -> 661.918 | J60: =IF(J4,J218) -> 1080.736 | K60: =IF(K4,K218) -> 1451.83 | L60: =IF(L4,L218) -> 1949.6 | M60: =IF(M4,M218) -> 2493.8 | N60: =IF(N4,N218) -> 3162.2 | O60: =IF(O4,O218) -> FALSE | P60: =IF(P4,P218) -> FALSE | Q60: =IF(Q4,Q218) -> FALSE | R60: =IF(R4,R218) -> FALSE | S60: =IF(S4,S218) -> FALSE | T60: =IF(T4,T218) -> FALSE | U60: =IF(U4,U218) -> FALSE | V60: =IF(V4,V218) -> FALSE | W60: =IF(W4,W218) -> FALSE
D62: Depreciation Expense | I62: 385.364 | J62: 435.988 | K62: 569.87 | L62: 688.1 | M62: 706.9 | N62: 841.9 | O62: =IF(O4,O149) -> FALSE | P62: =IF(P4,P149) -> FALSE | Q62: =IF(Q4,Q149) -> FALSE | R62: =IF(R4,R149) -> FALSE | S62: =IF(S4,S149) -> FALSE | T62: =IF(T4,T149) -> FALSE | U62: =IF(U4,U149) -> FALSE | V62: =IF(V4,V149) -> FALSE | W62: =IF(W4,W149) -> FALSE
D64: Change in Accumulated Depreciation | J64: =IF(J4,J59-I59) -> 418.818 | K64: =IF(K4,K59-J59) -> 371.094 | L64: =IF(L4,L59-K59) -> 497.77 | M64: =IF(M4,M59-L59) -> 544.2 | N64: =IF(N4,N59-M59) -> 668.4 | O64: =IF(O4,O59-N59) -> FALSE | P64: =IF(P4,P59-O59) -> FALSE | Q64: =IF(Q4,Q59-P59) -> FALSE | R64: =IF(R4,R59-Q59) -> FALSE | S64: =IF(S4,S59-R59) -> FALSE | T64: =IF(T4,T59-S59) -> FALSE | U64: =IF(U4,U59-T59) -> FALSE | V64: =IF(V4,V59-U59) -> FALSE | W64: =IF(W4,W59-V59) -> FALSE
D65: Implied Retirements | J65: =J62-J64 -> 17.17 | K65: =K62-K64 -> 198.776 | L65: =L62-L64 -> 190.33 | M65: =M62-M64 -> 162.7 | N65: =N62-N64 -> 173.5 | O65: =O62-O64 -> 0 | P65: =P62-P64 -> 0 | Q65: =Q62-Q64 -> 0 | R65: =R62-R64 -> 0 | S65: =S62-S64 -> 0 | T65: =T62-T64 -> 0 | U65: =U62-U64 -> 0 | V65: =V62-V64 -> 0 | W65: =W62-W64 -> 0
D67: Depreciation Rate on Initial Gross Plant | J67: =IF(J4,J62/I57) -> 0.0991260074 | K67: =IF(K4,K62/J57) -> 0.1098135384 | L67: =IF(L4,L62/K57) -> 0.1109225058 | M67: =IF(M4,M62/L57) -> 0.0815566016 | N67: =IF(N4,N62/M57) -> 0.08363549666 | O67: =IF(O4,O62/N57) -> FALSE | P67: =IF(P4,P62/O57) -> FALSE | Q67: =IF(Q4,Q62/P57) -> FALSE | R67: =IF(R4,R62/Q57) -> FALSE | S67: =IF(S4,S62/R57) -> FALSE | T67: =IF(T4,T62/S57) -> FALSE | U67: =IF(U4,U62/T57) -> FALSE | V67: =IF(V4,V62/U57) -> FALSE | W67: =IF(W4,W62/V57) -> FALSE
D68: Implied Life | J68: =IF(J4,1/J67) -> 10.08816986 | K68: =IF(K4,1/K67) -> 9.106345307 | L68: =IF(L4,1/L67) -> 9.015303008 | M68: =IF(M4,1/M67) -> 12.26142312 | N68: =IF(N4,1/N67) -> 11.95664568 | O68: =IF(O4,1/O67) -> FALSE | P68: =IF(P4,1/P67) -> FALSE | Q68: =IF(Q4,1/Q67) -> FALSE | R68: =IF(R4,1/R67) -> FALSE | S68: =IF(S4,1/S67) -> FALSE | T68: =IF(T4,1/T67) -> FALSE | U68: =IF(U4,1/U67) -> FALSE | V68: =IF(V4,1/V67) -> FALSE | W68: =IF(W4,1/W67) -> FALSE
D70: Depreciation on Net Plant | J70: =IF(J4,J62/I58) -> 0.1166865566 | K70: =IF(K4,K62/J58) -> 0.138698473 | L70: =IF(L4,L62/K58) -> 0.1448143783 | M70: =IF(M4,M62/L58) -> 0.1052247693 | N70: =IF(N4,N62/M58) -> 0.1111786068 | O70: =IF(O4,O62/N58) -> FALSE | P70: =IF(P4,P62/O58) -> FALSE | Q70: =IF(Q4,Q62/P58) -> FALSE | R70: =IF(R4,R62/Q58) -> FALSE | S70: =IF(S4,S62/R58) -> FALSE | T70: =IF(T4,T62/S58) -> FALSE | U70: =IF(U4,U62/T58) -> FALSE | V70: =IF(V4,V62/U58) -> FALSE | W70: =IF(W4,W62/V58) -> FALSE
D71: Implied Capital Expenditures | J71: =IF(J4,J57-I57+J65) -> 808.282 | K71: =IF(K4,K57-J57+K65) -> 1212.773 | L71: =IF(L4,L57-K57+L65) -> 2654.5 | M71: =IF(M4,M57-L57+M65) -> 1561.4 | N71: =IF(N4,N57-M57+N65) -> 828.3 | O71: =IF(O4,O57-N57+O65) -> FALSE | P71: =IF(P4,P57-O57+P65) -> FALSE | Q71: =IF(Q4,Q57-P57+Q65) -> FALSE | R71: =IF(R4,R57-Q57+R65) -> FALSE | S71: =IF(S4,S57-R57+S65) -> FALSE | T71: =IF(T4,T57-S57+T65) -> FALSE | U71: =IF(U4,U57-T57+U65) -> FALSE | V71: =IF(V4,V57-U57+V65) -> FALSE | W71: =IF(W4,W57-V57+W65) -> FALSE
D72: Historic and Projected Capital Expenditures | I72: 328.493 | J72: 870.078 | K72: 1204.71 | L72: 2600.6 | M72: 1603.6 | N72: 776.1 | O72: 830 | P72: 871.5 | Q72: 915.075 | R72: 717.7275 | S72: 753.613875 | T72: 1126.318479 | U72: 1464.054487 | V72: 1537.257212 | W72: 1614.120072
B74: From Depreciation
D75: Gross Plant | I75: =I217 -> 4387.805 | J75: =J217 -> 5000.945 | K75: =K217 -> 5614.27 | L75: =L217 -> 6721.5 | M75: =M217 -> 8777.6 | N75: =N217 -> 10527.5 | O75: =O217 -> 11357.5 | P75: =P217 -> 12229 | Q75: =Q217 -> 13144.075 | R75: =R217 -> 13861.8025 | S75: =S217 -> 14615.41638 | T75: =T217 -> 15741.73485 | U75: =U217 -> 17205.78934 | V75: =V217 -> 18743.04655 | W75: =W217 -> 20357.16663
D76: Additions | I76: =SUMIF(depn!21:21,I3,depn!40:40) -> 0 | J76: =SUMIF(depn!21:21,J3,depn!40:40) -> 480.072 | K76: =SUMIF(depn!21:21,K3,depn!40:40) -> 248.488 | L76: =SUMIF(depn!21:21,L3,depn!40:40) -> 1098.757 | M76: =SUMIF(depn!21:21,M3,depn!40:40) -> 2566.1 | N76: =SUMIF(depn!21:21,N3,depn!40:40) -> 1745.7 | O76: =SUMIF(depn!21:21,O3,depn!40:40) -> 0 | P76: =SUMIF(depn!21:21,P3,depn!40:40) -> 0 | Q76: =SUMIF(depn!21:21,Q3,depn!40:40) -> 0 | R76: =SUMIF(depn!21:21,R3,depn!40:40) -> 0 | S76: =SUMIF(depn!21:21,S3,depn!40:40) -> 0 | T76: =SUMIF(depn!21:21,T3,depn!40:40) -> 0 | U76: =SUMIF(depn!21:21,U3,depn!40:40) -> 0 | V76: =SUMIF(depn!21:21,V3,depn!40:40) -> 0 | W76: =SUMIF(depn!21:21,W3,depn!40:40) -> 0
D77: Depreciation | I77: =SUMIF(depn!21:21,I3,depn!41:41) -> 0 | J77: =SUMIF(depn!21:21,J3,depn!41:41) -> 404.8887911 | K77: =SUMIF(depn!21:21,K3,depn!41:41) -> 430.7912241 | L77: =SUMIF(depn!21:21,L3,depn!41:41) -> 484.3350552 | M77: =SUMIF(depn!21:21,M3,depn!41:41) -> 558.3742253 | N77: =SUMIF(depn!21:21,N3,depn!41:41) -> 662.1 | O77: =SUMIF(depn!21:21,O3,depn!41:41) -> 0 | P77: =SUMIF(depn!21:21,P3,depn!41:41) -> 0 | Q77: =SUMIF(depn!21:21,Q3,depn!41:41) -> 0 | R77: =SUMIF(depn!21:21,R3,depn!41:41) -> 0 | S77: =SUMIF(depn!21:21,S3,depn!41:41) -> 0 | T77: =SUMIF(depn!21:21,T3,depn!41:41) -> 0 | U77: =SUMIF(depn!21:21,U3,depn!41:41) -> 0 | V77: =SUMIF(depn!21:21,V3,depn!41:41) -> 0 | W77: =SUMIF(depn!21:21,W3,depn!41:41) -> 0
D78: Hindustan | J78: =Hindustan!D29 -> 0 | K78: =Hindustan!E29 -> 0 | L78: =Hindustan!F29 -> 0 | M78: =Hindustan!G29 -> 0 | N78: =Hindustan!H29 -> -164.4 | O78: =Hindustan!I29 -> -193.6039212 | P78: =Hindustan!J29 -> -235.6918679 | Q78: =Hindustan!K29 -> -280.3842119 | R78: =Hindustan!L29 -> -327.8484313 | S78: =Hindustan!M29 -> -367.7231197 | T78: =Hindustan!N29 -> -409.5915425 | U78: =Hindustan!O29 -> -465.0865056 | V78: =Hindustan!P29 -> -534.8893359 | W78: =Hindustan!Q29 -> -608.1823077
D79: Total Depreciation - Gross Plant | I79: =IF(I4,I62,I77-I78) -> 385.364 | J79: =IF(J4,J62,J77-J78) -> 435.988 | K79: =IF(K4,K62,K77-K78) -> 569.87 | L79: =IF(L4,L62,L77-L78) -> 688.1 | M79: =IF(M4,M62,M77-M78) -> 706.9 | N79: =IF(N4,N62,N77-N78) -> 841.9 | O79: =IF(O4,O62,O77-O78) -> 193.6039212 | P79: =IF(P4,P62,P77-P78) -> 235.6918679 | Q79: =IF(Q4,Q62,Q77-Q78) -> 280.3842119 | R79: =IF(R4,R62,R77-R78) -> 327.8484313 | S79: =IF(S4,S62,S77-S78) -> 367.7231197 | T79: =IF(T4,T62,T77-T78) -> 409.5915425 | U79: =IF(U4,U62,U77-U78) -> 465.0865056 | V79: =IF(V4,V62,V77-V78) -> 534.8893359 | W79: =IF(W4,W62,W77-W78) -> 608.1823077
B81: Net Plant Method | E81: Average | F81: Last
D82: Net Plant Depreciation Rate | E82: =AVERAGEIF(4:4,TRUE,70:70) -> 0.1233205568 | F82: =SUMIF(3:3,E4,70:70) -> 0.1111786068 | I82: =IF(I4,I70,$F$82) -> 0 | J82: =IF(J4,J70,$F$82) -> 0.1166865566 | K82: =IF(K4,K70,$F$82) -> 0.138698473 | L82: =IF(L4,L70,$F$82) -> 0.1448143783 | M82: =IF(M4,M70,$F$82) -> 0.1052247693 | N82: =IF(N4,N70,$F$82) -> 0.1111786068 | O82: =IF(O4,O70,$F$82) -> 0.1111786068 | P82: =IF(P4,P70,$F$82) -> 0.1111786068 | Q82: =IF(Q4,Q70,$F$82) -> 0.1111786068 | R82: =IF(R4,R70,$F$82) -> 0.1111786068 | S82: =IF(S4,S70,$F$82) -> 0.1111786068 | T82: =IF(T4,T70,$F$82) -> 0.1111786068 | U82: =IF(U4,U70,$F$82) -> 0.1111786068 | V82: =IF(V4,V70,$F$82) -> 0.1111786068 | W82: =IF(W4,W70,$F$82) -> 0.1111786068
D83: Capital Expenditures Including Acquisitions | J83: =-J373-J374-J375 -> 1185.916 | K83: =-K373-K374-K375 -> 1521.71 | L83: =-L373-L374-L375 -> 3723.4 | M83: =-M373-M374-M375 -> 3353.2 | N83: =-N373-N374-N375 -> 3870.9 | O83: =-O373-O374-O375 -> -170 | P83: =-P373-P374-P375 -> 871.5 | Q83: =-Q373-Q374-Q375 -> 915.075 | R83: =-R373-R374-R375 -> 717.7275 | S83: =-S373-S374-S375 -> 753.613875 | T83: =-T373-T374-T375 -> 1126.318479 | U83: =-U373-U374-U375 -> 1464.054487 | V83: =-V373-V374-V375 -> 1537.257212 | W83: =-W373-W374-W375 -> 1614.120072
C85: Net Plant
D86: Opening Balance | J86: =I89 -> 3736.403 | K86: =J89 -> 4108.697 | L86: =K89 -> 4751.6 | M86: =L89 -> 6718 | N86: =M89 -> 7572.5 | O86: =N89 -> 7558.9 | P86: =O89 -> 6548.512029 | Q86: =P89 -> 6691.957585 | R86: =Q89 -> 6863.030064 | S86: =R89 -> 6817.735443 | T86: =S89 -> 6813.36299 | U86: =T89 -> 7182.181264 | V86: =U89 -> 7847.730845 | W86: =V89 -> 8512.488275
D87: Add: Capital Expenditures | J87: =J83 -> 1185.916 | K87: =K83 -> 1521.71 | L87: =L83 -> 3723.4 | M87: =M83 -> 3353.2 | N87: =N83 -> 3870.9 | O87: =O83 -> -170 | P87: =P83 -> 871.5 | Q87: =Q83 -> 915.075 | R87: =R83 -> 717.7275 | S87: =S83 -> 753.613875 | T87: =T83 -> 1126.318479 | U87: =U83 -> 1464.054487 | V87: =V83 -> 1537.257212 | W87: =W83 -> 1614.120072
D88: Less: Depreciation | J88: =J91 -> 435.988 | K88: =K91 -> 569.87 | L88: =L91 -> 688.1 | M88: =M91 -> 706.9 | N88: =N91 -> 841.9 | O88: =O91 -> 840.3879709 | P88: =P91 -> 728.054444 | Q88: =Q91 -> 744.0025211 | R88: =R91 -> 763.0221209 | S88: =S91 -> 757.9863281 | T88: =T91 -> 757.5002048 | U88: =U91 -> 798.5049067 | V88: =V91 -> 872.4997819 | W88: =W91 -> 946.4065868
D89: Closing Balance | I89: =IF(I4,I58,I86+I87-I88) -> 3736.403 | J89: =IF(J4,J58,J86+J87-J88) -> 4108.697 | K89: =IF(K4,K58,K86+K87-K88) -> 4751.6 | L89: =IF(L4,L58,L86+L87-L88) -> 6718 | M89: =IF(M4,M58,M86+M87-M88) -> 7572.5 | N89: =IF(N4,N58,N86+N87-N88) -> 7558.9 | O89: =IF(O4,O58,O86+O87-O88) -> 6548.512029 | P89: =IF(P4,P58,P86+P87-P88) -> 6691.957585 | Q89: =IF(Q4,Q58,Q86+Q87-Q88) -> 6863.030064 | R89: =IF(R4,R58,R86+R87-R88) -> 6817.735443 | S89: =IF(S4,S58,S86+S87-S88) -> 6813.36299 | T89: =IF(T4,T58,T86+T87-T88) -> 7182.181264 | U89: =IF(U4,U58,U86+U87-U88) -> 7847.730845 | V89: =IF(V4,V58,V86+V87-V88) -> 8512.488275 | W89: =IF(W4,W58,W86+W87-W88) -> 9180.20176
D91: Depreciation on Net Plant | I91: =IF(I4,I62,I86*I82) -> 385.364 | J91: =IF(J4,J62,J86*J82) -> 435.988 | K91: =IF(K4,K62,K86*K82) -> 569.87 | L91: =IF(L4,L62,L86*L82) -> 688.1 | M91: =IF(M4,M62,M86*M82) -> 706.9 | N91: =IF(N4,N62,N86*N82) -> 841.9 | O91: =IF(O4,O62,O86*O82) -> 840.3879709 | P91: =IF(P4,P62,P86*P82) -> 728.054444 | Q91: =IF(Q4,Q62,Q86*Q82) -> 744.0025211 | R91: =IF(R4,R62,R86*R82) -> 763.0221209 | S91: =IF(S4,S62,S86*S82) -> 757.9863281 | T91: =IF(T4,T62,T86*T82) -> 757.5002048 | U91: =IF(U4,U62,U86*U82) -> 798.5049067 | V91: =IF(V4,V62,V86*V82) -> 872.4997819 | W91: =IF(W4,W62,W86*W82) -> 946.4065868
B93: Gross Plant, Retirements, New and Existing Plant
C94: Reirement Parameters
D95: Retirement Growth Rate | E95: =Retirements!E12 -> 0.1930878255
D96: Base Retirement as Percent of Gross Plant | E96: =Retirements!E13 -> 0.02211226243
D97: Retirements | N97: =IF(N98,E96*N104,M97*(1+$E$95)) -> 237.0677767 | O97: =IF(O98,F96*O101,N97*(1+$E$95)) -> 282.8426782 | P97: =IF(P98,I96*P101,O97*(1+$E$95)) -> 337.4561559 | Q97: =IF(Q98,J96*Q101,P97*(1+$E$95)) -> 402.6148313 | R97: =IF(R98,K96*R101,Q97*(1+$E$95)) -> 480.3548536 | S97: =IF(S98,L96*S101,R97*(1+$E$95)) -> 573.1055277 | T97: =IF(T98,M96*T101,S97*(1+$E$95)) -> 683.7652278 | U97: =IF(U98,N96*U101,T97*(1+$E$95)) -> 815.7919688 | V97: =IF(V98,O96*V101,U97*(1+$E$95)) -> 973.3114661 | W97: =IF(W98,P96*W101,V97*(1+$E$95)) -> 1161.246061
D98: Base Retirement Period | I98: =I3=$E$4 -> FALSE | J98: =J3=$E$4 -> FALSE | K98: =K3=$E$4 -> FALSE | L98: =L3=$E$4 -> FALSE | M98: =M3=$E$4 -> FALSE | N98: =N3=$E$4 -> TRUE | O98: =O3=$E$4 -> FALSE | P98: =P3=$E$4 -> FALSE | Q98: =Q3=$E$4 -> FALSE | R98: =R3=$E$4 -> FALSE | S98: =S3=$E$4 -> FALSE | T98: =T3=$E$4 -> FALSE | U98: =U3=$E$4 -> FALSE | V98: =V3=$E$4 -> FALSE | W98: =W3=$E$4 -> FALSE
C100: Existing Plant
D101: Opening Balance | J101: =I104 -> 4398.321 | K101: =J104 -> 5189.433 | L101: =K104 -> 6203.43 | M101: =L104 -> 8667.6 | N101: =M104 -> 10066.3 | O101: =N104 -> 10721.1 | P101: =O104 -> 10438.25732 | Q101: =P104 -> 10100.80117 | R101: =Q104 -> 9698.186335 | S101: =R104 -> 9217.831481 | T101: =S104 -> 8644.725953 | U101: =T104 -> 7960.960725 | V101: =U104 -> 7145.168757 | W101: =V104 -> 6171.857291
D102: Add: Capital Expenditure | J102: =IF(J4,J87) -> 1185.916 | K102: =IF(K4,K87) -> 1521.71 | L102: =IF(L4,L87) -> 3723.4 | M102: =IF(M4,M87) -> 3353.2 | N102: =IF(N4,N87) -> 3870.9 | O102: =IF(O4,O87) -> FALSE | P102: =IF(P4,P87) -> FALSE | Q102: =IF(Q4,Q87) -> FALSE | R102: =IF(R4,R87) -> FALSE | S102: =IF(S4,S87) -> FALSE | T102: =IF(T4,T87) -> FALSE | U102: =IF(U4,U87) -> FALSE | V102: =IF(V4,V87) -> FALSE | W102: =IF(W4,W87) -> FALSE
D103: Less: Retirement | J103: =IF(J4,J65,J97) -> 17.17 | K103: =IF(K4,K65,K97) -> 198.776 | L103: =IF(L4,L65,L97) -> 190.33 | M103: =IF(M4,M65,M97) -> 162.7 | N103: =IF(N4,N65,N97) -> 173.5 | O103: =IF(O4,O65,O97) -> 282.8426782 | P103: =IF(P4,P65,P97) -> 337.4561559 | Q103: =IF(Q4,Q65,Q97) -> 402.6148313 | R103: =IF(R4,R65,R97) -> 480.3548536 | S103: =IF(S4,S65,S97) -> 573.1055277 | T103: =IF(T4,T65,T97) -> 683.7652278 | U103: =IF(U4,U65,U97) -> 815.7919688 | V103: =IF(V4,V65,V97) -> 973.3114661 | W103: =IF(W4,W65,W97) -> 1161.246061
D104: Closing Balance | I104: =IF(I4,I57,I101+I102-I103) -> 4398.321 | J104: =IF(J4,J57,J101+J102-J103) -> 5189.433 | K104: =IF(K4,K57,K101+K102-K103) -> 6203.43 | L104: =IF(L4,L57,L101+L102-L103) -> 8667.6 | M104: =IF(M4,M57,M101+M102-M103) -> 10066.3 | N104: =IF(N4,N57,N101+N102-N103) -> 10721.1 | O104: =IF(O4,O57,O101+O102-O103) -> 10438.25732 | P104: =IF(P4,P57,P101+P102-P103) -> 10100.80117 | Q104: =IF(Q4,Q57,Q101+Q102-Q103) -> 9698.186335 | R104: =IF(R4,R57,R101+R102-R103) -> 9217.831481 | S104: =IF(S4,S57,S101+S102-S103) -> 8644.725953 | T104: =IF(T4,T57,T101+T102-T103) -> 7960.960725 | U104: =IF(U4,U57,U101+U102-U103) -> 7145.168757 | V104: =IF(V4,V57,V101+V102-V103) -> 6171.857291 | W104: =IF(W4,W57,W101+W102-W103) -> 5010.61123
D106: Life | E106: =ROUND(SUMIF(3:3,E4,68:68),0) -> 12 | I106: =$E$106 -> 12 | J106: =$E$106 -> 12 | K106: =$E$106 -> 12 | L106: =$E$106 -> 12 | M106: =$E$106 -> 12 | N106: =$E$106 -> 12 | O106: =$E$106 -> 12 | P106: =$E$106 -> 12 | Q106: =$E$106 -> 12 | R106: =$E$106 -> 12 | S106: =$E$106 -> 12 | T106: =$E$106 -> 12 | U106: =$E$106 -> 12 | V106: =$E$106 -> 12 | W106: =$E$106 -> 12
D107: Depreciation Rate | I107: =1/I106 -> 0.08333333333 | J107: =1/J106 -> 0.08333333333 | K107: =1/K106 -> 0.08333333333 | L107: =1/L106 -> 0.08333333333 | M107: =1/M106 -> 0.08333333333 | N107: =1/N106 -> 0.08333333333 | O107: =1/O106 -> 0.08333333333 | P107: =1/P106 -> 0.08333333333 | Q107: =1/Q106 -> 0.08333333333 | R107: =1/R106 -> 0.08333333333 | S107: =1/S106 -> 0.08333333333 | T107: =1/T106 -> 0.08333333333 | U107: =1/U106 -> 0.08333333333 | V107: =1/V106 -> 0.08333333333 | W107: =1/W106 -> 0.08333333333
D108: Depreciation Expense | I108: =IF(I4,I62,I107*I101) -> 385.364 | J108: =IF(J4,J62,J107*J101) -> 435.988 | K108: =IF(K4,K62,K107*K101) -> 569.87 | L108: =IF(L4,L62,L107*L101) -> 688.1 | M108: =IF(M4,M62,M107*M101) -> 706.9 | N108: =IF(N4,N62,N107*N101) -> 841.9 | O108: =IF(O4,O62,O107*O101) -> 893.425 | P108: =IF(P4,P62,P107*P101) -> 869.8547768 | Q108: =IF(Q4,Q62,Q107*Q101) -> 841.7334305 | R108: =IF(R4,R62,R107*R101) -> 808.1821945 | S108: =IF(S4,S62,S107*S101) -> 768.1526234 | T108: =IF(T4,T62,T107*T101) -> 720.3938294 | U108: =IF(U4,U62,U107*U101) -> 663.4133938 | V108: =IF(V4,V62,V107*V101) -> 595.4307297 | W108: =IF(W4,W62,W107*W101) -> 514.3214409
C110: Accumulated Depreciation - Existing
D111: Opening Balance | J111: =I114 -> 661.918 | K111: =J114 -> 1080.736 | L111: =K114 -> 1451.83 | M111: =L114 -> 1949.6 | N111: =M114 -> 2493.8 | O111: =N114 -> 3162.2 | P111: =O114 -> 3772.782322 | Q111: =P114 -> 4305.180943 | R111: =Q114 -> 4744.299542 | S111: =R114 -> 5072.126883 | T111: =S114 -> 5267.173979 | U111: =T114 -> 5303.80258 | V111: =U114 -> 5151.424005 | W111: =V114 -> 4773.543269
D112: Add: Depreciation Expense | J112: =J108 -> 435.988 | K112: =K108 -> 569.87 | L112: =L108 -> 688.1 | M112: =M108 -> 706.9 | N112: =N108 -> 841.9 | O112: =O108 -> 893.425 | P112: =P108 -> 869.8547768 | Q112: =Q108 -> 841.7334305 | R112: =R108 -> 808.1821945 | S112: =S108 -> 768.1526234 | T112: =T108 -> 720.3938294 | U112: =U108 -> 663.4133938 | V112: =V108 -> 595.4307297 | W112: =W108 -> 514.3214409
D113: Less: Retirement | J113: =J103 -> 17.17 | K113: =K103 -> 198.776 | L113: =L103 -> 190.33 | M113: =M103 -> 162.7 | N113: =N103 -> 173.5 | O113: =O103 -> 282.8426782 | P113: =P103 -> 337.4561559 | Q113: =Q103 -> 402.6148313 | R113: =R103 -> 480.3548536 | S113: =S103 -> 573.1055277 | T113: =T103 -> 683.7652278 | U113: =U103 -> 815.7919688 | V113: =V103 -> 973.3114661 | W113: =W103 -> 1161.246061
D114: Closing Balance | I114: =IF(I4,I59,I111+I112-I113) -> 661.918 | J114: =IF(J4,J59,J111+J112-J113) -> 1080.736 | K114: =IF(K4,K59,K111+K112-K113) -> 1451.83 | L114: =IF(L4,L59,L111+L112-L113) -> 1949.6 | M114: =IF(M4,M59,M111+M112-M113) -> 2493.8 | N114: =IF(N4,N59,N111+N112-N113) -> 3162.2 | O114: =IF(O4,O59,O111+O112-O113) -> 3772.782322 | P114: =IF(P4,P59,P111+P112-P113) -> 4305.180943 | Q114: =IF(Q4,Q59,Q111+Q112-Q113) -> 4744.299542 | R114: =IF(R4,R59,R111+R112-R113) -> 5072.126883 | S114: =IF(S4,S59,S111+S112-S113) -> 5267.173979 | T114: =IF(T4,T59,T111+T112-T113) -> 5303.80258 | U114: =IF(U4,U59,U111+U112-U113) -> 5151.424005 | V114: =IF(V4,V59,V111+V112-V113) -> 4773.543269 | W114: =IF(W4,W59,W111+W112-W113) -> 4126.618649
C116: New Plant
D117: Gross Plant | O117: 1 | P117: 2 | Q117: 3 | R117: 4 | S117: 5 | T117: 6 | U117: 7 | V117: 8 | W117: 9
D118: Opening Balance | I118: =F121 -> 0 | J118: =I121 -> 0 | K118: =J121 -> 0 | L118: =K121 -> 0 | M118: =L121 -> 0 | N118: =M121 -> 0 | O118: =N121 -> 0 | P118: =O121 -> -170 | Q118: =P121 -> 701.5 | R118: =Q121 -> 1616.575 | S118: =R121 -> 2334.3025 | T118: =S121 -> 3087.916375 | U118: =T121 -> 4214.234854 | V118: =U121 -> 5678.289341 | W118: =V121 -> 7215.546553
D119: Add: Capital Expenditures | I119: =IF(NOT(I4),I83) -> FALSE | J119: =IF(NOT(J4),J83) -> FALSE | K119: =IF(NOT(K4),K83) -> FALSE | L119: =IF(NOT(L4),L83) -> FALSE | M119: =IF(NOT(M4),M83) -> FALSE | N119: =IF(NOT(N4),N83) -> FALSE | O119: =IF(NOT(O4),O83) -> -170 | P119: =IF(NOT(P4),P83) -> 871.5 | Q119: =IF(NOT(Q4),Q83) -> 915.075 | R119: =IF(NOT(R4),R83) -> 717.7275 | S119: =IF(NOT(S4),S83) -> 753.613875 | T119: =IF(NOT(T4),T83) -> 1126.318479 | U119: =IF(NOT(U4),U83) -> 1464.054487 | V119: =IF(NOT(V4),V83) -> 1537.257212 | W119: =IF(NOT(W4),W83) -> 1614.120072
D120: Less: Retirements | E120: =E106 -> 12 | I120: =IF(I117>$E$120,OFFSET(I119,0,-$E$120)) -> FALSE | J120: =IF(J117>$E$120,OFFSET(J119,0,-$E$120)) -> FALSE | K120: =IF(K117>$E$120,OFFSET(K119,0,-$E$120)) -> FALSE | L120: =IF(L117>$E$120,OFFSET(L119,0,-$E$120)) -> FALSE | M120: =IF(M117>$E$120,OFFSET(M119,0,-$E$120)) -> FALSE | N120: =IF(N117>$E$120,OFFSET(N119,0,-$E$120)) -> FALSE | O120: =IF(O117>$E$120,OFFSET(O119,0,-$E$120)) -> FALSE | P120: =IF(P117>$E$120,OFFSET(P119,0,-$E$120)) -> FALSE | Q120: =IF(Q117>$E$120,OFFSET(Q119,0,-$E$120)) -> FALSE | R120: =IF(R117>$E$120,OFFSET(R119,0,-$E$120)) -> FALSE | S120: =IF(S117>$E$120,OFFSET(S119,0,-$E$120)) -> FALSE | T120: =IF(T117>$E$120,OFFSET(T119,0,-$E$120)) -> FALSE | U120: =IF(U117>$E$120,OFFSET(U119,0,-$E$120)) -> FALSE | V120: =IF(V117>$E$120,OFFSET(V119,0,-$E$120)) -> FALSE | W120: =IF(W117>$E$120,OFFSET(W119,0,-$E$120)) -> FALSE
D121: Closing Balance | I121: =I118+I119-I120 -> 0 | J121: =J118+J119-J120 -> 0 | K121: =K118+K119-K120 -> 0 | L121: =L118+L119-L120 -> 0 | M121: =M118+M119-M120 -> 0 | N121: =N118+N119-N120 -> 0 | O121: =O118+O119-O120 -> -170 | P121: =P118+P119-P120 -> 701.5 | Q121: =Q118+Q119-Q120 -> 1616.575 | R121: =R118+R119-R120 -> 2334.3025 | S121: =S118+S119-S120 -> 3087.916375 | T121: =T118+T119-T120 -> 4214.234854 | U121: =U118+U119-U120 -> 5678.289341 | V121: =V118+V119-V120 -> 7215.546553 | W121: =W118+W119-W120 -> 8829.666625
D123: Depreciation Rate | I123: =I107 -> 0.08333333333 | J123: =J107 -> 0.08333333333 | K123: =K107 -> 0.08333333333 | L123: =L107 -> 0.08333333333 | M123: =M107 -> 0.08333333333 | N123: =N107 -> 0.08333333333 | O123: =O107 -> 0.08333333333 | P123: =P107 -> 0.08333333333 | Q123: =Q107 -> 0.08333333333 | R123: =R107 -> 0.08333333333 | S123: =S107 -> 0.08333333333 | T123: =T107 -> 0.08333333333 | U123: =U107 -> 0.08333333333 | V123: =V107 -> 0.08333333333 | W123: =W107 -> 0.08333333333
D124: Depreciation Expense | I124: =I123*I118 -> 0 | J124: =J123*J118 -> 0 | K124: =K123*K118 -> 0 | L124: =L123*L118 -> 0 | M124: =M123*M118 -> 0 | N124: =N123*N118 -> 0 | O124: =O123*O118 -> 0 | P124: =P123*P118 -> -14.16666667 | Q124: =Q123*Q118 -> 58.45833333 | R124: =R123*R118 -> 134.7145833 | S124: =S123*S118 -> 194.5252083 | T124: =T123*T118 -> 257.3263646 | U124: =U123*U118 -> 351.1862378 | V124: =V123*V118 -> 473.1907784 | W124: =W123*W118 -> 601.2955461
D126: Accumulated Depreciation
D127: Opening Balance | I127: =F130 -> 0 | J127: =I130 -> 0 | K127: =J130 -> 0 | L127: =K130 -> 0 | M127: =L130 -> 0 | N127: =M130 -> 0 | O127: =N130 -> 0 | P127: =O130 -> 0 | Q127: =P130 -> -14.16666667 | R127: =Q130 -> 44.29166667 | S127: =R130 -> 179.00625 | T127: =S130 -> 373.5314583 | U127: =T130 -> 630.8578229 | V127: =U130 -> 982.0440607 | W127: =V130 -> 1455.234839
D128: Add: Depreciation Expense | I128: =I124 -> 0 | J128: =J124 -> 0 | K128: =K124 -> 0 | L128: =L124 -> 0 | M128: =M124 -> 0 | N128: =N124 -> 0 | O128: =O124 -> 0 | P128: =P124 -> -14.16666667 | Q128: =Q124 -> 58.45833333 | R128: =R124 -> 134.7145833 | S128: =S124 -> 194.5252083 | T128: =T124 -> 257.3263646 | U128: =U124 -> 351.1862378 | V128: =V124 -> 473.1907784 | W128: =W124 -> 601.2955461
D129: Less: Retirements | I129: =I120*1 -> 0 | J129: =J120*1 -> 0 | K129: =K120*1 -> 0 | L129: =L120*1 -> 0 | M129: =M120*1 -> 0 | N129: =N120*1 -> 0 | O129: =O120*1 -> 0 | P129: =P120*1 -> 0 | Q129: =Q120*1 -> 0 | R129: =R120*1 -> 0 | S129: =S120*1 -> 0 | T129: =T120*1 -> 0 | U129: =U120*1 -> 0 | V129: =V120*1 -> 0 | W129: =W120*1 -> 0
D130: Closing Balance | I130: =I127+I128-I129 -> 0 | J130: =J127+J128-J129 -> 0 | K130: =K127+K128-K129 -> 0 | L130: =L127+L128-L129 -> 0 | M130: =M127+M128-M129 -> 0 | N130: =N127+N128-N129 -> 0 | O130: =O127+O128-O129 -> 0 | P130: =P127+P128-P129 -> -14.16666667 | Q130: =Q127+Q128-Q129 -> 44.29166667 | R130: =R127+R128-R129 -> 179.00625 | S130: =S127+S128-S129 -> 373.5314583 | T130: =T127+T128-T129 -> 630.8578229 | U130: =U127+U128-U129 -> 982.0440607 | V130: =V127+V128-V129 -> 1455.234839 | W130: =W127+W128-W129 -> 2056.530385
C132: Total
D133: Depreciation Expense | I133: =I124+I108 -> 385.364 | J133: =J124+J108 -> 435.988 | K133: =K124+K108 -> 569.87 | L133: =L124+L108 -> 688.1 | M133: =M124+M108 -> 706.9 | N133: =N124+N108 -> 841.9 | O133: =O124+O108 -> 893.425 | P133: =P124+P108 -> 855.6881101 | Q133: =Q124+Q108 -> 900.1917638 | R133: =R124+R108 -> 942.8967779 | S133: =S124+S108 -> 962.6778318 | T133: =T124+T108 -> 977.720194 | U133: =U124+U108 -> 1014.599632 | V133: =V124+V108 -> 1068.621508 | W133: =W124+W108 -> 1115.616987
D134: Capital Expenditure | I134: =I119+I102 -> 0 | J134: =J119+J102 -> 1185.916 | K134: =K119+K102 -> 1521.71 | L134: =L119+L102 -> 3723.4 | M134: =M119+M102 -> 3353.2 | N134: =N119+N102 -> 3870.9 | O134: =O119+O102 -> -170 | P134: =P119+P102 -> 871.5 | Q134: =Q119+Q102 -> 915.075 | R134: =R119+R102 -> 717.7275 | S134: =S119+S102 -> 753.613875 | T134: =T119+T102 -> 1126.318479 | U134: =U119+U102 -> 1464.054487 | V134: =V119+V102 -> 1537.257212 | W134: =W119+W102 -> 1614.120072
D135: Total Gross Plant | I135: =I104+I121 -> 4398.321 | J135: =J104+J121 -> 5189.433 | K135: =K104+K121 -> 6203.43 | L135: =L104+L121 -> 8667.6 | M135: =M104+M121 -> 10066.3 | N135: =N104+N121 -> 10721.1 | O135: =O104+O121 -> 10268.25732 | P135: =P104+P121 -> 10802.30117 | Q135: =Q104+Q121 -> 11314.76133 | R135: =R104+R121 -> 11552.13398 | S135: =S104+S121 -> 11732.64233 | T135: =T104+T121 -> 12175.19558 | U135: =U104+U121 -> 12823.4581 | V135: =V104+V121 -> 13387.40384 | W135: =W104+W121 -> 13840.27786
D136: Total Accumulated Depreciation | I136: =I130+I114 -> 661.918 | J136: =J130+J114 -> 1080.736 | K136: =K130+K114 -> 1451.83 | L136: =L130+L114 -> 1949.6 | M136: =M130+M114 -> 2493.8 | N136: =N130+N114 -> 3162.2 | O136: =O130+O114 -> 3772.782322 | P136: =P130+P114 -> 4291.014276 | Q136: =Q130+Q114 -> 4788.591209 | R136: =R130+R114 -> 5251.133133 | S136: =S130+S114 -> 5640.705437 | T136: =T130+T114 -> 5934.660403 | U136: =U130+U114 -> 6133.468066 | V136: =V130+V114 -> 6228.778108 | W136: =W130+W114 -> 6183.149034
W137: =W135-W136 -> 7657.128821
C139: Comparison of Depreciation Methods
D140: Modelled Depreciation | I140: =I79 -> 385.364 | J140: =J79 -> 435.988 | K140: =K79 -> 569.87 | L140: =L79 -> 688.1 | M140: =M79 -> 706.9 | N140: =N79 -> 841.9 | O140: =O79 -> 193.6039212 | P140: =P79 -> 235.6918679 | Q140: =Q79 -> 280.3842119 | R140: =R79 -> 327.8484313 | S140: =S79 -> 367.7231197 | T140: =T79 -> 409.5915425 | U140: =U79 -> 465.0865056 | V140: =V79 -> 534.8893359 | W140: =W79 -> 608.1823077
D141: Net Plant Depreciation Expense | I141: =I91 -> 385.364 | J141: =J91 -> 435.988 | K141: =K91 -> 569.87 | L141: =L91 -> 688.1 | M141: =M91 -> 706.9 | N141: =N91 -> 841.9 | O141: =O91 -> 840.3879709 | P141: =P91 -> 728.054444 | Q141: =Q91 -> 744.0025211 | R141: =R91 -> 763.0221209 | S141: =S91 -> 757.9863281 | T141: =T91 -> 757.5002048 | U141: =U91 -> 798.5049067 | V141: =V91 -> 872.4997819 | W141: =W91 -> 946.4065868
D142: Detailed Depreciation Expense | I142: =I133 -> 385.364 | J142: =J133 -> 435.988 | K142: =K133 -> 569.87 | L142: =L133 -> 688.1 | M142: =M133 -> 706.9 | N142: =N133 -> 841.9 | O142: =O133 -> 893.425 | P142: =P133 -> 855.6881101 | Q142: =Q133 -> 900.1917638 | R142: =R133 -> 942.8967779 | S142: =S133 -> 962.6778318 | T142: =T133 -> 977.720194 | U142: =U133 -> 1014.599632 | V142: =V133 -> 1068.621508 | W142: =W133 -> 1115.616987
D143: Net Plant vs Detailed | J143: =J141/J142-1 -> 0 | K143: =K141/K142-1 -> 0 | L143: =L141/L142-1 -> 0 | M143: =M141/M142-1 -> 0 | N143: =N141/N142-1 -> 0 | O143: =O141/O142-1 -> -0.05936371721 | P143: =P141/P142-1 -> -0.1491590974 | Q143: =Q141/Q142-1 -> -0.1735066338 | R143: =R141/R142-1 -> -0.1907681319 | S143: =S141/S142-1 -> -0.2126272122 | T143: =T141/T142-1 -> -0.2252382538 | U143: =U141/U142-1 -> -0.2129852192 | V143: =V141/V142-1 -> -0.1835277737 | W143: =W141/W142-1 -> -0.1516742773
D145: Applied Depreciation | I145: =INDEX(I140:I142,'Graph of Actual and Projected'!$C$29) -> 385.364 | J145: =INDEX(J140:J142,'Graph of Actual and Projected'!$C$29) -> 435.988 | K145: =INDEX(K140:K142,'Graph of Actual and Projected'!$C$29) -> 569.87 | L145: =INDEX(L140:L142,'Graph of Actual and Projected'!$C$29) -> 688.1 | M145: =INDEX(M140:M142,'Graph of Actual and Projected'!$C$29) -> 706.9 | N145: =INDEX(N140:N142,'Graph of Actual and Projected'!$C$29) -> 841.9 | O145: =INDEX(O140:O142,'Graph of Actual and Projected'!$C$29) -> 893.425 | P145: =INDEX(P140:P142,'Graph of Actual and Projected'!$C$29) -> 855.6881101 | Q145: =INDEX(Q140:Q142,'Graph of Actual and Projected'!$C$29) -> 900.1917638 | R145: =INDEX(R140:R142,'Graph of Actual and Projected'!$C$29) -> 942.8967779 | S145: =INDEX(S140:S142,'Graph of Actual and Projected'!$C$29) -> 962.6778318 | T145: =INDEX(T140:T142,'Graph of Actual and Projected'!$C$29) -> 977.720194 | U145: =INDEX(U140:U142,'Graph of Actual and Projected'!$C$29) -> 1014.599632 | V145: =INDEX(V140:V142,'Graph of Actual and Projected'!$C$29) -> 1068.621508 | W145: =INDEX(W140:W142,'Graph of Actual and Projected'!$C$29) -> 1115.616987
D148: Add/(Deduct): Exceptional items | I148: -228.888 | J148: 2.166 | K148: 0 | L148: -189.4 | M148: -20.8 | N148: 0 | O148: =N148 -> 0 | P148: =O148 -> 0 | Q148: =P148 -> 0 | R148: =Q148 -> 0 | S148: =R148 -> 0 | T148: =S148 -> 0 | U148: =T148 -> 0 | V148: =U148 -> 0 | W148: =V148 -> 0
D149: D&A expenses | I149: =I145 -> 385.364 | J149: =J145 -> 435.988 | K149: =K145 -> 569.87 | L149: =L145 -> 688.1 | M149: =M145 -> 706.9 | N149: =N145 -> 841.9 | O149: =O145 -> 893.425 | P149: =P145 -> 855.6881101 | Q149: =Q145 -> 900.1917638 | R149: =R145 -> 942.8967779 | S149: =S145 -> 962.6778318 | T149: =T145 -> 977.720194 | U149: =U145 -> 1014.599632 | V149: =V145 -> 1068.621508 | W149: =W145 -> 1115.616987
D151: Profit before tax | I151: =I53-I149+I148 -> 611.674 | J151: =J53-J149+J148 -> 1470.506 | K151: =K53-K149+K148 -> 1389.86 | L151: =L53-L149+L148 -> 8.9 | M151: =M53-M149+M148 -> 1884.8 | N151: =N53-N149+N148 -> 2571 | O151: =O53-O149+O148 -> 2370.49912 | P151: =P53-P149+P148 -> 2796.748239 | Q151: =Q53-Q149+Q148 -> 4210.774424 | R151: =R53-R149+R148 -> 4779.984746 | S151: =S53-S149+S148 -> 5254.474713 | T151: =T53-T149+T148 -> 6565.498617 | U151: =U53-U149+U148 -> 7406.365998 | V151: =V53-V149+V148 -> 7940.221729 | W151: =W53-W149+W148 -> 8537.123964
J152: =(J151/I151-1)*100 -> 140.406818 | K152: =(K151/J151-1)*100 -> -5.484234678 | L152: =(L151/K151-1)*100 -> -99.35964773 | M152: =(M151/L151-1)*100 -> 21077.52809 | N152: =(N151/M151-1)*100 -> 36.40704584 | O152: =(O151/N151-1)*100 -> -7.798556202 | P152: =(P151/O151-1)*100 -> 17.98140802 | Q152: =(Q151/P151-1)*100 -> 50.55965227 | R152: =(R151/Q151-1)*100 -> 13.51794862 | S152: =(S151/R151-1)*100 -> 9.926600021 | T152: =(T151/S151-1)*100 -> 24.9506178 | U152: =(U151/T151-1)*100 -> 12.80736515 | V152: =(V151/U151-1)*100 -> 7.208065749 | W152: =(W151/V151-1)*100 -> 7.517450456
D153: Provision for tax | I153: =SUM(I154:I155) -> 238.968 | J153: =SUM(J154:J155) -> 545.765 | K153: =SUM(K154:K155) -> 376.6 | L153: =SUM(L154:L155) -> 124.9 | M153: =SUM(M154:M155) -> 536.5 | N153: =SUM(N154:N155) -> 712.8 | O153: =SUM(O154:O155) -> 631.3249304 | P153: =SUM(P154:P155) -> 783.3753675 | Q153: =SUM(Q154:Q155) -> 1255.199128 | R153: =SUM(R154:R155) -> 1447.601501 | S153: =SUM(S154:S155) -> 1607.259895 | T153: =SUM(T154:T155) -> 2043.629186 | U153: =SUM(U154:U155) -> 2323.168883 | V153: =SUM(V154:V155) -> 2500.200535 | W153: =SUM(W154:W155) -> 2697.869426
D154: Current tax | I154: =37+0.07+27.77 -> 64.84 | J154: =545.765-J155 -> 572.776 | K154: =376.6-K155 -> 519.67 | L154: =0.5+39.5 -> 40 | M154: 561.5 | N154: 931.5 | O154: =tax!I16+tax!I26 -> 663.7981963 | P154: =tax!J16+tax!J26 -> 801.3119832 | Q154: =tax!K16+tax!K26 -> 1284.300388 | R154: =tax!L16+tax!L26 -> 1499.676033 | S154: =tax!M16+tax!M26 -> 1668.758529 | T154: =tax!N16+tax!N26 -> 2091.734583 | U154: =tax!O16+tax!O26 -> 2353.445929 | V154: =tax!P16+tax!P26 -> 2523.0163 | W154: =tax!Q16+tax!Q26 -> 2711.159538
D155: Deferred tax liability/(asset) | I155: 174.128 | J155: -27.011 | K155: -143.07 | L155: 84.9 | M155: -25 | N155: -218.7 | O155: =tax!I18 -> -32.47326585 | P155: =tax!J18 -> -17.93661576 | Q155: =tax!K18 -> -29.10125993 | R155: =tax!L18 -> -52.07453172 | S155: =tax!M18 -> -61.49863419 | T155: =tax!N18 -> -48.10539667 | U155: =tax!O18 -> -30.27704553 | V155: =tax!P18 -> -22.81576444 | W155: =tax!Q18 -> -13.29011214
D156: Net profit | I156: =I151-I153 -> 372.706 | J156: =J151-J153 -> 924.741 | K156: =K151-K153 -> 1013.26 | L156: =L151-L153 -> -116 | M156: =M151-M153 -> 1348.3 | N156: =N151-N153 -> 1858.2 | O156: =O151-O153 -> 1739.17419 | P156: =P151-P153 -> 2013.372872 | Q156: =Q151-Q153 -> 2955.575295 | R156: =R151-R153 -> 3332.383245 | S156: =S151-S153 -> 3647.214818 | T156: =T151-T153 -> 4521.86943 | U156: =U151-U153 -> 5083.197115 | V156: =V151-V153 -> 5440.021194 | W156: =W151-W153 -> 5839.254538
D158: Minority interest | I158: 0 | J158: -45.691 | K158: =0 -> 0 | L158: =-126.5+1.5 -> -125 | M158: -10.9 | N158: 49.1 | O158: =22%*Hindustan!I32+49%*'HT-Burda'!I10-20 -> 64.36743222 | P158: =22%*Hindustan!J32+49%*'HT-Burda'!J10 -> 166.9453445 | Q158: =22%*Hindustan!K32+49%*'HT-Burda'!K10 -> 265.9394637 | R158: =22%*Hindustan!L32+49%*'HT-Burda'!L10 -> 344.3005155 | S158: =22%*Hindustan!M32+49%*'HT-Burda'!M10 -> 371.661995 | T158: =22%*Hindustan!N32+49%*'HT-Burda'!N10 -> 521.0793853 | U158: =22%*Hindustan!O32+49%*'HT-Burda'!O10 -> 619.4811134 | V158: =22%*Hindustan!P32+49%*'HT-Burda'!P10 -> 695.0785169 | W158: =22%*Hindustan!Q32+49%*'HT-Burda'!Q10 -> 742.1640461
D159: Net profit | I159: =I156-I158 -> 372.706 | J159: =J156-J158 -> 970.432 | K159: =K156-K158 -> 1013.26 | L159: =L156-L158 -> 9 | M159: =M156-M158 -> 1359.2 | N159: =N156-N158 -> 1809.1 | O159: =O156-O158 -> 1674.806757 | P159: =P156-P158 -> 1846.427527 | Q159: =Q156-Q158 -> 2689.635832 | R159: =R156-R158 -> 2988.08273 | S159: =S156-S158 -> 3275.552823 | T159: =T156-T158 -> 4000.790045 | U159: =U156-U158 -> 4463.716001 | V159: =V156-V158 -> 4744.942677 | W159: =W156-W158 -> 5097.090492
J160: =(J159/I159-1)*100 -> 160.3746653 | K160: =(K159/J159-1)*100 -> 4.413292224 | L160: =(L159/K159-1)*100 -> -99.11177783 | M160: =(M159/L159-1)*100 -> 15002.22222 | N160: =(N159/M159-1)*100 -> 33.10035315 | O160: =(O159/N159-1)*100 -> -7.423207264 | P160: =(P159/O159-1)*100 -> 10.2471983 | Q160: =(Q159/P159-1)*100 -> 45.66701331 | R160: =(R159/Q159-1)*100 -> 11.09618242 | S160: =(S159/R159-1)*100 -> 9.620553365 | T160: =(T159/S159-1)*100 -> 22.14091058 | U160: =(U159/T159-1)*100 -> 11.57086354 | V160: =(V159/U159-1)*100 -> 6.30028154 | W160: =(W159/V159-1)*100 -> 7.421539927
D161: Dividend paid (excl. tax) | I161: 56.215 | J161: =J355*J342 -> 70.2687 | K161: 93.7 | L161: 70.5 | M161: =84.6 -> 84.6 | N161: =84.6 -> 84.6 | O161: =O355*O342 -> 94.08 | P161: =P355*P342 -> 470.4 | Q161: =Q355*Q342 -> 940.8 | R161: =R355*R342 -> 1881.6 | S161: =S355*S342 -> 2822.4 | T161: =T355*T342 -> 3292.8 | U161: =U355*U342 -> 3763.2 | V161: =V355*V342 -> 4233.6 | W161: =W355*W342 -> 4704
D162: Dividend tax | I162: 8.165 | J162: =16.995%*J161 -> 11.94216556 | K162: 15.92 | L162: 12 | M162: =14.1 -> 14.1 | N162: 25.6 | O162: =16.5%*O161 -> 15.5232 | P162: =16.5%*P161 -> 77.616 | Q162: =16.5%*Q161 -> 155.232 | R162: =16.5%*R161 -> 310.464 | S162: =16.5%*S161 -> 465.696 | T162: =16.5%*T161 -> 543.312 | U162: =16.5%*U161 -> 620.928 | V162: =16.5%*V161 -> 698.544 | W162: =16.5%*W161 -> 776.16
A164: Balance sheet of HT Media
B165: SOURCES OF FUNDS
C167: Current liabilities and provisions
D168: Sundry creditors (Trade) | I168: 1339.517 | J168: 1337.343 | K168: 1738.53 | L168: 2158.9 | M168: =3095.5+15.2 -> 3110.7 | N168: =3169.5+5.2 -> 3174.7 | O168: =O246 -> 3585.811609 | P168: =P246 -> 4250.331713 | Q168: =Q246 -> 4816.589278 | R168: =R246 -> 5124.9934 | S168: =S246 -> 5424.503553 | T168: =T246 -> 5934.085431 | U168: =U246 -> 6388.567977 | V168: =V246 -> 6954.02408 | W168: =W246 -> 7530.511279
D169: Customer and agent balances | I169: 60.294 | J169: 37.634 | K169: 122.91 | L169: 160.4 | M169: =232.1 -> 232.1 | N169: 178.4 | O169: =N169*O21/N21 -> 212.5199035 | P169: =O169*P21/O21 -> 264.5537468 | Q169: =P169*Q21/P21 -> 297.1366676 | R169: =Q169*R21/Q21 -> 297.3702393 | S169: =R169*S21/R21 -> 314.7700263 | T169: =S169*T21/S21 -> 346.936552 | U169: =T169*U21/T21 -> 382.8510773 | V169: =U169*V21/U21 -> 421.5612932 | W169: =V169*W21/V21 -> 452.7257298
D170: Interest accrued but not due | I170: =0 -> 0 | J170: 0.791 | K170: =0 -> 0 | L170: =0 -> 0 | M170: =0 -> 0 | N170: =0 -> 0 | O170: =N170 -> 0 | P170: =O170 -> 0 | Q170: =P170 -> 0 | R170: =Q170 -> 0 | S170: =R170 -> 0 | T170: =S170 -> 0 | U170: =T170 -> 0 | V170: =U170 -> 0 | W170: =V170 -> 0
D171: Income received in advance | I171: 136.132 | J171: 249.909 | K171: 419.04 | L171: 1349.4 | M171: =1583.2 -> 1583.2 | N171: 1753.9 | O171: =N171*1.05 -> 1841.595 | P171: =O171*1.05 -> 1933.67475 | Q171: =P171*1.05 -> 2030.358488 | R171: =Q171*1.05 -> 2131.876412 | S171: =R171*1.05 -> 2238.470232 | T171: =S171*1.05 -> 2350.393744 | U171: =T171*1.05 -> 2467.913431 | V171: =U171*1.05 -> 2591.309103 | W171: =V171*1.05 -> 2720.874558
D172: Provision for staff benefits | I172: 51.619 | J172: 79.307 | K172: 127.35 | L172: 88.1 | M172: =81.7 -> 81.7 | N172: 105.5 | O172: =N172*1.05 -> 110.775 | P172: =O172*1.05 -> 116.31375 | Q172: =P172*1.05 -> 122.1294375 | R172: =Q172*1.05 -> 128.2359094 | S172: =R172*1.05 -> 134.6477048 | T172: =S172*1.05 -> 141.3800901 | U172: =T172*1.05 -> 148.4490946 | V172: =U172*1.05 -> 155.8715493 | W172: =V172*1.05 -> 163.6651268
D173: Provision for taxation | I173: 0.871 | J173: =9.215+2 -> 11.215 | K173: 0 | L173: =8.6+5.7 -> 14.3 | M173: =98.3 -> 98.3 | N173: 246.6 | O173: =N173*1.05 -> 258.93 | P173: =O173*1.05 -> 271.8765 | Q173: =P173*1.05 -> 285.470325 | R173: =Q173*1.05 -> 299.7438413 | S173: =R173*1.05 -> 314.7310333 | T173: =S173*1.05 -> 330.467585 | U173: =T173*1.05 -> 346.9909642 | V173: =U173*1.05 -> 364.3405124 | W173: =V173*1.05 -> 382.5575381
D174: Proposed dividend (incl. dividend tax) | I174: =56.215+2+8.165 -> 66.38 | J174: =70.269+11.942 -> 82.211 | K174: =93.69+15.92 -> 109.61 | L174: =70.5+12 -> 82.5 | M174: =84.6+14.1 -> 98.7 | N174: =84.6+14.1 -> 98.7 | O174: 0 | P174: 0 | Q174: 0 | R174: 0 | S174: 0 | T174: 0 | U174: 0 | V174: 0 | W174: 0
D175: Other liabilities and provisions | I175: =140.89+7.948+5.755 -> 154.593 | J175: =0.054+149.622+27.012+5+132.409 -> 314.097 | K175: =2559.66+244.04-SUM(K168:K174) -> 286.26 | L175: =5227+172-SUM(L168:L174) -> 1545.4 | M175: =5485.9+278.6-SUM(M168:M174) -> 559.8 | N175: =5574.4+462.6-SUM(N168:N174) -> 479.2 | O175: =N175*1.1 -> 527.12 | P175: =O175*1.1 -> 579.832 | Q175: =P175*1.1 -> 637.8152 | R175: =Q175*1.1 -> 701.59672 | S175: =R175*1.1 -> 771.756392 | T175: =S175*1.1 -> 848.9320312 | U175: =T175*1.1 -> 933.8252343 | V175: =U175*1.1 -> 1027.207758 | W175: =V175*1.1 -> 1129.928534
D176: Total current liabilites and provisions | I176: =SUM(I168:I175) -> 1809.406 | J176: =SUM(J168:J175) -> 2112.507 | K176: =SUM(K168:K175) -> 2803.7 | L176: =SUM(L168:L175) -> 5399 | M176: =SUM(M168:M175) -> 5764.5 | N176: =SUM(N168:N175) -> 6037 | O176: =SUM(O168:O175) -> 6536.751512 | P176: =SUM(P168:P175) -> 7416.58246 | Q176: =SUM(Q168:Q175) -> 8189.499395 | R176: =SUM(R168:R175) -> 8683.816522 | S176: =SUM(S168:S175) -> 9198.878942 | T176: =SUM(T168:T175) -> 9952.195433 | U176: =SUM(U168:U175) -> 10668.59778 | V176: =SUM(V168:V175) -> 11514.3143 | W176: =SUM(W168:W175) -> 12380.26277
C178: Borrowings
D179: Secured loans | I179: =interest!Z8+interest!Z18+interest!Z23 -> 1695.726 | J179: 1650 | K179: 2207.9 | L179: 3698.7 | M179: =3125 -> 3125 | N179: 2838.9 | O179: =interest!BD8+interest!BD18+interest!BD23 -> 3122.5 | P179: =interest!BI8+interest!BI18+interest!BI23 -> 3122.5 | Q179: =interest!BN8+interest!BN18+interest!BN23 -> 3122.5 | R179: =interest!BS8+interest!BS18+interest!BS23 -> 3122.5 | S179: =interest!BX8+interest!BX18+interest!BX23 -> 3122.5 | T179: =interest!CC8+interest!CC18+interest!CC23 -> 3122.5 | U179: =interest!CH8+interest!CH18+interest!CH23 -> 3122.5 | V179: =interest!CM8+interest!CM18+interest!CM23 -> 3122.5 | W179: =interest!CR8+interest!CR18+interest!CR23 -> 3122.5
D180: Unsecured loans | I180: =interest!Z29 -> 0 | J180: =7.55 -> 7.55 | K180: 22.77 | L180: 7.5 | M180: 895.9 | N180: 283.6 | O180: =interest!BD29 -> 0 | P180: =interest!BI29 -> 0 | Q180: =interest!BN29 -> 0 | R180: =interest!BS29 -> 0 | S180: =interest!BX29 -> 0 | T180: =interest!CC29 -> 0 | U180: =interest!CD29 -> 0 | V180: =interest!CE29 -> 0 | W180: =interest!CF29 -> 0
D181: Total borrowings | I181: =SUM(I179:I180) -> 1695.726 | J181: =SUM(J179:J180) -> 1657.55 | K181: =SUM(K179:K180) -> 2230.67 | L181: =SUM(L179:L180) -> 3706.2 | M181: =SUM(M179:M180) -> 4020.9 | N181: =SUM(N179:N180) -> 3122.5 | O181: =SUM(O179:O180) -> 3122.5 | P181: =SUM(P179:P180) -> 3122.5 | Q181: =SUM(Q179:Q180) -> 3122.5 | R181: =SUM(R179:R180) -> 3122.5 | S181: =SUM(S179:S180) -> 3122.5 | T181: =SUM(T179:T180) -> 3122.5 | U181: =SUM(U179:U180) -> 3122.5 | V181: =SUM(V179:V180) -> 3122.5 | W181: =SUM(W179:W180) -> 3122.5
L182: =L51/AVERAGE(K181:L181)*100 -> 10.87441699 | M182: =M51/AVERAGE(L181:M181)*100 -> 7.638053086 | N182: =N51/AVERAGE(M181:N181)*100 -> 6.60749783 | O182: =O51/AVERAGE(N181:O181)*100 -> 10.60128102 | P182: =P51/AVERAGE(O181:P181)*100 -> 9 | Q182: =Q51/AVERAGE(P181:Q181)*100 -> 9 | R182: =R51/AVERAGE(Q181:R181)*100 -> 9 | S182: =S51/AVERAGE(R181:S181)*100 -> 9
D184: Total outside liabilities | I184: =I176+I181 -> 3505.132 | J184: =J176+J181 -> 3770.057 | K184: =K176+K181 -> 5034.37 | L184: =L176+L181 -> 9105.2 | M184: =M176+M181 -> 9785.4 | N184: =N176+N181 -> 9159.5 | O184: =O176+O181 -> 9659.251512 | P184: =P176+P181 -> 10539.08246 | Q184: =Q176+Q181 -> 11311.9994 | R184: =R176+R181 -> 11806.31652 | S184: =S176+S181 -> 12321.37894 | T184: =T176+T181 -> 13074.69543 | U184: =U176+U181 -> 13791.09778 | V184: =V176+V181 -> 14636.8143 | W184: =W176+W181 -> 15502.76277
D186: Deferred tax liability/(asset) | I186: =360.939-65.097 -> 295.842 | J186: 272.599 | K186: 121.61 | L186: 206.5 | M186: =178.1 -> 178.1 | N186: -85.5 | O186: =N186+O155 -> -117.9732658 | P186: =O186+P155 -> -135.9098816 | Q186: =P186+Q155 -> -165.0111415 | R186: =Q186+R155 -> -217.0856733 | S186: =R186+S155 -> -278.5843074 | T186: =S186+T155 -> -326.6897041 | U186: =T186+U155 -> -356.9667496 | V186: =U186+V155 -> -379.7825141 | W186: =V186+W155 -> -393.0726262
C188: Net Worth
D189: Equity share capital | I189: 468.458 | J189: 468.458 | K189: 468.5 | L189: 470 | M189: 470.2 | N189: 470.4 | O189: =N189 -> 470.4 | P189: =O189 -> 470.4 | Q189: =P189 -> 470.4 | R189: =Q189 -> 470.4 | S189: =R189 -> 470.4 | T189: =S189 -> 470.4 | U189: =T189 -> 470.4 | V189: =U189 -> 470.4 | W189: =V189 -> 470.4
D190: Preference capital | I190: 0 | J190: 0 | K190: =J190 -> 0 | L190: =K190 -> 0 | M190: 0 | N190: 0 | O190: =N190 -> 0 | P190: =O190 -> 0 | Q190: =P190 -> 0 | R190: =Q190 -> 0 | S190: =R190 -> 0 | T190: =S190 -> 0 | U190: =T190 -> 0 | V190: =U190 -> 0 | W190: =V190 -> 0
D191: Share premium reserve | I191: 6263.89 | J191: =5749.797+200 -> 5949.797 | K191: =5749.8+200 -> 5949.8 | L191: =4088.4+200 -> 4288.4 | M191: =4011.9+200 -> 4211.9 | N191: =5813.1+200 -> 6013.1 | O191: =N191 -> 6013.1 | P191: =O191 -> 6013.1 | Q191: =P191 -> 6013.1 | R191: =Q191 -> 6013.1 | S191: =R191 -> 6013.1 | T191: =S191 -> 6013.1 | U191: =T191 -> 6013.1 | V191: =U191 -> 6013.1 | W191: =V191 -> 6013.1
D192: General reserve | I192: 0 | J192: 75 | K192: 185 | L192: 235 | M192: =330 -> 330 | N192: 464 | O192: =N192 -> 464 | P192: =O192 -> 464 | Q192: =P192 -> 464 | R192: =Q192 -> 464 | S192: =R192 -> 464 | T192: =S192 -> 464 | U192: =T192 -> 464 | V192: =U192 -> 464 | W192: =V192 -> 464
D193: Capital reserve | I193: 0 | J193: 41.74 | K193: 40.9 | L193: =42.4+748.9 -> 791.3 | M193: =84.1+748.9 -> 833 | N193: =78.9+748.9 -> 827.8 | O193: =N193 -> 827.8 | P193: =O193 -> 827.8 | Q193: =P193 -> 827.8 | R193: =Q193 -> 827.8 | S193: =R193 -> 827.8 | T193: =S193 -> 827.8 | U193: =T193 -> 827.8 | V193: =U193 -> 827.8 | W193: =V193 -> 827.8
D194: Revaluation reserve | I194: =0 -> 0 | J194: =0 -> 0 | K194: =0 -> 0 | L194: =0 -> 0 | M194: =0 -> 0 | N194: =0 -> 0 | O194: =N194 -> 0 | P194: =O194 -> 0 | Q194: =P194 -> 0 | R194: =Q194 -> 0 | S194: =R194 -> 0 | T194: =S194 -> 0 | U194: =T194 -> 0 | V194: =U194 -> 0 | W194: =V194 -> 0
D195: Surplus(+)/Deficit(-) in P&L account | I195: 200 | J195: 1107.059 | K195: 1884.57 | L195: 2700.7 | M195: =3866.2 -> 3866.2 | N195: 5246.7 | O195: =N195+O156-O158-O161-O162 -> 6811.903557 | P195: =O195+P156-P158-P161-P162 -> 8110.315084 | Q195: =P195+Q156-Q158-Q161-Q162 -> 9703.918916 | R195: =Q195+R156-R158-R161-R162 -> 10499.93765 | S195: =R195+S156-S158-S161-S162 -> 10487.39447 | T195: =S195+T156-T158-T161-T162 -> 10652.07251 | U195: =T195+U156-U158-U161-U162 -> 10731.66052 | V195: =U195+V156-V158-V161-V162 -> 10544.45919 | W195: =V195+W156-W158-W161-W162 -> 10161.38968
D196: Net worth | I196: =SUM(I189:I195) -> 6932.348 | J196: =SUM(J189:J195) -> 7642.054 | K196: =SUM(K189:K195) -> 8528.77 | L196: =SUM(L189:L195) -> 8485.4 | M196: =SUM(M189:M195) -> 9711.3 | N196: =SUM(N189:N195) -> 13022 | O196: =SUM(O189:O195) -> 14587.20356 | P196: =SUM(P189:P195) -> 15885.61508 | Q196: =SUM(Q189:Q195) -> 17479.21892 | R196: =SUM(R189:R195) -> 18275.23765 | S196: =SUM(S189:S195) -> 18262.69447 | T196: =SUM(T189:T195) -> 18427.37251 | U196: =SUM(U189:U195) -> 18506.96052 | V196: =SUM(V189:V195) -> 18319.75919 | W196: =SUM(W189:W195) -> 17936.68968
I197: =I159/I196 -> 0.05376331367 | J197: =J159/J196 -> 0.1269857554 | K197: =K159/K196 -> 0.118804939 | L197: =L159/L196 -> 0.001060645344 | M197: =M159/M196 -> 0.1399606644 | N197: =N159/N196 -> 0.1389264322 | O197: =O159/O196 -> 0.114813422 | P197: =P159/P196 -> 0.1162326745 | Q197: =Q159/Q196 -> 0.1538762026 | R197: =R159/R196 -> 0.1635044527 | S197: =S159/S196 -> 0.1793575876 | T197: =T159/T196 -> 0.2171112589 | U197: =U159/U196 -> 0.2411911993 | V197: =V159/V196 -> 0.2590068257 | W197: =W159/W196 -> 0.2841711922
D198: Minority interest | I198: =0 -> 0 | J198: 0.108 | K198: 0.52 | L198: -69.4 | M198: =218.2 -> 218.2 | N198: 1298.8 | O198: =N198+O158 -> 1363.167432 | P198: =O198+P158 -> 1530.112777 | Q198: =P198+Q158 -> 1796.05224 | R198: =Q198+R158 -> 2140.352756 | S198: =R198+S158 -> 2512.014751 | T198: =S198+T158 -> 3033.094136 | U198: =T198+U158 -> 3652.57525 | V198: =U198+V158 -> 4347.653766 | W198: =V198+W158 -> 5089.817812
D200: TOTAL LIABILITIES | I200: =I184+I186+I196+I198 -> 10733.322 | J200: =J184+J186+J196+J198 -> 11684.818 | K200: =K184+K186+K196+K198 -> 13685.27 | L200: =L184+L186+L196+L198 -> 17727.7 | M200: =M184+M186+M196+M198 -> 19893 | N200: =N184+N186+N196+N198 -> 23394.8 | O200: =O184+O186+O196+O198 -> 25491.64924 | P200: =P184+P186+P196+P198 -> 27818.90044 | Q200: =Q184+Q186+Q196+Q198 -> 30422.25941 | R200: =R184+R186+R196+R198 -> 32004.82125 | S200: =S184+S186+S196+S198 -> 32817.50385 | T200: =T184+T186+T196+T198 -> 34208.47238 | U200: =U184+U186+U196+U198 -> 35593.66679 | V200: =V184+V186+V196+V198 -> 36924.44474 | W200: =W184+W186+W196+W198 -> 38136.19764
B202: USES OF FUNDS
C204: Current Assets
D205: Cash & bank balances | I205: 2677.504 | J205: 1104.139 | K205: 773.97 | L205: 705.4 | M205: 1086.8 | N205: 1152.4 | O205: =O389 -> 3002.611395 | P205: =P389 -> 4117.111909 | Q205: =Q389 -> 5568.156472 | R205: =R389 -> 6864.97298 | S205: =S389 -> 7233.902346 | T205: =T389 -> 7367.763009 | U205: =U389 -> 7264.312566 | V205: =V389 -> 7005.039117 | W205: =W389 -> 6627.031284
D206: Inventories | I206: 1084.522 | J206: 1032.012 | K206: 1154.77 | L206: 1756.1 | M206: 1200.3 | N206: 1455.9 | O206: =O239 -> 1861.008443 | P206: =P239 -> 2316.661867 | Q206: =Q239 -> 2601.986157 | R206: =R239 -> 2604.031514 | S206: =S239 -> 2756.399127 | T206: =T239 -> 3038.077102 | U206: =U239 -> 3352.575809 | V206: =V239 -> 3691.556005 | W206: =W239 -> 3964.458818
D207: Receivables | I207: 1212.16 | J207: 1485.13 | K207: 1983.18 | L207: 2199.1 | M207: 2422.5 | N207: 2525.1 | O207: =O236 -> 3335.014398 | P207: =P236 -> 3921.617774 | Q207: =Q236 -> 4608.679555 | R207: =R236 -> 4941.359553 | S207: =S236 -> 5253.629327 | T207: =T236 -> 5879.372931 | U207: =U236 -> 6389.072712 | V207: =V236 -> 6941.533084 | W207: =W236 -> 7513.756601
D208: Loans and advances (net of provisions) | I208: =0.802+0.789+730+66.101+76.813 -> 874.505 | J208: =345.889-SUM(J209:J211) -> 305.862 | K208: =1064.15-SUM(K209:K211) -> 1032.17 | L208: =2166.7-SUM(L209:L211) -> 1779 | M208: =1959.4-SUM(M209:M211) -> 737.2 | N208: =2109.6-SUM(N209:N211) -> 746.4 | O208: =N208*1.05 -> 783.72 | P208: =O208*1.05 -> 822.906 | Q208: =P208*1.05 -> 864.0513 | R208: =Q208*1.05 -> 907.253865 | S208: =R208*1.05 -> 952.6165583 | T208: =S208*1.05 -> 1000.247386 | U208: =T208*1.05 -> 1050.259755 | V208: =U208*1.05 -> 1102.772743 | W208: =V208*1.05 -> 1157.91138
D209: Interest accrued | I209: 60.344 | J209: 13.533 | K209: 0 | L209: 0 | M209: 0 | N209: 0 | O209: =N209*1.05 -> 0 | P209: =O209*1.05 -> 0 | Q209: =P209*1.05 -> 0 | R209: =Q209*1.05 -> 0 | S209: =R209*1.05 -> 0 | T209: =S209*1.05 -> 0 | U209: =T209*1.05 -> 0 | V209: =U209*1.05 -> 0 | W209: =V209*1.05 -> 0
D210: Advance towards property | I210: =0 -> 0 | J210: =0 -> 0 | K210: =0 -> 0 | L210: =0 -> 0 | M210: 868.9 | N210: 1198.4 | O210: =N210*1.05 -> 1258.32 | P210: =O210*1.05 -> 1321.236 | Q210: =P210*1.05 -> 1387.2978 | R210: =Q210*1.05 -> 1456.66269 | S210: =R210*1.05 -> 1529.495825 | T210: =S210*1.05 -> 1605.970616 | U210: =T210*1.05 -> 1686.269147 | V210: =U210*1.05 -> 1770.582604 | W210: =V210*1.05 -> 1859.111734
D211: Advance payment of taxes & TDS | I211: =36.565+7.498 -> 44.063 | J211: 26.494 | K211: 31.98 | L211: =124.4+31.2+232.1 -> 387.7 | M211: =26.8+54+272.5 -> 353.3 | N211: =76.8+56.5+31.5 -> 164.8 | O211: =N211*1.1 -> 181.28 | P211: =O211*1.1 -> 199.408 | Q211: =P211*1.1 -> 219.3488 | R211: =Q211*1.1 -> 241.28368 | S211: =R211*1.1 -> 265.412048 | T211: =S211*1.1 -> 291.9532528 | U211: =T211*1.1 -> 321.1485781 | V211: =U211*1.1 -> 353.2634359 | W211: =V211*1.1 -> 388.5897795
D212: Other current assets | I212: =0 -> 0 | J212: =0 -> 0 | K212: 222.8 | L212: 148.4 | M212: 40.6 | N212: 313.2 | O212: =N212*1.1 -> 344.52 | P212: =O212*1.1 -> 378.972 | Q212: =P212*1.1 -> 416.8692 | R212: =Q212*1.1 -> 458.55612 | S212: =R212*1.1 -> 504.411732 | T212: =S212*1.1 -> 554.8529052 | U212: =T212*1.1 -> 610.3381957 | V212: =U212*1.1 -> 671.3720153 | W212: =V212*1.1 -> 738.5092168
I213: =SUM(I206:I212) -> 3275.594 | J213: =SUM(J206:J212) -> 2863.031 | K213: =SUM(K206:K212) -> 4424.9 | L213: =SUM(L206:L212) -> 6270.3 | M213: =SUM(M206:M212) -> 5622.8 | N213: =SUM(N206:N212) -> 6403.8 | O213: =SUM(O206:O212) -> 7763.862841 | P213: =SUM(P206:P212) -> 8960.801641 | Q213: =SUM(Q206:Q212) -> 10098.23281 | R213: =SUM(R206:R212) -> 10609.14742 | S213: =SUM(S206:S212) -> 11261.96462 | T213: =SUM(T206:T212) -> 12370.47419 | U213: =SUM(U206:U212) -> 13409.6642 | V213: =SUM(V206:V212) -> 14531.07989 | W213: =SUM(W206:W212) -> 15622.33753
D214: Total Current Assets | I214: =SUM(I205:I212) -> 5953.098 | J214: =SUM(J205:J212) -> 3967.17 | K214: =SUM(K205:K212) -> 5198.87 | L214: =SUM(L205:L212) -> 6975.7 | M214: =SUM(M205:M212) -> 6709.6 | N214: =SUM(N205:N212) -> 7556.2 | O214: =SUM(O205:O212) -> 10766.47424 | P214: =SUM(P205:P212) -> 13077.91355 | Q214: =SUM(Q205:Q212) -> 15666.38928 | R214: =SUM(R205:R212) -> 17474.1204 | S214: =SUM(S205:S212) -> 18495.86696 | T214: =SUM(T205:T212) -> 19738.2372 | U214: =SUM(U205:U212) -> 20673.97676 | V214: =SUM(V205:V212) -> 21536.119 | W214: =SUM(W205:W212) -> 22249.36881
C216: Fixed Assets
D217: Gross block | I217: 4387.805 | J217: 5000.945 | K217: 5614.27 | L217: 6721.5 | M217: 8777.6 | N217: 10527.5 | O217: =N217+'capex est'!I20 -> 11357.5 | P217: =O217+'capex est'!J20 -> 12229 | Q217: =P217+'capex est'!K20 -> 13144.075 | R217: =Q217+'capex est'!L20 -> 13861.8025 | S217: =R217+'capex est'!M20 -> 14615.41638 | T217: =S217+'capex est'!N20 -> 15741.73485 | U217: =T217+'capex est'!O20 -> 17205.78934 | V217: =U217+'capex est'!P20 -> 18743.04655 | W217: =V217+'capex est'!Q20 -> 20357.16663
D218: Accumulated depreciation | I218: 661.918 | J218: 1080.736 | K218: 1451.83 | L218: 1949.6 | M218: 2493.8 | N218: 3162.2 | O218: =N218+O149 -> 4055.625 | P218: =O218+P149 -> 4911.31311 | Q218: =P218+Q149 -> 5811.504874 | R218: =Q218+R149 -> 6754.401652 | S218: =R218+S149 -> 7717.079484 | T218: =S218+T149 -> 8694.799678 | U218: =T218+U149 -> 9709.399309 | V218: =U218+V149 -> 10778.02082 | W218: =V218+W149 -> 11893.6378
D219: Capital-WIP (incl. capital advances) | I219: 10.516 | J219: 188.488 | K219: 589.16 | L219: 1946.1 | M219: 1288.7 | N219: 193.6 | O219: =N219 -> 193.6 | P219: =O219 -> 193.6 | Q219: =P219 -> 193.6 | R219: =Q219 -> 193.6 | S219: =R219 -> 193.6 | T219: =S219 -> 193.6 | U219: =T219 -> 193.6 | V219: =U219 -> 193.6 | W219: =V219 -> 193.6
D220: Net block | I220: =I217-I218+I219 -> 3736.403 | J220: =J217-J218+J219 -> 4108.697 | K220: =K217-K218+K219 -> 4751.6 | L220: =L217-L218+L219 -> 6718 | M220: =M217-M218+M219 -> 7572.5 | N220: =N217-N218+N219 -> 7558.9 | O220: =O217-O218+O219 -> 7495.475 | P220: =P217-P218+P219 -> 7511.28689 | Q220: =Q217-Q218+Q219 -> 7526.170126 | R220: =R217-R218+R219 -> 7301.000848 | S220: =S217-S218+S219 -> 7091.936891 | T220: =T217-T218+T219 -> 7240.535176 | U220: =U217-U218+U219 -> 7689.990032 | V220: =V217-V218+V219 -> 8158.625736 | W220: =W217-W218+W219 -> 8657.128821
D221: Intangible assets | I221: 182.419 | J221: 1098.18 | K221: 1077.75 | L221: 998.2 | M221: =834.3 -> 834.3 | N221: =684.1+0.6 -> 684.7 | O221: =N221+'Fever-FM'!I72 -> 684.7 | P221: =O221+'Fever-FM'!J72 -> 684.7 | Q221: =P221+'Fever-FM'!K72 -> 684.7 | R221: =Q221+'Fever-FM'!L72 -> 684.7 | S221: =R221+'Fever-FM'!M72 -> 684.7 | T221: =S221+'Fever-FM'!N72 -> 684.7 | U221: =T221+'Fever-FM'!O72 -> 684.7 | V221: =U221+'Fever-FM'!P72 -> 684.7 | W221: =V221+'Fever-FM'!Q72 -> 684.7
D222: Other Non Current Assets
D223: Trade and other investments | I223: =0 -> 0 | J223: =I223 -> 0 | K223: =J223 -> 0 | L223: =3035-L226 -> 1025 | M223: =4754.7-M226 -> 1723.3 | N223: =7595-N226 -> 1860.7 | O223: =N223 -> 1860.7 | P223: =O223 -> 1860.7 | Q223: =P223 -> 1860.7 | R223: =Q223 -> 1860.7 | S223: =R223 -> 1860.7 | T223: =S223 -> 1860.7 | U223: =T223 -> 1860.7 | V223: =U223 -> 1860.7 | W223: =V223 -> 1860.7
D224: Investments in subsidiaries | I224: =0 -> 0 | J224: =I224 -> 0 | K224: =J224 -> 0 | L224: =K224 -> 0 | M224: =L224 -> 0 | N224: =M224 -> 0 | O224: =N224 -> 0 | P224: =O224 -> 0 | Q224: =P224 -> 0 | R224: =Q224 -> 0 | S224: =R224 -> 0 | T224: =S224 -> 0 | U224: =T224 -> 0 | V224: =U224 -> 0 | W224: =V224 -> 0
D225: Amount recoverable from HT Media Employees Welfate Trust | I225: 217.428 | J225: =I225 -> 217.428 | K225: 0 | L225: =K225 -> 0 | M225: =L225 -> 0 | N225: =M225 -> 0 | O225: =N225 -> 0 | P225: =O225 -> 0 | Q225: =P225 -> 0 | R225: =Q225 -> 0 | S225: =R225 -> 0 | T225: =S225 -> 0 | U225: =T225 -> 0 | V225: =U225 -> 0 | W225: =V225 -> 0
D226: Current investments | I226: 643.974 | J226: 2292.589 | K226: 2656.36 | L226: =250+30+700+250+250+200+330 -> 2010 | M226: =30+14+172.1+766.6+330+300+400+406.2+300+111+200+1.5 -> 3031.4 | N226: =50+150+100+250+150+7*100+150+7*100+150+100+150+50+100+80+100.7+60+300+650+550+250+153.4+35+100+200+100+200+50+50+55.2 -> 5734.3 | O226: =N226-1000 -> 4734.3 | P226: =O226 -> 4734.3 | Q226: =P226 -> 4734.3 | R226: =Q226 -> 4734.3 | S226: =R226 -> 4734.3 | T226: =S226 -> 4734.3 | U226: =T226 -> 4734.3 | V226: =U226 -> 4734.3 | W226: =V226 -> 4734.3
D227: Misc. expenditure not written-off | I227: =0 -> 0 | J227: 0.754 | K227: 0.69 | L227: 0.8 | M227: 21.9 | N227: 0 | O227: =N227 -> 0 | P227: =O227 -> 0 | Q227: =P227 -> 0 | R227: =Q227 -> 0 | S227: =R227 -> 0 | T227: =S227 -> 0 | U227: =T227 -> 0 | V227: =U227 -> 0 | W227: =V227 -> 0
I228: =2*I47/SUM(I205:I205,I226:I226)*100 -> 10.67825829 | J228: =2*J47/SUM(I205:J205,I226:J226)*100 -> 10.92124892 | K228: =2*K47/SUM(J205:K205,J226:K226)*100 -> 12.85063054 | L228: =2*L47/SUM(K205:L205,K226:L226)*100 -> 10.75218078 | M228: =2*M47/SUM(L205:M205,L226:M226)*100 -> 11.96441114 | N228: =2*N47/SUM(M205:N205,M226:N226)*100 -> 8.681587293 | O228: =2*O47/SUM(N205:O205,N226:O226)*100 -> 10.89687676 | P228: =2*P47/SUM(O205:P205,O226:P226)*100 -> 9.709805113 | Q228: =2*Q47/SUM(P205:Q205,P226:Q226)*100 -> 8.975131041 | R228: =2*R47/SUM(Q205:R205,Q226:R226)*100 -> 8.72732478 | S228: =2*S47/SUM(R205:S205,R226:S226)*100 -> 8.605237707 | T228: =2*T47/SUM(S205:T205,S226:T226)*100 -> 8.57170682 | U228: =2*U47/SUM(T205:U205,T226:U226)*100 -> 8.569723658 | V228: =2*V47/SUM(U205:V205,U226:V226)*100 -> 8.593709606 | W228: =2*W47/SUM(V205:W205,V226:W226)*100 -> 8.637675579
D230: TOTAL ASSETS | I230: =I214+I220+I221+SUM(I223:I227) -> 10733.322 | J230: =J214+J220+J221+SUM(J223:J227) -> 11684.818 | K230: =K214+K220+K221+SUM(K223:K227) -> 13685.27 | L230: =L214+L220+L221+SUM(L223:L227) -> 17727.7 | M230: =M214+M220+M221+SUM(M223:M227) -> 19893 | N230: =N214+N220+N221+SUM(N223:N227) -> 23394.8 | O230: =O214+O220+O221+SUM(O223:O227) -> 25541.64924 | P230: =P214+P220+P221+SUM(P223:P227) -> 27868.90044 | Q230: =Q214+Q220+Q221+SUM(Q223:Q227) -> 30472.25941 | R230: =R214+R220+R221+SUM(R223:R227) -> 32054.82125 | S230: =S214+S220+S221+SUM(S223:S227) -> 32867.50385 | T230: =T214+T220+T221+SUM(T223:T227) -> 34258.47238 | U230: =U214+U220+U221+SUM(U223:U227) -> 35643.66679 | V230: =V214+V220+V221+SUM(V223:V227) -> 36974.44474 | W230: =W214+W220+W221+SUM(W223:W227) -> 38186.19764
I231: =I230-I200 -> 0 | J231: =J230-J200 -> 0 | K231: =K230-K200 -> 0 | L231: =L230-L200 -> 0 | M231: =M230-M200 -> 0 | N231: =N230-N200 -> 0 | O231: =O230-O200 -> 50 | P231: =P230-P200 -> 50 | Q231: =Q230-Q200 -> 50 | R231: =R230-R200 -> 50 | S231: =S230-S200 -> 50 | T231: =T230-T200 -> 50 | U231: =U230-U200 -> 50 | V231: =V230-V200 -> 50 | W231: =W230-W200 -> 50
J232: =J231-I231 -> 0 | K232: =K231-J231 -> 0 | L232: =L231-K231 -> 0 | M232: =M231-L231 -> 0 | N232: =N231-M231 -> 0 | O232: =O231-N231 -> 50 | P232: =P231-O231 -> 3.637978807e-12 | Q232: =Q231-P231 -> -3.637978807e-12 | R232: =R231-Q231 -> 0 | S232: =S231-R231 -> -3.637978807e-12 | T232: =T231-S231 -> 0 | U232: =U231-T231 -> 0 | V232: =V231-U231 -> 0 | W232: =W231-V231 -> 0
A234: Working capital calculations (Rs mn)
B235: CURRENT ASSETS
D236: Receivables | I236: =I207 -> 1212.16 | J236: =J207 -> 1485.13 | K236: =K207 -> 1983.18 | L236: =L207 -> 2199.1 | M236: =M207 -> 2422.5 | N236: =N207 -> 2525.1 | O236: =$F238/360*O17 -> 3335.014398 | P236: =$F238/360*P17 -> 3921.617774 | Q236: =$F238/360*Q17 -> 4608.679555 | R236: =$F238/360*R17 -> 4941.359553 | S236: =$F238/360*S17 -> 5253.629327 | T236: =$F238/360*T17 -> 5879.372931 | U236: =$F238/360*U17 -> 6389.072712 | V236: =$F238/360*V17 -> 6941.533084 | W236: =$F238/360*W17 -> 7513.756601
D237: (Months, days consumption) | I237: =I236/I17*360 -> 53.15128126 | J237: =J236/J17*360 -> 51.42528188 | K237: =K236/K17*360 -> 59.33465254 | L237: =L236/L17*360 -> 58.79029563 | M237: =M236/M17*360 -> 61.72323982 | N237: =N236/N17*360 -> 51.43380918 | O237: =O236/O17*360 -> 60 | P237: =P236/P17*360 -> 60 | Q237: =Q236/Q17*360 -> 60 | R237: =R236/R17*360 -> 60 | S237: =S236/S17*360 -> 60 | T237: =T236/T17*360 -> 60 | U237: =U236/U17*360 -> 60 | V237: =V236/V17*360 -> 60 | W237: =W236/W17*360 -> 60
D238: average days | F238: 60
... 231 more rows

Sheet Revised DCF
A1: Time Line
B2: Year | H2: =E8 -> 2011 | I2: =H2+1 -> 2012 | J2: =I2+1 -> 2013 | K2: 2014 | L2: 2015 | M2: 2016 | N2: 2017 | O2: 2018 | P2: 2019 | Q2: 2020 | R2: 2021 | S2: 2022 | T2: 2023 | U2: 2024 | V2: 2025 | W2: 2026 | X2: 2027 | Y2: 2028 | Z2: 2029
B3: Explicit Period | F3: =E8+1 -> 2012 | G3: =E9 -> 2015 | H3: =AND(H2>=$F$3,H2<=$G$3) -> FALSE | I3: =AND(I2>=$F$3,I2<=$G$3) -> TRUE | J3: TRUE | K3: TRUE | L3: TRUE | M3: FALSE | N3: FALSE | O3: FALSE | P3: FALSE | Q3: FALSE | R3: FALSE | S3: FALSE | T3: FALSE | U3: FALSE | V3: FALSE | W3: FALSE | X3: FALSE | Y3: FALSE | Z3: FALSE
B4: Terminal Period | G4: =E9 -> 2015 | H4: =H2=$G$4 -> FALSE | I4: =I2=$G$4 -> FALSE | J4: FALSE | K4: FALSE | L4: TRUE | M4: FALSE | N4: FALSE | O4: FALSE | P4: FALSE | Q4: FALSE | R4: FALSE | S4: FALSE | T4: FALSE | U4: FALSE | V4: FALSE | W4: FALSE | X4: FALSE | Y4: FALSE | Z4: FALSE
B5: Column Number | H5: =MATCH(H2,Consolidated!3:3,0) -> 14 | I5: =MATCH(I2,Consolidated!3:3,0) -> 15 | J5: =MATCH(J2,Consolidated!3:3,0) -> 16 | K5: =MATCH(K2,Consolidated!3:3,0) -> 17 | L5: =MATCH(L2,Consolidated!3:3,0) -> 18 | M5: =MATCH(M2,Consolidated!3:3,0) -> 19 | N5: =MATCH(N2,Consolidated!3:3,0) -> 20 | O5: =MATCH(O2,Consolidated!3:3,0) -> 21 | P5: =MATCH(P2,Consolidated!3:3,0) -> 22 | Q5: =MATCH(Q2,Consolidated!3:3,0) -> 23 | R5: =MATCH(R2,Consolidated!3:3,0) ->  | S5: =MATCH(S2,Consolidated!3:3,0) ->  | T5: =MATCH(T2,Consolidated!3:3,0) ->  | U5: =MATCH(U2,Consolidated!3:3,0) ->  | V5: =MATCH(V2,Consolidated!3:3,0) ->  | W5: =MATCH(W2,Consolidated!3:3,0) ->  | X5: =MATCH(X2,Consolidated!3:3,0) ->  | Y5: =MATCH(Y2,Consolidated!3:3,0) ->  | Z5: =MATCH(Z2,Consolidated!3:3,0) -> 
A7: Valuation Assumption
B8: Valuation Year | E8: 2011
B9: Terminal Year | E9: 2015 | G9: Equity Value | I9: =F95 -> 123.3864503
B11: WACC | E11: 0.135
B12: Terminal Growth | E12: 0.06
B13: Terminal Growth Multiple | E13: =(1+E12)/(E11-E12) -> 14.13333333
B14: ROIC vs WACC | E14: 0.02
B16: Life of Assets | E16: 12
B17: Stable Cap Exp to Dep | E17: =cap_exp_dep(E12,E16) -> 1.431324353
B18: Stable WC to EBITDA | E18: =Consolidated!O486 -> 0.4385374251
B19: Stable ROIC | E19: 0.25
B20: Discount Rate for Minority Interest | E20: 0.18
B21: P/E Ratio for Minority Interest | E21: 10
A23: Free Cash Flow
B24: EBITDA | H24: =INDEX(Consolidated!482:482,'Revised DCF'!H5) -> 3171.2 | I24: =INDEX(Consolidated!482:482,'Revised DCF'!I5) -> 2798.190664 | J24: =INDEX(Consolidated!482:482,'Revised DCF'!J5) -> 3128.114417 | K24: =INDEX(Consolidated!482:482,'Revised DCF'!K5) -> 4532.448794 | L24: =INDEX(Consolidated!482:482,'Revised DCF'!L5) -> 5048.188993 | M24: =INDEX(Consolidated!482:482,'Revised DCF'!M5) -> 5484.158908 | N24: =INDEX(Consolidated!482:482,'Revised DCF'!N5) -> 6792.627522 | O24: =INDEX(Consolidated!482:482,'Revised DCF'!O5) -> 7669.309982 | P24: =INDEX(Consolidated!482:482,'Revised DCF'!P5) -> 8269.88292 | Q24: =INDEX(Consolidated!482:482,'Revised DCF'!Q5) -> 8936.085468 | R24: =INDEX(Consolidated!482:482,'Revised DCF'!R5) ->  | S24: =INDEX(Consolidated!482:482,'Revised DCF'!S5) ->  | T24: =INDEX(Consolidated!482:482,'Revised DCF'!T5) ->  | U24: =INDEX(Consolidated!482:482,'Revised DCF'!U5) ->  | V24: =INDEX(Consolidated!482:482,'Revised DCF'!V5) ->  | W24: =INDEX(Consolidated!482:482,'Revised DCF'!W5) ->  | X24: =INDEX(Consolidated!482:482,'Revised DCF'!X5) ->  | Y24: =INDEX(Consolidated!482:482,'Revised DCF'!Y5) ->  | Z24: =INDEX(Consolidated!482:482,'Revised DCF'!Z5) -> 
B25: Less: Depreciation | H25: =INDEX(Consolidated!472:472,'Revised DCF'!H5) -> 841.9 | I25: =INDEX(Consolidated!472:472,'Revised DCF'!I5) -> 893.425 | J25: =INDEX(Consolidated!472:472,'Revised DCF'!J5) -> 855.6881101 | K25: =INDEX(Consolidated!472:472,'Revised DCF'!K5) -> 900.1917638 | L25: =INDEX(Consolidated!472:472,'Revised DCF'!L5) -> 942.8967779 | M25: =INDEX(Consolidated!472:472,'Revised DCF'!M5) -> 962.6778318 | N25: =INDEX(Consolidated!472:472,'Revised DCF'!N5) -> 977.720194 | O25: =INDEX(Consolidated!472:472,'Revised DCF'!O5) -> 1014.599632 | P25: =INDEX(Consolidated!472:472,'Revised DCF'!P5) -> 1068.621508 | Q25: =INDEX(Consolidated!472:472,'Revised DCF'!Q5) -> 1115.616987 | R25: =INDEX(Consolidated!472:472,'Revised DCF'!R5) ->  | S25: =INDEX(Consolidated!472:472,'Revised DCF'!S5) ->  | T25: =INDEX(Consolidated!472:472,'Revised DCF'!T5) ->  | U25: =INDEX(Consolidated!472:472,'Revised DCF'!U5) ->  | V25: =INDEX(Consolidated!472:472,'Revised DCF'!V5) ->  | W25: =INDEX(Consolidated!472:472,'Revised DCF'!W5) ->  | X25: =INDEX(Consolidated!472:472,'Revised DCF'!X5) ->  | Y25: =INDEX(Consolidated!472:472,'Revised DCF'!Y5) ->  | Z25: =INDEX(Consolidated!472:472,'Revised DCF'!Z5) -> 
B26: EBIT | H26: =H24-H25 -> 2329.3 | I26: =I24-I25 -> 1904.765664 | J26: 2272.426307 | K26: 3632.25703 | L26: 4105.292216 | M26: 4521.481077 | N26: 5814.907328 | O26: 6654.71035 | P26: 7201.261412 | Q26: 7820.468481
B27: Tax Rate | H27: =INDEX(Consolidated!454:454,'Revised DCF'!H5) -> 0.3623103851 | I27: =INDEX(Consolidated!454:454,'Revised DCF'!I5) -> 0.2800246542 | J27: =INDEX(Consolidated!454:454,'Revised DCF'!J5) -> 0.2865155941 | K27: =INDEX(Consolidated!454:454,'Revised DCF'!K5) -> 0.3050033697 | L27: =INDEX(Consolidated!454:454,'Revised DCF'!L5) -> 0.313740757 | M27: =INDEX(Consolidated!454:454,'Revised DCF'!M5) -> 0.3175880788 | N27: =INDEX(Consolidated!454:454,'Revised DCF'!N5) -> 0.3185949317 | O27: =INDEX(Consolidated!454:454,'Revised DCF'!O5) -> 0.3177598743 | P27: =INDEX(Consolidated!454:454,'Revised DCF'!P5) -> 0.3177513659 | Q27: =INDEX(Consolidated!454:454,'Revised DCF'!Q5) -> 0.3175729378 | R27: =INDEX(Consolidated!454:454,'Revised DCF'!R5) ->  | S27: =INDEX(Consolidated!454:454,'Revised DCF'!S5) ->  | T27: =INDEX(Consolidated!454:454,'Revised DCF'!T5) ->  | U27: =INDEX(Consolidated!454:454,'Revised DCF'!U5) ->  | V27: =INDEX(Consolidated!454:454,'Revised DCF'!V5) ->  | W27: =INDEX(Consolidated!454:454,'Revised DCF'!W5) ->  | X27: =INDEX(Consolidated!454:454,'Revised DCF'!X5) ->  | Y27: =INDEX(Consolidated!454:454,'Revised DCF'!Y5) ->  | Z27: =INDEX(Consolidated!454:454,'Revised DCF'!Z5) -> 
B28: Operating Taxes | H28: =H27*H26 -> 843.9295799 | I28: =I27*I26 -> 533.3813464 | J28: 651.0855733 | K28: 1107.850634 | L28: 1287.997488 | M28: 1435.968488 | N28: 1852.600003 | O28: 2114.599925 | P28: 2288.21065 | Q28: 2483.569151
B30: EBITDA | H30: =H24 -> 3171.2 | I30: =I24 -> 2798.190664 | J30: 3128.114417 | K30: 4532.448794 | L30: 5048.188993 | M30: 5484.158908 | N30: 6792.627522 | O30: 7669.309982 | P30: 8269.88292 | Q30: 8936.085468
B31: Less: Cap Exp | H31: =INDEX(Consolidated!479:479,'Revised DCF'!H5) -> 3870.9 | I31: =INDEX(Consolidated!479:479,'Revised DCF'!I5) -> -170 | J31: =INDEX(Consolidated!479:479,'Revised DCF'!J5) -> 871.5 | K31: =INDEX(Consolidated!479:479,'Revised DCF'!K5) -> 915.075 | L31: =INDEX(Consolidated!479:479,'Revised DCF'!L5) -> 717.7275 | M31: =INDEX(Consolidated!479:479,'Revised DCF'!M5) -> 753.613875 | N31: =INDEX(Consolidated!479:479,'Revised DCF'!N5) -> 1126.318479 | O31: =INDEX(Consolidated!479:479,'Revised DCF'!O5) -> 1464.054487 | P31: =INDEX(Consolidated!479:479,'Revised DCF'!P5) -> 1537.257212 | Q31: =INDEX(Consolidated!479:479,'Revised DCF'!Q5) -> 1614.120072 | R31: =INDEX(Consolidated!479:479,'Revised DCF'!R5) ->  | S31: =INDEX(Consolidated!479:479,'Revised DCF'!S5) ->  | T31: =INDEX(Consolidated!479:479,'Revised DCF'!T5) ->  | U31: =INDEX(Consolidated!479:479,'Revised DCF'!U5) ->  | V31: =INDEX(Consolidated!479:479,'Revised DCF'!V5) ->  | W31: =INDEX(Consolidated!479:479,'Revised DCF'!W5) ->  | X31: =INDEX(Consolidated!479:479,'Revised DCF'!X5) ->  | Y31: =INDEX(Consolidated!479:479,'Revised DCF'!Y5) ->  | Z31: =INDEX(Consolidated!479:479,'Revised DCF'!Z5) -> 
B32: Less: WC Changes | H32: =-INDEX(Consolidated!369:369,'Revised DCF'!H5) -> 328.1 | I32: =-INDEX(Consolidated!369:369,'Revised DCF'!I5) -> 860.3113288 | J32: =-INDEX(Consolidated!369:369,'Revised DCF'!J5) -> 317.1078517 | K32: =-INDEX(Consolidated!369:369,'Revised DCF'!K5) -> 364.5142361 | L32: =-INDEX(Consolidated!369:369,'Revised DCF'!L5) -> 16.59748302 | M32: =-INDEX(Consolidated!369:369,'Revised DCF'!M5) -> 137.7547758 | N32: =-INDEX(Consolidated!369:369,'Revised DCF'!N5) -> 355.1930851 | O32: =-INDEX(Consolidated!369:369,'Revised DCF'!O5) -> 322.7876571 | P32: =-INDEX(Consolidated!369:369,'Revised DCF'!P5) -> 275.6991739 | Q32: =-INDEX(Consolidated!369:369,'Revised DCF'!Q5) -> 225.3091737 | R32: =-INDEX(Consolidated!369:369,'Revised DCF'!R5) ->  | S32: =-INDEX(Consolidated!369:369,'Revised DCF'!S5) ->  | T32: =-INDEX(Consolidated!369:369,'Revised DCF'!T5) ->  | U32: =-INDEX(Consolidated!369:369,'Revised DCF'!U5) ->  | V32: =-INDEX(Consolidated!369:369,'Revised DCF'!V5) ->  | W32: =-INDEX(Consolidated!369:369,'Revised DCF'!W5) ->  | X32: =-INDEX(Consolidated!369:369,'Revised DCF'!X5) ->  | Y32: =-INDEX(Consolidated!369:369,'Revised DCF'!Y5) ->  | Z32: =-INDEX(Consolidated!369:369,'Revised DCF'!Z5) -> 
B33: Less: Operating Tax | H33: =H28 -> 843.9295799 | I33: =I28 -> 533.3813464 | J33: 651.0855733 | K33: 1107.850634 | L33: 1287.997488 | M33: 1435.968488 | N33: 1852.600003 | O33: 2114.599925 | P33: 2288.21065 | Q33: 2483.569151
B34: Add: Deferred Tax | H34: =-INDEX(Consolidated!333:333,'Revised DCF'!H5) -> -218.7 | I34: =-INDEX(Consolidated!333:333,'Revised DCF'!I5) -> -32.47326585 | J34: =-INDEX(Consolidated!333:333,'Revised DCF'!J5) -> -17.93661576 | K34: =-INDEX(Consolidated!333:333,'Revised DCF'!K5) -> -29.10125993 | L34: =-INDEX(Consolidated!333:333,'Revised DCF'!L5) -> -52.07453172 | M34: =-INDEX(Consolidated!333:333,'Revised DCF'!M5) -> -61.49863419 | N34: =-INDEX(Consolidated!333:333,'Revised DCF'!N5) -> -48.10539667 | O34: =-INDEX(Consolidated!333:333,'Revised DCF'!O5) -> -30.27704553 | P34: =-INDEX(Consolidated!333:333,'Revised DCF'!P5) -> -22.81576444 | Q34: =-INDEX(Consolidated!333:333,'Revised DCF'!Q5) -> -13.29011214 | R34: =-INDEX(Consolidated!333:333,'Revised DCF'!R5) ->  | S34: =-INDEX(Consolidated!333:333,'Revised DCF'!S5) ->  | T34: =-INDEX(Consolidated!333:333,'Revised DCF'!T5) ->  | U34: =-INDEX(Consolidated!333:333,'Revised DCF'!U5) ->  | V34: =-INDEX(Consolidated!333:333,'Revised DCF'!V5) ->  | W34: =-INDEX(Consolidated!333:333,'Revised DCF'!W5) ->  | X34: =-INDEX(Consolidated!333:333,'Revised DCF'!X5) ->  | Y34: =-INDEX(Consolidated!333:333,'Revised DCF'!Y5) ->  | Z34: =-INDEX(Consolidated!333:333,'Revised DCF'!Z5) -> 
B35: Add: Other Deferred Liab
C36: Total Free Cash Flow | H36: =H30-H31-H32-H33+H34+H35 -> -2090.42958 | I36: =I30-I31-I32-I33+I34+I35 -> 1542.024723 | J36: 1270.484376 | K36: 2115.907664 | L36: 2973.791991 | M36: 3095.323135 | N36: 3410.410559 | O36: 3737.590867 | P36: 4145.90012 | Q36: 4599.796959
C37: Free Cash Flow for Valuation | H37: =IF(H3,H36) -> FALSE | I37: =IF(I3,I36) -> 1542.024723 | J37: 1270.484376 | K37: 2115.907664 | L37: 2973.791991 | M37: FALSE | N37: FALSE | O37: FALSE | P37: FALSE | Q37: FALSE | R37: FALSE | S37: FALSE | T37: FALSE | U37: FALSE | V37: FALSE | W37: FALSE | X37: FALSE | Y37: FALSE | Z37: FALSE
C39: PV of Free Cash Flow at EOY | E39: =E11 -> 0.135 | F39: =NPV(E39,H37:Z37) -> 5583.931159
C40: PV of Free Cash Flow Mid-year | F40: =F39*(1+E39)^0.5 -> 5948.91805
B42: ROIC | H42: =INDEX(Consolidated!460:460,'Revised DCF'!H5) -> 0.1767793035 | I42: =INDEX(Consolidated!460:460,'Revised DCF'!I5) -> 0.1509407598 | J42: =INDEX(Consolidated!460:460,'Revised DCF'!J5) -> 0.1680026099 | K42: =INDEX(Consolidated!460:460,'Revised DCF'!K5) -> 0.2516764162 | L42: =INDEX(Consolidated!460:460,'Revised DCF'!L5) -> 0.2773920035 | M42: =INDEX(Consolidated!460:460,'Revised DCF'!M5) -> 0.306308707 | N42: =INDEX(Consolidated!460:460,'Revised DCF'!N5) -> 0.3830442334 | O42: =INDEX(Consolidated!460:460,'Revised DCF'!O5) -> 0.4119335384 | P42: =INDEX(Consolidated!460:460,'Revised DCF'!P5) -> 0.4161381108 | Q42: =INDEX(Consolidated!460:460,'Revised DCF'!Q5) -> 0.424965656 | R42: =INDEX(Consolidated!460:460,'Revised DCF'!R5) ->  | S42: =INDEX(Consolidated!460:460,'Revised DCF'!S5) ->  | T42: =INDEX(Consolidated!460:460,'Revised DCF'!T5) ->  | U42: =INDEX(Consolidated!460:460,'Revised DCF'!U5) ->  | V42: =INDEX(Consolidated!460:460,'Revised DCF'!V5) ->  | W42: =INDEX(Consolidated!460:460,'Revised DCF'!W5) ->  | X42: =INDEX(Consolidated!460:460,'Revised DCF'!X5) ->  | Y42: =INDEX(Consolidated!460:460,'Revised DCF'!Y5) ->  | Z42: =INDEX(Consolidated!460:460,'Revised DCF'!Z5) -> 
B43: Invested Capital | H43: =INDEX(Consolidated!458:458,'Revised DCF'!H5) -> 8402.4 | I43: =INDEX(Consolidated!458:458,'Revised DCF'!I5) -> 9085.579797 | J43: =INDEX(Consolidated!458:458,'Revised DCF'!J5) -> 9650.687773 | K43: =INDEX(Consolidated!458:458,'Revised DCF'!K5) -> 10030.36532 | L43: =INDEX(Consolidated!458:458,'Revised DCF'!L5) -> 10156.36605 | M43: =INDEX(Consolidated!458:458,'Revised DCF'!M5) -> 10073.21215 | N43: =INDEX(Consolidated!458:458,'Revised DCF'!N5) -> 10344.25526 | O43: =INDEX(Consolidated!458:458,'Revised DCF'!O5) -> 11021.46342 | P43: =INDEX(Consolidated!458:458,'Revised DCF'!P5) -> 11806.29852 | Q43: =INDEX(Consolidated!458:458,'Revised DCF'!Q5) -> 12558.42503 | R43: =INDEX(Consolidated!458:458,'Revised DCF'!R5) ->  | S43: =INDEX(Consolidated!458:458,'Revised DCF'!S5) ->  | T43: =INDEX(Consolidated!458:458,'Revised DCF'!T5) ->  | U43: =INDEX(Consolidated!458:458,'Revised DCF'!U5) ->  | V43: =INDEX(Consolidated!458:458,'Revised DCF'!V5) ->  | W43: =INDEX(Consolidated!458:458,'Revised DCF'!W5) ->  | X43: =INDEX(Consolidated!458:458,'Revised DCF'!X5) ->  | Y43: =INDEX(Consolidated!458:458,'Revised DCF'!Y5) ->  | Z43: =INDEX(Consolidated!458:458,'Revised DCF'!Z5) -> 
A45: Normalised Cash Flow
B46: Stable ROIC | E46: =E19 -> 0.25 | H46: =$E$46 -> 0.25 | I46: =$E$46 -> 0.25 | J46: 0.25 | K46: 0.25 | L46: 0.25 | M46: 0.25 | N46: 0.25 | O46: 0.25 | P46: 0.25 | Q46: 0.25 | R46: 0.25 | S46: 0.25 | T46: 0.25 | U46: 0.25 | V46: 0.25 | W46: 0.25 | X46: 0.25 | Y46: 0.25 | Z46: 0.25
B47: Stable NOPAT | H47: =H46*H43 -> 2100.6 | I47: =I46*I43 -> 2271.394949 | J47: 2412.671943 | K47: 2507.59133 | L47: 2539.091513 | M47: 2518.303037 | N47: 2586.063814 | O47: 2755.365855 | P47: 2951.57463 | Q47: 3139.606257
B48: Tax Rate | H48: =H27 -> 0.3623103851 | I48: =I27 -> 0.2800246542 | J48: 0.2865155941 | K48: 0.3050033697 | L48: 0.313740757 | M48: 0.3175880788 | N48: 0.3185949317 | O48: 0.3177598743 | P48: 0.3177513659 | Q48: 0.3175729378
B49: EBIT | H49: =H47/(1-H48) -> 3294.079048 | I49: =I47/(1-I48) -> 3154.823235 | J49: 3381.534233 | K49: 3608.062572 | L49: 3699.90137 | M49: 3690.297544 | N49: 3795.193101 | O49: 4038.703898 | P49: 4326.244836 | Q49: 4600.647352
B50: Add: Operating Taxes: NOPAT x t /(1-t) | H50: =H49*H48 -> 1193.479048 | I50: =I49*I48 -> 883.4282852 | J50: 968.8622897 | K50: 1100.471243 | L50: 1160.809857 | M50: 1171.994507 | N50: 1209.129287 | O50: 1283.338043 | P50: 1374.670206 | Q50: 1461.041096
B51: Add: Depreciation | H51: =H25 -> 841.9 | I51: =I25 -> 893.425 | J51: 855.6881101 | K51: 900.1917638 | L51: 942.8967779 | M51: 962.6778318 | N51: 977.720194 | O51: 1014.599632 | P51: 1068.621508 | Q51: 1115.616987
B52: EBITDA | E52: FALSE | F52: true = Forecast | H52: =IF($E$52,H24,H51+H50+H47) -> 4135.979048 | I52: =IF($E$52,I24,I51+I50+I47) -> 4048.248235 | J52: 4237.222343 | K52: 4508.254336 | L52: 4642.798148 | M52: 4652.975376 | N52: 4772.913295 | O52: 5053.30353 | P52: 5394.866344 | Q52: 5716.264339
B54: Working Capital to EBITDA | H54: =INDEX(Consolidated!486:486,'Revised DCF'!H5) -> 0.1156659939 | I54: =INDEX(Consolidated!486:486,'Revised DCF'!I5) -> 0.4385374251 | J54: =INDEX(Consolidated!486:486,'Revised DCF'!J5) -> 0.4936581514 | K54: =INDEX(Consolidated!486:486,'Revised DCF'!K5) -> 0.4211263057 | L54: =INDEX(Consolidated!486:486,'Revised DCF'!L5) -> 0.3813904159 | M54: =INDEX(Consolidated!486:486,'Revised DCF'!M5) -> 0.3761899883 | N54: =INDEX(Consolidated!486:486,'Revised DCF'!N5) -> 0.3560152169 | O54: =INDEX(Consolidated!486:486,'Revised DCF'!O5) -> 0.3574071754 | P54: =INDEX(Consolidated!486:486,'Revised DCF'!P5) -> 0.3647893955 | Q54: =INDEX(Consolidated!486:486,'Revised DCF'!Q5) -> 0.3628070453 | R54: =INDEX(Consolidated!486:486,'Revised DCF'!R5) ->  | S54: =INDEX(Consolidated!486:486,'Revised DCF'!S5) ->  | T54: =INDEX(Consolidated!486:486,'Revised DCF'!T5) ->  | U54: =INDEX(Consolidated!486:486,'Revised DCF'!U5) ->  | V54: =INDEX(Consolidated!486:486,'Revised DCF'!V5) ->  | W54: =INDEX(Consolidated!486:486,'Revised DCF'!W5) ->  | X54: =INDEX(Consolidated!486:486,'Revised DCF'!X5) ->  | Y54: =INDEX(Consolidated!486:486,'Revised DCF'!Y5) ->  | Z54: =INDEX(Consolidated!486:486,'Revised DCF'!Z5) -> 
B55: Terminal g/(1 + Terminal g) | E55: =E12 -> 0.06 | H55: =$E$55/(1+$E$55) -> 0.05660377358 | I55: =$E$55/(1+$E$55) -> 0.05660377358 | J55: 0.05660377358 | K55: 0.05660377358 | L55: 0.05660377358 | M55: 0.05660377358 | N55: 0.05660377358 | O55: 0.05660377358 | P55: 0.05660377358 | Q55: 0.05660377358 | R55: 0.05660377358 | S55: 0.05660377358 | T55: 0.05660377358 | U55: 0.05660377358 | V55: 0.05660377358 | W55: 0.05660377358 | X55: 0.05660377358 | Y55: 0.05660377358 | Z55: 0.05660377358
B56: Stable Working Capital Change (x EBITDA) | H56: =H54*H55*H52 -> 27.07879967 | I56: =I54*I55*I52 -> 100.4891523 | J56: 118.4003405 | K56: 107.4647827 | L56: 100.2293613 | M56: 99.07940106 | N56: 96.18281671 | O56: 102.2313363 | P56: 111.3956622 | Q56: 117.3906212
B58: Depreciation | H58: =H51 -> 841.9 | I58: =I51 -> 893.425 | J58: 855.6881101 | K58: 900.1917638 | L58: 942.8967779 | M58: 962.6778318 | N58: 977.720194 | O58: 1014.599632 | P58: 1068.621508 | Q58: 1115.616987
B59: Stable Cap Exp to Depreciation | E59: =E17 -> 1.431324353 | H59: =$E$59 -> 1.431324353 | I59: =$E$59 -> 1.431324353 | J59: 1.431324353 | K59: 1.431324353 | L59: 1.431324353 | M59: 1.431324353 | N59: 1.431324353 | O59: 1.431324353 | P59: 1.431324353 | Q59: 1.431324353 | R59: 1.431324353 | S59: 1.431324353 | T59: 1.431324353 | U59: 1.431324353 | V59: 1.431324353 | W59: 1.431324353 | X59: 1.431324353 | Y59: 1.431324353 | Z59: 1.431324353
B60: Stable Capital Expenditure | H60: =H58*H59 -> 1205.031972 | I60: =I58*I59 -> 1278.78096 | J60: 1224.76723 | K60: 1288.466394 | L60: 1349.59112 | M60: 1377.904224 | N60: 1399.434724 | O60: 1452.221161 | P60: 1529.543988 | Q60: 1596.809762
B62: EBITDA | H62: =H52 -> 4135.979048 | I62: =I52 -> 4048.248235 | J62: 4237.222343 | K62: 4508.254336 | L62: 4642.798148 | M62: 4652.975376 | N62: 4772.913295 | O62: 5053.30353 | P62: 5394.866344 | Q62: 5716.264339
B63: Less: Cap Exp | H63: =H60 -> 1205.031972 | I63: =I60 -> 1278.78096 | J63: 1224.76723 | K63: 1288.466394 | L63: 1349.59112 | M63: 1377.904224 | N63: 1399.434724 | O63: 1452.221161 | P63: 1529.543988 | Q63: 1596.809762
B64: Less: WC Changes | H64: =H56 -> 27.07879967 | I64: =I56 -> 100.4891523 | J64: 118.4003405 | K64: 107.4647827 | L64: 100.2293613 | M64: 99.07940106 | N64: 96.18281671 | O64: 102.2313363 | P64: 111.3956622 | Q64: 117.3906212
B65: Less: Operating Tax | H65: =H50 -> 1193.479048 | I65: =I50 -> 883.4282852 | J65: 968.8622897 | K65: 1100.471243 | L65: 1160.809857 | M65: 1171.994507 | N65: 1209.129287 | O65: 1283.338043 | P65: 1374.670206 | Q65: 1461.041096
B66: Add: Deferred Tax | H66: =H34 -> -218.7 | I66: =I34 -> -32.47326585 | J66: -17.93661576 | K66: -29.10125993 | L66: -52.07453172 | M66: -61.49863419 | N66: -48.10539667 | O66: -30.27704553 | P66: -22.81576444 | Q66: -13.29011214
B67: Add: Other Deferred Liab | H67: =H35 -> 0 | I67: =I35 -> 0 | J67: 0 | K67: 0 | L67: 0 | M67: 0 | N67: 0 | O67: 0 | P67: 0 | Q67: 0 | R67: 0 | S67: 0 | T67: 0 | U67: 0 | V67: 0 | W67: 0 | X67: 0 | Y67: 0 | Z67: 0
C68: Total Normalised Free Cash Flow | H68: =H62-H63-H64-H65+H66+H67 -> 1491.689228 | I68: =I62-I63-I64-I65+I66+I67 -> 1753.076572 | J68: 1907.255867 | K68: 1982.750657 | L68: 1980.093278 | M68: 1942.498609 | N68: 2020.061071 | O68: 2185.235944 | P68: 2356.440723 | Q68: 2527.732749
B70: Normalised Free Cash Flow x Multiple | E70: =E13 -> 14.13333333 | H70: =H68*H4*$E$70 -> 0 | I70: =I68*I4*$E$70 -> 0 | J70: 0 | K70: 0 | L70: 27985.31833 | M70: 0 | N70: 0 | O70: 0 | P70: 0 | Q70: =Q68*Q4*$E$70 -> 0
B71: Terminal Value | H71: =IF(H3,H70) -> FALSE | I71: =IF(I3,I70) -> 0 | J71: =IF(J3,J70) -> 0 | K71: 0 | L71: 27985.31833 | M71: FALSE | N71: FALSE | O71: FALSE | P71: FALSE | Q71: FALSE | R71: FALSE | S71: FALSE | T71: FALSE | U71: FALSE | V71: FALSE | W71: FALSE | X71: FALSE | Y71: FALSE | Z71: FALSE
B72: PV of Terminal Value | E72: =E39 -> 0.135 | F72: =NPV(E72,H71:Z71) -> 16863.4646
B73: Mid Year Adjustment | F73: =F72*(1+E72)^0.5 -> 17965.72451
C75: PV of Explicit Cash Flow | F75: =F40 -> 5948.91805
C76: PV of Terminal Cash Flow | F76: =F73 -> 17965.72451
C77: Total Enterprise Value | F77: =SUM(F75:F76) -> 23914.64256
C79: EBITDA | H79: =H62 -> 4135.979048 | I79: =I62 -> 4048.248235 | J79: 4237.222343 | K79: 4508.254336 | L79: 4642.798148 | M79: 4652.975376 | N79: 4772.913295 | O79: 5053.30353 | P79: 5394.866344 | Q79: 5716.264339
C80: EV/EBITDA | F80: =F77/H79 -> 5.782099542 | Q80: =Q71/Q79 -> 0
A82: Adjustments to Compute Equity Value
B83: Minority Interest Cash Flow | H83: =INDEX(Consolidated!$158:$158,'Revised DCF'!H5) -> 49.1 | I83: =INDEX(Consolidated!$158:$158,'Revised DCF'!I5) -> 64.36743222 | J83: =INDEX(Consolidated!$158:$158,'Revised DCF'!J5) -> 166.9453445 | K83: =INDEX(Consolidated!$158:$158,'Revised DCF'!K5) -> 265.9394637 | L83: =INDEX(Consolidated!$158:$158,'Revised DCF'!L5) -> 344.3005155 | M83: =INDEX(Consolidated!$158:$158,'Revised DCF'!M5) -> 371.661995 | N83: =INDEX(Consolidated!$158:$158,'Revised DCF'!N5) -> 521.0793853 | O83: =INDEX(Consolidated!$158:$158,'Revised DCF'!O5) -> 619.4811134 | P83: =INDEX(Consolidated!$158:$158,'Revised DCF'!P5) -> 695.0785169 | Q83: =INDEX(Consolidated!$158:$158,'Revised DCF'!Q5) -> 742.1640461 | R83: =INDEX(Consolidated!$158:$158,'Revised DCF'!R5) ->  | S83: =INDEX(Consolidated!$158:$158,'Revised DCF'!S5) ->  | T83: =INDEX(Consolidated!$158:$158,'Revised DCF'!T5) ->  | U83: =INDEX(Consolidated!$158:$158,'Revised DCF'!U5) ->  | V83: =INDEX(Consolidated!$158:$158,'Revised DCF'!V5) ->  | W83: =INDEX(Consolidated!$158:$158,'Revised DCF'!W5) ->  | X83: =INDEX(Consolidated!$158:$158,'Revised DCF'!X5) ->  | Y83: =INDEX(Consolidated!$158:$158,'Revised DCF'!Y5) ->  | Z83: =INDEX(Consolidated!$158:$158,'Revised DCF'!Z5) -> 
B84: Minority Interest Terminal Value | E84: =E21 -> 10 | H84: =$E$84*H4 -> 0 | I84: =$E$84*I4 -> 0 | J84: 0 | K84: 0 | L84: 10 | M84: 0 | N84: 0 | O84: 0 | P84: 0 | Q84: 0 | R84: 0 | S84: 0 | T84: 0 | U84: 0 | V84: 0 | W84: 0 | X84: 0 | Y84: 0 | Z84: 0
C85: Total Minority Interest Cash Flow | H85: =IF(H3,SUM(H83:H84)) -> FALSE | I85: =IF(I3,SUM(I83:I84)) -> 64.36743222 | J85: 166.9453445 | K85: 265.9394637 | L85: 354.3005155 | M85: FALSE | N85: FALSE | O85: FALSE | P85: FALSE | Q85: FALSE | R85: FALSE | S85: FALSE | T85: FALSE | U85: FALSE | V85: FALSE | W85: FALSE | X85: FALSE | Y85: FALSE | Z85: FALSE
C86: PV of Minority Interest Income | E86: =E20 -> 0.18 | F86: =NPV(E86,H85:Z85) -> 519.0494506
C88: Book Value of Bridge | F88: =SUMIF(Consolidated!$3:$3,'Revised DCF'!H2,Consolidated!$439:$439) -> -5624.9
C89: Market Value of Bridge | F89: =F88 -> -5624.9
C91: Total Bridge Between Equity and EV | F91: =F89+F86 -> -5105.850549
C92: Total Equity Value | F92: =F77-F91 -> 29020.49311
C93: Number of Shares | F93: =SUMIF(Consolidated!$3:$3,'Revised DCF'!H2,Consolidated!$343:$343) -> 235.2
C95: Equity Value per Share | F95: =F92/F93 -> 123.3864503
C97: Earnings Per Share | F97: =SUMIF(Consolidated!$3:$3,'Revised DCF'!H2,Consolidated!$339:$339) -> 7.691751701
C98: Implied PE Ratio | F98: =F95/F97 -> 16.041398

Sheet DCF Analysis
A1: Discounted cash flow analysis of HT Media (Rs mn)
A3: FLEXIBLE TIME LINE | B3: 2012E | C3: 2013E | D3: 2014E | E3: 2015E | F3: 2016E | G3: 2017E | H3: 2018E | I3: 2019E | J3: 2020E | K3: 2021E | L3: 2022E | M3: 2023E | N3: 2024E
A4: EBITDA | B4: =Consolidated!O326 -> 2798.190664 | C4: =Consolidated!P326 -> 3128.114417 | D4: =Consolidated!Q326 -> 4532.448794 | E4: =Consolidated!R326 -> 5048.188993 | F4: =Consolidated!S326 -> 5484.158908 | G4: =Consolidated!T326 -> 6792.627522 | H4: =Consolidated!U326 -> 7669.309982 | I4: =Consolidated!V326 -> 8269.88292 | J4: =Consolidated!W326 -> 8936.085468 | K4: =J4*(1+$B$16%) -> 9204.168032 | L4: =K4*(1+$B$16%) -> 9480.293073 | M4: =L4*(1+$B$16%) -> 9764.701865 | N4: =M4*(1+$B$16%) -> 10057.64292
A5: Tax expense - INCLUDE DEFERRED TAX CHANGES | B5: =Consolidated!O332+SUM(Consolidated!N327:O328)*Consolidated!O353% -> -465.6993875 | C5: =Consolidated!P332+SUM(Consolidated!O327:P328)*Consolidated!P353% -> -517.6456756 | D5: =Consolidated!Q332+SUM(Consolidated!P327:Q328)*Consolidated!Q353% -> -947.9306777 | E5: =Consolidated!R332+SUM(Consolidated!Q327:R328)*Consolidated!R353% -> -1106.493003 | F5: =Consolidated!S332+SUM(Consolidated!R327:S328)*Consolidated!S353% -> -1221.694184 | G5: =Consolidated!T332+SUM(Consolidated!S327:T328)*Consolidated!T353% -> -1619.071945 | H5: =Consolidated!U332+SUM(Consolidated!T327:U328)*Consolidated!U353% -> -1876.092131 | I5: =Consolidated!V332+SUM(Consolidated!U327:V328)*Consolidated!V353% -> -2049.371041 | J5: =Consolidated!W332+SUM(Consolidated!V327:W328)*Consolidated!W353% -> -2248.895352
A6: Changes in working capital | B6: =Consolidated!O369 -> -860.3113288 | C6: =Consolidated!P369 -> -317.1078517 | D6: =Consolidated!Q369 -> -364.5142361 | E6: =Consolidated!R369 -> -16.59748302 | F6: =Consolidated!S369 -> -137.7547758 | G6: =Consolidated!T369 -> -355.1930851 | H6: =Consolidated!U369 -> -322.7876571 | I6: =Consolidated!V369 -> -275.6991739 | J6: =Consolidated!W369 -> -225.3091737
A7: Cash flow from operations | B7: =SUM(B4:B6) -> 1472.179948 | C7: =SUM(C4:C6) -> 2293.36089 | D7: =SUM(D4:D6) -> 3220.00388 | E7: =SUM(E4:E6) -> 3925.098508 | F7: =SUM(F4:F6) -> 4124.709949 | G7: =SUM(G4:G6) -> 4818.362492 | H7: =SUM(H4:H6) -> 5470.430193 | I7: =SUM(I4:I6) -> 5944.812705 | J7: =SUM(J4:J6) -> 6461.880942
A8: Capital expenditure | B8: =Consolidated!O373 -> -830 | C8: =Consolidated!P373 -> -871.5 | D8: =Consolidated!Q373 -> -915.075 | E8: =Consolidated!R373 -> -717.7275 | F8: =Consolidated!S373 -> -753.613875 | G8: =Consolidated!T373 -> -1126.318479 | H8: =Consolidated!U373 -> -1464.054487 | I8: =Consolidated!V373 -> -1537.257212 | J8: =Consolidated!W373 -> -1614.120072
A9: Cash flows for minority interest | B9: =-Consolidated!O158 -> -64.36743222 | C9: =-Consolidated!P158 -> -166.9453445 | D9: =-Consolidated!Q158 -> -265.9394637 | E9: =-Consolidated!R158 -> -344.3005155 | F9: =-Consolidated!S158 -> -371.661995 | G9: =-Consolidated!T158 -> -521.0793853 | H9: =-Consolidated!U158 -> -619.4811134 | I9: =-Consolidated!V158 -> -695.0785169 | J9: =-Consolidated!W158 -> -742.1640461
A10: Free cash flow to the firm | B10: =SUM(B7:B9) -> 577.8125158 | C10: 1254.915545 | D10: 2038.989416 | E10: 2863.070492 | F10: 2999.434079 | G10: 3170.964628 | H10: 3386.894593 | I10: 3712.476977 | J10: 4105.596824 | K10: =J10*(1+$B$16%) -> 4228.764728 | L10: =K10*(1+$B$16%) -> 4355.62767 | M10: =L10*(1+$B$16%) -> 4486.2965 | N10: =M10*(1+$B$16%) -> 4620.885395
A11: Dicounted cash flow-now - DISCOUNTING OUT OF ORDER | B11: =B10*B22 -> 509.085917 | C11: =C10*C22 -> 974.143139 | D11: 1394.528476 | E11: 1725.23633 | F11: 1591.876385 | G11: 1482.741881 | H11: 1395.339782 | I11: 1347.55408 | J11: 1312.538943 | K11: 1191.114635
A12: Discounted cash flow-1 year forward | C12: =C10*B22 -> 1105.652463 | D12: =D10*C22 -> 1582.78982 | E12: 1958.143234 | F12: 1807.406648 | G12: 1682.912035 | H12: 1583.710652 | I12: 1529.47388 | J12: 1490.248636 | K12: 1351.915111 | L12: 1226.848075
A13: Discounted cash flow-2 year forward | D13: =D10*B22 -> 1796.466446 | E13: =E10*C22 -> 2222.492571 | F13: 2051.406546 | G13: 1910.767964 | H13: 1797.511591 | I13: 1735.952854 | J13: 1691.432201 | K13: 1534.956095 | L13: 1392.472565 | M13: 1263.653517
A15: Discount rate (%) | B15: 13.5
A16: Growth from 2020E to perpetuity (%) | B16: 3
A18: Fiscal year-end (March 31, XXXX) | B18: 2012-03-31 | C18: 2013-03-31 | D18: 2014-03-31 | E18: 2015-03-31 | F18: 2016-03-31 | G18: 2017-03-31 | H18: 2018-03-31 | I18: 2019-03-31 | J18: 2020-03-31 | K18: 2021-03-31 | L18: 2022-03-31 | M18: 2023-03-31 | N18: 2024-03-31
A19: Today | B19: 2011-04-01 | C19: =B19 -> 2011-04-01 | D19: =C19 -> 2011-04-01 | E19: =D19 -> 2011-04-01 | F19: =E19 -> 2011-04-01 | G19: =F19 -> 2011-04-01 | H19: =G19 -> 2011-04-01 | I19: =H19 -> 2011-04-01 | J19: =I19 -> 2011-04-01 | K19: =J19 -> 2011-04-01 | L19: =K19 -> 2011-04-01 | M19: =L19 -> 2011-04-01 | N19: =M19 -> 2011-04-01
A20: Days left | B20: =B18-B19 -> 365 | C20: 730 | D20: 1095 | E20: 1460 | F20: 1826 | G20: 2191 | H20: 2556 | I20: 2921 | J20: 3287 | K20: 3652 | L20: 4017 | M20: 4382 | N20: 4748
A21: Years left | B21: =B20/365 -> 1 | C21: 2 | D21: 3 | E21: 4 | F21: 5.002739726 | G21: 6.002739726 | H21: 7.002739726 | I21: 8.002739726 | J21: 9.005479452 | K21: 10.00547945 | L21: 11.00547945 | M21: 12.00547945 | N21: 13.00821918
A22: Discount factor at WACC | B22: =1/(1+$B$15%)^B21 -> 0.8810572687 | C22: =1/(1+$B$15%)^C21 -> 0.7762619108 | D22: 0.6839311989 | E22: 0.6025825541 | F22: 0.5307255781 | G22: 0.4675996283 | H22: 0.4119820513 | I22: 0.3629797809 | J22: 0.3196950405 | K22: 0.2816696392 | L22: 0.248167083 | M22: 0.2186494124 | N22: 0.1925758304
B24: + 1-year | D24: + 2-years | G24: Sensitivity of share price to different levels of WACC and growth rate (Rs)
A25: Total PV of free cash flow (a) | B25: =SUM(B11:K11) -> 12924.15957 | C25: =B25/$B$30 -> 0.5251924309 | D25: =SUM(C12:L12) -> 15319.10056 | E25: =D25/$D$30 -> 0.5600335902 | H25: WACC (%)
A26: FCF in terminal year | B26: =L10 -> 4355.62767 | D26: =M10 -> 4486.2965 | G26: =D34 -> 134.5413612 | H26: =I26-0.5 -> 12 | I26: =J26-0.5 -> 12.5 | J26: =K26-0.5 -> 13 | K26: 13.5 | L26: =K26+0.5 -> 14 | M26: =L26+0.5 -> 14.5 | N26: =M26+0.5 -> 15
A27: Exit FCF multiple (X) | B27: =1/($B$15%-$B$16%) -> 9.523809524 | D27: =1/($B$15%-$B$16%) -> 9.523809524 | G27: =G28-0.5 -> 1 | H27: 140.5063303 | I27: 134.3557069 | J27: 128.7356953 | K27: 123.5820824 | L27: 118.8405536 | M27: 114.464859 | N27: 110.4153726
A28: Terminal value | B28: =B26*B27 -> 41482.16829 | D28: =D26*D27 -> 42726.63334 | G28: =G29-0.5 -> 1.5 | H28: 143.9238879 | I28: 137.3802182 | J28: 131.4233573 | K28: 125.9794246 | L28: 120.9863798 | M28: 116.3917446 | N28: 112.1508318
A29: PV of terminal value (b) | B29: =B28*K22 -> 11684.26738 | C29: =B29/$B$30 -> 0.4748075691 | D29: =D28*K22 -> 12034.7954 | E29: =D29/$D$30 -> 0.4399664098 | G29: =G30-0.5 -> 2 | H29: 147.6832012 | I29: 140.6927781 | J29: 134.3553521 | K29: 128.5852314 | L29: 123.3110248 | M29: 118.472781 | N29: 114.0197878
A30: EV (a) + (b) | B30: =B29+B25 -> 24608.42694 | D30: =D29+D25 -> 27353.89595 | G30: =G31-0.5 -> 2.5 | H30: 151.8382318 | I30: 144.336594 | J30: 137.5665846 | K30: 131.4279297 | L30: 125.8378129 | M30: 120.7272372 | N30: 116.0382603
A31: EV (US$ mn) | B31: =B30/46 -> 534.9658032 | D31: =D30/46 -> 594.649912 | G31: 3 | H31: 156.4549324 | I31: 148.3639695 | J31: 141.0989403 | K31: 134.5413612 | L31: 128.594309 | M31: 123.1777329 | N31: 118.2249388
A32: Net debt/ (cash) | B32: =Consolidated!N421-Consolidated!N425-Consolidated!N433*2/3 -> -3093.233333 | D32: =Consolidated!O421-Consolidated!O425-Consolidated!O433*2/3 -> -4276.778062 | G32: =G31+0.5 -> 3.5 | H32: 161.6147743 | I32: 152.8388312 | J32: 145.0031229 | K32: 137.9661358 | L32: 131.6133285 | M32: 125.8510011 | N32: 120.6017633
A33: Equity value | B33: =B30-B32 -> 27701.66028 | D33: =D30-D32 -> 31630.67401 | G33: =G32+0.5 -> 4 | H33: 167.4195964 | I33: 157.8401472 | J33: 149.3411036 | K33: 141.751413 | L33: 134.93425 | M33: 128.7788661 | N33: 123.1946627
A34: Implied share price (Rs) | B34: =B33/Consolidated!L342 -> 117.8794054 | D34: =D33/Consolidated!M342 -> 134.5413612 | G34: =G33+0.5 -> 4.5 | H34: 173.9983948 | I34: 163.4666276 | J34: 154.1894349 | K34: 145.9572766 | L34: 138.6047422 | M34: 131.9995177 | N34: 126.034505
A35: Exit EV/EBITDA multiple (X) | B35: =B28/L4 -> 4.375620877 | D35: =D28/M4 -> 4.375620877 | G35: =G34+0.5 -> 5 | H35: 181.5170215 | I35: 169.8433055 | J35: 159.6438077 | K35: 150.6579477 | L35: 142.6830668 | M35: 135.5591853 | N35: 129.1583315
A38: Depreciation | B38: =-Consolidated!J329 -> 435.988 | C38: =-Consolidated!K329 -> 569.87 | D38: =-Consolidated!L329 -> 688.1 | E38: =-Consolidated!M329 -> 706.9 | F38: =-Consolidated!N329 -> 841.9 | G38: =-Consolidated!O329 -> 893.425 | H38: =-Consolidated!P329 -> 855.6881101 | I38: =-Consolidated!Q329 -> 900.1917638 | J38: =-Consolidated!R329 -> 942.8967779
A39: Cap Exp | B39: =-B8 -> 830 | C39: =-C8 -> 871.5 | D39: 915.075 | E39: 717.7275 | F39: 753.613875 | G39: 1126.318479 | H39: 1464.054487 | I39: 1537.257212 | J39: 1614.120072
D41: =J4 -> 8936.085468
D42: =D28 -> 42726.63334
D43: =D42/D41 -> 4.781359074

Sheet NSEHTMEDIA
A1: Date | C1: Open | D1: High | E1: Low | F1: Close | G1: Volume | I1: Closing | J1: Split Fac | K1: Adjusted
A2: 2017-06-29 | B2: =YEAR(A2) -> 2017 | C2: 81.75 | D2: 82.2 | E2: 80.5 | F2: 81 | G2: 46444 | H2: =A2 -> 2017-06-29 | I2: =F2 -> 81 | J2: 1 | K2: =I2/J2 -> 81
A3: 2017-06-28 | B3: =YEAR(A3) -> 2017 | C3: 82.85 | D3: 82.85 | E3: 81.1 | F3: 81.55 | G3: 26125 | H3: =A3 -> 2017-06-28 | I3: =F3 -> 81.55 | J3: =IF(ROUND(I3/I2,0)>3,ROUND(I3/I2,0),1) -> 1 | K3: =I3/J3 -> 81.55 | M3: 2005 | N3: =AVERAGEIF(B:B,M3,K:K) -> 91.69358025
A4: 2017-06-27 | B4: 2017 | C4: 84.85 | D4: 84.9 | E4: 81.3 | F4: 82.15 | G4: 434535 | H4: 2017-06-27 | I4: 82.15 | J4: =IF(ROUND(I4/I3,0)>3,ROUND(I4/I3,0),1) -> 1 | K4: 82.15 | M4: 2006 | N4: =AVERAGEIF(B:B,M4,K:K) -> 107.9696748
A5: 2017-06-23 | B5: 2017 | C5: 83 | D5: 84.9 | E5: 81.65 | F5: 83.75 | G5: 883327 | H5: 2017-06-23 | I5: 83.75 | J5: 1 | K5: 83.75 | M5: 2007 | N5: 206.3623482
A6: 2017-06-22 | B6: 2017 | C6: 82.45 | D6: 82.75 | E6: 81.75 | F6: 82.5 | G6: 121399 | H6: 2017-06-22 | I6: 82.5 | J6: 1 | K6: 82.5 | M6: 2008 | N6: 129.9098361
A7: 2017-06-21 | B7: 2017 | C7: 81.45 | D7: 82.65 | E7: 81.15 | F7: 82.4 | G7: 48761 | H7: 2017-06-21 | I7: 82.4 | J7: 1 | K7: 82.4 | M7: 2009 | N7: 95.97297872
A8: 2017-06-20 | B8: 2017 | C8: 82 | D8: 82.45 | E8: 80.9 | F8: 81.5 | G8: 47082 | H8: 2017-06-20 | I8: 81.5 | J8: 1 | K8: 81.5 | M8: 2010 | N8: 153.0140244
A9: 2017-06-19 | B9: 2017 | C9: 81.1 | D9: 82.25 | E9: 80.55 | F9: 82 | G9: 44276 | H9: 2017-06-19 | I9: 82 | J9: 1 | K9: 82 | M9: 2011 | N9: 145.6963563
A10: 2017-06-16 | B10: 2017 | C10: 81.85 | D10: 81.85 | E10: 80.2 | F10: 81.05 | G10: 126443 | H10: 2017-06-16 | I10: 81.05 | J10: 1 | K10: 81.05 | M10: 2012 | N10: 110.325502
A11: 2017-06-15 | B11: 2017 | C11: 81.6 | D11: 81.95 | E11: 80.6 | F11: 81 | G11: 711631 | H11: 2017-06-15 | I11: 81 | J11: 1 | K11: 81 | M11: 2013 | N11: 94.41081633
A12: 2017-06-14 | B12: 2017 | C12: 81.4 | D12: 82.1 | E12: 80.5 | F12: 81.8 | G12: 89319 | H12: 2017-06-14 | I12: 81.8 | J12: 1 | K12: 81.8 | M12: 2014 | N12: 101.8987654
A13: 2017-06-13 | B13: 2017 | C13: 81.45 | D13: 82 | E13: 81 | F13: 81.05 | G13: 52601 | H13: 2017-06-13 | I13: 81.05 | J13: 1 | K13: 81.05 | M13: 2015 | N13: 100.1117409
A14: 2017-06-12 | B14: 2017 | C14: 82.3 | D14: 82.3 | E14: 81.1 | F14: 81.9 | G14: 50844 | H14: 2017-06-12 | I14: 81.9 | J14: 1 | K14: 81.9 | M14: 2016 | N14: 80.68693878
A15: 2017-06-09 | B15: 2017 | C15: 83.5 | D15: 83.85 | E15: 80.75 | F15: 81.6 | G15: 458073 | H15: 2017-06-09 | I15: 81.6 | J15: 1 | K15: 81.6 | M15: 2017 | N15: 82.25327869
A16: 2017-06-08 | B16: 2017 | C16: 83.4 | D16: 83.55 | E16: 82 | F16: 82.15 | G16: 1251884 | H16: 2017-06-08 | I16: 82.15 | J16: 1 | K16: 82.15
A17: 2017-06-07 | B17: 2017 | C17: 83.75 | D17: 84.85 | E17: 82.1 | F17: 82.3 | G17: 49061 | H17: 2017-06-07 | I17: 82.3 | J17: 1 | K17: 82.3
A18: 2017-06-06 | B18: 2017 | C18: 80.15 | D18: 84.95 | E18: 80.15 | F18: 83.9 | G18: 268312 | H18: 2017-06-06 | I18: 83.9 | J18: 1 | K18: 83.9
A19: 2017-06-05 | B19: 2017 | C19: 82.95 | D19: 82.95 | E19: 80.3 | F19: 81.05 | G19: 52446 | H19: 2017-06-05 | I19: 81.05 | J19: 1 | K19: 81.05
A20: 2017-06-02 | B20: 2017 | C20: 83 | D20: 83 | E20: 81.5 | F20: 82 | G20: 23848 | H20: 2017-06-02 | I20: 82 | J20: 1 | K20: 82
A21: 2017-06-01 | B21: 2017 | C21: 83.15 | D21: 83.35 | E21: 81.8 | F21: 82.3 | G21: 22473 | H21: 2017-06-01 | I21: 82.3 | J21: 1 | K21: 82.3
A22: 2017-05-31 | B22: 2017 | C22: 81.2 | D22: 83.2 | E22: 81.2 | F22: 83.2 | G22: 53665 | H22: 2017-05-31 | I22: 83.2 | J22: 1 | K22: 83.2
A23: 2017-05-30 | B23: 2017 | C23: 79.35 | D23: 82.9 | E23: 79.35 | F23: 81.5 | G23: 45510 | H23: 2017-05-30 | I23: 81.5 | J23: 1 | K23: 81.5
A24: 2017-05-29 | B24: 2017 | C24: 81.1 | D24: 82 | E24: 79.25 | F24: 81.75 | G24: 60301 | H24: 2017-05-29 | I24: 81.75 | J24: 1 | K24: 81.75
A25: 2017-05-26 | B25: 2017 | C25: 81.95 | D25: 81.95 | E25: 80 | F25: 81.75 | G25: 52382 | H25: 2017-05-26 | I25: 81.75 | J25: 1 | K25: 81.75
A26: 2017-05-25 | B26: 2017 | C26: 80.75 | D26: 81.5 | E26: 79.6 | F26: 81.45 | G26: 47751 | H26: 2017-05-25 | I26: 81.45 | J26: 1 | K26: 81.45
A27: 2017-05-24 | B27: 2017 | C27: 80.95 | D27: 81.35 | E27: 79.25 | F27: 80.05 | G27: 532375 | H27: 2017-05-24 | I27: 80.05 | J27: 1 | K27: 80.05
A28: 2017-05-23 | B28: 2017 | C28: 81.25 | D28: 81.8 | E28: 79.85 | F28: 80.8 | G28: 377473 | H28: 2017-05-23 | I28: 80.8 | J28: 1 | K28: 80.8
A29: 2017-05-22 | B29: 2017 | C29: 81.5 | D29: 84.9 | E29: 80.1 | F29: 81.05 | G29: 368860 | H29: 2017-05-22 | I29: 81.05 | J29: 1 | K29: 81.05
A30: 2017-05-19 | B30: 2017 | C30: 88.2 | D30: 88.3 | E30: 79.55 | F30: 83.1 | G30: 1142869 | H30: 2017-05-19 | I30: 83.1 | J30: 1 | K30: 83.1
A31: 2017-05-18 | B31: 2017 | C31: 90 | D31: 90 | E31: 85.55 | F31: 86.2 | G31: 1253456 | H31: 2017-05-18 | I31: 86.2 | J31: 1 | K31: 86.2
A32: 2017-05-17 | B32: 2017 | C32: 86.4 | D32: 91.8 | E32: 85.2 | F32: 90 | G32: 1053707 | H32: 2017-05-17 | I32: 90 | J32: 1 | K32: 90
A33: 2017-05-16 | B33: 2017 | C33: 84.9 | D33: 86.5 | E33: 83.75 | F33: 85.95 | G33: 85988 | H33: 2017-05-16 | I33: 85.95 | J33: 1 | K33: 85.95
A34: 2017-05-15 | B34: 2017 | C34: 83.5 | D34: 84.65 | E34: 83.25 | F34: 84.65 | G34: 42482 | H34: 2017-05-15 | I34: 84.65 | J34: 1 | K34: 84.65
A35: 2017-05-12 | B35: 2017 | C35: 83.3 | D35: 84.35 | E35: 82.5 | F35: 83.3 | G35: 61016 | H35: 2017-05-12 | I35: 83.3 | J35: 1 | K35: 83.3
A36: 2017-05-11 | B36: 2017 | C36: 84.7 | D36: 85.75 | E36: 83.25 | F36: 84.05 | G36: 62266 | H36: 2017-05-11 | I36: 84.05 | J36: 1 | K36: 84.05
A37: 2017-05-10 | B37: 2017 | C37: 83.6 | D37: 86.3 | E37: 82.45 | F37: 84.7 | G37: 244048 | H37: 2017-05-10 | I37: 84.7 | J37: 1 | K37: 84.7
A38: 2017-05-09 | B38: 2017 | C38: 83.1 | D38: 83.35 | E38: 82.6 | F38: 82.75 | G38: 27708 | H38: 2017-05-09 | I38: 82.75 | J38: 1 | K38: 82.75
A39: 2017-05-08 | B39: 2017 | C39: 82.7 | D39: 83.4 | E39: 82.3 | F39: 82.75 | G39: 45674 | H39: 2017-05-08 | I39: 82.75 | J39: 1 | K39: 82.75
A40: 2017-05-05 | B40: 2017 | C40: 82.5 | D40: 83.4 | E40: 81.9 | F40: 82.25 | G40: 100179 | H40: 2017-05-05 | I40: 82.25 | J40: 1 | K40: 82.25
A41: 2017-05-04 | B41: 2017 | C41: 82.3 | D41: 82.9 | E41: 81.95 | F41: 82.9 | G41: 56076 | H41: 2017-05-04 | I41: 82.9 | J41: 1 | K41: 82.9
A42: 2017-05-03 | B42: 2017 | C42: 82.25 | D42: 82.75 | E42: 81.7 | F42: 82 | G42: 38803 | H42: 2017-05-03 | I42: 82 | J42: 1 | K42: 82
A43: 2017-05-02 | B43: 2017 | C43: 82.05 | D43: 83.35 | E43: 81.25 | F43: 82.25 | G43: 114029 | H43: 2017-05-02 | I43: 82.25 | J43: 1 | K43: 82.25
A44: 2017-04-28 | B44: 2017 | C44: 82 | D44: 82.7 | E44: 81.9 | F44: 82.1 | G44: 73434 | H44: 2017-04-28 | I44: 82.1 | J44: 1 | K44: 82.1
A45: 2017-04-27 | B45: 2017 | C45: 82.65 | D45: 82.8 | E45: 81.75 | F45: 82 | G45: 290667 | H45: 2017-04-27 | I45: 82 | J45: 1 | K45: 82
A46: 2017-04-26 | B46: 2017 | C46: 84 | D46: 84.9 | E46: 81.95 | F46: 82 | G46: 318588 | H46: 2017-04-26 | I46: 82 | J46: 1 | K46: 82
A47: 2017-04-25 | B47: 2017 | C47: 83.55 | D47: 83.95 | E47: 82.8 | F47: 83.35 | G47: 76500 | H47: 2017-04-25 | I47: 83.35 | J47: 1 | K47: 83.35
A48: 2017-04-24 | B48: 2017 | C48: 83.25 | D48: 83.5 | E48: 82.4 | F48: 83.15 | G48: 111743 | H48: 2017-04-24 | I48: 83.15 | J48: 1 | K48: 83.15
A49: 2017-04-21 | B49: 2017 | C49: 84.1 | D49: 84.55 | E49: 82.6 | F49: 82.9 | G49: 153805 | H49: 2017-04-21 | I49: 82.9 | J49: 1 | K49: 82.9
A50: 2017-04-20 | B50: 2017 | C50: 84.05 | D50: 84.55 | E50: 83.45 | F50: 84.25 | G50: 212515 | H50: 2017-04-20 | I50: 84.25 | J50: 1 | K50: 84.25
A51: 2017-04-19 | B51: 2017 | C51: 83.55 | D51: 84.85 | E51: 83.15 | F51: 83.5 | G51: 273428 | H51: 2017-04-19 | I51: 83.5 | J51: 1 | K51: 83.5
A52: 2017-04-18 | B52: 2017 | C52: 84.75 | D52: 86 | E52: 83.5 | F52: 84 | G52: 62813 | H52: 2017-04-18 | I52: 84 | J52: 1 | K52: 84
A53: 2017-04-17 | B53: 2017 | C53: 86.05 | D53: 86.05 | E53: 84.25 | F53: 84.8 | G53: 65487 | H53: 2017-04-17 | I53: 84.8 | J53: 1 | K53: 84.8
A54: 2017-04-13 | B54: 2017 | C54: 85.6 | D54: 86.3 | E54: 85.6 | F54: 86.05 | G54: 106824 | H54: 2017-04-13 | I54: 86.05 | J54: 1 | K54: 86.05
A55: 2017-04-12 | B55: 2017 | C55: 87 | D55: 87 | E55: 83.85 | F55: 85.5 | G55: 113091 | H55: 2017-04-12 | I55: 85.5 | J55: 1 | K55: 85.5
A56: 2017-04-11 | B56: 2017 | C56: 87.5 | D56: 88 | E56: 86.3 | F56: 86.6 | G56: 146771 | H56: 2017-04-11 | I56: 86.6 | J56: 1 | K56: 86.6
A57: 2017-04-10 | B57: 2017 | C57: 86.05 | D57: 87.4 | E57: 85.5 | F57: 86.35 | G57: 119330 | H57: 2017-04-10 | I57: 86.35 | J57: 1 | K57: 86.35
A58: 2017-04-07 | B58: 2017 | C58: 85 | D58: 86.35 | E58: 84.95 | F58: 86 | G58: 186984 | H58: 2017-04-07 | I58: 86 | J58: 1 | K58: 86
A59: 2017-04-06 | B59: 2017 | C59: 86.4 | D59: 87.2 | E59: 84.65 | F59: 85.05 | G59: 84195 | H59: 2017-04-06 | I59: 85.05 | J59: 1 | K59: 85.05
A60: 2017-04-05 | B60: 2017 | C60: 83.55 | D60: 86.9 | E60: 83.55 | F60: 85.9 | G60: 250697 | H60: 2017-04-05 | I60: 85.9 | J60: 1 | K60: 85.9
A61: 2017-04-03 | B61: 2017 | C61: 83.25 | D61: 84.2 | E61: 83 | F61: 83.5 | G61: 57289 | H61: 2017-04-03 | I61: 83.5 | J61: 1 | K61: 83.5
A62: 2017-03-31 | B62: 2017 | C62: 82.7 | D62: 84.2 | E62: 81.95 | F62: 84.15 | G62: 98582 | H62: 2017-03-31 | I62: 84.15 | J62: 1 | K62: 84.15
A63: 2017-03-30 | B63: 2017 | C63: 83 | D63: 83.6 | E63: 82.2 | F63: 82.3 | G63: 66995 | H63: 2017-03-30 | I63: 82.3 | J63: 1 | K63: 82.3
A64: 2017-03-29 | B64: 2017 | C64: 82.6 | D64: 83.65 | E64: 80.9 | F64: 81.7 | G64: 197996 | H64: 2017-03-29 | I64: 81.7 | J64: 1 | K64: 81.7
A65: 2017-03-28 | B65: 2017 | C65: 81.1 | D65: 83 | E65: 81.05 | F65: 82.9 | G65: 75964 | H65: 2017-03-28 | I65: 82.9 | J65: 1 | K65: 82.9
A66: 2017-03-27 | B66: 2017 | C66: 81.4 | D66: 82.2 | E66: 80.8 | F66: 81.25 | G66: 59515 | H66: 2017-03-27 | I66: 81.25 | J66: 1 | K66: 81.25
A67: 2017-03-24 | B67: =YEAR(A67) -> 2017 | C67: 81.5 | D67: 82 | E67: 81.15 | F67: 81.5 | G67: 57834 | H67: =A67 -> 2017-03-24 | I67: =F67 -> 81.5 | J67: 1 | K67: =I67/J67 -> 81.5
A68: 2017-03-23 | B68: 2017 | C68: 81.3 | D68: 82 | E68: 80.85 | F68: 80.85 | G68: 50562 | H68: 2017-03-23 | I68: 80.85 | J68: =IF(ROUND(I68/I67,0)>3,ROUND(I68/I67,0),1) -> 1 | K68: 80.85
A69: 2017-03-22 | B69: 2017 | C69: 82.5 | D69: 82.5 | E69: 80.8 | F69: 81 | G69: 109436 | H69: 2017-03-22 | I69: 81 | J69: 1 | K69: 81
A70: 2017-03-21 | B70: 2017 | C70: 84 | D70: 84.4 | E70: 82.1 | F70: 82.1 | G70: 93666 | H70: 2017-03-21 | I70: 82.1 | J70: 1 | K70: 82.1
A71: 2017-03-20 | B71: 2017 | C71: 83.8 | D71: 84.6 | E71: 83.35 | F71: 84.45 | G71: 86206 | H71: 2017-03-20 | I71: 84.45 | J71: 1 | K71: 84.45
A72: 2017-03-17 | B72: 2017 | C72: 83.2 | D72: 84.9 | E72: 83 | F72: 83.95 | G72: 166594 | H72: 2017-03-17 | I72: 83.95 | J72: 1 | K72: 83.95
A73: 2017-03-16 | B73: 2017 | C73: 82.55 | D73: 83.45 | E73: 82.5 | F73: 83.25 | G73: 96540 | H73: 2017-03-16 | I73: 83.25 | J73: 1 | K73: 83.25
A74: 2017-03-15 | B74: 2017 | C74: 82.5 | D74: 83.6 | E74: 81.3 | F74: 82.55 | G74: 125258 | H74: 2017-03-15 | I74: 82.55 | J74: 1 | K74: 82.55
A75: 2017-03-14 | B75: 2017 | C75: 84.25 | D75: 85 | E75: 82.05 | F75: 82.4 | G75: 83178 | H75: 2017-03-14 | I75: 82.4 | J75: 1 | K75: 82.4
A76: 2017-03-10 | B76: 2017 | C76: 83.95 | D76: 84.9 | E76: 83.05 | F76: 83.4 | G76: 64832 | H76: 2017-03-10 | I76: 83.4 | J76: 1 | K76: 83.4
A77: 2017-03-09 | B77: 2017 | C77: 83.6 | D77: 84.4 | E77: 83.25 | F77: 83.9 | G77: 62050 | H77: 2017-03-09 | I77: 83.9 | J77: 1 | K77: 83.9
A78: 2017-03-08 | B78: 2017 | C78: 84.95 | D78: 85.5 | E78: 83.4 | F78: 83.4 | G78: 62730 | H78: 2017-03-08 | I78: 83.4 | J78: 1 | K78: 83.4
A79: 2017-03-07 | B79: 2017 | C79: 84.95 | D79: 86.6 | E79: 84.05 | F79: 85.1 | G79: 176012 | H79: 2017-03-07 | I79: 85.1 | J79: 1 | K79: 85.1
A80: 2017-03-06 | B80: 2017 | C80: 83.1 | D80: 85.3 | E80: 83.1 | F80: 84.7 | G80: 81930 | H80: 2017-03-06 | I80: 84.7 | J80: 1 | K80: 84.7
A81: 2017-03-03 | B81: 2017 | C81: 83.5 | D81: 84.8 | E81: 82.7 | F81: 83.05 | G81: 95958 | H81: 2017-03-03 | I81: 83.05 | J81: 1 | K81: 83.05
A82: 2017-03-02 | B82: 2017 | C82: 85.15 | D82: 85.55 | E82: 83.1 | F82: 83.5 | G82: 69283 | H82: 2017-03-02 | I82: 83.5 | J82: 1 | K82: 83.5
A83: 2017-03-01 | B83: 2017 | C83: 85.5 | D83: 86.8 | E83: 85 | F83: 85.25 | G83: 132539 | H83: 2017-03-01 | I83: 85.25 | J83: 1 | K83: 85.25
A84: 2017-02-28 | B84: 2017 | C84: 83.45 | D84: 86.5 | E84: 82.85 | F84: 85 | G84: 235704 | H84: 2017-02-28 | I84: 85 | J84: 1 | K84: 85
A85: 2017-02-27 | B85: 2017 | C85: 83.4 | D85: 83.8 | E85: 82.5 | F85: 83.3 | G85: 76848 | H85: 2017-02-27 | I85: 83.3 | J85: 1 | K85: 83.3
A86: 2017-02-23 | B86: 2017 | C86: 83.75 | D86: 84.8 | E86: 82.3 | F86: 83.1 | G86: 65393 | H86: 2017-02-23 | I86: 83.1 | J86: 1 | K86: 83.1
A87: 2017-02-22 | B87: 2017 | C87: 85.4 | D87: 85.7 | E87: 83.1 | F87: 83.3 | G87: 152324 | H87: 2017-02-22 | I87: 83.3 | J87: 1 | K87: 83.3
A88: 2017-02-21 | B88: 2017 | C88: 86.3 | D88: 87.7 | E88: 84.5 | F88: 85.65 | G88: 229982 | H88: 2017-02-21 | I88: 85.65 | J88: 1 | K88: 85.65
A89: 2017-02-20 | B89: 2017 | C89: 82.5 | D89: 88.4 | E89: 82.5 | F89: 86.65 | G89: 1088992 | H89: 2017-02-20 | I89: 86.65 | J89: 1 | K89: 86.65
A90: 2017-02-17 | B90: 2017 | C90: 80.5 | D90: 83.3 | E90: 80.5 | F90: 81.95 | G90: 65262 | H90: 2017-02-17 | I90: 81.95 | J90: 1 | K90: 81.95
A91: 2017-02-16 | B91: 2017 | C91: 82.65 | D91: 83.4 | E91: 80.75 | F91: 81.9 | G91: 126380 | H91: 2017-02-16 | I91: 81.9 | J91: 1 | K91: 81.9
A92: 2017-02-15 | B92: 2017 | C92: 84.95 | D92: 85.05 | E92: 82.3 | F92: 82.7 | G92: 118653 | H92: 2017-02-15 | I92: 82.7 | J92: 1 | K92: 82.7
A93: 2017-02-14 | B93: 2017 | C93: 85.65 | D93: 85.7 | E93: 83.75 | F93: 84.85 | G93: 162454 | H93: 2017-02-14 | I93: 84.85 | J93: 1 | K93: 84.85
A94: 2017-02-13 | B94: 2017 | C94: 83.8 | D94: 85.75 | E94: 83.7 | F94: 85.35 | G94: 460172 | H94: 2017-02-13 | I94: 85.35 | J94: 1 | K94: 85.35
A95: 2017-02-10 | B95: 2017 | C95: 83.45 | D95: 84.1 | E95: 82.6 | F95: 82.95 | G95: 73830 | H95: 2017-02-10 | I95: 82.95 | J95: 1 | K95: 82.95
A96: 2017-02-09 | B96: 2017 | C96: 82.25 | D96: 83.95 | E96: 82.25 | F96: 83.25 | G96: 166570 | H96: 2017-02-09 | I96: 83.25 | J96: 1 | K96: 83.25
A97: 2017-02-08 | B97: 2017 | C97: 82.85 | D97: 83.65 | E97: 82.4 | F97: 83 | G97: 124996 | H97: 2017-02-08 | I97: 83 | J97: 1 | K97: 83
A98: 2017-02-07 | B98: 2017 | C98: 83.45 | D98: 83.8 | E98: 81.7 | F98: 82 | G98: 72709 | H98: 2017-02-07 | I98: 82 | J98: 1 | K98: 82
A99: 2017-02-06 | B99: 2017 | C99: 83.9 | D99: 84.25 | E99: 82.2 | F99: 83.35 | G99: 193323 | H99: 2017-02-06 | I99: 83.35 | J99: 1 | K99: 83.35
A100: 2017-02-03 | B100: 2017 | C100: 81.4 | D100: 84 | E100: 81.1 | F100: 83.35 | G100: 319852 | H100: 2017-02-03 | I100: 83.35 | J100: 1 | K100: 83.35
A101: 2017-02-02 | B101: 2017 | C101: 80.4 | D101: 80.75 | E101: 80 | F101: 80.2 | G101: 60947 | H101: 2017-02-02 | I101: 80.2 | J101: 1 | K101: 80.2
A102: 2017-02-01 | B102: 2017 | C102: 80.75 | D102: 81.4 | E102: 80.05 | F102: 80.45 | G102: 146345 | H102: 2017-02-01 | I102: 80.45 | J102: 1 | K102: 80.45
A103: 2017-01-31 | B103: 2017 | C103: 81.35 | D103: 81.9 | E103: 79.5 | F103: 79.65 | G103: 131112 | H103: 2017-01-31 | I103: 79.65 | J103: 1 | K103: 79.65
A104: 2017-01-30 | B104: 2017 | C104: 79.5 | D104: 80.9 | E104: 79.5 | F104: 80 | G104: 122541 | H104: 2017-01-30 | I104: 80 | J104: 1 | K104: 80
A105: 2017-01-27 | B105: 2017 | C105: 80.2 | D105: 80.7 | E105: 79.15 | F105: 79.3 | G105: 109615 | H105: 2017-01-27 | I105: 79.3 | J105: 1 | K105: 79.3
A106: 2017-01-25 | B106: 2017 | C106: 81.35 | D106: 81.5 | E106: 79.7 | F106: 79.7 | G106: 133118 | H106: 2017-01-25 | I106: 79.7 | J106: 1 | K106: 79.7
A107: 2017-01-24 | B107: 2017 | C107: 80.9 | D107: 83.5 | E107: 79.05 | F107: 80.55 | G107: 1330806 | H107: 2017-01-24 | I107: 80.55 | J107: 1 | K107: 80.55
A108: 2017-01-23 | B108: 2017 | C108: 79 | D108: 81 | E108: 79 | F108: 79.1 | G108: 119782 | H108: 2017-01-23 | I108: 79.1 | J108: 1 | K108: 79.1
A109: 2017-01-20 | B109: 2017 | C109: 82 | D109: 82.35 | E109: 79.8 | F109: 80.05 | G109: 96337 | H109: 2017-01-20 | I109: 80.05 | J109: 1 | K109: 80.05
A110: 2017-01-19 | B110: 2017 | C110: 82 | D110: 82.8 | E110: 81 | F110: 82 | G110: 123704 | H110: 2017-01-19 | I110: 82 | J110: 1 | K110: 82
A111: 2017-01-18 | B111: 2017 | C111: 84.45 | D111: 84.6 | E111: 81.1 | F111: 81.2 | G111: 320132 | H111: 2017-01-18 | I111: 81.2 | J111: 1 | K111: 81.2
A112: 2017-01-17 | B112: 2017 | C112: 83.75 | D112: 84.4 | E112: 82.3 | F112: 83.9 | G112: 645245 | H112: 2017-01-17 | I112: 83.9 | J112: 1 | K112: 83.9
A113: 2017-01-16 | B113: 2017 | C113: 85 | D113: 86.7 | E113: 81.35 | F113: 82.5 | G113: 2197591 | H113: 2017-01-16 | I113: 82.5 | J113: 1 | K113: 82.5
A114: 2017-01-13 | B114: 2017 | C114: 76.95 | D114: 79.9 | E114: 75.2 | F114: 78.6 | G114: 613003 | H114: 2017-01-13 | I114: 78.6 | J114: 1 | K114: 78.6
A115: 2017-01-12 | B115: 2017 | C115: 74.65 | D115: 78 | E115: 73.6 | F115: 77.6 | G115: 413730 | H115: 2017-01-12 | I115: 77.6 | J115: 1 | K115: 77.6
A116: 2017-01-11 | B116: 2017 | C116: 75.15 | D116: 75.7 | E116: 72.85 | F116: 73.15 | G116: 335773 | H116: 2017-01-11 | I116: 73.15 | J116: 1 | K116: 73.15
A117: 2017-01-10 | B117: 2017 | C117: 76.05 | D117: 76.05 | E117: 74.75 | F117: 74.95 | G117: 56371 | H117: 2017-01-10 | I117: 74.95 | J117: 1 | K117: 74.95
A118: 2017-01-09 | B118: 2017 | C118: 76.5 | D118: 77.3 | E118: 74.95 | F118: 75.4 | G118: 109399 | H118: 2017-01-09 | I118: 75.4 | J118: 1 | K118: 75.4
A119: 2017-01-06 | B119: 2017 | C119: 75 | D119: 76.75 | E119: 74.95 | F119: 75.6 | G119: 53199 | H119: 2017-01-06 | I119: 75.6 | J119: 1 | K119: 75.6
A120: 2017-01-05 | B120: 2017 | C120: 75.2 | D120: 77 | E120: 75.2 | F120: 77 | G120: 128074 | H120: 2017-01-05 | I120: 77 | J120: 1 | K120: 77
A121: 2017-01-04 | B121: 2017 | C121: 74.25 | D121: 75 | E121: 73.75 | F121: 74.6 | G121: 35602 | H121: 2017-01-04 | I121: 74.6 | J121: 1 | K121: 74.6
A122: 2017-01-03 | B122: 2017 | C122: 73.5 | D122: 74.3 | E122: 73.05 | F122: 73.65 | G122: 46257 | H122: 2017-01-03 | I122: 73.65 | J122: 1 | K122: 73.65
A123: 2017-01-02 | B123: 2017 | C123: 73.8 | D123: 73.9 | E123: 72 | F123: 73.1 | G123: 56038 | H123: 2017-01-02 | I123: 73.1 | J123: 1 | K123: 73.1
A124: 2016-12-30 | B124: 2016 | C124: 73.75 | D124: 73.75 | E124: 72 | F124: 72.3 | G124: 89173 | H124: 2016-12-30 | I124: 72.3 | J124: 1 | K124: 72.3
A125: 2016-12-29 | B125: 2016 | C125: 71.8 | D125: 72.35 | E125: 71.4 | F125: 71.75 | G125: 94790 | H125: 2016-12-29 | I125: 71.75 | J125: 1 | K125: 71.75
A126: 2016-12-28 | B126: 2016 | C126: 72.9 | D126: 73.2 | E126: 71.4 | F126: 71.7 | G126: 77894 | H126: 2016-12-28 | I126: 71.7 | J126: 1 | K126: 71.7
A127: 2016-12-27 | B127: 2016 | C127: 72.05 | D127: 72.5 | E127: 71.8 | F127: 71.85 | G127: 27001 | H127: 2016-12-27 | I127: 71.85 | J127: 1 | K127: 71.85
A128: 2016-12-26 | B128: 2016 | C128: 74.5 | D128: 74.5 | E128: 71.6 | F128: 71.6 | G128: 59444 | H128: 2016-12-26 | I128: 71.6 | J128: 1 | K128: 71.6
A129: 2016-12-23 | B129: 2016 | C129: 74.8 | D129: 74.8 | E129: 72.65 | F129: 73 | G129: 56786 | H129: 2016-12-23 | I129: 73 | J129: 1 | K129: 73
A130: 2016-12-22 | B130: 2016 | C130: 74.3 | D130: 74.8 | E130: 72.55 | F130: 73.65 | G130: 82460 | H130: 2016-12-22 | I130: 73.65 | J130: 1 | K130: 73.65
A131: 2016-12-21 | B131: =YEAR(A131) -> 2016 | C131: 75.65 | D131: 79 | E131: 73.6 | F131: 74.1 | G131: 519529 | H131: =A131 -> 2016-12-21 | I131: =F131 -> 74.1 | J131: 1 | K131: =I131/J131 -> 74.1
A132: 2016-12-20 | B132: 2016 | C132: 72.15 | D132: 73.25 | E132: 71.5 | F132: 72.35 | G132: 70112 | H132: 2016-12-20 | I132: 72.35 | J132: =IF(ROUND(I132/I131,0)>3,ROUND(I132/I131,0),1) -> 1 | K132: 72.35
A133: 2016-12-19 | B133: 2016 | C133: 73.4 | D133: 73.4 | E133: 71.65 | F133: 71.8 | G133: 90240 | H133: 2016-12-19 | I133: 71.8 | J133: 1 | K133: 71.8
A134: 2016-12-16 | B134: 2016 | C134: 72 | D134: 73.5 | E134: 72 | F134: 72.3 | G134: 27517 | H134: 2016-12-16 | I134: 72.3 | J134: 1 | K134: 72.3
A135: 2016-12-15 | B135: 2016 | C135: 73 | D135: 73.65 | E135: 71.75 | F135: 71.8 | G135: 41902 | H135: 2016-12-15 | I135: 71.8 | J135: 1 | K135: 71.8
A136: 2016-12-14 | B136: 2016 | C136: 74 | D136: 74.3 | E136: 73.1 | F136: 73.5 | G136: 43821 | H136: 2016-12-14 | I136: 73.5 | J136: 1 | K136: 73.5
A137: 2016-12-13 | B137: 2016 | C137: 72.7 | D137: 73.75 | E137: 72.5 | F137: 73.7 | G137: 38024 | H137: 2016-12-13 | I137: 73.7 | J137: 1 | K137: 73.7
A138: 2016-12-12 | B138: 2016 | C138: 73.95 | D138: 73.95 | E138: 72.3 | F138: 72.5 | G138: 73480 | H138: 2016-12-12 | I138: 72.5 | J138: 1 | K138: 72.5
A139: 2016-12-09 | B139: 2016 | C139: 73.4 | D139: 73.9 | E139: 72.35 | F139: 73.45 | G139: 56972 | H139: 2016-12-09 | I139: 73.45 | J139: 1 | K139: 73.45
A140: 2016-12-08 | B140: 2016 | C140: 73.85 | D140: 74 | E140: 68.9 | F140: 72.75 | G140: 371656 | H140: 2016-12-08 | I140: 72.75 | J140: 1 | K140: 72.75
A141: 2016-12-07 | B141: 2016 | C141: 70.25 | D141: 74.25 | E141: 70.2 | F141: 73.1 | G141: 254137 | H141: 2016-12-07 | I141: 73.1 | J141: 1 | K141: 73.1
A142: 2016-12-06 | B142: 2016 | C142: 71.7 | D142: 72.05 | E142: 69.45 | F142: 70.25 | G142: 137747 | H142: 2016-12-06 | I142: 70.25 | J142: 1 | K142: 70.25
A143: 2016-12-05 | B143: 2016 | C143: 70.45 | D143: 71.7 | E143: 70.2 | F143: 71 | G143: 86632 | H143: 2016-12-05 | I143: 71 | J143: 1 | K143: 71
A144: 2016-12-02 | B144: 2016 | C144: 70.95 | D144: 71.05 | E144: 69.5 | F144: 70.2 | G144: 512942 | H144: 2016-12-02 | I144: 70.2 | J144: 1 | K144: 70.2
A145: 2016-12-01 | B145: 2016 | C145: 71.95 | D145: 72 | E145: 70.55 | F145: 70.95 | G145: 260028 | H145: 2016-12-01 | I145: 70.95 | J145: 1 | K145: 70.95
A146: 2016-11-30 | B146: 2016 | C146: 72.35 | D146: 72.35 | E146: 71.25 | F146: 71.4 | G146: 248134 | H146: 2016-11-30 | I146: 71.4 | J146: 1 | K146: 71.4
A147: 2016-11-29 | B147: 2016 | C147: 71.7 | D147: 72.9 | E147: 71.4 | F147: 71.5 | G147: 358297 | H147: 2016-11-29 | I147: 71.5 | J147: 1 | K147: 71.5
A148: 2016-11-28 | B148: 2016 | C148: 71.55 | D148: 72.6 | E148: 71.35 | F148: 71.5 | G148: 167678 | H148: 2016-11-28 | I148: 71.5 | J148: 1 | K148: 71.5
A149: 2016-11-25 | B149: 2016 | C149: 71.3 | D149: 72.1 | E149: 71 | F149: 71.55 | G149: 78447 | H149: 2016-11-25 | I149: 71.55 | J149: 1 | K149: 71.55
A150: 2016-11-24 | B150: 2016 | C150: 72.6 | D150: 72.6 | E150: 70.5 | F150: 70.95 | G150: 92491 | H150: 2016-11-24 | I150: 70.95 | J150: 1 | K150: 70.95
A151: 2016-11-23 | B151: 2016 | C151: 73.45 | D151: 73.45 | E151: 71.05 | F151: 71.65 | G151: 430044 | H151: 2016-11-23 | I151: 71.65 | J151: 1 | K151: 71.65
A152: 2016-11-22 | B152: 2016 | C152: 73.65 | D152: 73.8 | E152: 71.8 | F152: 71.8 | G152: 111894 | H152: 2016-11-22 | I152: 71.8 | J152: 1 | K152: 71.8
A153: 2016-11-21 | B153: 2016 | C153: 74.45 | D153: 75 | E153: 72.05 | F153: 72.7 | G153: 100193 | H153: 2016-11-21 | I153: 72.7 | J153: 1 | K153: 72.7
A154: 2016-11-18 | B154: 2016 | C154: 73 | D154: 76.8 | E154: 72.5 | F154: 73.5 | G154: 437101 | H154: 2016-11-18 | I154: 73.5 | J154: 1 | K154: 73.5
A155: 2016-11-17 | B155: 2016 | C155: 75 | D155: 75.6 | E155: 72.7 | F155: 72.9 | G155: 202152 | H155: 2016-11-17 | I155: 72.9 | J155: 1 | K155: 72.9
A156: 2016-11-16 | B156: 2016 | C156: 76.15 | D156: 76.2 | E156: 74.05 | F156: 74.55 | G156: 50457 | H156: 2016-11-16 | I156: 74.55 | J156: 1 | K156: 74.55
A157: 2016-11-15 | B157: 2016 | C157: 78 | D157: 78 | E157: 74.75 | F157: 75 | G157: 145549 | H157: 2016-11-15 | I157: 75 | J157: 1 | K157: 75
A158: 2016-11-11 | B158: 2016 | C158: 79.4 | D158: 80.4 | E158: 78 | F158: 78.75 | G158: 78513 | H158: 2016-11-11 | I158: 78.75 | J158: 1 | K158: 78.75
A159: 2016-11-10 | B159: 2016 | C159: 81.95 | D159: 84 | E159: 79.3 | F159: 80.65 | G159: 155612 | H159: 2016-11-10 | I159: 80.65 | J159: 1 | K159: 80.65
A160: 2016-11-09 | B160: 2016 | C160: 77.25 | D160: 81.5 | E160: 71 | F160: 80.7 | G160: 268953 | H160: 2016-11-09 | I160: 80.7 | J160: 1 | K160: 80.7
A161: 2016-11-08 | B161: 2016 | C161: 83.3 | D161: 83.4 | E161: 81.15 | F161: 81.75 | G161: 185974 | H161: 2016-11-08 | I161: 81.75 | J161: 1 | K161: 81.75
A162: 2016-11-07 | B162: 2016 | C162: 80.75 | D162: 82.4 | E162: 80.6 | F162: 80.9 | G162: 67148 | H162: 2016-11-07 | I162: 80.9 | J162: 1 | K162: 80.9
A163: 2016-11-04 | B163: 2016 | C163: 82.2 | D163: 84.05 | E163: 78.7 | F163: 80 | G163: 239955 | H163: 2016-11-04 | I163: 80 | J163: 1 | K163: 80
A164: 2016-11-03 | B164: 2016 | C164: 84.5 | D164: 86.15 | E164: 81.05 | F164: 81.7 | G164: 498830 | H164: 2016-11-03 | I164: 81.7 | J164: 1 | K164: 81.7
A165: 2016-11-02 | B165: 2016 | C165: 91 | D165: 94.4 | E165: 85.1 | F165: 85.5 | G165: 548119 | H165: 2016-11-02 | I165: 85.5 | J165: 1 | K165: 85.5
A166: 2016-11-01 | B166: 2016 | C166: 92 | D166: 96.5 | E166: 91.2 | F166: 91.55 | G166: 541062 | H166: 2016-11-01 | I166: 91.55 | J166: 1 | K166: 91.55
A167: 2016-10-28 | B167: 2016 | C167: 87.8 | D167: 92.9 | E167: 87.25 | F167: 89.8 | G167: 224323 | H167: 2016-10-28 | I167: 89.8 | J167: 1 | K167: 89.8
A168: 2016-10-27 | B168: 2016 | C168: 87.5 | D168: 89 | E168: 86.55 | F168: 88 | G168: 47508 | H168: 2016-10-27 | I168: 88 | J168: 1 | K168: 88
A169: 2016-10-26 | B169: 2016 | C169: 91 | D169: 91.2 | E169: 87.4 | F169: 88.45 | G169: 187407 | H169: 2016-10-26 | I169: 88.45 | J169: 1 | K169: 88.45
A170: 2016-10-25 | B170: 2016 | C170: 91.65 | D170: 93.2 | E170: 90.2 | F170: 90.7 | G170: 72926 | H170: 2016-10-25 | I170: 90.7 | J170: 1 | K170: 90.7
A171: 2016-10-24 | B171: 2016 | C171: 92.5 | D171: 94 | E171: 91.15 | F171: 91.2 | G171: 68442 | H171: 2016-10-24 | I171: 91.2 | J171: 1 | K171: 91.2
A172: 2016-10-21 | B172: 2016 | C172: 93 | D172: 94 | E172: 91.5 | F172: 92.8 | G172: 75405 | H172: 2016-10-21 | I172: 92.8 | J172: 1 | K172: 92.8
A173: 2016-10-20 | B173: 2016 | C173: 92 | D173: 94.6 | E173: 90.2 | F173: 93.8 | G173: 373891 | H173: 2016-10-20 | I173: 93.8 | J173: 1 | K173: 93.8
A174: 2016-10-19 | B174: 2016 | C174: 88.5 | D174: 92.65 | E174: 88.5 | F174: 90 | G174: 177949 | H174: 2016-10-19 | I174: 90 | J174: 1 | K174: 90
A175: 2016-10-18 | B175: 2016 | C175: 94 | D175: 94 | E175: 89 | F175: 89.4 | G175: 248127 | H175: 2016-10-18 | I175: 89.4 | J175: 1 | K175: 89.4
A176: 2016-10-17 | B176: 2016 | C176: 91.9 | D176: 95.8 | E176: 90.2 | F176: 91.5 | G176: 558988 | H176: 2016-10-17 | I176: 91.5 | J176: 1 | K176: 91.5
A177: 2016-10-14 | B177: 2016 | C177: 86 | D177: 91.5 | E177: 85.35 | F177: 91.35 | G177: 328943 | H177: 2016-10-14 | I177: 91.35 | J177: 1 | K177: 91.35
A178: 2016-10-13 | B178: 2016 | C178: 86.45 | D178: 86.45 | E178: 83.75 | F178: 86 | G178: 88222 | H178: 2016-10-13 | I178: 86 | J178: 1 | K178: 86
A179: 2016-10-10 | B179: 2016 | C179: 85 | D179: 88.85 | E179: 85 | F179: 86.8 | G179: 106536 | H179: 2016-10-10 | I179: 86.8 | J179: 1 | K179: 86.8
A180: 2016-10-07 | B180: 2016 | C180: 86 | D180: 86.25 | E180: 84.35 | F180: 84.4 | G180: 171489 | H180: 2016-10-07 | I180: 84.4 | J180: 1 | K180: 84.4
A181: 2016-10-06 | B181: 2016 | C181: 87.9 | D181: 89.05 | E181: 85.4 | F181: 85.55 | G181: 129486 | H181: 2016-10-06 | I181: 85.55 | J181: 1 | K181: 85.55
A182: 2016-10-05 | B182: 2016 | C182: 84.45 | D182: 89.9 | E182: 84.45 | F182: 87.15 | G182: 372116 | H182: 2016-10-05 | I182: 87.15 | J182: 1 | K182: 87.15
A183: 2016-10-04 | B183: 2016 | C183: 84.4 | D183: 85.6 | E183: 83.4 | F183: 84.7 | G183: 65142 | H183: 2016-10-04 | I183: 84.7 | J183: 1 | K183: 84.7
A184: 2016-10-03 | B184: 2016 | C184: 84 | D184: 85.4 | E184: 83 | F184: 84.4 | G184: 52379 | H184: 2016-10-03 | I184: 84.4 | J184: 1 | K184: 84.4
A185: 2016-09-30 | B185: 2016 | C185: 78.6 | D185: 84 | E185: 78.6 | F185: 83.7 | G185: 113238 | H185: 2016-09-30 | I185: 83.7 | J185: 1 | K185: 83.7
A186: 2016-09-29 | B186: 2016 | C186: 82.5 | D186: 83.2 | E186: 78.3 | F186: 79.9 | G186: 175646 | H186: 2016-09-29 | I186: 79.9 | J186: 1 | K186: 79.9
A187: 2016-09-28 | B187: 2016 | C187: 81.9 | D187: 82.8 | E187: 81.9 | F187: 82 | G187: 74997 | H187: 2016-09-28 | I187: 82 | J187: 1 | K187: 82
A188: 2016-09-27 | B188: 2016 | C188: 82 | D188: 82.65 | E188: 81.65 | F188: 82.1 | G188: 51807 | H188: 2016-09-27 | I188: 82.1 | J188: 1 | K188: 82.1
A189: 2016-09-26 | B189: 2016 | C189: 82.75 | D189: 82.75 | E189: 81.8 | F189: 81.8 | G189: 47829 | H189: 2016-09-26 | I189: 81.8 | J189: 1 | K189: 81.8
A190: 2016-09-23 | B190: 2016 | C190: 83 | D190: 83.5 | E190: 82.1 | F190: 82.1 | G190: 50316 | H190: 2016-09-23 | I190: 82.1 | J190: 1 | K190: 82.1
A191: 2016-09-22 | B191: 2016 | C191: 83 | D191: 84.4 | E191: 82.6 | F191: 83 | G191: 99193 | H191: 2016-09-22 | I191: 83 | J191: 1 | K191: 83
A192: 2016-09-21 | B192: 2016 | C192: 81.8 | D192: 83 | E192: 81.75 | F192: 82.3 | G192: 33802 | H192: 2016-09-21 | I192: 82.3 | J192: 1 | K192: 82.3
A193: 2016-09-20 | B193: 2016 | C193: 82.4 | D193: 83.1 | E193: 81.85 | F193: 82.05 | G193: 121830 | H193: 2016-09-20 | I193: 82.05 | J193: 1 | K193: 82.05
A194: 2016-09-19 | B194: 2016 | C194: 84.6 | D194: 84.6 | E194: 82 | F194: 82.05 | G194: 65527 | H194: 2016-09-19 | I194: 82.05 | J194: 1 | K194: 82.05
A195: 2016-09-16 | B195: =YEAR(A195) -> 2016 | C195: 84.05 | D195: 85.6 | E195: 82 | F195: 82.9 | G195: 105292 | H195: =A195 -> 2016-09-16 | I195: =F195 -> 82.9 | J195: 1 | K195: =I195/J195 -> 82.9
A196: 2016-09-15 | B196: 2016 | C196: 82.5 | D196: 86.3 | E196: 82.1 | F196: 83.6 | G196: 187733 | H196: 2016-09-15 | I196: 83.6 | J196: =IF(ROUND(I196/I195,0)>3,ROUND(I196/I195,0),1) -> 1 | K196: 83.6
A197: 2016-09-14 | B197: 2016 | C197: 83.4 | D197: 83.4 | E197: 81.25 | F197: 82.5 | G197: 79244 | H197: 2016-09-14 | I197: 82.5 | J197: 1 | K197: 82.5
A198: 2016-09-12 | B198: 2016 | C198: 83.55 | D198: 84.65 | E198: 81.3 | F198: 82.55 | G198: 78078 | H198: 2016-09-12 | I198: 82.55 | J198: 1 | K198: 82.55
A199: 2016-09-09 | B199: 2016 | C199: 86.8 | D199: 87.7 | E199: 84.3 | F199: 84.5 | G199: 108508 | H199: 2016-09-09 | I199: 84.5 | J199: 1 | K199: 84.5
A200: 2016-09-08 | B200: 2016 | C200: 86.55 | D200: 89.45 | E200: 85.85 | F200: 86.7 | G200: 233121 | H200: 2016-09-08 | I200: 86.7 | J200: 1 | K200: 86.7
... 2698 more rows

Sheet Retirements
A3: Last History Year | E3: =Consolidated!E4 -> 2011
A5: Inputs
B6: Gross Plant | E6: =SUMIF(Consolidated!3:3,Retirements!E3,Consolidated!57:57) -> 10721.1
B7: Accumulated Depreciation | E7: =SUMIF(Consolidated!3:3,Retirements!E3,Consolidated!59:59) -> 3162.2
B8: Net Plant | E8: =E6-E7 -> 7558.9
B10: Plant Life | E10: =Consolidated!E106 -> 12
B11: Last Year | E11: =E3+E10 -> 2023
B12: Retirement Growth Rate | E12: 0.1930878255
B13: Base Retirement Pct | E13: 0.02211226243
B15: Last year of Plant Balance | E15: =LOOKUP(E10,20:20,26:26) -> 2.096385288e-10
B16: Last year of Acc Depreciation | E16: =LOOKUP(E10,20:20,35:35) -> 2.76713763e-10
A19: Simulation | F19: =E3+1 -> 2012 | G19: =F19+1 -> 2013 | H19: =G19+1 -> 2014 | I19: 2015 | J19: 2016 | K19: 2017 | L19: 2018 | M19: 2019 | N19: 2020 | O19: 2021 | P19: 2022 | Q19: 2023 | R19: 2024 | S19: 2025 | T19: 2026 | U19: 2027 | V19: 2028 | W19: 2029 | X19: 2030 | Y19: 2031 | Z19: 2032 | AA19: 2033 | AB19: 2034 | AC19: 2035
B20: Year | F20: 1 | G20: 2 | H20: 3 | I20: 4 | J20: 5 | K20: 6 | L20: 7 | M20: 8 | N20: 9 | O20: 10 | P20: 11 | Q20: 12 | R20: 13 | S20: 14 | T20: 15 | U20: 16 | V20: 17 | W20: 18 | X20: 19 | Y20: 20 | Z20: 21 | AA20: 22 | AB20: 23 | AC20: 24
B21: Swtch | F21: =F20<=$E$10 -> TRUE | G21: =G20<=$E$10 -> TRUE | H21: TRUE | I21: TRUE | J21: TRUE | K21: TRUE | L21: TRUE | M21: TRUE | N21: TRUE | O21: TRUE | P21: TRUE | Q21: TRUE | R21: FALSE | S21: FALSE | T21: FALSE | U21: FALSE | V21: FALSE | W21: FALSE | X21: FALSE | Y21: FALSE | Z21: FALSE | AA21: FALSE | AB21: FALSE | AC21: FALSE
B23: Plant Balance
C24: Opening Balance | F24: =E26 -> 10721.1 | G24: =F26 -> 10438.25732 | H24: 10100.80117 | I24: 9698.186335 | J24: 9217.831481 | K24: 8644.725953 | L24: 7960.960725 | M24: 7145.168757 | N24: 6171.857291 | O24: 5010.61123 | P24: 3625.142693 | Q24: 1972.157048 | R24: 2.096385288e-10 | S24: 2.096385288e-10 | T24: 2.096385288e-10 | U24: 2.096385288e-10 | V24: 2.096385288e-10 | W24: 2.096385288e-10 | X24: 2.096385288e-10 | Y24: 2.096385288e-10 | Z24: 2.096385288e-10 | AA24: 2.096385288e-10 | AB24: 2.096385288e-10 | AC24: 2.096385288e-10
C25: Less: Retirements | E25: =E13*E6 -> 237.0677767 | F25: =E25*(1+$E$12)*F21 -> 282.8426782 | G25: =F25*(1+$E$12)*G21 -> 337.4561559 | H25: 402.6148313 | I25: 480.3548536 | J25: 573.1055277 | K25: 683.7652278 | L25: 815.7919688 | M25: 973.3114661 | N25: 1161.246061 | O25: 1385.468537 | P25: 1652.985644 | Q25: 1972.157048 | R25: 0 | S25: 0 | T25: 0 | U25: 0 | V25: 0 | W25: 0 | X25: 0 | Y25: 0 | Z25: 0 | AA25: 0 | AB25: 0 | AC25: 0
C26: Closing Balance | E26: =E6 -> 10721.1 | F26: =F24-F25 -> 10438.25732 | G26: =G24-G25 -> 10100.80117 | H26: 9698.186335 | I26: 9217.831481 | J26: 8644.725953 | K26: 7960.960725 | L26: 7145.168757 | M26: 6171.857291 | N26: 5010.61123 | O26: 3625.142693 | P26: 1972.157048 | Q26: 2.096385288e-10 | R26: 2.096385288e-10 | S26: 2.096385288e-10 | T26: 2.096385288e-10 | U26: 2.096385288e-10 | V26: 2.096385288e-10 | W26: 2.096385288e-10 | X26: 2.096385288e-10 | Y26: 2.096385288e-10 | Z26: 2.096385288e-10 | AA26: 2.096385288e-10 | AB26: 2.096385288e-10 | AC26: 2.096385288e-10
B28: Depreciation Rate | E28: =1/$E$10 -> 0.08333333333 | F28: =$E$28 -> 0.08333333333 | G28: =$E$28 -> 0.08333333333 | H28: 0.08333333333 | I28: 0.08333333333 | J28: 0.08333333333 | K28: 0.08333333333 | L28: 0.08333333333 | M28: 0.08333333333 | N28: 0.08333333333 | O28: 0.08333333333 | P28: 0.08333333333 | Q28: 0.08333333333 | R28: 0.08333333333 | S28: 0.08333333333 | T28: 0.08333333333 | U28: 0.08333333333 | V28: 0.08333333333 | W28: 0.08333333333 | X28: 0.08333333333 | Y28: 0.08333333333 | Z28: 0.08333333333 | AA28: 0.08333333333 | AB28: 0.08333333333 | AC28: 0.08333333333
B29: Depreciation Expense | F29: =F28*F24*F21 -> 893.425 | G29: =G28*G24*G21 -> 869.8547768 | H29: 841.7334305 | I29: 808.1821945 | J29: 768.1526234 | K29: 720.3938294 | L29: 663.4133938 | M29: 595.4307297 | N29: 514.3214409 | O29: 417.5509358 | P29: 302.0952244 | Q29: 164.3464207 | R29: 0 | S29: 0 | T29: 0 | U29: 0 | V29: 0 | W29: 0 | X29: 0 | Y29: 0 | Z29: 0 | AA29: 0 | AB29: 0 | AC29: 0
B31: Accumulated Depreciation
C32: Opening Balance | F32: =E35 -> 3162.2 | G32: =F35 -> 3772.782322 | H32: 4305.180943 | I32: 4744.299542 | J32: 5072.126883 | K32: 5267.173979 | L32: 5303.80258 | M32: 5151.424005 | N32: 4773.543269 | O32: 4126.618649 | P32: 3158.701048 | Q32: 1807.810627 | R32: 2.76713763e-10 | S32: 2.76713763e-10 | T32: 2.76713763e-10 | U32: 2.76713763e-10 | V32: 2.76713763e-10 | W32: 2.76713763e-10 | X32: 2.76713763e-10 | Y32: 2.76713763e-10 | Z32: 2.76713763e-10 | AA32: 2.76713763e-10 | AB32: 2.76713763e-10 | AC32: 2.76713763e-10
C33: Add: Depreciation Expense | F33: =F29 -> 893.425 | G33: =G29 -> 869.8547768 | H33: 841.7334305 | I33: 808.1821945 | J33: 768.1526234 | K33: 720.3938294 | L33: 663.4133938 | M33: 595.4307297 | N33: 514.3214409 | O33: 417.5509358 | P33: 302.0952244 | Q33: 164.3464207 | R33: 0 | S33: 0 | T33: 0 | U33: 0 | V33: 0 | W33: 0 | X33: 0 | Y33: 0 | Z33: 0 | AA33: 0 | AB33: 0 | AC33: 0
C34: Less: Retirements | F34: =F25 -> 282.8426782 | G34: =G25 -> 337.4561559 | H34: 402.6148313 | I34: 480.3548536 | J34: 573.1055277 | K34: 683.7652278 | L34: 815.7919688 | M34: 973.3114661 | N34: 1161.246061 | O34: 1385.468537 | P34: 1652.985644 | Q34: 1972.157048 | R34: 0 | S34: 0 | T34: 0 | U34: 0 | V34: 0 | W34: 0 | X34: 0 | Y34: 0 | Z34: 0 | AA34: 0 | AB34: 0 | AC34: 0
C35: Closing Balance | E35: =E7 -> 3162.2 | F35: =F32+F33-F34 -> 3772.782322 | G35: =G32+G33-G34 -> 4305.180943 | H35: 4744.299542 | I35: 5072.126883 | J35: 5267.173979 | K35: 5303.80258 | L35: 5151.424005 | M35: 4773.543269 | N35: 4126.618649 | O35: 3158.701048 | P35: 1807.810627 | Q35: 2.76713763e-10 | R35: 2.76713763e-10 | S35: 2.76713763e-10 | T35: 2.76713763e-10 | U35: 2.76713763e-10 | V35: 2.76713763e-10 | W35: 2.76713763e-10 | X35: 2.76713763e-10 | Y35: 2.76713763e-10 | Z35: 2.76713763e-10 | AA35: 2.76713763e-10 | AB35: 2.76713763e-10 | AC35: 2.76713763e-10

Sheet capex est
A1: Estimation of capex of HT Media, March fiscal year-ends, 2010-20E (Rs mn)
C3: 2006 | D3: 2007 | E3: 2008 | F3: 2009 | G3: 2010 | H3: 2011 | I3: 2012E | J3: 2013E | K3: 2014E | L3: 2015E | M3: 2016E | N3: 2017E | O3: 2018E | P3: 2019E | Q3: 2020E
A4: HTML
A5: Total number of pages printed (mn) | D5: =('HT Delhi-NCR'!D78+'HT Mumbai'!D78+'HT Others'!D78+'HT Mint'!D78)*10^3 -> 20808 | E5: =('HT Delhi-NCR'!E78+'HT Mumbai'!E78+'HT Others'!E78+'HT Mint'!E78)*10^3 -> 25228.8 | F5: =('HT Delhi-NCR'!F78+'HT Mumbai'!F78+'HT Others'!F78+'HT Mint'!F78)*10^3 -> 23508 | G5: =('HT Delhi-NCR'!G78+'HT Mumbai'!G78+'HT Others'!G78+'HT Mint'!G78)*10^3 -> 22982.4 | H5: =('HT Delhi-NCR'!H78+'HT Mumbai'!H78+'HT Others'!H78+'HT Mint'!H78)*10^3 -> 26982 | I5: =('HT Delhi-NCR'!I78+'HT Mumbai'!I78+'HT Others'!I78+'HT Mint'!I78)*10^3 -> 28472.4 | J5: =('HT Delhi-NCR'!J78+'HT Mumbai'!J78+'HT Others'!J78+'HT Mint'!J78)*10^3 -> 31006.8 | K5: =('HT Delhi-NCR'!K78+'HT Mumbai'!K78+'HT Others'!K78+'HT Mint'!K78)*10^3 -> 33885 | L5: =('HT Delhi-NCR'!L78+'HT Mumbai'!L78+'HT Others'!L78+'HT Mint'!L78)*10^3 -> 31348.8 | M5: =('HT Delhi-NCR'!M78+'HT Mumbai'!M78+'HT Others'!M78+'HT Mint'!M78)*10^3 -> 31384.8 | N5: =('HT Delhi-NCR'!N78+'HT Mumbai'!N78+'HT Others'!N78+'HT Mint'!N78)*10^3 -> 33505.2 | O5: =('HT Delhi-NCR'!O78+'HT Mumbai'!O78+'HT Others'!O78+'HT Mint'!O78)*10^3 -> 36374.4 | P5: =('HT Delhi-NCR'!P78+'HT Mumbai'!P78+'HT Others'!P78+'HT Mint'!P78)*10^3 -> 39033 | Q5: =('HT Delhi-NCR'!Q78+'HT Mumbai'!Q78+'HT Others'!Q78+'HT Mint'!Q78)*10^3 -> 41652
A6: Increase in number of pages | E6: =E5-D5 -> 4420.8 | F6: -1720.8 | G6: -525.6 | H6: 3999.6 | I6: 1490.4 | J6: 2534.4 | K6: 2878.2 | L6: -2536.2 | M6: 36 | N6: 2120.4 | O6: 2869.2 | P6: =P5-O5 -> 2658.6 | Q6: =Q5-P5 -> 2619
A7: New capacity required (copies/day) | E7: =E6*10^6/(363*4)/40 -> 76115.70248 | F7: =F6*10^6/(363*4)/40 -> -29628.09917 | G7: -9049.586777 | H7: 68863.63636 | I7: 25661.15702 | J7: 43636.36364 | K7: 49555.78512 | L7: -43667.35537 | M7: 619.8347107 | N7: 36508.26446 | O7: 49400.82645 | P7: =P6*10^6/(363*4)/40 -> 45774.79339 | Q7: =Q6*10^6/(363*4)/40 -> 45092.97521
A8: Capacity of new machine | E8: 40000 | F8: =E8 -> 40000 | G8: =F8 -> 40000 | H8: 40000 | I8: 40000 | J8: 40000 | K8: 40000 | L8: 40000 | M8: 40000 | N8: =M8 -> 40000 | O8: =N8 -> 40000 | P8: =O8 -> 40000 | Q8: =P8 -> 40000
A9: Number of printing machines required | E9: =ROUND(E7/E8,0) -> 2 | F9: =ROUND(F7/F8,0)+1 -> 0 | G9: =ROUND(G7/G8,0) -> 0 | H9: =ROUND(H7/H8,0)-1 -> 1 | I9: =ROUND(I7/I8,0) -> 1 | J9: 1 | K9: 1 | L9: =ROUND(L7/L8,0)+1 -> 0 | M9: 0 | N9: 1 | O9: 1 | P9: 1 | Q9: 1
A10: Number of printing machines required | G10: 0 | H10: 0 | I10: 0 | J10: 0 | K10: 0 | L10: 0 | M10: 0 | N10: 1 | O10: 1 | P10: 1 | Q10: 1
A11: Cost of new machines (Rs mn) | G11: 250 | H11: =G11 -> 250 | I11: =H11*(1+5%) -> 262.5 | J11: =I11*(1+5%) -> 275.625 | K11: 289.40625 | L11: 303.8765625 | M11: 319.0703906 | N11: 335.0239102 | O11: 351.7751057 | P11: 369.3638609 | Q11: 387.832054
A12: New machine capex (Rs mn) | G12: =G10*G11 -> 0 | H12: =H10*H11 -> 0 | I12: =I10*I11 -> 0 | J12: 0 | K12: 0 | L12: 0 | M12: 0 | N12: 335.0239102 | O12: 351.7751057 | P12: 369.3638609 | Q12: 387.832054
A13: Maintenance capex (Rs mn) | G13: 200 | H13: =G13 -> 200 | I13: =H13*(1+5%) -> 210 | J13: 220.5 | K13: 231.525 | L13: 243.10125 | M13: 255.2563125 | N13: 268.0191281 | O13: 281.4200845 | P13: 295.4910888 | Q13: 310.2656432
A14: Print capex estimate (Rs mn) | G14: =SUM(G12:G13) -> 200 | H14: =SUM(H12:H13) -> 200 | I14: =SUM(I12:I13) -> 210 | J14: 220.5 | K14: 231.525 | L14: 243.10125 | M14: 255.2563125 | N14: 603.0430383 | O14: 633.1951902 | P14: 664.8549497 | Q14: 698.0976972
A16: HMVL
A17: New machine capex (Rs mn) | H17: 200 | I17: 420 | J17: 441 | K17: 463.05 | L17: 243.10125 | M17: 255.2563125 | N17: 268.0191281 | O17: 562.8401691 | P17: 590.9821775 | Q17: 620.5312864
A18: Maintenance capex (Rs mn) | H18: 200 | I18: 200 | J18: 210 | K18: 220.5 | L18: 231.525 | M18: 243.10125 | N18: 255.2563125 | O18: 268.0191281 | P18: 281.4200845 | Q18: 295.4910888
A19: Print capex estimate (Rs mn) | H19: =SUM(H17:H18) -> 400 | I19: 620 | J19: 651 | K19: 683.55 | L19: 474.62625 | M19: 498.3575625 | N19: 523.2754406 | O19: 830.8592972 | P19: 872.402262 | Q19: 916.0223751
A20: HT Media print capex (Rs mn) | H20: =H14+H19 -> 600 | I20: =I14+I19 -> 830 | J20: 871.5 | K20: 915.075 | L20: 717.7275 | M20: 753.613875 | N20: 1126.318479 | O20: 1464.054487 | P20: 1537.257212 | Q20: 1614.120072

Sheet capex
A1: Capital expenditure by HT Media, March fiscal year-ends, 2007-20E
F3: 2002 | K3: 2003 | P3: 2004 | U3: 2005 | Z3: 2006 | AE3: 2007 | AJ3: 2008 | AO3: 2009 | AT3: 2010 | AY3: 2011 | BD3: 2012E | BI3: 2013E | BN3: 2014E | BS3: 2015E | BX3: 2016E | CC3: 2017E | CH3: 2018E | CM3: 2019E | CR3: 2020E
H4: Capex | I4: Add to | M4: Capex | N4: Add to | R4: Capex | S4: Add to | W4: Capex | X4: Add to | AB4: Capex | AC4: Add to | AG4: Capex | AH4: Add to | AL4: Capex | AM4: Add to | AQ4: Capex | AR4: Add to | AV4: Capex | AW4: Add to | BA4: Capex | BB4: Add to | BF4: Capex | BG4: Add to | BK4: Capex | BL4: Add to | BP4: Capex | BQ4: Add to | BU4: Capex | BV4: Add to | BZ4: Capex | CA4: Add to | CE4: Capex | CF4: Add to | CJ4: Capex | CK4: Add to | CO4: Capex | CP4: Add to | CT4: Capex | CU4: Add to
B5: Cost (Rs mn) | D5: Year | F5: Capex | G5: Cap-WIP | H5: comp | I5: Gr block | K5: Capex | L5: Cap-WIP | M5: comp | N5: Gr block | P5: Capex | Q5: Cap-WIP | R5: comp | S5: Gr block | U5: Capex | V5: Cap-WIP | W5: comp | X5: Gr block | Z5: Capex | AA5: Cap-WIP | AB5: comp | AC5: Gr block | AE5: Capex | AF5: Cap-WIP | AG5: comp | AH5: Gr block | AJ5: Capex | AK5: Cap-WIP | AL5: comp | AM5: Gr block | AO5: Capex | AP5: Cap-WIP | AQ5: comp | AR5: Gr block | AT5: Capex | AU5: Cap-WIP | AV5: comp | AW5: Gr block | AY5: Capex | AZ5: Cap-WIP | BA5: comp | BB5: Gr block | BD5: Capex | BE5: Cap-WIP | BF5: comp | BG5: Gr block | BI5: Capex | BJ5: Cap-WIP | BK5: comp | BL5: Gr block | BN5: Capex | BO5: Cap-WIP | BP5: comp | BQ5: Gr block | BS5: Capex | BT5: Cap-WIP | BU5: comp | BV5: Gr block | BX5: Capex | BY5: Cap-WIP | BZ5: comp | CA5: Gr block | CC5: Capex | CD5: Cap-WIP | CE5: comp | CF5: Gr block | CH5: Capex | CI5: Cap-WIP | CJ5: comp | CK5: Gr block | CM5: Capex | CN5: Cap-WIP | CO5: comp | CP5: Gr block | CR5: Capex | CS5: Cap-WIP | CT5: comp | CU5: Gr block
A6: Printing press, Greater NOIDA | B6: =1346.7+803.9+144.21+408.3 -> 2703.11 | P6: 1346.7 | Q6: =P6 -> 1346.7 | W6: 803.91 | X6: =+W6+Q6 -> 2150.61 | AB6: 144.21 | AC6: =AB6 -> 144.21 | AG6: 40.83 | AH6: =AG6 -> 40.83
A7: Printing press, Mumbai | B7: =181.8+279 -> 460.8 | U7: 90.383 | V7: =U7 -> 90.383 | W7: =181.8-V7 -> 91.417 | X7: =W7 -> 91.417 | AB7: =B7-V7-X7 -> 279 | AC7: =AB7+V7 -> 369.383 | AQ7: 530 | AR7: =AQ7 -> 530
A8: Additional printing capacity | F8: 0 | AL8: ='capex est'!E14 -> 0 | AM8: =AL8 -> 0 | AQ8: ='capex est'!F14-AQ7 -> -530 | AR8: =AQ8 -> -530 | AV8: ='capex est'!G14 -> 200 | AW8: =AV8 -> 200 | BA8: ='capex est'!H14 -> 200 | BB8: =BA8 -> 200 | BF8: ='capex est'!I20 -> 830 | BG8: =BF8 -> 830 | BK8: ='capex est'!J20 -> 871.5 | BL8: =BK8 -> 871.5 | BP8: ='capex est'!K20 -> 915.075 | BQ8: =BP8 -> 915.075 | BU8: ='capex est'!L20 -> 717.7275 | BV8: =BU8 -> 717.7275 | BZ8: ='capex est'!M20 -> 753.613875 | CA8: =BZ8 -> 753.613875 | CE8: ='capex est'!N20 -> 1126.318479 | CF8: =CE8 -> 1126.318479 | CJ8: ='capex est'!O20 -> 1464.054487 | CK8: =CJ8 -> 1464.054487 | CO8: ='capex est'!P20 -> 1537.257212 | CP8: =CO8 -> 1537.257212 | CT8: ='capex est'!Q20 -> 1614.120072 | CU8: =CT8 -> 1614.120072
A9: Radio stations, studios | B9: =40*4 -> 160 | AG9: 120 | AH9: =AG9 -> 120 | AL9: 40 | AM9: =AL9 -> 40
A10: Internet | AL10: 0 | AM10: =AL10 -> 0 | AQ10: 500 | AR10: =AQ10 -> 500 | AV10: 400 | AW10: =AV10 -> 400
A11: Others | P11: 72.78 | Q11: =P11 -> 72.78 | W11: 0 | X11: =W11+Q11 -> 72.78 | AA11: 10.516 | AB11: 20 | AC11: =AB11 -> 20 | AF11: =186.464+2.024 -> 188.488 | AG11: 20 | AH11: =AG11+AA11 -> 30.516 | AK11: =589.16-10.403 -> 578.757 | AL11: =20 -> 20 | AM11: =AL11+AF11 -> 208.488 | AP11: 1946.1 | AQ11: 20 | AR11: =AQ11+AK11 -> 598.757 | AU11: 1288.7 | AV11: 20 | AW11: =AV11+AP11 -> 1966.1 | BA11: 20 | BB11: =BA11+AU11 -> 1308.7 | BF11: 20 | BG11: =BF11 -> 20 | BK11: 20 | BL11: =BK11 -> 20 | BP11: 20 | BQ11: =BP11 -> 20 | BU11: 20 | BV11: =BU11 -> 20 | BZ11: 20 | CA11: =BZ11 -> 20 | CE11: 20 | CF11: =CE11 -> 20 | CJ11: 20 | CK11: =CJ11 -> 20 | CO11: 20 | CP11: =CO11 -> 20 | CT11: 20 | CU11: =CT11 -> 20
A12: Total | B12: =+SUM(B6:B11) -> 3323.91 | F12: =SUM(F6:F11) -> 0 | G12: =SUM(G6:G11) -> 0 | H12: =SUM(H6:H11) -> 0 | I12: =SUM(I6:I11) -> 0 | K12: =SUM(K6:K11) -> 0 | L12: =SUM(L6:L11) -> 0 | M12: =SUM(M6:M11) -> 0 | N12: =SUM(N6:N11) -> 0 | P12: =SUM(P6:P11) -> 1419.48 | Q12: =SUM(Q6:Q11) -> 1419.48 | R12: =SUM(R6:R11) -> 0 | S12: =SUM(S6:S11) -> 0 | U12: =SUM(U6:U11) -> 90.383 | V12: =SUM(V6:V11) -> 90.383 | W12: =SUM(W6:W11) -> 895.327 | X12: =SUM(X6:X11) -> 2314.807 | Z12: =SUM(Z6:Z11) -> 0 | AA12: =SUM(AA6:AA11) -> 10.516 | AB12: =SUM(AB6:AB11) -> 443.21 | AC12: =SUM(AC6:AC11) -> 533.593 | AE12: =SUM(AE6:AE11) -> 0 | AF12: =SUM(AF6:AF11) -> 188.488 | AG12: =SUM(AG6:AG11) -> 180.83 | AH12: =SUM(AH6:AH11) -> 191.346 | AJ12: =SUM(AJ6:AJ11) -> 0 | AK12: =SUM(AK6:AK11) -> 578.757 | AL12: =SUM(AL6:AL11) -> 60 | AM12: =SUM(AM6:AM11) -> 248.488 | AO12: =SUM(AO6:AO11) -> 0 | AP12: =SUM(AP6:AP11) -> 1946.1 | AQ12: =SUM(AQ6:AQ11) -> 520 | AR12: =SUM(AR6:AR11) -> 1098.757 | AT12: =SUM(AT6:AT11) -> 0 | AU12: =SUM(AU6:AU11) -> 1288.7 | AV12: =SUM(AV6:AV11) -> 620 | AW12: =SUM(AW6:AW11) -> 2566.1 | AY12: =SUM(AY6:AY11) -> 0 | AZ12: =SUM(AZ6:AZ11) -> 0 | BA12: =SUM(BA6:BA11) -> 220 | BB12: =SUM(BB6:BB11) -> 1508.7 | BD12: =SUM(BD6:BD11) -> 0 | BE12: =SUM(BE6:BE11) -> 0 | BF12: =SUM(BF6:BF11) -> 850 | BG12: =SUM(BG6:BG11) -> 850 | BI12: =SUM(BI6:BI11) -> 0 | BJ12: =SUM(BJ6:BJ11) -> 0 | BK12: =SUM(BK6:BK11) -> 891.5 | BL12: =SUM(BL6:BL11) -> 891.5 | BN12: =SUM(BN6:BN11) -> 0 | BO12: =SUM(BO6:BO11) -> 0 | BP12: =SUM(BP6:BP11) -> 935.075 | BQ12: =SUM(BQ6:BQ11) -> 935.075 | BS12: =SUM(BS6:BS11) -> 0 | BT12: =SUM(BT6:BT11) -> 0 | BU12: =SUM(BU6:BU11) -> 737.7275 | BV12: =SUM(BV6:BV11) -> 737.7275 | BX12: =SUM(BX6:BX11) -> 0 | BY12: =SUM(BY6:BY11) -> 0 | BZ12: =SUM(BZ6:BZ11) -> 773.613875 | CA12: =SUM(CA6:CA11) -> 773.613875 | CC12: =SUM(CC6:CC11) -> 0 | CD12: =SUM(CD6:CD11) -> 0 | CE12: =SUM(CE6:CE11) -> 1146.318479 | CF12: =SUM(CF6:CF11) -> 1146.318479 | CH12: =SUM(CH6:CH11) -> 0 | CI12: =SUM(CI6:CI11) -> 0 | CJ12: =SUM(CJ6:CJ11) -> 1484.054487 | CK12: =SUM(CK6:CK11) -> 1484.054487 | CM12: =SUM(CM6:CM11) -> 0 | CN12: =SUM(CN6:CN11) -> 0 | CO12: =SUM(CO6:CO11) -> 1557.257212 | CP12: =SUM(CP6:CP11) -> 1557.257212 | CR12: =SUM(CR6:CR11) -> 0 | CS12: =SUM(CS6:CS11) -> 0 | CT12: =SUM(CT6:CT11) -> 1634.120072 | CU12: =SUM(CU6:CU11) -> 1634.120072

Sheet interest
A1: Interest calculation for HT Media, March fiscal year-ends, 2007-20E (Rs mn)
D3: 2002 | I3: 2003 | N3: 2004 | S3: 2005 | X3: 2006 | AC3: 2007 | AH3: 2008 | AM3: 2009 | AR3: 2010 | AW3: 2011 | BB3: 2012E | BG3: 2013E | BL3: 2014E | BQ3: 2015E | BV3: 2016E | CA3: 2017E | CF3: 2018E | CK3: 2019E | CP3: 2020E
D4: Op Bal | E4: Repay/(new) | F4: Cl Bal | G4: Interest | I4: Op Bal | J4: Repay/(new) | K4: Cl Bal | L4: Interest | N4: Op Bal | O4: Repay/(new) | P4: Cl Bal | Q4: Interest | S4: Op Bal | T4: Repay/(new) | U4: Cl Bal | V4: Interest | X4: Op Bal | Y4: Repay/(new) | Z4: Cl Bal | AA4: Interest | AC4: Op Bal | AD4: Repay/(new) | AE4: Cl Bal | AF4: Interest | AH4: Op Bal | AI4: Repay/(new) | AJ4: Cl Bal | AK4: Interest | AM4: Op Bal | AN4: Repay/(new) | AO4: Cl Bal | AP4: Interest | AR4: Op Bal | AS4: Repay/(new) | AT4: Cl Bal | AU4: Interest | AW4: Op Bal | AX4: Repay/(new) | AY4: Cl Bal | AZ4: Interest | BB4: Op Bal | BC4: Repay/(new) | BD4: Cl Bal | BE4: Interest | BG4: Op Bal | BH4: Repay/(new) | BI4: Cl Bal | BJ4: Interest | BL4: Op Bal | BM4: Repay/(new) | BN4: Cl Bal | BO4: Interest | BQ4: Op Bal | BR4: Repay/(new) | BS4: Cl Bal | BT4: Interest | BV4: Op Bal | BW4: Repay/(new) | BX4: Cl Bal | BY4: Interest | CA4: Op Bal | CB4: Repay/(new) | CC4: Cl Bal | CD4: Interest | CF4: Op Bal | CG4: Repay/(new) | CH4: Cl Bal | CI4: Interest | CK4: Op Bal | CL4: Repay/(new) | CM4: Cl Bal | CN4: Interest | CP4: Op Bal | CQ4: Repay/(new) | CR4: Cl Bal | CS4: Interest
A5: Secured loans
A6: Debentures
A7: NCD Series-I | B7: 0.105 | D7: 0 | E7: =+D7-F7 -> -250 | F7: 250 | G7: =F7*B7 -> 26.25 | I7: =+F7 -> 250 | J7: =+I7-K7 -> 0 | K7: 250 | L7: =(I7+K7)/2*$B7 -> 26.25 | N7: =+K7 -> 250 | O7: =+N7-P7 -> 250 | P7: 0 | Q7: =(N7+P7)/2*$B7 -> 13.125 | S7: =+P7 -> 0 | T7: 0 | U7: =S7-T7 -> 0 | V7: =(S7+U7)/2*$B7 -> 0 | X7: =+U7 -> 0 | Y7: 0 | Z7: =+X7-Y7 -> 0 | AA7: =(X7+Z7)/2*$B7 -> 0 | AC7: =+Z7 -> 0 | AE7: =+AC7-AD7 -> 0 | AF7: =(AC7+AE7)/2*$B7 -> 0 | AH7: =+AE7 -> 0 | AJ7: =+AH7-AI7 -> 0 | AK7: =(AH7+AJ7)/2*$B7 -> 0 | AM7: =+AJ7 -> 0 | AO7: =+AM7-AN7 -> 0 | AP7: =(AM7+AO7)/2*$B7 -> 0 | AR7: =+AO7 -> 0 | AT7: =+AR7-AS7 -> 0 | AU7: =(AR7+AT7)/2*$B7 -> 0 | AW7: =+AT7 -> 0 | AY7: =+AW7-AX7 -> 0 | AZ7: =(AW7+AY7)/2*$B7 -> 0 | BB7: =+AY7 -> 0 | BD7: =+BB7-BC7 -> 0 | BE7: =(BB7+BD7)/2*$B7 -> 0 | BG7: =+BD7 -> 0 | BI7: =+BG7-BH7 -> 0 | BJ7: =(BG7+BI7)/2*$B7 -> 0 | BL7: =+BI7 -> 0 | BN7: =+BL7-BM7 -> 0 | BO7: =(BL7+BN7)/2*$B7 -> 0 | BQ7: =+BN7 -> 0 | BS7: =+BQ7-BR7 -> 0 | BT7: =(BQ7+BS7)/2*$B7 -> 0 | BV7: =+BS7 -> 0 | BX7: =+BV7-BW7 -> 0 | BY7: =(BV7+BX7)/2*$B7 -> 0 | CA7: =+BX7 -> 0 | CC7: =+CA7-CB7 -> 0 | CD7: =(CA7+CC7)/2*$B7 -> 0 | CF7: =+CC7 -> 0 | CH7: =+CF7-CG7 -> 0 | CI7: =(CF7+CH7)/2*$B7 -> 0 | CK7: =+CH7 -> 0 | CM7: =+CK7-CL7 -> 0 | CN7: =(CK7+CM7)/2*$B7 -> 0 | CP7: =+CM7 -> 0 | CR7: =+CP7-CQ7 -> 0 | CS7: =(CP7+CR7)/2*$B7 -> 0
A8: Total debentures | D8: =SUM(D7) -> 0 | E8: =SUM(E7) -> -250 | F8: =SUM(F7) -> 250 | G8: =SUM(G7) -> 26.25 | I8: =SUM(I7) -> 250 | J8: =SUM(J7) -> 0 | K8: =SUM(K7) -> 250 | L8: =SUM(L7) -> 26.25 | N8: =SUM(N7) -> 250 | O8: =SUM(O7) -> 250 | P8: =SUM(P7) -> 0 | Q8: =SUM(Q7) -> 13.125 | S8: =SUM(S7) -> 0 | T8: =SUM(T7) -> 0 | U8: =SUM(U7) -> 0 | V8: =SUM(V7) -> 0 | X8: =SUM(X7) -> 0 | Y8: =SUM(Y7) -> 0 | Z8: =SUM(Z7) -> 0 | AA8: =SUM(AA7) -> 0 | AC8: =SUM(AC7) -> 0 | AD8: =SUM(AD7) -> 0 | AE8: =SUM(AE7) -> 0 | AF8: =SUM(AF7) -> 0 | AH8: =SUM(AH7) -> 0 | AI8: =SUM(AI7) -> 0 | AJ8: =SUM(AJ7) -> 0 | AK8: =SUM(AK7) -> 0 | AM8: =SUM(AM7) -> 0 | AN8: =SUM(AN7) -> 0 | AO8: =SUM(AO7) -> 0 | AP8: =SUM(AP7) -> 0 | AR8: =SUM(AR7) -> 0 | AS8: =SUM(AS7) -> 0 | AT8: =SUM(AT7) -> 0 | AU8: =SUM(AU7) -> 0 | AW8: =SUM(AW7) -> 0 | AX8: =SUM(AX7) -> 0 | AY8: =SUM(AY7) -> 0 | AZ8: =SUM(AZ7) -> 0 | BB8: =SUM(BB7) -> 0 | BC8: =SUM(BC7) -> 0 | BD8: =SUM(BD7) -> 0 | BE8: =SUM(BE7) -> 0 | BG8: =SUM(BG7) -> 0 | BH8: =SUM(BH7) -> 0 | BI8: =SUM(BI7) -> 0 | BJ8: =SUM(BJ7) -> 0 | BL8: =SUM(BL7) -> 0 | BM8: =SUM(BM7) -> 0 | BN8: =SUM(BN7) -> 0 | BO8: =SUM(BO7) -> 0 | BQ8: =SUM(BQ7) -> 0 | BR8: =SUM(BR7) -> 0 | BS8: =SUM(BS7) -> 0 | BT8: =SUM(BT7) -> 0 | BV8: =SUM(BV7) -> 0 | BW8: =SUM(BW7) -> 0 | BX8: =SUM(BX7) -> 0 | BY8: =SUM(BY7) -> 0 | CA8: =SUM(CA7) -> 0 | CB8: =SUM(CB7) -> 0 | CC8: =SUM(CC7) -> 0 | CD8: =SUM(CD7) -> 0 | CF8: =SUM(CF7) -> 0 | CG8: =SUM(CG7) -> 0 | CH8: =SUM(CH7) -> 0 | CI8: =SUM(CI7) -> 0 | CK8: =SUM(CK7) -> 0 | CL8: =SUM(CL7) -> 0 | CM8: =SUM(CM7) -> 0 | CN8: =SUM(CN7) -> 0 | CP8: =SUM(CP7) -> 0 | CQ8: =SUM(CQ7) -> 0 | CR8: =SUM(CR7) -> 0 | CS8: =SUM(CS7) -> 0
A10: Term loans
A11: Secured loans from banks-1 | B11: 0.09 | D11: 0 | E11: =+D11-F11 -> 0 | F11: 0 | G11: =D11*$B11 -> 0 | I11: =+F11 -> 0 | J11: =+I11-K11 -> 0 | K11: 0 | L11: =(I11+K11)/2*$B11 -> 0 | N11: =+K11 -> 0 | O11: =+N11-P11 -> -1317.556 | P11: =450+867.556 -> 1317.556 | Q11: =(N11+P11)/2*$B11 -> 59.29002 | S11: =+P11 -> 1317.556 | T11: =S11-U11 -> 0 | U11: 1317.556 | V11: =(S11+U11)/2*$B11 -> 118.58004 | X11: =+U11 -> 1317.556 | Y11: =X11-Z11 -> -332.444 | Z11: =750+900 -> 1650 | AA11: =(X11+Z11)/2*$B11 -> 133.54002 | AC11: =+Z11 -> 1650 | AD11: =AC11-AE11 -> 0 | AE11: =750+900 -> 1650 | AF11: =(AC11+AE11)/2*$B11 -> 148.5 | AH11: =+AE11 -> 1650 | AI11: =AH11-AJ11 -> -557.9 | AJ11: 2207.9 | AK11: =(AH11+AJ11)/2*$B11 -> 173.6055 | AM11: =+AJ11 -> 2207.9 | AN11: =AM11-AO11 -> -1498.3 | AO11: 3706.2 | AP11: 311.619 | AR11: =+AO11 -> 3706.2 | AS11: =AR11-AT11 -> 581.2 | AT11: 3125 | AU11: 295.1 | AW11: =+AT11 -> 3125 | AX11: =AW11-AY11 -> 2.5 | AY11: 3122.5 | AZ11: =(AW11+AY11)/2*$B11 -> 281.1375 | BB11: =+AY11 -> 3122.5 | BC11: 0 | BD11: =+BB11-BC11 -> 3122.5 | BE11: =(BB11+BD11)/2*$B11 -> 281.025 | BG11: =+BD11 -> 3122.5 | BH11: 0 | BI11: =+BG11-BH11 -> 3122.5 | BJ11: =(BG11+BI11)/2*$B11 -> 281.025 | BL11: =+BI11 -> 3122.5 | BM11: 0 | BN11: =+BL11-BM11 -> 3122.5 | BO11: =(BL11+BN11)/2*$B11 -> 281.025 | BQ11: =+BN11 -> 3122.5 | BR11: 0 | BS11: =+BQ11-BR11 -> 3122.5 | BT11: =(BQ11+BS11)/2*$B11 -> 281.025 | BV11: =+BS11 -> 3122.5 | BW11: 0 | BX11: =+BV11-BW11 -> 3122.5 | BY11: =(BV11+BX11)/2*$B11 -> 281.025 | CA11: =+BX11 -> 3122.5 | CB11: 0 | CC11: =+CA11-CB11 -> 3122.5 | CD11: =(CA11+CC11)/2*$B11 -> 281.025 | CF11: =+CC11 -> 3122.5 | CG11: 0 | CH11: =+CF11-CG11 -> 3122.5 | CI11: =(CF11+CH11)/2*$B11 -> 281.025 | CK11: =+CH11 -> 3122.5 | CL11: 0 | CM11: =+CK11-CL11 -> 3122.5 | CN11: =(CK11+CM11)/2*$B11 -> 281.025 | CP11: =+CM11 -> 3122.5 | CQ11: 0 | CR11: =+CP11-CQ11 -> 3122.5 | CS11: =(CP11+CR11)/2*$B11 -> 281.025
A12: Secured loans from banks-2 | B12: 0.08 | D12: 0 | E12: 0 | F12: 0 | I12: =+F12 -> 0 | J12: 0 | K12: 0 | L12: =(I12+K12)/2*$B12 -> 0 | N12: =+K12 -> 0 | O12: -343.692 | P12: 343.692 | Q12: =(N12+P12)/2*$B12 -> 13.74768 | S12: =+P12 -> 343.692 | T12: 0 | U12: 344.832 | V12: =(S12+U12)/2*$B12 -> 27.54096 | X12: =+U12 -> 344.832 | Y12: =X12-Z12 -> 344.832 | Z12: 0 | AA12: =(X12+Z12)/2*$B12 -> 13.79328 | AC12: =+Z12 -> 0 | AD12: =+AC12 -> 0 | AE12: =+AC12-AD12 -> 0 | AF12: =(AC12+AE12)/2*$B12 -> 0 | AH12: =+AE12 -> 0 | AK12: =(AH12+AJ12)/2*$B12 -> 0 | AM12: =+AJ12 -> 0 | AP12: =(AM12+AO12)/2*$B12 -> 0 | AR12: =+AO12 -> 0 | AU12: =(AR12+AT12)/2*$B12 -> 0 | AW12: =+AT12 -> 0 | AZ12: 0 | BB12: =+AY12 -> 0 | BE12: 0 | BG12: =+BD12 -> 0 | BJ12: 0 | BL12: =+BI12 -> 0 | BO12: 0 | BQ12: =+BN12 -> 0 | BT12: 0 | BV12: =+BS12 -> 0 | BY12: 0 | CA12: =+BX12 -> 0 | CD12: 0 | CF12: =+CC12 -> 0 | CI12: 0 | CK12: =+CH12 -> 0 | CN12: 0 | CP12: =+CM12 -> 0 | CS12: 0
A13: Financial institutions | B13: 0.075 | D13: 0 | E13: 0 | F13: 0 | G13: =(F13+D13)/2*$B13 -> 0 | I13: 0 | J13: 0 | K13: 0 | L13: 0 | N13: 0 | O13: 0 | P13: 0 | Q13: 0 | S13: 0 | T13: 0 | U13: =+S13-T13 -> 0 | V13: 0 | X13: 0 | Y13: 0 | Z13: =+X13-Y13 -> 0 | AA13: 0 | AC13: 0 | AD13: =+AC13 -> 0 | AE13: 0 | AF13: 0 | AH13: 0 | AI13: =+AH13 -> 0 | AJ13: =+AH13-AI13 -> 0 | AK13: 0 | AM13: =+AJ13 -> 0 | AN13: =+AM13 -> 0 | AO13: =+AM13-AN13 -> 0 | AP13: 0 | AR13: =+AO13 -> 0 | AS13: =+AR13 -> 0 | AT13: =+AR13-AS13 -> 0 | AU13: 0 | AW13: =+AT13 -> 0 | AX13: =+AW13 -> 0 | AY13: =+AW13-AX13 -> 0 | AZ13: 0 | BB13: =+AY13 -> 0 | BC13: =+BB13 -> 0 | BD13: =+BB13-BC13 -> 0 | BE13: 0 | BG13: =+BD13 -> 0 | BH13: =+BG13 -> 0 | BI13: =+BG13-BH13 -> 0 | BJ13: 0 | BL13: =+BI13 -> 0 | BM13: =+BL13 -> 0 | BN13: =+BL13-BM13 -> 0 | BO13: 0 | BQ13: =+BN13 -> 0 | BR13: =+BQ13 -> 0 | BS13: =+BQ13-BR13 -> 0 | BT13: 0 | BV13: =+BS13 -> 0 | BW13: =+BV13 -> 0 | BX13: =+BV13-BW13 -> 0 | BY13: 0 | CA13: =+BX13 -> 0 | CB13: =+CA13 -> 0 | CC13: =+CA13-CB13 -> 0 | CD13: 0 | CF13: =+CC13 -> 0 | CG13: =+CF13 -> 0 | CH13: =+CF13-CG13 -> 0 | CI13: 0 | CK13: =+CH13 -> 0 | CL13: =+CK13 -> 0 | CM13: =+CK13-CL13 -> 0 | CN13: 0 | CP13: =+CM13 -> 0 | CQ13: =+CP13 -> 0 | CR13: =+CP13-CQ13 -> 0 | CS13: 0
A14: FC loan from CBI | B14: 0.075 | D14: 147.097 | E14: 67.575 | F14: 79.522 | I14: 79.522 | J14: 79.522 | K14: 0 | L14: 2.982075 | N14: 0 | O14: 0 | P14: 0 | Q14: 0 | S14: 0 | T14: 0 | U14: =+S14-T14 -> 0 | V14: 0 | X14: 0 | Y14: 0 | Z14: =+X14-Y14 -> 0 | AA14: 0 | AC14: 0 | AD14: 0 | AE14: 0 | AF14: 0 | AH14: =+AE14 -> 0 | AI14: 0 | AJ14: =+AH14-AI14 -> 0 | AK14: =(AH14+AJ14)/2*$B14 -> 0 | AM14: =+AJ14 -> 0 | AN14: 0 | AO14: =+AM14-AN14 -> 0 | AP14: 0 | AR14: =+AO14 -> 0 | AS14: 0 | AT14: =+AR14-AS14 -> 0 | AU14: 0 | AW14: =+AT14 -> 0 | AX14: 0 | AY14: =+AW14-AX14 -> 0 | AZ14: 0 | BB14: =+AY14 -> 0 | BC14: 0 | BD14: =+BB14-BC14 -> 0 | BE14: 0 | BG14: =+BD14 -> 0 | BH14: 0 | BI14: =+BG14-BH14 -> 0 | BJ14: 0 | BL14: =+BI14 -> 0 | BM14: 0 | BN14: =+BL14-BM14 -> 0 | BO14: 0 | BQ14: =+BN14 -> 0 | BR14: 0 | BS14: =+BQ14-BR14 -> 0 | BT14: 0 | BV14: =+BS14 -> 0 | BW14: 0 | BX14: =+BV14-BW14 -> 0 | BY14: 0 | CA14: =+BX14 -> 0 | CB14: 0 | CC14: =+CA14-CB14 -> 0 | CD14: 0 | CF14: =+CC14 -> 0 | CG14: 0 | CH14: =+CF14-CG14 -> 0 | CI14: 0 | CK14: =+CH14 -> 0 | CL14: 0 | CM14: =+CK14-CL14 -> 0 | CN14: 0 | CP14: =+CM14 -> 0 | CQ14: 0 | CR14: =+CP14-CQ14 -> 0 | CS14: 0
A15: INR loan from CBI | B15: 0.075 | E15: -500 | F15: 500 | I15: 500 | J15: 0 | K15: 500 | L15: 37.5 | N15: 500 | O15: 500 | P15: 0 | Q15: 18.75 | S15: 0 | T15: 0 | U15: =+S15-T15 -> 0 | V15: 0 | X15: 0 | Y15: 0 | Z15: =+X15-Y15 -> 0 | AA15: 0 | AC15: 0 | AD15: 0 | AE15: 0 | AF15: 0 | AK15: 0 | AP15: 0 | AU15: 0 | AZ15: 0 | BE15: 0 | BJ15: 0 | BO15: 0 | BT15: 0 | BY15: 0 | CD15: 0 | CI15: 0 | CN15: 0 | CS15: 0
A16: INR loan from Corp bank | B16: 0.075 | E16: -200.22 | F16: 200.22 | I16: 200.22 | J16: 33 | K16: 167.22 | L16: 13.779 | N16: 167.22 | O16: 167.22 | P16: 0 | Q16: 6.27075 | S16: 0 | T16: 0 | U16: =+S16-T16 -> 0 | V16: 0 | X16: 0 | Y16: 0 | Z16: =+X16-Y16 -> 0 | AA16: 0 | AC16: 0 | AD16: 0 | AE16: 0 | AF16: 0 | AK16: 0 | AP16: 0 | AU16: 0 | AZ16: 0 | BE16: 0 | BJ16: 0 | BO16: 0 | BT16: 0 | BY16: 0 | CD16: 0 | CI16: 0 | CN16: 0 | CS16: 0
A17: Others | B17: 0.075 | D17: 19.167 | E17: 3.807 | F17: 15.36 | I17: 15.36 | J17: 15.36 | K17: 0 | L17: 0.576 | N17: 0 | O17: 0 | Q17: 0 | S17: 0 | T17: 0 | U17: =+S17-T17 -> 0 | V17: 0 | X17: 0 | Y17: 0 | Z17: =+X17-Y17 -> 0 | AA17: 0 | AC17: 0 | AD17: 0 | AE17: 0 | AF17: 0 | AH17: 0 | AK17: 0 | AM17: =+AJ17 -> 0 | AP17: 0 | AR17: =+AO17 -> 0 | AU17: 0 | AW17: =+AT17 -> 0 | AZ17: 0 | BB17: =+AY17 -> 0 | BE17: 0 | BG17: =+BD17 -> 0 | BJ17: 0 | BL17: =+BI17 -> 0 | BO17: 0 | BQ17: =+BN17 -> 0 | BT17: 0 | BV17: =+BS17 -> 0 | BY17: 0 | CA17: =+BX17 -> 0 | CD17: 0 | CF17: =+CC17 -> 0 | CI17: 0 | CK17: =+CH17 -> 0 | CN17: 0 | CP17: =+CM17 -> 0 | CS17: 0
A18: Total | D18: =SUM(D11:D17) -> 166.264 | E18: =SUM(E11:E17) -> -628.838 | F18: =SUM(F11:F17) -> 795.102 | G18: =SUM(G11:G17) -> 0 | I18: =SUM(I11:I17) -> 795.102 | J18: =SUM(J11:J17) -> 127.882 | K18: =SUM(K11:K17) -> 667.22 | L18: =SUM(L11:L17) -> 54.837075 | N18: =SUM(N11:N17) -> 667.22 | O18: =SUM(O11:O17) -> -994.028 | P18: =SUM(P11:P17) -> 1661.248 | Q18: =SUM(Q11:Q17) -> 98.05845 | S18: =SUM(S11:S17) -> 1661.248 | T18: =SUM(T11:T17) -> 0 | U18: =SUM(U11:U17) -> 1662.388 | V18: =SUM(V11:V17) -> 146.121 | X18: =SUM(X11:X17) -> 1662.388 | Y18: =SUM(Y11:Y17) -> 12.388 | Z18: =SUM(Z11:Z17) -> 1650 | AA18: =SUM(AA11:AA17) -> 147.3333 | AC18: =SUM(AC11:AC17) -> 1650 | AD18: =SUM(AD11:AD17) -> 0 | AE18: =SUM(AE11:AE17) -> 1650 | AF18: =SUM(AF11:AF17) -> 148.5 | AH18: =SUM(AH11:AH17) -> 1650 | AI18: =SUM(AI11:AI17) -> -557.9 | AJ18: =SUM(AJ11:AJ17) -> 2207.9 | AK18: =SUM(AK11:AK17) -> 173.6055 | AM18: =SUM(AM11:AM17) -> 2207.9 | AN18: =SUM(AN11:AN17) -> -1498.3 | AO18: =SUM(AO11:AO17) -> 3706.2 | AP18: =SUM(AP11:AP17) -> 311.619 | AR18: =SUM(AR11:AR17) -> 3706.2 | AS18: =SUM(AS11:AS17) -> 581.2 | AT18: =SUM(AT11:AT17) -> 3125 | AU18: =SUM(AU11:AU17) -> 295.1 | AW18: =SUM(AW11:AW17) -> 3125 | AX18: =SUM(AX11:AX17) -> 2.5 | AY18: =SUM(AY11:AY17) -> 3122.5 | AZ18: =SUM(AZ11:AZ17) -> 281.1375 | BB18: =SUM(BB11:BB17) -> 3122.5 | BC18: =SUM(BC11:BC17) -> 0 | BD18: =SUM(BD11:BD17) -> 3122.5 | BE18: =SUM(BE11:BE17) -> 281.025 | BG18: =SUM(BG11:BG17) -> 3122.5 | BH18: =SUM(BH11:BH17) -> 0 | BI18: =SUM(BI11:BI17) -> 3122.5 | BJ18: =SUM(BJ11:BJ17) -> 281.025 | BL18: =SUM(BL11:BL17) -> 3122.5 | BM18: =SUM(BM11:BM17) -> 0 | BN18: =SUM(BN11:BN17) -> 3122.5 | BO18: =SUM(BO11:BO17) -> 281.025 | BQ18: =SUM(BQ11:BQ17) -> 3122.5 | BR18: =SUM(BR11:BR17) -> 0 | BS18: =SUM(BS11:BS17) -> 3122.5 | BT18: =SUM(BT11:BT17) -> 281.025 | BV18: =SUM(BV11:BV17) -> 3122.5 | BW18: =SUM(BW11:BW17) -> 0 | BX18: =SUM(BX11:BX17) -> 3122.5 | BY18: =SUM(BY11:BY17) -> 281.025 | CA18: =SUM(CA11:CA17) -> 3122.5 | CB18: =SUM(CB11:CB17) -> 0 | CC18: =SUM(CC11:CC17) -> 3122.5 | CD18: =SUM(CD11:CD17) -> 281.025 | CF18: =SUM(CF11:CF17) -> 3122.5 | CG18: =SUM(CG11:CG17) -> 0 | CH18: =SUM(CH11:CH17) -> 3122.5 | CI18: =SUM(CI11:CI17) -> 281.025 | CK18: =SUM(CK11:CK17) -> 3122.5 | CL18: =SUM(CL11:CL17) -> 0 | CM18: =SUM(CM11:CM17) -> 3122.5 | CN18: =SUM(CN11:CN17) -> 281.025 | CP18: =SUM(CP11:CP17) -> 3122.5 | CQ18: =SUM(CQ11:CQ17) -> 0 | CR18: =SUM(CR11:CR17) -> 3122.5 | CS18: =SUM(CS11:CS17) -> 281.025
A20: Others
A21: Cash credit | B21: 0.07 | D21: 612.691 | E21: =+D21-F21 -> 381.365 | F21: 231.326 | I21: =+F21 -> 231.326 | J21: =+I21-K21 -> 150.32 | K21: 81.006 | L21: =(I21+K21)/2*$B21 -> 10.93162 | N21: =+K21 -> 81.006 | O21: =+N21-P21 -> -123.693 | P21: 204.699 | Q21: =(N21+P21)/2*$B21 -> 9.999675 | S21: =+P21 -> 204.699 | T21: =S21-U21 -> 151.963 | U21: 52.736 | V21: =(S21+U21)/2*$B21 -> 9.010225 | X21: =+U21 -> 52.736 | Y21: =X21-Z21 -> 7.01 | Z21: 45.726 | AA21: =(X21+Z21)/2*$B21 -> 3.44617 | AC21: =+Z21 -> 45.726 | AD21: =AC21-AE21 -> 45.726 | AE21: 0 | AF21: =(AC21+AE21)/2*$B21 -> 1.60041 | AH21: =+AE21 -> 0 | AI21: =AH21 -> 0 | AJ21: =+AH21-AI21 -> 0 | AK21: 7.1 | AM21: =+AJ21 -> 0 | AN21: =AM21 -> 0 | AO21: =+AM21-AN21 -> 0 | AP21: =(AM21+AO21)/2*$B21 -> 0 | AR21: =+AO21 -> 0 | AS21: 0 | AT21: =+AR21-AS21 -> 0 | AU21: =(AR21+AT21)/2*$B21 -> 0 | AW21: =+AT21 -> 0 | AX21: 0 | AY21: =+AW21-AX21 -> 0 | AZ21: =(AW21+AY21)/2*$B21 -> 0 | BB21: =+AY21 -> 0 | BC21: 0 | BD21: =+BB21-BC21 -> 0 | BE21: =(BB21+BD21)/2*$B21 -> 0 | BG21: =+BD21 -> 0 | BH21: 0 | BI21: =+BG21-BH21 -> 0 | BJ21: =(BG21+BI21)/2*$B21 -> 0 | BL21: =+BI21 -> 0 | BM21: 0 | BN21: =+BL21-BM21 -> 0 | BO21: =(BL21+BN21)/2*$B21 -> 0 | BQ21: =+BN21 -> 0 | BR21: 0 | BS21: =+BQ21-BR21 -> 0 | BT21: =(BQ21+BS21)/2*$B21 -> 0 | BV21: =+BS21 -> 0 | BW21: 0 | BX21: =+BV21-BW21 -> 0 | BY21: =(BV21+BX21)/2*$B21 -> 0 | CA21: =+BX21 -> 0 | CB21: 0 | CC21: =+CA21-CB21 -> 0 | CD21: =(CA21+CC21)/2*$B21 -> 0 | CF21: =+CC21 -> 0 | CG21: 0 | CH21: =+CF21-CG21 -> 0 | CI21: =(CF21+CH21)/2*$B21 -> 0 | CK21: =+CH21 -> 0 | CL21: 0 | CM21: =+CK21-CL21 -> 0 | CN21: =(CK21+CM21)/2*$B21 -> 0 | CP21: =+CM21 -> 0 | CQ21: 0 | CR21: =+CP21-CQ21 -> 0 | CS21: =(CP21+CR21)/2*$B21 -> 0
A22: Interest accrued and due | B22: 0.07 | D22: 0 | E22: =+D22-F22 -> -21.162 | F22: 21.162 | I22: =+F22 -> 21.162 | J22: =+I22-K22 -> 8.208 | K22: 12.954 | L22: =(I22+K22)/2*$B22 -> 1.19406 | N22: =+K22 -> 12.954 | O22: =+N22-P22 -> 3.493 | P22: 9.461 | Q22: =(N22+P22)/2*$B22 -> 0.784525 | S22: =+P22 -> 9.461 | T22: =S22-U22 -> 8.58 | U22: 0.881 | V22: =(S22+U22)/2*$B22 -> 0.36197 | X22: =+U22 -> 0.881 | Y22: =X22 -> 0.881 | Z22: =+X22-Y22 -> 0 | AA22: =(X22+Z22)/2*$B22 -> 0.030835 | AC22: =+Z22 -> 0 | AD22: =AC22 -> 0 | AE22: =+AC22-AD22 -> 0 | AF22: =(AC22+AE22)/2*$B22 -> 0 | AH22: =+AE22 -> 0 | AI22: 0 | AJ22: =+AH22-AI22 -> 0 | AK22: =(AH22+AJ22)/2*$B22 -> 0 | AM22: =+AJ22 -> 0 | AN22: 0 | AO22: =+AM22-AN22 -> 0 | AP22: =(AM22+AO22)/2*$B22 -> 0 | AR22: =+AO22 -> 0 | AS22: 0 | AT22: =+AR22-AS22 -> 0 | AU22: =(AR22+AT22)/2*$B22 -> 0 | AW22: =+AT22 -> 0 | AX22: 0 | AY22: =+AW22-AX22 -> 0 | AZ22: =(AW22+AY22)/2*$B22 -> 0 | BB22: =+AY22 -> 0 | BC22: 0 | BD22: =+BB22-BC22 -> 0 | BE22: =(BB22+BD22)/2*$B22 -> 0 | BG22: =+BD22 -> 0 | BH22: 0 | BI22: =+BG22-BH22 -> 0 | BJ22: =(BG22+BI22)/2*$B22 -> 0 | BL22: =+BI22 -> 0 | BM22: 0 | BN22: =+BL22-BM22 -> 0 | BO22: =(BL22+BN22)/2*$B22 -> 0 | BQ22: =+BN22 -> 0 | BR22: 0 | BS22: =+BQ22-BR22 -> 0 | BT22: =(BQ22+BS22)/2*$B22 -> 0 | BV22: =+BS22 -> 0 | BW22: 0 | BX22: =+BV22-BW22 -> 0 | BY22: =(BV22+BX22)/2*$B22 -> 0 | CA22: =+BX22 -> 0 | CB22: 0 | CC22: =+CA22-CB22 -> 0 | CD22: =(CA22+CC22)/2*$B22 -> 0 | CF22: =+CC22 -> 0 | CG22: 0 | CH22: =+CF22-CG22 -> 0 | CI22: =(CF22+CH22)/2*$B22 -> 0 | CK22: =+CH22 -> 0 | CL22: 0 | CM22: =+CK22-CL22 -> 0 | CN22: =(CK22+CM22)/2*$B22 -> 0 | CP22: =+CM22 -> 0 | CQ22: 0 | CR22: =+CP22-CQ22 -> 0 | CS22: =(CP22+CR22)/2*$B22 -> 0
A23: Total | D23: =SUM(D21:D22) -> 612.691 | E23: =SUM(E21:E22) -> 360.203 | F23: =SUM(F21:F22) -> 252.488 | G23: =SUM(G21:G22) -> 0 | I23: =SUM(I21:I22) -> 252.488 | J23: =SUM(J21:J22) -> 158.528 | K23: =SUM(K21:K22) -> 93.96 | L23: =SUM(L21:L22) -> 12.12568 | N23: =SUM(N21:N22) -> 93.96 | O23: =SUM(O21:O22) -> -120.2 | P23: =SUM(P21:P22) -> 214.16 | Q23: =SUM(Q21:Q22) -> 10.7842 | S23: =SUM(S21:S22) -> 214.16 | T23: =SUM(T21:T22) -> 160.543 | U23: =SUM(U21:U22) -> 53.617 | V23: =SUM(V21:V22) -> 9.372195 | X23: =SUM(X21:X22) -> 53.617 | Y23: =SUM(Y21:Y22) -> 7.891 | Z23: =SUM(Z21:Z22) -> 45.726 | AA23: =SUM(AA21:AA22) -> 3.477005 | AC23: =SUM(AC21:AC22) -> 45.726 | AD23: =SUM(AD21:AD22) -> 45.726 | AE23: =SUM(AE21:AE22) -> 0 | AF23: =SUM(AF21:AF22) -> 1.60041 | AH23: =SUM(AH21:AH22) -> 0 | AI23: =SUM(AI21:AI22) -> 0 | AJ23: =SUM(AJ21:AJ22) -> 0 | AK23: =SUM(AK21:AK22) -> 7.1 | AM23: =SUM(AM21:AM22) -> 0 | AN23: =SUM(AN21:AN22) -> 0 | AO23: =SUM(AO21:AO22) -> 0 | AP23: =SUM(AP21:AP22) -> 0 | AR23: =SUM(AR21:AR22) -> 0 | AS23: =SUM(AS21:AS22) -> 0 | AT23: =SUM(AT21:AT22) -> 0 | AU23: =SUM(AU21:AU22) -> 0 | AW23: =SUM(AW21:AW22) -> 0 | AX23: =SUM(AX21:AX22) -> 0 | AY23: =SUM(AY21:AY22) -> 0 | AZ23: =SUM(AZ21:AZ22) -> 0 | BB23: =SUM(BB21:BB22) -> 0 | BC23: =SUM(BC21:BC22) -> 0 | BD23: =SUM(BD21:BD22) -> 0 | BE23: =SUM(BE21:BE22) -> 0 | BG23: =SUM(BG21:BG22) -> 0 | BH23: =SUM(BH21:BH22) -> 0 | BI23: =SUM(BI21:BI22) -> 0 | BJ23: =SUM(BJ21:BJ22) -> 0 | BL23: =SUM(BL21:BL22) -> 0 | BM23: =SUM(BM21:BM22) -> 0 | BN23: =SUM(BN21:BN22) -> 0 | BO23: =SUM(BO21:BO22) -> 0 | BQ23: =SUM(BQ21:BQ22) -> 0 | BR23: =SUM(BR21:BR22) -> 0 | BS23: =SUM(BS21:BS22) -> 0 | BT23: =SUM(BT21:BT22) -> 0 | BV23: =SUM(BV21:BV22) -> 0 | BW23: =SUM(BW21:BW22) -> 0 | BX23: =SUM(BX21:BX22) -> 0 | BY23: =SUM(BY21:BY22) -> 0 | CA23: =SUM(CA21:CA22) -> 0 | CB23: =SUM(CB21:CB22) -> 0 | CC23: =SUM(CC21:CC22) -> 0 | CD23: =SUM(CD21:CD22) -> 0 | CF23: =SUM(CF21:CF22) -> 0 | CG23: =SUM(CG21:CG22) -> 0 | CH23: =SUM(CH21:CH22) -> 0 | CI23: =SUM(CI21:CI22) -> 0 | CK23: =SUM(CK21:CK22) -> 0 | CL23: =SUM(CL21:CL22) -> 0 | CM23: =SUM(CM21:CM22) -> 0 | CN23: =SUM(CN21:CN22) -> 0 | CP23: =SUM(CP21:CP22) -> 0 | CQ23: =SUM(CQ21:CQ22) -> 0 | CR23: =SUM(CR21:CR22) -> 0 | CS23: =SUM(CS21:CS22) -> 0
A25: Unsecured Loans
A26: Commercial paper | B26: 0.07 | D26: 50 | E26: =+D26-F26 -> 50 | F26: 0 | G26: =(F26+D26)/2*$B26 -> 1.75 | I26: =+F26 -> 0 | J26: =+I26-K26 -> 0 | K26: 0 | L26: =(I26+K26)/2*$B26 -> 0 | N26: =+K26 -> 0 | O26: =+N26-P26 -> 0 | P26: 0 | Q26: =(N26+P26)/2*$B26 -> 0 | S26: =+P26 -> 0 | T26: =S26-U26 -> 0 | U26: 0 | V26: =(S26+U26)/2*$B26 -> 0 | X26: =+U26 -> 0 | Y26: 0 | Z26: =+X26-Y26 -> 0 | AA26: =(X26+Z26)/2*$B26 -> 0 | AC26: =+Z26 -> 0 | AD26: 0 | AE26: =+AC26-AD26 -> 0 | AF26: =(AC26+AE26)/2*$B26 -> 0 | AH26: =+AE26 -> 0 | AI26: 0 | AJ26: =+AH26-AI26 -> 0 | AK26: =(AH26+AJ26)/2*$B26 -> 0 | AM26: =+AJ26 -> 0 | AN26: 0 | AO26: =+AM26-AN26 -> 0 | AP26: =(AM26+AO26)/2*$B26 -> 0 | AR26: =+AO26 -> 0 | AS26: 0 | AT26: =+AR26-AS26 -> 0 | AU26: =(AR26+AT26)/2*$B26 -> 0 | AW26: =+AT26 -> 0 | AX26: 0 | AY26: =+AW26-AX26 -> 0 | AZ26: =(AW26+AY26)/2*$B26 -> 0 | BB26: =+AY26 -> 0 | BC26: 0 | BD26: =+BB26-BC26 -> 0 | BE26: =(BB26+BD26)/2*$B26 -> 0 | BG26: =+BD26 -> 0 | BH26: 0 | BI26: =+BG26-BH26 -> 0 | BJ26: =(BG26+BI26)/2*$B26 -> 0 | BL26: =+BI26 -> 0 | BM26: 0 | BN26: =+BL26-BM26 -> 0 | BO26: =(BL26+BN26)/2*$B26 -> 0 | BQ26: =+BN26 -> 0 | BR26: 0 | BS26: =+BQ26-BR26 -> 0 | BT26: =(BQ26+BS26)/2*$B26 -> 0 | BV26: =+BS26 -> 0 | BW26: 0 | BX26: =+BV26-BW26 -> 0 | BY26: =(BV26+BX26)/2*$B26 -> 0 | CA26: =+BX26 -> 0 | CB26: 0 | CC26: =+CA26-CB26 -> 0 | CD26: =(CA26+CC26)/2*$B26 -> 0 | CF26: =+CC26 -> 0 | CG26: 0 | CH26: =+CF26-CG26 -> 0 | CI26: =(CF26+CH26)/2*$B26 -> 0 | CK26: =+CH26 -> 0 | CL26: 0 | CM26: =+CK26-CL26 -> 0 | CN26: =(CK26+CM26)/2*$B26 -> 0 | CP26: =+CM26 -> 0 | CQ26: 0 | CR26: =+CP26-CQ26 -> 0 | CS26: =(CP26+CR26)/2*$B26 -> 0
A27: Fixed deposits | B27: 0.07 | D27: 138.638 | E27: =+D27-F27 -> -1.563 | F27: 140.201 | I27: =+F27 -> 140.201 | J27: =+I27-K27 -> -22.696 | K27: 162.897 | L27: =(I27+K27)/2*$B27 -> 10.60843 | N27: =+K27 -> 162.897 | O27: =+N27-P27 -> 162.897 | P27: 0 | Q27: =(N27+P27)/2*$B27 -> 5.701395 | S27: =+P27 -> 0 | T27: =S27-U27 -> 0 | U27: 0 | V27: =(S27+U27)/2*$B27 -> 0 | X27: =+U27 -> 0 | Y27: =SUM(Y26:Y26) -> 0 | Z27: =SUM(Z26:Z26) -> 0 | AA27: =(X27+Z27)/2*$B27 -> 0 | AC27: =+Z27 -> 0 | AD27: =AC27-AE27 -> -7.55 | AE27: 7.55 | AF27: =(AC27+AE27)/2*$B27 -> 0.26425 | AH27: =+AE27 -> 7.55 | AI27: =AH27-AJ27 -> -15.22 | AJ27: 22.77 | AK27: =(AH27+AJ27)/2*$B27 -> 1.0612 | AM27: =+AJ27 -> 22.77 | AN27: =SUM(AN26:AN26) -> 0 | AO27: =SUM(AO26:AO26) -> 0 | AP27: =(AM27+AO27)/2*$B27 -> 0.79695 | AR27: =+AO27 -> 0 | AS27: =SUM(AS26:AS26) -> 0 | AT27: =SUM(AT26:AT26) -> 0 | AU27: =(AR27+AT27)/2*$B27 -> 0 | AW27: =+AT27 -> 0 | AX27: =SUM(AX26:AX26) -> 0 | AY27: =SUM(AY26:AY26) -> 0 | AZ27: =(AW27+AY27)/2*$B27 -> 0 | BB27: =+AY27 -> 0 | BC27: =SUM(BC26:BC26) -> 0 | BD27: =SUM(BD26:BD26) -> 0 | BE27: =(BB27+BD27)/2*$B27 -> 0 | BG27: =+BD27 -> 0 | BH27: =SUM(BH26:BH26) -> 0 | BI27: =SUM(BI26:BI26) -> 0 | BJ27: =(BG27+BI27)/2*$B27 -> 0 | BL27: =+BI27 -> 0 | BM27: =SUM(BM26:BM26) -> 0 | BN27: =SUM(BN26:BN26) -> 0 | BO27: =(BL27+BN27)/2*$B27 -> 0 | BQ27: =+BN27 -> 0 | BR27: =SUM(BR26:BR26) -> 0 | BS27: =SUM(BS26:BS26) -> 0 | BT27: =(BQ27+BS27)/2*$B27 -> 0 | BV27: =+BS27 -> 0 | BW27: =SUM(BW26:BW26) -> 0 | BX27: =SUM(BX26:BX26) -> 0 | BY27: =(BV27+BX27)/2*$B27 -> 0 | CA27: =+BX27 -> 0 | CB27: =SUM(CB26:CB26) -> 0 | CC27: =SUM(CC26:CC26) -> 0 | CD27: =(CA27+CC27)/2*$B27 -> 0 | CF27: =+CC27 -> 0 | CG27: =SUM(CG26:CG26) -> 0 | CH27: =SUM(CH26:CH26) -> 0 | CI27: =(CF27+CH27)/2*$B27 -> 0 | CK27: =+CH27 -> 0 | CL27: =SUM(CL26:CL26) -> 0 | CM27: =SUM(CM26:CM26) -> 0 | CN27: =(CK27+CM27)/2*$B27 -> 0 | CP27: =+CM27 -> 0 | CQ27: =SUM(CQ26:CQ26) -> 0 | CR27: =SUM(CR26:CR26) -> 0 | CS27: =(CP27+CR27)/2*$B27 -> 0
A28: Interest accrued and due | B28: 0.07 | D28: 0.014 | E28: =+D28-F28 -> 0.014 | F28: 0 | J28: =+I28-K28 -> 0 | L28: =(I28+K28)/2*$B28 -> 0 | O28: =+N28-P28 -> 0 | Q28: =(N28+P28)/2*$B28 -> 0 | S28: =+P28 -> 0 | T28: =S28-U28 -> 0 | U28: 0 | V28: =(S28+U28)/2*$B28 -> 0 | X28: =+U28 -> 0 | Y28: =SUM(Y27:Y27) -> 0 | Z28: =SUM(Z27:Z27) -> 0 | AA28: =(X28+Z28)/2*$B28 -> 0 | AC28: =+Z28 -> 0 | AD28: 0 | AE28: 0 | AF28: =(AC28+AE28)/2*$B28 -> 0 | AH28: =+AE28 -> 0 | AI28: 0 | AJ28: =+AH28-AI28 -> 0 | AK28: =(AH28+AJ28)/2*$B28 -> 0 | AM28: =+AJ28 -> 0 | AN28: =SUM(AN27:AN27) -> 0 | AO28: =SUM(AO27:AO27) -> 0 | AP28: =(AM28+AO28)/2*$B28 -> 0 | AR28: =+AO28 -> 0 | AS28: =SUM(AS27:AS27) -> 0 | AT28: =SUM(AT27:AT27) -> 0 | AU28: =(AR28+AT28)/2*$B28 -> 0 | AW28: =+AT28 -> 0 | AX28: =SUM(AX27:AX27) -> 0 | AY28: =SUM(AY27:AY27) -> 0 | AZ28: =(AW28+AY28)/2*$B28 -> 0 | BB28: =+AY28 -> 0 | BC28: =SUM(BC27:BC27) -> 0 | BD28: =SUM(BD27:BD27) -> 0 | BE28: =(BB28+BD28)/2*$B28 -> 0 | BG28: =+BD28 -> 0 | BH28: =SUM(BH27:BH27) -> 0 | BI28: =SUM(BI27:BI27) -> 0 | BJ28: =(BG28+BI28)/2*$B28 -> 0 | BL28: =+BI28 -> 0 | BM28: =SUM(BM27:BM27) -> 0 | BN28: =SUM(BN27:BN27) -> 0 | BO28: =(BL28+BN28)/2*$B28 -> 0 | BQ28: =+BN28 -> 0 | BR28: =SUM(BR27:BR27) -> 0 | BS28: =SUM(BS27:BS27) -> 0 | BT28: =(BQ28+BS28)/2*$B28 -> 0 | BV28: =+BS28 -> 0 | BW28: =SUM(BW27:BW27) -> 0 | BX28: =SUM(BX27:BX27) -> 0 | BY28: =(BV28+BX28)/2*$B28 -> 0 | CA28: =+BX28 -> 0 | CB28: =SUM(CB27:CB27) -> 0 | CC28: =SUM(CC27:CC27) -> 0 | CD28: =(CA28+CC28)/2*$B28 -> 0 | CF28: =+CC28 -> 0 | CG28: =SUM(CG27:CG27) -> 0 | CH28: =SUM(CH27:CH27) -> 0 | CI28: =(CF28+CH28)/2*$B28 -> 0 | CK28: =+CH28 -> 0 | CL28: =SUM(CL27:CL27) -> 0 | CM28: =SUM(CM27:CM27) -> 0 | CN28: =(CK28+CM28)/2*$B28 -> 0 | CP28: =+CM28 -> 0 | CQ28: =SUM(CQ27:CQ27) -> 0 | CR28: =SUM(CR27:CR27) -> 0 | CS28: =(CP28+CR28)/2*$B28 -> 0
A29: Total | D29: =+SUM(D26:D28) -> 188.652 | E29: =+SUM(E26:E28) -> 48.451 | F29: =+SUM(F26:F28) -> 140.201 | G29: =+SUM(G26:G28) -> 1.75 | I29: =+SUM(I26:I28) -> 140.201 | J29: =+SUM(J26:J28) -> -22.696 | K29: =+SUM(K26:K28) -> 162.897 | L29: =+SUM(L26:L28) -> 10.60843 | N29: =+SUM(N26:N28) -> 162.897 | O29: =+SUM(O26:O28) -> 162.897 | P29: =+SUM(P26:P28) -> 0 | Q29: =+SUM(Q26:Q28) -> 5.701395 | S29: =+SUM(S26:S28) -> 0 | T29: =+SUM(T26:T28) -> 0 | U29: =+SUM(U26:U28) -> 0 | V29: =+SUM(V26:V28) -> 0 | X29: =+SUM(X26:X28) -> 0 | Y29: =+SUM(Y26:Y28) -> 0 | Z29: =+SUM(Z26:Z28) -> 0 | AA29: =+SUM(AA26:AA28) -> 0 | AC29: =+SUM(AC26:AC28) -> 0 | AD29: =+SUM(AD26:AD28) -> -7.55 | AE29: =+SUM(AE26:AE28) -> 7.55 | AF29: =+SUM(AF26:AF28) -> 0.26425 | AH29: =+SUM(AH26:AH28) -> 7.55 | AI29: =+SUM(AI26:AI28) -> -15.22 | AJ29: =+SUM(AJ26:AJ28) -> 22.77 | AK29: =+SUM(AK26:AK28)+30 -> 31.0612 | AM29: =+SUM(AM26:AM28) -> 22.77 | AN29: =+SUM(AN26:AN28) -> 0 | AO29: =+SUM(AO26:AO28) -> 0 | AP29: =+SUM(AP26:AP28) -> 0.79695 | AR29: =+SUM(AR26:AR28) -> 0 | AS29: =+SUM(AS26:AS28) -> 0 | AT29: =+SUM(AT26:AT28) -> 0 | AU29: =+SUM(AU26:AU28) -> 0 | AW29: =+SUM(AW26:AW28) -> 0 | AX29: =+SUM(AX26:AX28) -> 0 | AY29: =+SUM(AY26:AY28) -> 0 | AZ29: =+SUM(AZ26:AZ28) -> 0 | BB29: =+SUM(BB26:BB28) -> 0 | BC29: =+SUM(BC26:BC28) -> 0 | BD29: =+SUM(BD26:BD28) -> 0 | BE29: =+SUM(BE26:BE28) -> 0 | BG29: =+SUM(BG26:BG28) -> 0 | BH29: =+SUM(BH26:BH28) -> 0 | BI29: =+SUM(BI26:BI28) -> 0 | BJ29: =+SUM(BJ26:BJ28) -> 0 | BL29: =+SUM(BL26:BL28) -> 0 | BM29: =+SUM(BM26:BM28) -> 0 | BN29: =+SUM(BN26:BN28) -> 0 | BO29: =+SUM(BO26:BO28) -> 0 | BQ29: =+SUM(BQ26:BQ28) -> 0 | BR29: =+SUM(BR26:BR28) -> 0 | BS29: =+SUM(BS26:BS28) -> 0 | BT29: =+SUM(BT26:BT28) -> 0 | BV29: =+SUM(BV26:BV28) -> 0 | BW29: =+SUM(BW26:BW28) -> 0 | BX29: =+SUM(BX26:BX28) -> 0 | BY29: =+SUM(BY26:BY28) -> 0 | CA29: =+SUM(CA26:CA28) -> 0 | CB29: =+SUM(CB26:CB28) -> 0 | CC29: =+SUM(CC26:CC28) -> 0 | CD29: =+SUM(CD26:CD28) -> 0 | CF29: =+SUM(CF26:CF28) -> 0 | CG29: =+SUM(CG26:CG28) -> 0 | CH29: =+SUM(CH26:CH28) -> 0 | CI29: =+SUM(CI26:CI28) -> 0 | CK29: =+SUM(CK26:CK28) -> 0 | CL29: =+SUM(CL26:CL28) -> 0 | CM29: =+SUM(CM26:CM28) -> 0 | CN29: =+SUM(CN26:CN28) -> 0 | CP29: =+SUM(CP26:CP28) -> 0 | CQ29: =+SUM(CQ26:CQ28) -> 0 | CR29: =+SUM(CR26:CR28) -> 0 | CS29: =+SUM(CS26:CS28) -> 0
A31: Total borrowings | D31: =D8+D18+D23+D29 -> 967.607 | E31: =E8+E18+E23+E29 -> -470.184 | F31: =F8+F18+F23+F29 -> 1437.791 | G31: =G8+G18+G23+G29 -> 28 | I31: =I8+I18+I23+I29 -> 1437.791 | J31: =J8+J18+J23+J29 -> 263.714 | K31: =K8+K18+K23+K29 -> 1174.077 | L31: =L8+L18+L23+L29 -> 103.821185 | N31: =N8+N18+N23+N29 -> 1174.077 | O31: =O8+O18+O23+O29 -> -701.331 | P31: =P8+P18+P23+P29 -> 1875.408 | Q31: =Q8+Q18+Q23+Q29 -> 127.669045 | S31: =S8+S18+S23+S29 -> 1875.408 | T31: =T8+T18+T23+T29 -> 160.543 | U31: =U8+U18+U23+U29 -> 1716.005 | V31: =V8+V18+V23+V29 -> 155.493195 | X31: =X8+X18+X23+X29 -> 1716.005 | Y31: =Y8+Y18+Y23+Y29 -> 20.279 | Z31: =Z8+Z18+Z23+Z29 -> 1695.726 | AA31: =AA8+AA18+AA23+AA29 -> 150.810305 | AC31: =AC8+AC18+AC23+AC29 -> 1695.726 | AD31: =AD8+AD18+AD23+AD29 -> 38.176 | AE31: =AE8+AE18+AE23+AE29 -> 1657.55 | AF31: =AF8+AF18+AF23+AF29 -> 150.36466 | AH31: =AH8+AH18+AH23+AH29 -> 1657.55 | AI31: =AI8+AI18+AI23+AI29 -> -573.12 | AJ31: =AJ8+AJ18+AJ23+AJ29 -> 2230.67 | AK31: =AK8+AK18+AK23+AK29 -> 211.7667 | AM31: =AM8+AM18+AM23+AM29 -> 2230.67 | AN31: =AN8+AN18+AN23+AN29 -> -1498.3 | AO31: =AO8+AO18+AO23+AO29 -> 3706.2 | AP31: =AP8+AP18+AP23+AP29 -> 312.41595 | AR31: =AR8+AR18+AR23+AR29 -> 3706.2 | AS31: =AS8+AS18+AS23+AS29 -> 581.2 | AT31: =AT8+AT18+AT23+AT29 -> 3125 | AU31: =AU8+AU18+AU23+AU29 -> 295.1 | AW31: =AW8+AW18+AW23+AW29 -> 3125 | AX31: =AX8+AX18+AX23+AX29 -> 2.5 | AY31: =AY8+AY18+AY23+AY29 -> 3122.5 | AZ31: =AZ8+AZ18+AZ23+AZ29 -> 281.1375 | BB31: =BB8+BB18+BB23+BB29 -> 3122.5 | BC31: =BC8+BC18+BC23+BC29 -> 0 | BD31: =BD8+BD18+BD23+BD29 -> 3122.5 | BE31: =BE8+BE18+BE23+BE29 -> 281.025 | BG31: =BG8+BG18+BG23+BG29 -> 3122.5 | BH31: =BH8+BH18+BH23+BH29 -> 0 | BI31: =BI8+BI18+BI23+BI29 -> 3122.5 | BJ31: =BJ8+BJ18+BJ23+BJ29 -> 281.025 | BL31: =BL8+BL18+BL23+BL29 -> 3122.5 | BM31: =BM8+BM18+BM23+BM29 -> 0 | BN31: =BN8+BN18+BN23+BN29 -> 3122.5 | BO31: =BO8+BO18+BO23+BO29 -> 281.025 | BQ31: =BQ8+BQ18+BQ23+BQ29 -> 3122.5 | BR31: =BR8+BR18+BR23+BR29 -> 0 | BS31: =BS8+BS18+BS23+BS29 -> 3122.5 | BT31: =BT8+BT18+BT23+BT29 -> 281.025 | BV31: =BV8+BV18+BV23+BV29 -> 3122.5 | BW31: =BW8+BW18+BW23+BW29 -> 0 | BX31: =BX8+BX18+BX23+BX29 -> 3122.5 | BY31: =BY8+BY18+BY23+BY29 -> 281.025 | CA31: =CA8+CA18+CA23+CA29 -> 3122.5 | CB31: =CB8+CB18+CB23+CB29 -> 0 | CC31: =CC8+CC18+CC23+CC29 -> 3122.5 | CD31: =CD8+CD18+CD23+CD29 -> 281.025 | CF31: =CF8+CF18+CF23+CF29 -> 3122.5 | CG31: =CG8+CG18+CG23+CG29 -> 0 | CH31: =CH8+CH18+CH23+CH29 -> 3122.5 | CI31: =CI8+CI18+CI23+CI29 -> 281.025 | CK31: =CK8+CK18+CK23+CK29 -> 3122.5 | CL31: =CL8+CL18+CL23+CL29 -> 0 | CM31: =CM8+CM18+CM23+CM29 -> 3122.5 | CN31: =CN8+CN18+CN23+CN29 -> 281.025 | CP31: =CP8+CP18+CP23+CP29 -> 3122.5 | CQ31: =CQ8+CQ18+CQ23+CQ29 -> 0 | CR31: =CR8+CR18+CR23+CR29 -> 3122.5 | CS31: =CS8+CS18+CS23+CS29 -> 281.025
A32: Interest capitalized | Q32: 53.2 | V32: 68.4

Sheet depn
A1: Depreciation calculation for HT Media, March fiscal year-ends, 2007-20E (Rs mn)
A3: Method of depreciation for Income tax : Written down value method
B4: Estimated | G4: 2000 | K4: 2001 | O4: =O21 -> 2002 | S4: 2003 | W4: 2004 | AA4: 2005 | AE4: 2006 | AI4: 2007 | AJ4: =AI4 -> 2007 | AM4: 2008 | AN4: =AM4 -> 2008 | AQ4: 2009 | AR4: =AQ4 -> 2009 | AU4: 2010 | AV4: =AU4 -> 2010 | AY4: 2011 | AZ4: =AY4 -> 2011 | BC4: 2012E | BD4: =BC4 -> 2012E | BG4: 2013E | BH4: =BG4 -> 2013E | BK4: 2014E | BL4: =BK4 -> 2014E | BO4: 2015E | BP4: =BO4 -> 2015E | BS4: 2016E | BT4: =BS4 -> 2016E | BW4: 2017E | BX4: =BW4 -> 2017E | CA4: 2018E | CB4: =CA4 -> 2018E | CE4: 2019E | CF4: =CE4 -> 2019E | CI4: 2020E | CJ4: =CI4 -> 2020E
B5: Break up | C5: Rate | D5: Rate | F5: Gross | J5: Gross | N5: Gross | R5: Gross | V5: Gross | Z5: Gross | AD5: Gross | AH5: Gross | AL5: Gross | AP5: Gross | AT5: Gross | AX5: Gross | BB5: Gross | BF5: Gross | BJ5: Gross | BN5: Gross | BR5: Gross | BV5: Gross | BZ5: Gross | CD5: Gross | CH5: Gross
B6: of assets | C6: of Depn | D6: of Depn | F6: Block | G6: Additions | H6: Depn | J6: Block | K6: Additions | L6: Depn | N6: Block | O6: Additions | P6: Depn | R6: Block | S6: Additions | T6: Depn | V6: Block | W6: Addition | X6: Depn | Z6: Block | AA6: Additions | AB6: Depn | AD6: Block | AE6: Additions | AF6: Depn | AH6: Block | AI6: Additions | AJ6: Depn | AL6: Block | AM6: Additions | AN6: Depn | AP6: Block | AQ6: Additions | AR6: Depn | AT6: Block | AU6: Additions | AV6: Depn | AX6: Block | AY6: Additions | AZ6: Depn | BB6: Block | BC6: Additions | BD6: Depn | BF6: Block | BG6: Additions | BH6: Depn | BJ6: Block | BK6: Additions | BL6: Depn | BN6: Block | BO6: Additions | BP6: Depn | BR6: Block | BS6: Additions | BT6: Depn | BV6: Block | BW6: Additions | BX6: Depn | BZ6: Block | CA6: Additions | CB6: Depn | CD6: Block | CE6: Additions | CF6: Depn | CH6: Block | CI6: Additions | CJ6: Depn
A7: Land | B7: =+B24 -> 7.725011841 | C7: 0 | D7: 0 | N7: =N24 -> 1350.808 | O7: =O24 -> 64.162 | P7: =(N7+O7/2)*$C7 -> 0 | R7: =(N7+O7)-P7 -> 1414.97 | S7: =S24 -> 1.629 | T7: =(R7+S7/2)*$C7 -> 0 | W7: =W24 -> 122.974 | X7: =(V7+W7)*$C7 -> 0 | Z7: 143.5 | AA7: =AA24 -> 53.667 | AB7: =(Z7+AA7)*$C7 -> 0 | AD7: =(Z7+AA7)-AB7 -> 197.167 | AE7: =AE24 -> 41.22012243 | AF7: =(AD7+AE7)*$C7 -> 0 | AH7: =(AD7+AE7)-AF7 -> 238.3871224 | AI7: =AI24 -> 105.578 | AJ7: =(AH7+AI7)*$C7 -> 0 | AL7: =(AH7+AI7)-AJ7 -> 343.9651224 | AM7: =AM24 -> 19.19572742 | AN7: =(AL7+AM7)*$C7 -> 0 | AP7: =(AL7+AM7)-AN7 -> 363.1608499 | AQ7: =AQ24 -> 84.87910836 | AR7: =(AP7+AQ7)*$C7 -> 0 | AT7: =(AP7+AQ7)-AR7 -> 448.0399582 | AU7: =AU24 -> 198.2315289 | AV7: =(AT7+AU7)*$C7 -> 0 | AX7: =(AT7+AU7)-AV7 -> 646.2714871 | AY7: =AY24 -> 26.8 | AZ7: =(AX7+AY7)*$C7 -> 0 | BB7: =(AX7+AY7)-AZ7 -> 673.0714871 | BC7: =BC24 -> 65.66260065 | BD7: =(BB7+BC7)*$C7 -> 0 | BF7: =(BB7+BC7)-BD7 -> 738.7340877 | BG7: =BG24 -> 68.86848056 | BH7: =(BF7+BG7)*$C7 -> 0 | BJ7: =(BF7+BG7)-BH7 -> 807.6025683 | BK7: =BK24 -> 72.23465447 | BL7: =(BJ7+BK7)*$C7 -> 0 | BN7: =(BJ7+BK7)-BL7 -> 879.8372228 | BO7: =BO24 -> 56.98953673 | BP7: =(BN7+BO7)*$C7 -> 0 | BR7: =(BN7+BO7)-BP7 -> 936.8267595 | BS7: =BS24 -> 59.76176345 | BT7: =(BR7+BS7)*$C7 -> 0 | BV7: =(BR7+BS7)-BT7 -> 996.5885229 | BW7: =BW24 -> 88.55323823 | BX7: =(BV7+BW7)*$C7 -> 0 | BZ7: =(BV7+BW7)-BX7 -> 1085.141761 | CA7: =CA24 -> 114.6433849 | CB7: =(BZ7+CA7)*$C7 -> 0 | CD7: =(BZ7+CA7)-CB7 -> 1199.785146 | CE7: =CE24 -> 120.298304 | CF7: =(CD7+CE7)*$C7 -> 0 | CH7: =(CD7+CE7)-CF7 -> 1320.08345 | CI7: =CI24 -> 126.2359691 | CJ7: =(CH7+CI7)*$C7 -> 0
A8: Buildings | B8: =+B25 -> 10.84833538 | C8: 0.1 | D8: 0.1 | N8: =N25*70% -> 454.3532 | O8: =O25 -> 56.346 | P8: =(N8+O8/2)*$C8 -> 48.25262 | R8: 462.44658 | S8: =S25 -> 97.377 | T8: =(R8+S8/2)*$C8 -> 51.113508 | W8: =W25-50 -> 122.694 | X8: =(V8+W8)*$C8 -> 12.2694 | Z8: 115 | AA8: =AA25 -> 265.875 | AB8: =(Z8+AA8)*$C8 -> 38.0875 | AD8: 342.7875 | AE8: =AE25 -> 57.8859582 | AF8: 40.06734582 | AH8: 360.6061124 | AI8: =AI25 -> 4.505 | AJ8: =(AH8+AI8)*$C8 -> 36.51111124 | AL8: 328.6000011 | AM8: =AM25 -> 26.95681162 | AN8: 35.55568128 | AP8: 320.0011315 | AQ8: =AQ25 -> 119.1968444 | AR8: 43.91979758 | AT8: 395.2781783 | AU8: =AU25 -> 278.3791342 | AV8: 67.36573124 | AX8: 606.2915812 | AY8: =AY25 -> 461.7 | AZ8: 106.7991581 | BB8: 961.1924231 | BC8: =BC25 -> 92.21085072 | BD8: 105.3403274 | BF8: 948.0629464 | BG8: =BG25 -> 96.7129099 | BH8: 104.4775856 | BJ8: 940.2982707 | BK8: =BK25 -> 101.440072 | BL8: 104.1738343 | BN8: 937.5645085 | BO8: =BO25 -> 80.03115338 | BP8: 101.7595662 | BR8: 915.8360957 | BS8: =BS25 -> 83.9242277 | BT8: 99.97603234 | BV8: 899.784291 | BW8: =BW25 -> 124.3564731 | BX8: =(BV8+BW8)*$C8 -> 102.4140764 | BZ8: 921.7266877 | CA8: =CA25 -> 160.995208 | CB8: =(BZ8+CA8)*$C8 -> 108.2721896 | CD8: 974.4497061 | CE8: =CE25 -> 168.936485 | CF8: =(CD8+CE8)*$C8 -> 114.3386191 | CH8: 1029.047572 | CI8: =CI25 -> 177.2748259 | CJ8: =(CH8+CI8)*$C8 -> 120.6322398
A9: Plant & Machinery | B9: =+B26 -> 79.23504957 | C9: 0.25 | D9: 0.15 | N9: =N26*60% -> 1365.6216 | O9: =O26 -> 304.897 | P9: =(N9+O9)*$C9 -> 417.62965 | R9: 1252.88895 | S9: =S26 -> 150.588 | T9: =(R9+S9)*$C9 -> 350.8692375 | W9: =W26-300 -> 961.338 | X9: =(V9+W9/4)*$C9 -> 60.083625 | Z9: 745.4 | AA9: =AA27 -> 2140.546 | AB9: =(Z9+AA9/2)*$C9 -> 453.91825 | AD9: 2432.02775 | AE9: =AE27 -> 422.7926781 | AF9: =(AD9*$D9+AE9*20%) -> 449.3626981 | AH9: 2405.45773 | AI9: =AI27 -> 347.672 | AJ9: =(AH9*$D9+AI9*20%) -> 430.3530595 | AL9: 2322.77667 | AM9: =AM26 -> 0 | AN9: =(AL9*$D9+AM9*20%) -> 348.4165006 | AP9: 1974.36017 | AQ9: =AQ26 -> 0 | AR9: =(AP9*$D9+AQ9*20%) -> 296.1540255 | AT9: 1678.206144 | AU9: =AU27 -> 2033.250607 | AV9: =(AT9*$D9+AU9*20%) -> 658.3810431 | AX9: 3053.075708 | AY9: =AY27 -> 1250.4 | AZ9: =(AX9*$D9+AY9*20%) -> 708.0413563 | BB9: 3595.434352 | BC9: =BC27 -> 673.4979213 | BD9: =(BB9*$D9+BC9*20%) -> 674.0147371 | BF9: 3594.917536 | BG9: =BG27 -> 706.3804669 | BH9: =(BF9*$D9+BG9*20%) -> 680.5137238 | BJ9: 3620.784279 | BK9: =BK27 -> 740.9071398 | BL9: =(BJ9*$D9+BK9*20%) -> 691.2990699 | BN9: 3670.392349 | BO9: =BO27 -> 584.5387503 | BP9: =(BN9*$D9+BO9*20%) -> 667.4666025 | BR9: 3587.464497 | BS9: =BS27 -> 612.9733373 | BT9: =(BR9*$D9+BS9*20%) -> 660.714342 | BV9: 3539.723492 | BW9: =BW27 -> 908.286015 | BX9: =(BV9*$D9+BW9*20%) -> 712.6157269 | BZ9: 3735.393781 | CA9: =CA27 -> 1175.891309 | CB9: =(BZ9*$D9+CA9*20%) -> 795.4873288 | CD9: 4115.79776 | CE9: =CE27 -> 1233.893524 | CF9: =(CD9*$D9+CE9*20%) -> 864.1483688 | CH9: 4485.542915 | CI9: =CI27 -> 1294.795849 | CJ9: =(CH9*$D9+CI9*20%) -> 931.7906072
A10: Furniture & Fixtures | B10: =+B28 -> 1.64395368 | C10: 0.1 | D10: 0.1 | N10: =N28*50% -> 32.916 | O10: =O28 -> 4.899 | P10: =(N10+O10)*$C10 -> 3.7815 | R10: 34.0335 | S10: =S28 -> 0.696 | T10: =(R10+S10)*$C10 -> 3.47295 | W10: =W28 -> 26.17 | X10: =(V10+W10)*$C10 -> 2.617 | Z10: 22.3 | AA10: =AA28 -> 0.811 | AB10: =(Z10+AA10/2)*$C10 -> 2.27055 | AD10: 20.84045 | AE10: =AE28 -> 8.772021761 | AF10: 2.961247176 | AH10: 26.65122459 | AI10: =AI28 -> 16.625 | AJ10: =(AH10+AI10/2)*$C10 -> 3.496372459 | AL10: 39.77985213 | AM10: =AM28 -> 4.085027621 | AN10: 4.386487975 | AP10: 39.47839177 | AQ10: =AQ28 -> 18.06305614 | AR10: 5.754144791 | AT10: 51.78730312 | AU10: =AU28 -> 42.18549539 | AV10: 9.397279851 | AX10: 84.57551866 | AY10: =AY28 -> 7 | AZ10: 9.157551866 | BB10: 82.4179668 | BC10: =BC28 -> 13.97360628 | BD10: 9.639157308 | BF10: 86.75241577 | BG10: =BG28 -> 14.65584706 | BH10: 10.14082628 | BJ10: 91.26743655 | BK10: =BK28 -> 15.37219988 | BL10: 10.66396364 | BN10: 95.97567278 | BO10: =BO28 -> 12.12789839 | BP10: 10.81035712 | BR10: 97.29321405 | BS10: =BS28 -> 12.71785377 | BT10: 11.00110678 | BV10: 99.00996104 | BW10: =BW28 -> 18.84494482 | BX10: =(BV10+BW10)*$C10 -> 11.78549059 | BZ10: 106.0694153 | CA10: =CA28 -> 24.39716836 | CB10: =(BZ10+CA10)*$C10 -> 13.04665836 | CD10: 117.4199253 | CE10: =CE28 -> 25.60058724 | CF10: =(CD10+CE10)*$C10 -> 14.30205125 | CH10: 128.7184613 | CI10: =CI28 -> 26.86417707 | CJ10: =(CH10+CI10)*$C10 -> 15.55826383
A11: Office Equipment | B11: =+B29 -> 0 | C11: 0.1 | D11: 0.1 | N11: =N29*50% -> 0 | O11: =O29 -> 0 | P11: =(N11+O11)*$C11 -> 0 | R11: 0 | S11: =S29 -> 0 | T11: =(R11+S11)*$C11 -> 0 | W11: =W29 -> 0 | X11: =(V11+W11)*$C11 -> 0 | Z11: 47.8 | AA11: =AA29 -> 0 | AB11: =(Z11+AA11/2)*$C11 -> 4.78 | AD11: 43.02 | AE11: =AE29 -> 0 | AF11: 4.302 | AH11: 38.718 | AI11: =AI29 -> 0 | AJ11: =(AH11+AI11/2)*$C11 -> 3.8718 | AL11: 34.8462 | AM11: =AM29 -> 0 | AN11: 3.48462 | AP11: 31.36158 | AQ11: =AQ29 -> 0 | AR11: 3.136158 | AT11: 28.225422 | AU11: =AU29 -> 0 | AV11: 2.8225422 | AX11: 25.4028798 | AY11: =AY29 -> 0 | AZ11: 2.54028798 | BB11: 22.86259182 | BC11: =BC29 -> 0 | BD11: 2.286259182 | BF11: 20.57633264 | BG11: =BG29 -> 0 | BH11: 2.057633264 | BJ11: 18.51869937 | BK11: =BK29 -> 0 | BL11: 1.851869937 | BN11: 16.66682944 | BO11: =BO29 -> 0 | BP11: 1.666682944 | BR11: 15.00014649 | BS11: =BS29 -> 0 | BT11: 1.500014649 | BV11: 13.50013184 | BW11: =BW29 -> 0 | BX11: =(BV11+BW11)*$C11 -> 1.350013184 | BZ11: 12.15011866 | CA11: =CA29 -> 0 | CB11: =(BZ11+CA11)*$C11 -> 1.215011866 | CD11: 10.93510679 | CE11: =CE29 -> 0 | CF11: =(CD11+CE11)*$C11 -> 1.093510679 | CH11: 9.841596114 | CI11: =CI29 -> 0 | CJ11: =(CH11+CI11)*$C11 -> 0.9841596114
A12: Computers | B12: =+B30 -> 0 | C12: 1 | D12: 1 | N12: =N30-N30 -> 0 | O12: =O30 -> 0 | P12: =(N12+O12)*$C12 -> 0 | R12: 0 | S12: =S30 -> 0 | T12: =(R12+S12)*$C12 -> 0 | W12: =W30 -> 0 | X12: =(V12+W12)*$C12 -> 0 | Z12: 130 | AA12: =AA30 -> 0 | AB12: =(Z12+AA12/2)*$C12 -> 130 | AD12: 0 | AE12: =AE30 -> 0 | AF12: 0 | AH12: 0 | AI12: =AI30 -> 0 | AJ12: =(AH12+AI12/2)*$C12 -> 0 | AL12: 0 | AM12: =AM30 -> 0 | AN12: 0 | AP12: 0 | AQ12: =AQ30 -> 0 | AR12: 0 | AT12: 0 | AU12: =AU30 -> 0 | AV12: 0 | AX12: 0 | AY12: =AY30 -> 0 | AZ12: 0 | BB12: 0 | BC12: =BC30 -> 0 | BD12: 0 | BF12: 0 | BG12: =BG30 -> 0 | BH12: 0 | BJ12: 0 | BK12: =BK30 -> 0 | BL12: 0 | BN12: 0 | BO12: =BO30 -> 0 | BP12: 0 | BR12: 0 | BS12: =BS30 -> 0 | BT12: 0 | BV12: 0 | BW12: =BW30 -> 0 | BX12: =(BV12+BW12)*$C12 -> 0 | BZ12: 0 | CA12: =CA30 -> 0 | CB12: =(BZ12+CA12)*$C12 -> 0 | CD12: 0 | CE12: =CE30 -> 0 | CF12: =(CD12+CE12)*$C12 -> 0 | CH12: 0 | CI12: =CI30 -> 0 | CJ12: =(CH12+CI12)*$C12 -> 0
A13: Vehicles | B13: =+B31 -> 0.5476495294 | C13: 0.2 | D13: 0.2 | N13: =N31*65% -> 27.38125 | O13: =O31 -> -4.414 | P13: =(N13+O13)*$C13 -> 4.59345 | R13: 18.3738 | S13: =S31 -> -14.298 | T13: =(R13+S13)*$C13 -> 0.81516 | W13: =W31 -> 8.718 | X13: =(V13+W13)*$C13 -> 1.7436 | Z13: 7.3 | AA13: =AA31 -> 3.108 | AB13: =(Z13+AA13/2)*$C13 -> 1.7708 | AD13: 8.6372 | AE13: =AE31 -> 2.922219554 | AF13: 2.311883911 | AH13: 9.247535643 | AI13: =AI31 -> 5.692 | AJ13: =(AH13+AI13/2)*$C13 -> 2.418707129 | AL13: 12.52082851 | AM13: =AM31 -> 1.360843363 | AN13: 2.776334375 | AP13: 11.1053375 | AQ13: =AQ31 -> 6.01733754 | AR13: 3.424535008 | AT13: 13.69814003 | AU13: =AU31 -> 14.05323457 | AV13: 5.550274922 | AX13: 22.20109969 | AY13: =AY31 -> -0.2 | AZ13: 4.400219937 | BB13: 17.60087975 | BC13: =BC31 -> 4.655021 | BD13: 4.45118015 | BF13: 17.8047206 | BG13: =BG31 -> 4.882295555 | BH13: 4.537403231 | BJ13: 18.14961292 | BK13: =BK31 -> 5.120933837 | BL13: 4.654109352 | BN13: 18.61643741 | BO13: =BO31 -> 4.040161182 | BP13: 4.531319718 | BR13: 18.12527887 | BS13: =BS31 -> 4.236692746 | BT13: 4.472394324 | BV13: 17.88957729 | BW13: =BW31 -> 6.277807755 | BX13: =(BV13+BW13)*$C13 -> 4.83347701 | BZ13: 19.33390804 | CA13: =CA31 -> 8.127417417 | CB13: =(BZ13+CA13)*$C13 -> 5.492265091 | CD13: 21.96906037 | CE13: =CE31 -> 8.528311792 | CF13: =(CD13+CE13)*$C13 -> 6.099474432 | CH13: 24.39789773 | CI13: =CI31 -> 8.949250886 | CJ13: =(CH13+CI13)*$C13 -> 6.669429723
A14: Total | B14: =SUM(B7:B13) -> 100 | F14: =SUM(F7:F13) -> 0 | G14: =SUM(G7:G13) -> 0 | H14: =SUM(H7:H13) -> 0 | J14: =SUM(J7:J13) -> 0 | K14: =SUM(K7:K13) -> 0 | L14: =SUM(L7:L13) -> 0 | N14: =SUM(N7:N13) -> 3231.08005 | O14: =SUM(O7:O13) -> 425.89 | P14: =SUM(P7:P13) -> 474.25722 | R14: =SUM(R7:R13) -> 3182.71283 | S14: =SUM(S7:S13) -> 235.992 | T14: =SUM(T7:T13) -> 406.2708555 | V14: =SUM(V7:V13) -> 0 | W14: =SUM(W7:W13) -> 1241.894 | X14: =SUM(X7:X13) -> 76.713625 | Z14: =SUM(Z7:Z13) -> 1211.3 | AA14: =SUM(AA7:AA13) -> 2464.007 | AB14: =SUM(AB7:AB13) -> 630.8271 | AD14: =SUM(AD7:AD13) -> 3044.4799 | AE14: =SUM(AE7:AE13) -> 533.593 | AF14: =SUM(AF7:AF13) -> 499.005175 | AH14: =SUM(AH7:AH13) -> 3079.067725 | AI14: =SUM(AI7:AI13) -> 480.072 | AJ14: =SUM(AJ7:AJ13) -> 476.6510503 | AL14: =SUM(AL7:AL13) -> 3082.488675 | AM14: =SUM(AM7:AM13) -> 51.59841002 | AN14: =SUM(AN7:AN13) -> 394.6196242 | AP14: =SUM(AP7:AP13) -> 2739.46746 | AQ14: =SUM(AQ7:AQ13) -> 228.1563464 | AR14: =SUM(AR7:AR13) -> 352.3886609 | AT14: =SUM(AT7:AT13) -> 2615.235146 | AU14: =SUM(AU7:AU13) -> 2566.1 | AV14: =SUM(AV7:AV13) -> 743.5168713 | AX14: =SUM(AX7:AX13) -> 4437.818275 | AY14: =SUM(AY7:AY13) -> 1745.7 | AZ14: =SUM(AZ7:AZ13) -> 830.9385742 | BB14: =SUM(BB7:BB13) -> 5352.579701 | BC14: =SUM(BC7:BC13) -> 850 | BD14: =SUM(BD7:BD13) -> 795.7316611 | BF14: =SUM(BF7:BF13) -> 5406.848039 | BG14: =SUM(BG7:BG13) -> 891.5 | BH14: =SUM(BH7:BH13) -> 801.7271722 | BJ14: =SUM(BJ7:BJ13) -> 5496.620867 | BK14: =SUM(BK7:BK13) -> 935.075 | BL14: =SUM(BL7:BL13) -> 812.6428471 | BN14: =SUM(BN7:BN13) -> 5619.05302 | BO14: =SUM(BO7:BO13) -> 737.7275 | BP14: =SUM(BP7:BP13) -> 786.2345284 | BR14: =SUM(BR7:BR13) -> 5570.545992 | BS14: =SUM(BS7:BS13) -> 773.613875 | BT14: =SUM(BT7:BT13) -> 777.6638901 | BV14: =SUM(BV7:BV13) -> 5566.495977 | BW14: =SUM(BW7:BW13) -> 1146.318479 | BX14: =SUM(BX7:BX13) -> 832.9987841 | BZ14: =SUM(BZ7:BZ13) -> 5879.815671 | CA14: =SUM(CA7:CA13) -> 1484.054487 | CB14: =SUM(CB7:CB13) -> 923.5134537 | CD14: =SUM(CD7:CD13) -> 6440.356705 | CE14: =SUM(CE7:CE13) -> 1557.257212 | CF14: =SUM(CF7:CF13) -> 999.9820243 | CH14: =SUM(CH7:CH13) -> 6997.631893 | CI14: =SUM(CI7:CI13) -> 1634.120072 | CJ14: =SUM(CJ7:CJ13) -> 1075.6347
A16: Additional capex | G16: =+G34 -> 0 | K16: =+K34 -> 0 | O16: =+O34 -> 0 | S16: =+S34 -> 0 | W16: =+W34 -> 0 | AA16: =+AA34 -> 2383.207 | AE16: =+AE34 -> 533.593 | AI16: =+AI34 -> 191.346 | AM16: =+AM34 -> 248.488 | AQ16: =+AQ34 -> 1098.757 | AU16: =+AU34 -> 2566.1 | AY16: =+AY34 -> 1508.7 | BC16: =+BC34 -> 850 | BG16: =+BG34 -> 891.5 | BK16: =+BK34 -> 935.075 | BO16: =+BO34 -> 737.7275 | BS16: =+BS34 -> 773.613875 | BW16: =+BW34 -> 1146.318479 | CA16: =+CA34 -> 1484.054487 | CE16: =+CE34 -> 1557.257212 | CI16: =+CI34 -> 1634.120072
A18: Depreciation calculation for accounting (Rs mn)
A20: Method of depreciation : Straight line method
B21: Estimated | G21: 2000 | K21: 2001 | O21: 2002 | S21: 2003 | W21: 2004 | AA21: 2005 | AE21: =+AE4 -> 2006 | AH21: =AI21 -> 2007 | AI21: 2007 | AJ21: =AI21 -> 2007 | AL21: =AM21 -> 2008 | AM21: =+AM4 -> 2008 | AN21: =AM21 -> 2008 | AP21: =AQ21 -> 2009 | AQ21: =+AQ4 -> 2009 | AR21: =AQ21 -> 2009 | AT21: =AU21 -> 2010 | AU21: =+AU4 -> 2010 | AV21: =AU21 -> 2010 | AX21: =AY21 -> 2011 | AY21: =+AY4 -> 2011 | AZ21: =AY21 -> 2011 | BB21: =BC21 -> 2012E | BC21: =+BC4 -> 2012E | BD21: =BC21 -> 2012E | BF21: =BG21 -> 2013E | BG21: =+BG4 -> 2013E | BH21: =BG21 -> 2013E | BJ21: =BK21 -> 2014E | BK21: =+BK4 -> 2014E | BL21: =BK21 -> 2014E | BN21: =BO21 -> 2015E | BO21: =+BO4 -> 2015E | BP21: =BO21 -> 2015E | BR21: =BS21 -> 2016E | BS21: =+BS4 -> 2016E | BT21: =BS21 -> 2016E | BV21: =BW21 -> 2017E | BW21: =+BW4 -> 2017E | BX21: =BW21 -> 2017E | BZ21: =CA21 -> 2018E | CA21: =+CA4 -> 2018E | CB21: =CA21 -> 2018E | CD21: =CE21 -> 2019E | CE21: =+CE4 -> 2019E | CF21: =CE21 -> 2019E | CH21: =CI21 -> 2020E | CI21: =+CI4 -> 2020E | CJ21: =CI21 -> 2020E
B22: Break up | C22: Rate | D22: Rate | F22: Gross | J22: Gross | N22: Gross | R22: Gross | V22: Gross | Z22: Gross | AD22: Gross | AH22: Gross | AL22: Gross | AP22: Gross | AT22: Gross | AX22: Gross | BB22: Gross | BF22: Gross | BJ22: Gross | BN22: Gross | BR22: Gross | BV22: Gross | BZ22: Gross | CD22: Gross | CH22: Gross
B23: of assets | C23: of Depn | D23: of Depn | F23: Block | G23: Additions | H23: Depn | J23: Block | K23: Additions | L23: Depn | N23: Block | O23: Additions | P23: Depn | R23: Block | S23: Additions | T23: Depn | V23: Block | W23: Additions | X23: Depn | Z23: Block | AA23: Additions | AB23: Depn | AD23: Block | AE23: Additions | AF23: Depn | AH23: Block | AI23: Additions | AJ23: Depn | AL23: Block | AM23: Additions | AN23: Depn | AP23: Block | AQ23: Additions | AR23: Depn | AT23: Block | AU23: Additions | AV23: Depn | AX23: Block | AY23: Additions | AZ23: Depn | BB23: Block | BC23: Additions | BD23: Depn | BF23: Block | BG23: Additions | BH23: Depn | BJ23: Block | BK23: Additions | BL23: Depn | BN23: Block | BO23: Additions | BP23: Depn | BR23: Block | BS23: Additions | BT23: Depn | BV23: Block | BW23: Additions | BX23: Depn | BZ23: Block | CA23: Additions | CB23: Depn | CD23: Block | CE23: Additions | CF23: Depn | CH23: Block | CI23: Additions | CJ23: Depn
A24: Land | B24: =Z24/Z$32*100 -> 7.725011841 | C24: 0 | D24: 0 | N24: =1311.896+38.912 -> 1350.808 | O24: 64.162 | P24: =(N24+O24*3/4)*$C24 -> 0 | R24: =1376.058+38.912 -> 1414.97 | S24: 1.629 | T24: =(R24+S24*3/4)*$C24 -> 0 | V24: 0 | W24: 122.974 | X24: =(V24+W24*3/4)*$C24 -> 0 | Z24: =V24+W24 -> 122.974 | AA24: =55.367-1.7 -> 53.667 | AB24: =(Z24+AA24/2)*$C24 -> 0 | AD24: =Z24+AA24 -> 176.641 | AE24: =+AE$34*B24% -> 41.22012243 | AF24: =(AD24+AE24/2)*$C24 -> 0 | AH24: =AD24+AE24 -> 217.8611224 | AI24: =107.607-2.029 -> 105.578 | AJ24: =(AH24+AI24/2)*$C24 -> 0 | AL24: =AH24+AI24 -> 323.4391224 | AM24: =+AM$34*$B24% -> 19.19572742 | AN24: =(AL24+AM24/2)*$C24 -> 0 | AP24: =AL24+AM24 -> 342.6348499 | AQ24: =+AQ$34*$B24% -> 84.87910836 | AR24: =(AP24+AQ24/2)*$C24 -> 0 | AT24: =AP24+AQ24 -> 427.5139582 | AU24: =+AU$34*$B24% -> 198.2315289 | AV24: =(AT24+AU24/2)*$C24 -> 0 | AX24: =30.4+207.2 -> 237.6 | AY24: 26.8 | AZ24: 2.8 | BB24: =AX24+AY24 -> 264.4 | BC24: =+BC$34*$B24% -> 65.66260065 | BD24: =(BB24+BC24/2)*$C24 -> 0 | BF24: =BB24+BC24 -> 330.0626007 | BG24: =+BG$34*$B24% -> 68.86848056 | BH24: =(BF24+BG24/2)*$C24 -> 0 | BJ24: =BF24+BG24 -> 398.9310812 | BK24: =+BK$34*$B24% -> 72.23465447 | BL24: =(BJ24+BK24/2)*$C24 -> 0 | BN24: =BJ24+BK24 -> 471.1657357 | BO24: =+BO$34*$B24% -> 56.98953673 | BP24: =(BN24+BO24/2)*$C24 -> 0 | BR24: =BN24+BO24 -> 528.1552724 | BS24: =+BS$34*$B24% -> 59.76176345 | BT24: =(BR24+BS24/2)*$C24 -> 0 | BV24: =BR24+BS24 -> 587.9170359 | BW24: =+BW$34*$B24% -> 88.55323823 | BX24: =(BV24+BW24/2)*$C24 -> 0 | BZ24: =BV24+BW24 -> 676.4702741 | CA24: =+CA$34*$B24% -> 114.6433849 | CB24: =(BZ24+CA24/2)*$C24 -> 0 | CD24: =BZ24+CA24 -> 791.113659 | CE24: =+CE$34*$B24% -> 120.298304 | CF24: =(CD24+CE24/2)*$C24 -> 0 | CH24: =CD24+CE24 -> 911.411963 | CI24: =+CI$34*$B24% -> 126.2359691 | CJ24: =(CH24+CI24/2)*$C24 -> 0
A25: Buildings | B25: =Z25/Z$32*100 -> 10.84833538 | C25: 0.0163 | D25: 0.0163 | N25: 649.076 | O25: =64.121-7.775 -> 56.346 | P25: =(N25+O25*3/4)*$C25 -> 11.26876865 | R25: 705.422 | S25: =97.946-0.569 -> 97.377 | T25: =(R25+S25*3/4)*$C25 -> 12.68881242 | V25: 0 | W25: =134.225+38.469 -> 172.694 | X25: =(V25+W25*3/4)*$C25 -> 2.11118415 | Z25: =V25+W25 -> 172.694 | AA25: =264.054-0.446+3.873-1.465-0.141 -> 265.875 | AB25: =(Z25+AA25/2)*$C25 -> 4.98179345 | AD25: =Z25+AA25 -> 438.569 | AE25: 57.8859582 | AF25: =(AD25+AE25/2)*$C25 -> 7.620445259 | AH25: =AD25+AE25 -> 496.4549582 | AI25: =6.475-1.97 -> 4.505 | AJ25: =(AH25+AI25/2)*$C25 -> 8.128931569 | AL25: =AH25+AI25 -> 500.9599582 | AM25: =+AM$34*$B25% -> 26.95681162 | AN25: =(AL25+AM25/2)*$C25 -> 8.385345333 | AP25: 527.9167698 | AQ25: =+AQ$34*$B25% -> 119.1968444 | AR25: 9.57649763 | AT25: 647.1136142 | AU25: =+AU$34*$B25% -> 278.3791342 | AV25: 12.81674185 | AX25: =1047.9+517 -> 1564.9 | AY25: =431.1+32.5-1.9 -> 461.7 | AZ25: =45.5+65.5-1.8 -> 109.2 | BB25: 2026.6 | BC25: =+BC$34*$B25% -> 92.21085072 | BD25: 33.78509843 | BF25: 2118.810851 | BG25: =+BG$34*$B25% -> 96.7129099 | BH25: 35.32482708 | BJ25: 2215.523761 | BK25: =+BK$34*$B25% -> 101.440072 | BL25: 36.93977389 | BN25: 2316.963833 | BO25: =+BO$34*$B25% -> 80.03115338 | BP25: 38.41876437 | BR25: 2396.994986 | BS25: =+BS$34*$B25% -> 83.9242277 | BT25: 39.75500073 | BV25: =BR25+BS25 -> 2480.919214 | BW25: =+BW$34*$B25% -> 124.3564731 | BX25: =(BV25+BW25/2)*$C25 -> 41.45248844 | BZ25: =BV25+BW25 -> 2605.275687 | CA25: =+CA$34*$B25% -> 160.995208 | CB25: =(BZ25+CA25/2)*$C25 -> 43.77810464 | CD25: =BZ25+CA25 -> 2766.270895 | CE25: =+CE$34*$B25% -> 168.936485 | CF25: =(CD25+CE25/2)*$C25 -> 46.46704794 | CH25: =CD25+CE25 -> 2935.20738 | CI25: =+CI$34*$B25% -> 177.2748259 | CJ25: =(CH25+CI25/2)*$C25 -> 49.28867012
A26: Plant & Machinery | B26: 79.23504957 | C26: 0.15 | D26: 0.15 | N26: 2276.036 | O26: =328.095-23.198 -> 304.897 | P26: =(N26+O26*3/4)*$C26 -> 375.7063125 | R26: 2580.933 | S26: =170.326-19.738 -> 150.588 | T26: 404.0811 | V26: 0 | W26: =1262.12-0.782 -> 1261.338 | X26: 107.483 | Z26: 1261.338 | AB26: =Z26*$C26 -> 189.2007 | AD26: =Z26 -> 1261.338 | AF26: =(AD26)*$C26 -> 189.2007 | AH26: =AD26 -> 1261.338 | AJ26: =(AH26)*$C26 -> 189.2007 | AL26: =AH26 -> 1261.338 | AN26: =(AL26)*$C26 -> 189.2007 | AP26: =AL26 -> 1261.338 | AR26: =(AP26)*$C26 -> 189.2007 | AT26: =AP26 -> 1261.338 | AV26: =(AT26)*$C26 -> 189.2007 | AX26: 0 | AZ26: =(AX26)*$C26 -> 0 | BB26: =AX26 -> 0 | BD26: =(BB26)*$C26 -> 0 | BF26: =BB26 -> 0 | BH26: =(BF26)*$C26 -> 0 | BJ26: =BF26 -> 0 | BL26: =(BJ26)*$C26 -> 0 | BN26: =BJ26 -> 0 | BP26: =(BN26)*$C26 -> 0 | BR26: =BN26 -> 0 | BT26: =(BR26)*$C26 -> 0 | BV26: =BR26 -> 0 | BX26: =(BV26)*$C26 -> 0 | BZ26: =BV26 -> 0 | CB26: =(BZ26)*$C26 -> 0 | CD26: =BZ26 -> 0 | CF26: =(CD26)*$C26 -> 0 | CH26: =CD26 -> 0 | CJ26: =(CH26)*$C26 -> 0
A27: Plant & Machinery | C27: 0.0742 | D27: 0.0742 | AA27: =2142.048-1.391-0.111 -> 2140.546 | AB27: =+AA27*1/12*$C27 -> 13.23570943 | AD27: =+AA27 -> 2140.546 | AE27: =+AE$34*B26% -> 422.7926781 | AF27: =(AD27+AE27*9/12)*$C27 -> 182.3569257 | AH27: =AD27+AE27 -> 2563.338678 | AI27: =352.061-4.389 -> 347.672 | AJ27: =(AH27+AI27*6/12)*$C27 -> 203.0983611 | AL27: =AH27+AI27 -> 2911.010678 | AM27: =+AM$34*$B26% -> 196.88959 | AN27: =(AL27+AM27*9/12)*$C27 -> 226.953898 | AP27: =AL27+AM27 -> 3107.900268 | AQ27: =+AQ$34*$B26% -> 870.6006536 | AR27: =(AP27+AQ27*9/12)*$C27 -> 279.0551263 | AT27: =AP27+AQ27 -> 3978.500922 | AU27: =+AU$34*$B26% -> 2033.250607 | AV27: =(AT27+AU27/3)*$C27+1.5 -> 346.9938334 | AX27: =6783.5 -> 6783.5 | AY27: =1314.5-64.1 -> 1250.4 | AZ27: =590.6-50.1 -> 540.5 | BB27: =AX27+AY27 -> 8033.9 | BC27: =+BC$34*$B26% -> 673.4979213 | BD27: =(BB27+BC27/2)*$C27 -> 621.1021529 | BF27: =BB27+BC27 -> 8707.397921 | BG27: =+BG$34*$B26% -> 706.3804669 | BH27: =(BF27+BG27*6/12)*$C27 -> 672.2956411 | BJ27: =BF27+BG27 -> 9413.778388 | BK27: =+BK$34*$B26% -> 740.9071398 | BL27: =(BJ27+BK27*6/12)*$C27 -> 725.9900113 | BN27: =BJ27+BK27 -> 10154.68553 | BO27: =+BO$34*$B26% -> 584.5387503 | BP27: =(BN27+BO27*6/12)*$C27 -> 775.1640538 | BR27: =BN27+BO27 -> 10739.22428 | BS27: =+BS$34*$B26% -> 612.9733373 | BT27: =(BR27+BS27*6/12)*$C27 -> 819.5917523 | BV27: =BR27+BS27 -> 11352.19762 | BW27: =+BW$34*$B26% -> 908.286015 | BX27: =(BV27+BW27*6/12)*$C27 -> 876.0304742 | BZ27: =BV27+BW27 -> 12260.48363 | CA27: =+CA$34*$B26% -> 1175.891309 | CB27: =(BZ27+CA27*6/12)*$C27 -> 953.3534529 | CD27: =BZ27+CA27 -> 13436.37494 | CE27: =+CE$34*$B26% -> 1233.893524 | CF27: =(CD27+CE27*6/12)*$C27 -> 1042.75647 | CH27: =CD27+CE27 -> 14670.26846 | CI27: =+CI$34*$B26% -> 1294.795849 | CJ27: =(CH27+CI27*6/12)*$C27 -> 1136.570846
A28: Furniture & Fixtures | B28: 1.64395368 | C28: 0.0633 | D28: 0.0633 | N28: 65.832 | O28: =7.755-2.856 -> 4.899 | P28: =(N28+O28*3/4)*$C28 -> 4.399745625 | R28: 70.371 | S28: =3.668-2.972 -> 0.696 | T28: 4.4875269 | V28: 0 | W28: =26.196-0.026 -> 26.17 | X28: 5.803 | Z28: 26.17 | AA28: =1.035-0.2-0.024 -> 0.811 | AB28: 1.68222915 | AD28: 26.981 | AE28: 8.772021761 | AF28: 1.985531789 | AH28: 35.75302176 | AI28: =17.193-0.568 -> 16.625 | AJ28: 2.789347528 | AL28: 52.37802176 | AM28: 4.085027621 | AN28: =(AL28+AM28/2)*$C28+0.8 -> 4.244819902 | AP28: 56.46304938 | AQ28: 18.06305614 | AR28: 4.145806753 | AT28: 74.52610552 | AU28: 42.18549539 | AV28: 6.052673409 | AX28: 129.1 | AY28: =12.4-5.4 -> 7 | AZ28: =13.7-3.8 -> 9.9 | BB28: 136.1 | BC28: 13.97360628 | BD28: 9.057394639 | BF28: 150.0736063 | BG28: 14.65584706 | BH28: 9.963516837 | BJ28: 164.7294533 | BK28: 15.37219988 | BL28: 10.91390452 | BN28: 180.1016532 | BO28: 12.12789839 | BP28: 11.78428263 | BR28: 192.2295516 | BS28: 12.71785377 | BT28: 12.57065069 | BV28: =BR28+BS28 -> 204.9474054 | BW28: 18.84494482 | BX28: =(BV28+BW28/2)*$C28 -> 13.56961326 | BZ28: =BV28+BW28 -> 223.7923502 | CA28: 24.39716836 | CB28: =(BZ28+CA28/2)*$C28 -> 14.93822615 | CD28: =BZ28+CA28 -> 248.1895186 | CE28: 25.60058724 | CF28: =(CD28+CE28/2)*$C28 -> 16.52065511 | CH28: =CD28+CE28 -> 273.7901058 | CI28: 26.86417707 | CJ28: =(CH28+CI28/2)*$C28 -> 18.1811649
A29: Office Equipment | B29: 0 | C29: 0.0633 | D29: 0.0633 | N29: 0 | O29: 0 | P29: 0 | R29: 0 | S29: 0 | T29: 0 | V29: 0 | W29: 0 | X29: =(V29+W29*3/4)*$C29 -> 0 | Z29: 0 | AA29: 0 | AB29: 0 | AD29: 0 | AE29: 0 | AF29: 0 | AH29: 0 | AI29: 0 | AJ29: 0 | AL29: 0 | AM29: 0 | AN29: 0 | AP29: 0 | AQ29: 0 | AR29: 0 | AT29: 0 | AU29: 0 | AV29: 0 | AX29: =AT29+AU29 -> 0 | AY29: =+AY$34*$B29% -> 0 | AZ29: =(AX29+AY29/2)*$C29 -> 0 | BB29: 0 | BC29: 0 | BD29: 0 | BF29: 0 | BG29: 0 | BH29: 0 | BJ29: 0 | BK29: 0 | BL29: 0 | BN29: 0 | BO29: 0 | BP29: 0 | BR29: 0 | BS29: 0 | BT29: 0 | BV29: =BR29+BS29 -> 0 | BW29: 0 | BX29: =(BV29+BW29/2)*$C29 -> 0 | BZ29: =BV29+BW29 -> 0 | CA29: 0 | CB29: =(BZ29+CA29/2)*$C29 -> 0 | CD29: =BZ29+CA29 -> 0 | CE29: 0 | CF29: =(CD29+CE29/2)*$C29 -> 0 | CH29: =CD29+CE29 -> 0 | CI29: 0 | CJ29: =(CH29+CI29/2)*$C29 -> 0
A30: Goodwill | B30: 0 | C30: 0 | D30: 0 | N30: 0 | O30: 0 | P30: 0 | R30: 0 | S30: 0 | T30: 0 | V30: 0 | W30: 0 | X30: 0 | Z30: 0 | AA30: =+AA$34*B30% -> 0 | AB30: 0 | AD30: 0 | AE30: 0 | AF30: 0 | AH30: 0 | AI30: 0 | AJ30: 0 | AL30: 0 | AM30: 0 | AN30: 0 | AP30: 0 | AQ30: 0 | AR30: 0 | AT30: 0 | AU30: 0 | AV30: 0 | AX30: 33.3 | AY30: =+AY$34*$B30% -> 0 | AZ30: =(AX30+AY30/2)*$C30 -> 0 | BB30: 33.3 | BC30: 0 | BD30: 0 | BF30: 33.3 | BG30: 0 | BH30: 0 | BJ30: 33.3 | BK30: 0 | BL30: 0 | BN30: 33.3 | BO30: 0 | BP30: 0 | BR30: 33.3 | BS30: 0 | BT30: 0 | BV30: =BR30+BS30 -> 33.3 | BW30: 0 | BX30: =(BV30+BW30/2)*$C30 -> 0 | BZ30: =BV30+BW30 -> 33.3 | CA30: 0 | CB30: =(BZ30+CA30/2)*$C30 -> 0 | CD30: =BZ30+CA30 -> 33.3 | CE30: 0 | CF30: =(CD30+CE30/2)*$C30 -> 0 | CH30: =CD30+CE30 -> 33.3 | CI30: 0 | CJ30: =(CH30+CI30/2)*$C30 -> 0
A31: Vehicles | B31: 0.5476495294 | C31: 0.095 | D31: 0.095 | N31: 42.125 | O31: =1.419-5.833 -> -4.414 | P31: =(N31+O31*3/4)*$C31 -> 3.6873775 | R31: 37.711 | S31: =1.528-15.826 -> -14.298 | T31: 2.5638125 | V31: 0 | W31: =11.318-2.6 -> 8.718 | X31: 1.216 | Z31: 8.718 | AA31: =4.044-0.745-0.191 -> 3.108 | AB31: 0.97584 | AD31: 11.826 | AE31: 2.922219554 | AF31: 1.262275429 | AH31: 14.74821955 | AI31: =6.382-0.69 -> 5.692 | AJ31: 1.671450858 | AL31: 20.44021955 | AM31: 1.360843363 | AN31: 2.006460917 | AP31: 21.80106292 | AQ31: 6.01733754 | AR31: 2.35692451 | AT31: 27.81840046 | AU31: 14.05323457 | AV31: 3.310276686 | AX31: 22.3 | AY31: =3-3.2 -> -0.2 | AZ31: =2.1-2.4 -> -0.3 | BB31: 22.1 | BC31: 4.655021 | BD31: 2.320613498 | BF31: 26.755021 | BG31: 4.882295555 | BH31: 2.773636034 | BJ31: 31.63731655 | BK31: 5.120933837 | BL31: 3.24878943 | BN31: 36.75825039 | BO31: 4.040161182 | BP31: 3.683941443 | BR31: 40.79841157 | BS31: 4.236692746 | BT31: 4.077092005 | BV31: =BR31+BS31 -> 45.03510432 | BW31: 6.277807755 | BX31: =(BV31+BW31/2)*$C31 -> 4.576530779 | BZ31: =BV31+BW31 -> 51.31291208 | CA31: 8.127417417 | CB31: =(BZ31+CA31/2)*$C31 -> 5.260778975 | CD31: =BZ31+CA31 -> 59.44032949 | CE31: 8.528311792 | CF31: =(CD31+CE31/2)*$C31 -> 6.051926112 | CH31: =CD31+CE31 -> 67.96864128 | CI31: 8.949250886 | CJ31: =(CH31+CI31/2)*$C31 -> 6.882110339
A32: Total | B32: =SUM(B24:B31) -> 100 | F32: =+SUM(F26:F31) -> 0 | G32: =SUM(G26:G31) -> 0 | H32: =SUM(H26:H31) -> 0 | J32: =+SUM(J24:J31) -> 0 | K32: =+SUM(K24:K31) -> 0 | L32: =+SUM(L24:L31) -> 0 | N32: =+SUM(N24:N31) -> 4383.877 | O32: =+SUM(O24:O31) -> 425.89 | P32: =+SUM(P24:P31) -> 395.0622043 | R32: =SUM(R24:R31) -> 4809.407 | S32: =SUM(S24:S31) -> 235.992 | T32: =SUM(T24:T31) -> 423.8212518 | V32: =SUM(V24:V31) -> 0 | W32: =SUM(W24:W31) -> 1591.894 | X32: =SUM(X24:X31) -> 116.6131841 | Z32: =SUM(Z24:Z31) -> 1591.894 | AA32: =SUM(AA24:AA31) -> 2464.007 | AB32: =SUM(AB24:AB31) -> 210.076272 | AD32: =SUM(AD24:AD31) -> 4055.901 | AE32: =SUM(AE24:AE31) -> 533.593 | AF32: =SUM(AF24:AF31) -> 382.4258782 | AH32: =SUM(AH24:AH31) -> 4589.494 | AI32: =SUM(AI24:AI31) -> 480.072 | AJ32: =SUM(AJ24:AJ31) -> 404.8887911 | AL32: =SUM(AL24:AL31) -> 5069.566 | AM32: =SUM(AM24:AM31) -> 248.488 | AN32: =SUM(AN24:AN31) -> 430.7912241 | AP32: =SUM(AP24:AP31) -> 5318.054 | AQ32: =SUM(AQ24:AQ31) -> 1098.757 | AR32: =SUM(AR24:AR31) -> 484.3350552 | AT32: =SUM(AT24:AT31) -> 6416.811 | AU32: =SUM(AU24:AU31) -> 2566.1 | AV32: =SUM(AV24:AV31) -> 558.3742253 | AX32: =SUM(AX24:AX31) -> 8770.7 | AY32: =SUM(AY24:AY31) -> 1745.7 | AZ32: =SUM(AZ24:AZ31) -> 662.1 | BB32: =SUM(BB24:BB31) -> 10516.4 | BC32: =SUM(BC24:BC31) -> 850 | BD32: =SUM(BD24:BD31)+60 -> 726.2652595 | BF32: =SUM(BF24:BF31) -> 11366.4 | BG32: =SUM(BG24:BG31) -> 891.5 | BH32: =SUM(BH24:BH31)+40 -> 760.357621 | BJ32: =SUM(BJ24:BJ31) -> 12257.9 | BK32: =SUM(BK24:BK31) -> 935.075 | BL32: =SUM(BL24:BL31)+20 -> 797.0924791 | BN32: =SUM(BN24:BN31) -> 13192.975 | BO32: =SUM(BO24:BO31) -> 737.7275 | BP32: =SUM(BP24:BP31) -> 829.0510423 | BR32: =SUM(BR24:BR31) -> 13930.7025 | BS32: =SUM(BS24:BS31) -> 773.613875 | BT32: =SUM(BT24:BT31) -> 875.9944957 | BV32: =SUM(BV24:BV31) -> 14704.31638 | BW32: =SUM(BW24:BW31) -> 1146.318479 | BX32: =SUM(BX24:BX31) -> 935.6291067 | BZ32: =SUM(BZ24:BZ31) -> 15850.63485 | CA32: =SUM(CA24:CA31) -> 1484.054487 | CB32: =SUM(CB24:CB31) -> 1017.330563 | CD32: =SUM(CD24:CD31) -> 17334.68934 | CE32: =SUM(CE24:CE31) -> 1557.257212 | CF32: =SUM(CF24:CF31) -> 1111.796099 | CH32: =SUM(CH24:CH31) -> 18891.94655 | CI32: =SUM(CI24:CI31) -> 1634.120072 | CJ32: =SUM(CJ24:CJ31) -> 1210.922791
AJ33: =AJ32/AH32 -> 0.08822079102 | AN33: =AN32/AL32 -> 0.08497595734 | AR33: =AR32/AP32 -> 0.09107373772 | AV33: =AV32/AT32 -> 0.08701740247 | AZ33: =AZ32/AX32 -> 0.0754899837 | BD33: =BD32/BB32 -> 0.06906025441 | BH33: =BH32/BF32 -> 0.06689520174 | BL33: =BL32/BJ32 -> 0.06502683813
A34: Capex | K34: =+K32 -> 0 | O34: =+capex!I12 -> 0 | S34: =+capex!N12 -> 0 | W34: =+capex!S12 -> 0 | AA34: =+capex!X12+interest!V32 -> 2383.207 | AE34: =+capex!AC12+interest!AA32 -> 533.593 | AI34: =capex!AH12+interest!AF32 -> 191.346 | AM34: =capex!AM12+interest!AK32 -> 248.488 | AQ34: =capex!AR12 -> 1098.757 | AU34: =capex!AW12 -> 2566.1 | AY34: =capex!BB12 -> 1508.7 | BC34: =capex!BG12 -> 850 | BG34: =capex!BL12 -> 891.5 | BK34: =capex!BQ12 -> 935.075 | BO34: =capex!BV12 -> 737.7275 | BS34: =capex!CA12 -> 773.613875 | BW34: =capex!CF12 -> 1146.318479 | CA34: =capex!CJ12 -> 1484.054487 | CE34: =capex!CO12 -> 1557.257212 | CI34: =capex!CT12 -> 1634.120072
A37: Total
A39: =AH22 -> Gross | AH39: =IF(AH22=$A39,AH32) -> 4589.494 | AI39: =IF(AI22=$A39,AI32) -> FALSE | AJ39: FALSE | AK39: =IF(AK22=$A39,AK32) -> FALSE | AL39: 5069.566 | AM39: FALSE | AN39: FALSE | AO39: FALSE | AP39: 5318.054 | AQ39: FALSE | AR39: FALSE | AS39: FALSE | AT39: 6416.811 | AU39: FALSE | AV39: FALSE | AW39: FALSE | AX39: 8770.7 | AY39: FALSE | AZ39: FALSE | BA39: FALSE | BB39: 10516.4 | BC39: FALSE | BD39: FALSE | BE39: FALSE | BF39: 11366.4 | BG39: FALSE | BH39: FALSE | BI39: FALSE | BJ39: 12257.9 | BK39: FALSE | BL39: FALSE | BM39: FALSE | BN39: 13192.975 | BO39: FALSE | BP39: FALSE | BQ39: FALSE | BR39: 13930.7025 | BS39: FALSE | BT39: FALSE | BU39: FALSE | BV39: 14704.31638 | BW39: FALSE | BX39: FALSE | BY39: FALSE | BZ39: 15850.63485 | CA39: FALSE | CB39: FALSE | CC39: FALSE | CD39: 17334.68934 | CE39: FALSE | CF39: FALSE | CG39: FALSE | CH39: 18891.94655 | CI39: FALSE | CJ39: FALSE
A40: =AI23 -> Additions | AH40: =IF(AH23=$A40,AH32) -> FALSE | AI40: =IF(AI23=$A40,AI32) -> 480.072 | AJ40: FALSE | AK40: FALSE | AL40: FALSE | AM40: 248.488 | AN40: FALSE | AO40: FALSE | AP40: FALSE | AQ40: 1098.757 | AR40: FALSE | AS40: FALSE | AT40: FALSE | AU40: 2566.1 | AV40: FALSE | AW40: FALSE | AX40: FALSE | AY40: 1745.7 | AZ40: FALSE | BA40: FALSE | BB40: FALSE | BC40: 850 | BD40: FALSE | BE40: FALSE | BF40: FALSE | BG40: 891.5 | BH40: FALSE | BI40: FALSE | BJ40: FALSE | BK40: 935.075 | BL40: FALSE | BM40: FALSE | BN40: FALSE | BO40: 737.7275 | BP40: FALSE | BQ40: FALSE | BR40: FALSE | BS40: 773.613875 | BT40: FALSE | BU40: FALSE | BV40: FALSE | BW40: 1146.318479 | BX40: FALSE | BY40: FALSE | BZ40: FALSE | CA40: 1484.054487 | CB40: FALSE | CC40: FALSE | CD40: FALSE | CE40: 1557.257212 | CF40: FALSE | CG40: FALSE | CH40: FALSE | CI40: 1634.120072 | CJ40: FALSE
A41: =AJ23 -> Depn | AH41: =IF(AH23=$A41,AH32) -> FALSE | AI41: =IF(AI23=$A41,AI32) -> FALSE | AJ41: 404.8887911 | AK41: FALSE | AL41: FALSE | AM41: FALSE | AN41: 430.7912241 | AO41: FALSE | AP41: FALSE | AQ41: FALSE | AR41: 484.3350552 | AS41: FALSE | AT41: FALSE | AU41: FALSE | AV41: 558.3742253 | AW41: FALSE | AX41: FALSE | AY41: FALSE | AZ41: 662.1 | BA41: FALSE | BB41: FALSE | BC41: FALSE | BD41: 726.2652595 | BE41: FALSE | BF41: FALSE | BG41: FALSE | BH41: 760.357621 | BI41: FALSE | BJ41: FALSE | BK41: FALSE | BL41: 797.0924791 | BM41: FALSE | BN41: FALSE | BO41: FALSE | BP41: 829.0510423 | BQ41: FALSE | BR41: FALSE | BS41: FALSE | BT41: 875.9944957 | BU41: FALSE | BV41: FALSE | BW41: FALSE | BX41: 935.6291067 | BY41: FALSE | BZ41: FALSE | CA41: FALSE | CB41: 1017.330563 | CC41: FALSE | CD41: FALSE | CE41: FALSE | CF41: 1111.796099 | CG41: FALSE | CH41: FALSE | CI41: FALSE | CJ41: 1210.922791

Sheet tax
A1: Calculation of HT Media's tax expenses, March fiscal year-ends, 2010-20E (Rs mn)
C3: 2006 | D3: 2007 | E3: 2008 | F3: 2009 | G3: 2010 | H3: 2011 | I3: 2012E | J3: 2013E | K3: 2014E | L3: 2015E | M3: 2016E | N3: 2017E | O3: 2018E | P3: 2019E | Q3: 2020E
A4: Pre-tax profits | C4: =Consolidated!I151 -> 611.674 | D4: =Consolidated!J151 -> 1470.506 | E4: =Consolidated!K151 -> 1389.86 | F4: =Consolidated!L151 -> 8.9 | G4: =Consolidated!M151 -> 1884.8 | H4: =Consolidated!N151 -> 2571 | I4: =Consolidated!O151 -> 2370.49912 | J4: =Consolidated!P151 -> 2796.748239 | K4: =Consolidated!Q151 -> 4210.774424 | L4: =Consolidated!R151 -> 4779.984746 | M4: =Consolidated!S151 -> 5254.474713 | N4: =Consolidated!T151 -> 6565.498617 | O4: =Consolidated!U151 -> 7406.365998 | P4: =Consolidated!V151 -> 7940.221729 | Q4: =Consolidated!W151 -> 8537.123964
A5: Adjusted pre-tax profits | C5: =SUM(C4:C4)-Consolidated!I403 -> 575.78448 | D5: =SUM(D4:D4)-Consolidated!J403 -> 1390.45088 | E5: =SUM(E4:E4)-Consolidated!K47 -> 951.2 | F5: =SUM(F4:F4)-1/2*Consolidated!L47 -> -156.3 | G5: =SUM(G4:G4)-1/2*Consolidated!M47 -> 1680.4 | H5: =SUM(H4:H4)-1/2*Consolidated!N47 -> 2332.15 | I5: =SUM(I4:I4)-2/5*Consolidated!O47 -> 2051.795738 | J5: =SUM(J4:J4)-2/5*Consolidated!P47 -> 2474.609466 | K5: =SUM(K4:K4)-2/5*Consolidated!Q47 -> 3866.957466 | L5: =SUM(L4:L4)-2/5*Consolidated!R47 -> 4397.697734 | M5: =SUM(M4:M4)-2/5*Consolidated!S47 -> 4848.867259 | N5: =SUM(N4:N4)-2/5*Consolidated!T47 -> 6152.852101 | O5: =SUM(O4:O4)-2/5*Consolidated!U47 -> 6993.293739 | P5: =SUM(P4:P4)-2/5*Consolidated!V47 -> 7532.227602 | Q5: =SUM(Q4:Q4)-2/5*Consolidated!W47 -> 8138.05177
A6: Add: Depreciation as per accounts | C6: =Consolidated!I149 -> 385.364 | D6: =Consolidated!J149 -> 435.988 | E6: =Consolidated!K149 -> 569.87 | F6: =Consolidated!L149 -> 688.1 | G6: =Consolidated!M149 -> 706.9 | H6: =Consolidated!N149 -> 841.9 | I6: =Consolidated!O149 -> 893.425 | J6: =Consolidated!P149 -> 855.6881101 | K6: =Consolidated!Q149 -> 900.1917638 | L6: =Consolidated!R149 -> 942.8967779 | M6: =Consolidated!S149 -> 962.6778318 | N6: =Consolidated!T149 -> 977.720194 | O6: =Consolidated!U149 -> 1014.599632 | P6: =Consolidated!V149 -> 1068.621508 | Q6: =Consolidated!W149 -> 1115.616987
A7: Less: Depreciation as per IT rules | C7: =-depn!AF14 -> -499.005175 | D7: =-depn!AJ14 -> -476.6510503 | E7: =-depn!AN14 -> -394.6196242 | F7: =-depn!AR14 -> -352.3886609 | G7: =-depn!AV14 -> -743.5168713 | H7: =-depn!AZ14 -> -830.9385742 | I7: =-depn!BD14 -> -795.7316611 | J7: =-depn!BH14 -> -801.7271722 | K7: =-depn!BL14 -> -812.6428471 | L7: =-depn!BP14 -> -786.2345284 | M7: =-depn!BT14 -> -777.6638901 | N7: =-depn!BX14 -> -832.9987841 | O7: =-depn!CB14 -> -923.5134537 | P7: =-depn!CF14 -> -999.9820243 | Q7: =-depn!CJ14 -> -1075.6347
A8: Less: VRS expenses/others | C8: -229 | D8: 0 | E8: =0 -> 0 | F8: =0 -> 0 | G8: =0 -> 0 | H8: =0 -> 0 | I8: =0 -> 0 | J8: =0 -> 0 | K8: =0 -> 0 | L8: =0 -> 0 | M8: =0 -> 0 | N8: =0 -> 0 | O8: =0 -> 0 | P8: =0 -> 0 | Q8: =0 -> 0
A9: Add: Deferred revenue exp written off
A10: Less: Deferred revenue exp incurred
A11: Taxable income for current year | C11: =SUM(C5:C10) -> 233.143305 | D11: =SUM(D5:D10) -> 1349.78783 | E11: =SUM(E5:E10) -> 1126.450376 | F11: =SUM(F5:F10) -> 179.4113391 | G11: 1643.783129 | H11: 2343.111426 | I11: 2149.489077 | J11: 2528.570404 | K11: 3954.506383 | L11: 4554.359984 | M11: 5033.8812 | N11: 6297.573511 | O11: 7084.379917 | P11: =SUM(P5:P10) -> 7600.867086 | Q11: =SUM(Q5:Q10) -> 8178.034057
A12: Unabsorbed losses | C12: =IF((C5+C6)<0,(C5+C6),0) -> 0 | D12: =IF((D5+D6)<0,(D5+D6),0) -> 0 | E12: =IF((E5+E6)<0,(E5+E6),0) -> 0 | F12: =IF((F5+F6)<0,(F5+F6),0) -> 0 | G12: 0 | H12: 0 | I12: 0 | J12: 0 | K12: 0 | L12: 0 | M12: 0 | N12: =IF((N5+N6)<0,(N5+N6),0) -> 0 | O12: =IF((O5+O6)<0,(O5+O6),0) -> 0 | P12: =IF((P5+P6)<0,(P5+P6),0) -> 0 | Q12: =IF((Q5+Q6)<0,(Q5+Q6),0) -> 0
A13: Unabsorbed depreciation | D13: =IF(D12<0,D7,IF(D15<0,D15,0)) -> 0 | E13: =IF(E12<0,E7,IF(E15<0,E15,0)) -> 0 | F13: =IF(F12<0,F7,IF(F15<0,F15,0)) -> 0 | G13: 0 | H13: 0 | I13: 0 | J13: 0 | K13: 0 | L13: 0 | M13: 0 | N13: 0 | O13: 0 | P13: =IF(P12<0,P7,IF(P15<0,P15,0)) -> 0 | Q13: =IF(Q12<0,Q7,IF(Q15<0,Q15,0)) -> 0
A14: Accumulated depreciation & losses | D14: =IF((D11+C14)>0,0,IF(D13<0,C14+D12+D13,C14+D11+D12+D13)) -> 0 | E14: =IF((E11+D14)>0,0,IF(E13<0,D14+E12+E13,D14+E11+E12+E13)) -> 0 | F14: -304 | G14: -400 | H14: =IF((H11+G14)>0,0,IF(H13<0,G14+H12+H13,G14+H11+H12+H13)) -> 0 | I14: 0 | J14: 0 | K14: 0 | L14: 0 | M14: 0 | N14: 0 | O14: 0 | P14: =IF((P11+O14)>0,0,IF(P13<0,O14+P12+P13,O14+P11+P12+P13)) -> 0 | Q14: =IF((Q11+P14)>0,0,IF(Q13<0,P14+Q12+Q13,P14+Q11+Q12+Q13)) -> 0
A15: Gross taxable income | D15: =IF((C14+D11)<0,0,IF(C14<0,D11+C14,D11)) -> 1349.78783 | E15: =IF((D14+E11)<0,0,IF(D14<0,E11+D14,E11)) -> 1126.450376 | F15: =IF((E14+F11)<0,0,IF(E14<0,F11+E14,F11)) -> 179.4113391 | G15: =IF((F14+G11)<0,0,IF(F14<0,G11+F14,G11)) -> 1339.783129 | H15: =IF((G14+H11)<0,0,IF(G14<0,H11+G14,H11))-Consolidated!N47/2 -> 1704.261426 | I15: =IF((H14+I11)<0,0,IF(H14<0,I11+H14,I11))-Consolidated!O47*2/5 -> 1830.785694 | J15: =IF((I14+J11)<0,0,IF(I14<0,J11+I14,J11))-Consolidated!P47/2 -> 2125.896938 | K15: =IF((J14+K11)<0,0,IF(J14<0,K11+J14,K11))-Consolidated!Q47/2 -> 3524.735186 | L15: =IF((K14+L11)<0,0,IF(K14<0,L11+K14,L11))-Consolidated!R47/2 -> 4076.501218 | M15: =IF((L14+M11)<0,0,IF(L14<0,M11+L14,M11))-Consolidated!S47/2 -> 4526.871882 | N15: =IF((M14+N11)<0,0,IF(M14<0,N11+M14,N11))-Consolidated!T47/2 -> 5781.765367 | O15: =IF((N14+O11)<0,0,IF(N14<0,O11+N14,O11))-Consolidated!U47/2 -> 6568.039593 | P15: =IF((O14+P11)<0,0,IF(O14<0,P11+O14,P11))-Consolidated!V47/2 -> 7090.874428 | Q15: =IF((P14+Q11)<0,0,IF(P14<0,Q11+P14,Q11))-Consolidated!W47/2 -> 7679.193816
A16: Tax payable | D16: =IF(D4<0,0,IF(+D15*D17<D5*11.22%,+D5*11.22%,D15*D17)) -> 454.3385835 | E16: =IF(E4<0,0,IF(+E15*E17<E5*11.33%,+E5*11.33%,E15*E17)) -> 382.8804827 | F16: =IF(F4<0,0,IF(+F15*F17<F5*11.33%,+F5*11.33%,F15*F17)) -> 60.98191417 | G16: 455.3922855 | H16: 579.2784586 | I16: 608.5531648 | J16: 706.6481422 | K16: 1171.621976 | L16: 1355.029005 | M16: 1504.732214 | N16: 1921.858808 | O16: 2183.216361 | P16: =IF(P4<0,0,IF(+P15*P17<P5*11.33%,+P5*11.33%,P15*P17)) -> 2357.00666 | Q16: =IF(Q4<0,0,IF(+Q15*Q17<Q5*11.33%,+Q5*11.33%,Q15*Q17)) -> 2552.564024
A17: Income tax rate | C17: =30%+10%*30%+2%*33% -> 0.3366 | D17: =30%+10%*30%+2%*33% -> 0.3366 | E17: =30%+10%*30%+3%*33% -> 0.3399 | F17: =30%+10%*30%+3%*33% -> 0.3399 | G17: =30%+10%*30%+3%*33% -> 0.3399 | H17: =30%+10%*30%+3%*33% -> 0.3399 | I17: =30%+7.5%*30%+3%*33% -> 0.3324 | J17: =30%+7.5%*30%+3%*33% -> 0.3324 | K17: 0.3324 | L17: 0.3324 | M17: 0.3324 | N17: 0.3324 | O17: 0.3324 | P17: 0.3324 | Q17: 0.3324
A18: Deferred tax liability/(asset) | C18: =-((SUM(C6:C10))*C17) -> 115.3330195 | D18: =-((SUM(D6:D10))*D17) -> 13.68718274 | E18: =-((SUM(E6:E7))*E17) -> -59.56760274 | F18: =-((SUM(F6:F10))*F17) -> -114.1082842 | G18: 12.44607455 | H18: -3.725788645 | I18: -32.47326585 | J18: -17.93661576 | K18: -29.10125993 | L18: -52.07453172 | M18: -61.49863419 | N18: -48.10539667 | O18: -30.27704553 | P18: =-((SUM(P6:P10))*P17) -> -22.81576444 | Q18: =-((SUM(Q6:Q10))*Q17) -> -13.29011214
A19: Deferred tax liability/(asset) | C19: =C18 -> 115.3330195 | D19: =+C19+D18 -> 129.0202022 | E19: =+D19+E18 -> 69.45259951 | F19: =+E19+F18 -> -44.65568466 | G19: -32.20961011 | H19: -35.93539876 | I19: -68.40866461 | J19: -86.34528037 | K19: -115.4465403 | L19: -167.521072 | M19: -229.0197062 | N19: -277.1251029 | O19: -307.4021484 | P19: =+O19+P18 -> -330.2179128 | Q19: =+P19+Q18 -> -343.508025
A21: Effective estimated tax rate | C21: =+C16/C4*100 -> 0 | D21: =+D16/D4*100 -> 30.89675142 | E21: =+E16/E4*100 -> 27.5481331 | F21: =+F16/F4*100 -> 685.1900469 | G21: 24.16130547 | H21: 22.53125082 | I21: 25.67194224 | J21: 25.26677705 | K21: 27.82438236 | L21: 28.34797759 | M21: 28.63715777 | N21: =+N16/N4*100 -> 29.27209219 | O21: =+O16/O4*100 -> 29.47756513 | P21: =+P16/P4*100 -> 29.68439346 | Q21: =+Q16/Q4*100 -> 29.89957784
A23: Actual tax paid | C23: =+Consolidated!I153 -> 238.968 | D23: =+Consolidated!J153 -> 545.765 | E23: =+Consolidated!K153 -> 376.6 | F23: =+Consolidated!L153 -> 124.9 | G23: =+Consolidated!M153 -> 536.5 | H23: =+Consolidated!N153 -> 712.8 | I23: =+Consolidated!O153 -> 631.3249304 | J23: =+Consolidated!P153 -> 783.3753675 | K23: =+Consolidated!Q153 -> 1255.199128 | L23: =+Consolidated!R153 -> 1447.601501 | M23: =+Consolidated!S153 -> 1607.259895 | N23: =+Consolidated!T153 -> 2043.629186 | O23: =+Consolidated!U153 -> 2323.168883 | P23: =+Consolidated!V153 -> 2500.200535 | Q23: =+Consolidated!W153 -> 2697.869426
A24: Actual deferred tax provided | C24: =+Consolidated!I155 -> 174.128 | D24: =+Consolidated!J155 -> -27.011 | E24: =+Consolidated!K155 -> -143.07 | F24: =+Consolidated!L155 -> 84.9 | G24: =+Consolidated!M155 -> -25 | H24: =+Consolidated!N155 -> -218.7 | I24: =+Consolidated!O155 -> -32.47326585 | J24: =+Consolidated!P155 -> -17.93661576 | K24: =+Consolidated!Q155 -> -29.10125993 | L24: =+Consolidated!R155 -> -52.07453172 | M24: =+Consolidated!S155 -> -61.49863419 | N24: =+Consolidated!T155 -> -48.10539667 | O24: =+Consolidated!U155 -> -30.27704553 | P24: =+Consolidated!V155 -> -22.81576444 | Q24: =+Consolidated!W155 -> -13.29011214
A26: Tax on interest income | C26: =-Consolidated!I405 -> 12.08041243 | D26: =-Consolidated!J405 -> 26.94655339 | E26: =-Consolidated!K405+32 -> 57.53478356 | F26: =-Consolidated!L405+20 -> 40.11351452 | G26: =-Consolidated!M405+10 -> 28.2750634 | H26: =-Consolidated!N405 -> 26.6386428 | I26: =-Consolidated!O405 -> 55.24503151 | J26: =-Consolidated!P405 -> 94.66384105 | K26: =-Consolidated!Q405 -> 112.6784124 | L26: =-Consolidated!R405 -> 144.6470281 | M26: =-Consolidated!S405 -> 164.0263156 | N26: =-Consolidated!T405 -> 169.8757751 | O26: =-Consolidated!U405 -> 170.2295683 | P26: =-Consolidated!V405 -> 166.0096402 | Q26: =-Consolidated!W405 -> 158.5955133

Sheet profit model (F)
A1: Profit model of HT Media, March fiscal year-ends, 2006-2013E (Rs mn)
C3: =#REF! ->  | D3: =#REF! ->  | E3: =#REF! ->  | F3: =#REF! ->  | G3: =#REF! ->  | H3: =Consolidated!I321 -> 2006 | I3: =Consolidated!J321 -> 2007 | J3: =Consolidated!K321 -> 2008 | K3: =Consolidated!L321 -> 2009 | L3: =Consolidated!M321 -> 2010 | M3: =Consolidated!N321 -> 2011 | N3: =Consolidated!O321 -> 2012E | O3: =Consolidated!P321 -> 2013E | P3: =Consolidated!Q321 -> 2014E | Q3: =Consolidated!R321 -> 2015E | R3: =Consolidated!S321 -> 2016E
A4: =Consolidated!C322 -> Revenues | C4: =#REF! ->  | D4: =#REF! ->  | E4: =#REF! ->  | F4: =#REF! ->  | G4: =#REF! ->  | H4: =Consolidated!I322 -> 8210.105 | I4: =Consolidated!J322 -> 10396.575 | J4: =Consolidated!K322 -> 12032.51 | K4: =Consolidated!L322 -> 13466.1 | L4: =Consolidated!M322 -> 14129.2 | M4: =Consolidated!N322 -> 17673.9 | N4: =Consolidated!O322 -> 20010.08639 | O4: =Consolidated!P322 -> 23529.70664 | P4: =Consolidated!Q322 -> 27652.07733 | Q4: =Consolidated!R322 -> 29648.15732 | R4: =Consolidated!S322 -> 31521.77596
A5: Production costs | C5: =#REF!+#REF! ->  | D5: =#REF!+#REF! ->  | E5: =#REF!+#REF! ->  | F5: =#REF!+#REF! ->  | G5: =#REF!+#REF! ->  | H5: =Consolidated!I323 -> -3416.818 | I5: =Consolidated!J323 -> -4349.234 | J5: =Consolidated!K323 -> -4643.23 | K5: =Consolidated!L323 -> -5587.7 | L5: =Consolidated!M323 -> -4760.3 | M5: =Consolidated!N323 -> -6248.9 | N5: =Consolidated!O323 -> -7444.033774 | O5: =Consolidated!P323 -> -9266.647469 | P5: =Consolidated!Q323 -> -10407.94463 | Q5: =Consolidated!R323 -> -10416.12606 | R5: =Consolidated!S323 -> -11025.59651
A6: =Consolidated!C324 -> Employee costs | C6: =#REF! ->  | D6: =#REF! ->  | E6: =#REF! ->  | F6: =#REF! ->  | G6: =#REF! ->  | H6: =Consolidated!I324 -> -1183.85 | I6: =Consolidated!J324 -> -1596.224 | J6: =Consolidated!K324 -> -1982.79 | K6: =Consolidated!L324 -> -2419.2 | L6: =Consolidated!M324 -> -2519.8 | M6: =Consolidated!N324 -> -3009 | N6: =Consolidated!O324 -> -3547.717261 | O6: =Consolidated!P324 -> -4266.608661 | P6: =Consolidated!Q324 -> -5048.96499 | Q6: =Consolidated!R324 -> -5807.497998 | R6: =Consolidated!S324 -> -6150.573782
A7: =Consolidated!C325 -> SG&A and other costs | C7: =#REF! ->  | D7: =#REF! ->  | E7: =#REF! ->  | F7: =#REF! ->  | G7: =#REF! ->  | H7: =Consolidated!I325 -> -2425.449 | I7: =Consolidated!J325 -> -2770.745 | J7: =Consolidated!K325 -> -3707.52 | K7: =Consolidated!L325 -> -4580.4 | L7: =Consolidated!M325 -> -4350.3 | M7: =Consolidated!N325 -> -5244.8 | N7: =Consolidated!O325 -> -6220.144688 | O7: =Consolidated!P325 -> -6868.336095 | P7: =Consolidated!Q325 -> -7662.718914 | Q7: =Consolidated!R325 -> -8376.344267 | R7: =Consolidated!S325 -> -8861.446763
A8: =Consolidated!D326 -> EBITDA | C8: =#REF! ->  | D8: =#REF! ->  | E8: =#REF! ->  | F8: =#REF! ->  | G8: =#REF! ->  | H8: =Consolidated!I326 -> 1183.988 | I8: =Consolidated!J326 -> 1680.372 | J8: =Consolidated!K326 -> 1698.97 | K8: =Consolidated!L326 -> 878.8 | L8: =Consolidated!M326 -> 2498.8 | M8: =Consolidated!N326 -> 3171.2 | N8: =Consolidated!O326 -> 2798.190664 | O8: =Consolidated!P326 -> 3128.114417 | P8: =Consolidated!Q326 -> 4532.448794 | Q8: =Consolidated!R326 -> 5048.188993 | R8: =Consolidated!S326 -> 5484.158908
A9: =Consolidated!C327 -> Other income | C9: =#REF! ->  | D9: =#REF! ->  | E9: =#REF! ->  | F9: =#REF! ->  | G9: =#REF! ->  | H9: =Consolidated!I327 -> 177.338 | I9: =Consolidated!J327 -> 366.856 | J9: =Consolidated!K327 -> 438.66 | K9: =Consolidated!L327 -> 330.4 | L9: =Consolidated!M327 -> 408.8 | M9: =Consolidated!N327 -> 477.7 | N9: =Consolidated!O327 -> 796.7584558 | O9: =Consolidated!P327 -> 805.3469322 | P9: =Consolidated!Q327 -> 859.5423934 | Q9: =Consolidated!R327 -> 955.7175309 | R9: =Consolidated!S327 -> 1014.018637
A10: =Consolidated!C328 -> Interest expense | C10: =#REF! ->  | D10: =#REF! ->  | E10: =#REF! ->  | F10: =#REF! ->  | G10: =#REF! ->  | H10: =Consolidated!I328 -> -135.4 | I10: =Consolidated!J328 -> -142.9 | J10: =Consolidated!K328 -> -177.9 | K10: =Consolidated!L328 -> -322.8 | L10: =Consolidated!M328 -> -295.1 | M10: =Consolidated!N328 -> -236 | N10: =Consolidated!O328 -> -331.025 | O10: =Consolidated!P328 -> -281.025 | P10: =Consolidated!Q328 -> -281.025 | Q10: =Consolidated!R328 -> -281.025 | R10: =Consolidated!S328 -> -281.025
A11: =Consolidated!C329 -> D&A expenses | C11: =#REF! ->  | D11: =#REF! ->  | E11: =#REF! ->  | F11: =#REF! ->  | G11: =#REF! ->  | H11: =Consolidated!I329 -> -385.364 | I11: =Consolidated!J329 -> -435.988 | J11: =Consolidated!K329 -> -569.87 | K11: =Consolidated!L329 -> -688.1 | L11: =Consolidated!M329 -> -706.9 | M11: =Consolidated!N329 -> -841.9 | N11: =Consolidated!O329 -> -893.425 | O11: =Consolidated!P329 -> -855.6881101 | P11: =Consolidated!Q329 -> -900.1917638 | Q11: =Consolidated!R329 -> -942.8967779 | R11: =Consolidated!S329 -> -962.6778318
A12: =Consolidated!D330 -> Pretax profits | C12: =#REF! ->  | D12: =#REF! ->  | E12: =#REF! ->  | F12: =#REF! ->  | G12: =#REF! ->  | H12: =Consolidated!I330 -> 840.562 | I12: =Consolidated!J330 -> 1468.34 | J12: =Consolidated!K330 -> 1389.86 | K12: =Consolidated!L330 -> 198.3 | L12: =Consolidated!M330 -> 1905.6 | M12: =Consolidated!N330 -> 2571 | N12: =Consolidated!O330 -> 2370.49912 | O12: =Consolidated!P330 -> 2796.748239 | P12: =Consolidated!Q330 -> 4210.774424 | Q12: =Consolidated!R330 -> 4779.984746 | R12: =Consolidated!S330 -> 5254.474713
A13: =Consolidated!C331 -> Extraordinary items | C13: =#REF! ->  | D13: =#REF! ->  | E13: =#REF! ->  | F13: =#REF! ->  | G13: =#REF! ->  | H13: =Consolidated!I331 -> -228.888 | I13: =Consolidated!J331 -> 2.166 | J13: =Consolidated!K331 -> 0 | K13: =Consolidated!L331 -> -189.4 | L13: =Consolidated!M331 -> -20.8 | M13: =Consolidated!N331 -> 0 | N13: =Consolidated!O331 -> 0 | O13: =Consolidated!P331 -> 0 | P13: =Consolidated!Q331 -> 0 | Q13: =Consolidated!R331 -> 0 | R13: =Consolidated!S331 -> 0
A14: =Consolidated!C332 -> Current tax | C14: =#REF! ->  | D14: =#REF! ->  | E14: =#REF! ->  | F14: =#REF! ->  | G14: =#REF! ->  | H14: =Consolidated!I332 -> -64.84 | I14: =Consolidated!J332 -> -572.776 | J14: =Consolidated!K332 -> -519.67 | K14: =Consolidated!L332 -> -40 | L14: =Consolidated!M332 -> -561.5 | M14: =Consolidated!N332 -> -931.5 | N14: =Consolidated!O332 -> -663.7981963 | O14: =Consolidated!P332 -> -801.3119832 | P14: =Consolidated!Q332 -> -1284.300388 | Q14: =Consolidated!R332 -> -1499.676033 | R14: =Consolidated!S332 -> -1668.758529
A15: =Consolidated!C333 -> Deferred tax | C15: =#REF! ->  | D15: =#REF! ->  | E15: =#REF! ->  | F15: =#REF! ->  | G15: =#REF! ->  | H15: =Consolidated!I333 -> -174.128 | I15: =Consolidated!J333 -> 27.011 | J15: =Consolidated!K333 -> 143.07 | K15: =Consolidated!L333 -> -84.9 | L15: =Consolidated!M333 -> 25 | M15: =Consolidated!N333 -> 218.7 | N15: =Consolidated!O333 -> 32.47326585 | O15: =Consolidated!P333 -> 17.93661576 | P15: =Consolidated!Q333 -> 29.10125993 | Q15: =Consolidated!R333 -> 52.07453172 | R15: =Consolidated!S333 -> 61.49863419
A16: =Consolidated!D334 -> Reported PAT | C16: =#REF! ->  | D16: =#REF! ->  | E16: =#REF! ->  | F16: =#REF! ->  | G16: =#REF! ->  | H16: =Consolidated!I334 -> 372.706 | I16: =Consolidated!J334 -> 924.741 | J16: =Consolidated!K334 -> 1013.26 | K16: =Consolidated!L334 -> -116 | L16: =Consolidated!M334 -> 1348.3 | M16: =Consolidated!N334 -> 1858.2 | N16: =Consolidated!O334 -> 1739.17419 | O16: =Consolidated!P334 -> 2013.372872 | P16: =Consolidated!Q334 -> 2955.575295 | Q16: =Consolidated!R334 -> 3332.383245 | R16: =Consolidated!S334 -> 3647.214818
A17: =Consolidated!C335 -> Minority interest | C17: =#REF! ->  | D17: =#REF! ->  | E17: =#REF! ->  | F17: =#REF! ->  | G17: =#REF! ->  | H17: =Consolidated!I335 -> 0 | I17: =Consolidated!J335 -> -45.691 | J17: =Consolidated!K335 -> 0 | K17: =Consolidated!L335 -> -125 | L17: =Consolidated!M335 -> -10.9 | M17: =Consolidated!N335 -> 49.1 | N17: =Consolidated!O335 -> 64.36743222 | O17: =Consolidated!P335 -> 166.9453445 | P17: =Consolidated!Q335 -> 265.9394637 | Q17: =Consolidated!R335 -> 344.3005155 | R17: =Consolidated!S335 -> 371.661995
A18: =Consolidated!D336 -> Adjusted PAT | C18: =#REF! ->  | D18: =#REF! ->  | E18: =#REF! ->  | F18: =#REF! ->  | G18: =#REF! ->  | H18: =Consolidated!I336 -> 601.594 | I18: =Consolidated!J336 -> 969.0710772 | J18: =Consolidated!K336 -> 1013.26 | K18: =Consolidated!L336 -> 79.10569844 | L18: =Consolidated!M336 -> 1374.143997 | M18: =Consolidated!N336 -> 1809.1 | N18: =Consolidated!O336 -> 1674.806757 | O18: =Consolidated!P336 -> 1846.427527 | P18: =Consolidated!Q336 -> 2689.635832 | Q18: =Consolidated!R336 -> 2988.08273 | R18: =Consolidated!S336 -> 3275.552823
A20: =Consolidated!C338 -> EPS (Rs)
A21: =Consolidated!D339 -> Primary | C21: =#REF! ->  | D21: =#REF! ->  | E21: =#REF! ->  | F21: =#REF! ->  | G21: =#REF! ->  | H21: =Consolidated!I339 -> 2.568401009 | I21: =Consolidated!J339 -> 4.137280512 | J21: =Consolidated!K339 -> 4.325549626 | K21: =Consolidated!L339 -> 0.3366199933 | L21: =Consolidated!M339 -> 5.844934056 | M21: =Consolidated!N339 -> 7.691751701 | N21: =Consolidated!O339 -> 7.12077703 | O21: =Consolidated!P339 -> 7.850457173 | P21: =Consolidated!Q339 -> 11.43552649 | Q21: =Consolidated!R339 -> 12.70443337 | R21: =Consolidated!S339 -> 13.92667017
A22: =Consolidated!D340 -> Fully diluted | C22: =#REF! ->  | D22: =#REF! ->  | E22: =#REF! ->  | F22: =#REF! ->  | G22: =#REF! ->  | H22: =Consolidated!I340 -> 2.568401009 | I22: =Consolidated!J340 -> 4.137280512 | J22: =Consolidated!K340 -> 4.325549626 | K22: =Consolidated!L340 -> 0.3366199933 | L22: =Consolidated!M340 -> 5.844934056 | M22: =Consolidated!N340 -> 7.691751701 | N22: =Consolidated!O340 -> 7.12077703 | O22: =Consolidated!P340 -> 7.850457173 | P22: =Consolidated!Q340 -> 11.43552649 | Q22: =Consolidated!R340 -> 12.70443337 | R22: =Consolidated!S340 -> 13.92667017
A24: =Consolidated!C341 -> Shares outstanding (mn)
A25: =Consolidated!D342 -> Year end | C25: =#REF! ->  | D25: =#REF! ->  | E25: =#REF! ->  | F25: =#REF! ->  | G25: =#REF! ->  | H25: =Consolidated!I342 -> 234.229 | I25: =Consolidated!J342 -> 234.229 | J25: =Consolidated!K342 -> 234.25 | K25: =Consolidated!L342 -> 235 | L25: =Consolidated!M342 -> 235.1 | M25: =Consolidated!N342 -> 235.2 | N25: =Consolidated!O342 -> 235.2 | O25: =Consolidated!P342 -> 235.2 | P25: =Consolidated!Q342 -> 235.2 | Q25: =Consolidated!R342 -> 235.2 | R25: =Consolidated!S342 -> 235.2
A26: =Consolidated!D343 -> Primary | C26: =#REF! ->  | D26: =#REF! ->  | E26: =#REF! ->  | F26: =#REF! ->  | G26: =#REF! ->  | H26: =Consolidated!I343 -> 234.229 | I26: =Consolidated!J343 -> 234.229 | J26: =Consolidated!K343 -> 234.25 | K26: =Consolidated!L343 -> 235 | L26: =Consolidated!M343 -> 235.1 | M26: =Consolidated!N343 -> 235.2 | N26: =Consolidated!O343 -> 235.2 | O26: =Consolidated!P343 -> 235.2 | P26: =Consolidated!Q343 -> 235.2 | Q26: =Consolidated!R343 -> 235.2 | R26: =Consolidated!S343 -> 235.2
A27: =Consolidated!D344 -> Fully diluted | C27: =#REF! ->  | D27: =#REF! ->  | E27: =#REF! ->  | F27: =#REF! ->  | G27: =#REF! ->  | H27: =Consolidated!I344 -> 234.229 | I27: =Consolidated!J344 -> 234.229 | J27: =Consolidated!K344 -> 234.25 | K27: =Consolidated!L344 -> 235 | L27: =Consolidated!M344 -> 235.1 | M27: =Consolidated!N344 -> 235.2 | N27: =Consolidated!O344 -> 235.2 | O27: =Consolidated!P344 -> 235.2 | P27: =Consolidated!Q344 -> 235.2 | Q27: =Consolidated!R344 -> 235.2 | R27: =Consolidated!S344 -> 235.2
A29: =Consolidated!C345 -> Cash flow per share (Rs)
A30: =Consolidated!D346 -> Primary | C30: =#REF! ->  | D30: =#REF! ->  | E30: =#REF! ->  | F30: =#REF! ->  | G30: =#REF! ->  | H30: =Consolidated!I346 -> 3.812115494 | I30: =Consolidated!J346 -> 5.70721388 | J30: =Consolidated!K346 -> 5.30266809 | K30: =Consolidated!L346 -> 2.494468085 | L30: =Consolidated!M346 -> 9.815397703 | M30: =Consolidated!N346 -> 11.98894558 | N30: =Consolidated!O346 -> 9.074797908 | O30: =Consolidated!P346 -> 9.89286749 | P30: =Consolidated!Q346 -> 13.81015479 | Q30: =Consolidated!R346 -> 15.08721497 | R30: =Consolidated!S346 -> 16.22194039
A31: =Consolidated!D347 -> Fully diluted | C31: =#REF! ->  | D31: =#REF! ->  | E31: =#REF! ->  | F31: =#REF! ->  | G31: =#REF! ->  | H31: =Consolidated!I347 -> 3.812115494 | I31: =Consolidated!J347 -> 5.70721388 | J31: =Consolidated!K347 -> 5.30266809 | K31: =Consolidated!L347 -> 2.494468085 | L31: =Consolidated!M347 -> 9.815397703 | M31: =Consolidated!N347 -> 11.98894558 | N31: =Consolidated!O347 -> 9.074797908 | O31: =Consolidated!P347 -> 9.89286749 | P31: =Consolidated!Q347 -> 13.81015479 | Q31: =Consolidated!R347 -> 15.08721497 | R31: =Consolidated!S347 -> 16.22194039
A33: =Consolidated!C348 -> Growth (%)
A34: =Consolidated!D349 -> Net income (adjusted) | C34: =#REF! ->  | D34: =#REF! ->  | E34: =#REF! ->  | F34: =#REF! ->  | G34: =#REF! ->  | H34: =Consolidated!I349 -> 0 | I34: =Consolidated!J349 -> 61.08389996 | J34: =Consolidated!K349 -> 4.55992588 | K34: =Consolidated!L349 -> -92.19295162 | L34: =Consolidated!M349 -> 1637.098621 | M34: =Consolidated!N349 -> 31.65286931 | N34: =Consolidated!O349 -> -7.423207264 | O34: =Consolidated!P349 -> 10.2471983 | P34: =Consolidated!Q349 -> 45.66701331 | Q34: =Consolidated!R349 -> 11.09618242 | R34: =Consolidated!S349 -> 9.620553365
A35: =Consolidated!D350 -> EPS (adjusted) | C35: =#REF! ->  | D35: =#REF! ->  | E35: =#REF! ->  | F35: =#REF! ->  | G35: =#REF! ->  | H35: =Consolidated!I350 -> 0 | I35: =Consolidated!J350 -> 61.08389996 | J35: =Consolidated!K350 -> 4.550552312 | K35: =Consolidated!L350 -> -92.21786773 | L35: =Consolidated!M350 -> 1636.359744 | M35: =Consolidated!N350 -> 31.59689445 | N35: =Consolidated!O350 -> -7.423207264 | O35: =Consolidated!P350 -> 10.2471983 | P35: =Consolidated!Q350 -> 45.66701331 | Q35: =Consolidated!R350 -> 11.09618242 | R35: =Consolidated!S350 -> 9.620553365
A36: =Consolidated!D351 -> DCF/share | C36: =#REF! ->  | D36: =#REF! ->  | E36: =#REF! ->  | F36: =#REF! ->  | G36: =#REF! ->  | H36: =Consolidated!I351 -> 0 | I36: =Consolidated!J351 -> 49.71251238 | J36: =Consolidated!K351 -> -7.088323642 | K36: =Consolidated!L351 -> -52.95824587 | L36: =Consolidated!M351 -> 293.4866019 | M36: =Consolidated!N351 -> 22.14426701 | N36: =Consolidated!O351 -> -24.30695553 | O36: =Consolidated!P351 -> 9.014741604 | P36: =Consolidated!Q351 -> 39.59708648 | Q36: =Consolidated!R351 -> 9.247254658 | R36: =Consolidated!S351 -> 7.52110593
A38: =Consolidated!D353 -> Cash tax rate (%) | C38: =#REF! ->  | D38: =#REF! ->  | E38: =#REF! ->  | F38: =#REF! ->  | G38: =#REF! ->  | H38: =Consolidated!I353 -> 0 | I38: =Consolidated!J353 -> 39.00840405 | J38: =Consolidated!K353 -> 37.39009684 | K38: =Consolidated!L353 -> 20.17145739 | L38: =Consolidated!M353 -> 29.46578505 | M38: =Consolidated!N353 -> 36.23103851 | N38: =Consolidated!O353 -> 28.00246542 | O38: =Consolidated!P353 -> 28.65155941 | P38: =Consolidated!Q353 -> 30.50033697 | Q38: =Consolidated!R353 -> 31.3740757 | R38: =Consolidated!S353 -> 31.75880788
A39: =Consolidated!D354 -> Effective tax rate (%) | C39: =#REF! ->  | D39: =#REF! ->  | E39: =#REF! ->  | F39: =#REF! ->  | G39: =#REF! ->  | H39: =Consolidated!I354 -> 0 | I39: =Consolidated!J354 -> 37.16884373 | J39: =Consolidated!K354 -> 27.0962543 | K39: =Consolidated!L354 -> 62.98537569 | L39: =Consolidated!M354 -> 28.1538623 | M39: =Consolidated!N354 -> 27.72462077 | N39: =Consolidated!O354 -> 26.63257392 | O39: =Consolidated!P354 -> 28.01022118 | P39: =Consolidated!Q354 -> 29.80922277 | Q39: =Consolidated!R354 -> 30.28464688 | R39: =Consolidated!S354 -> 30.58840289

Sheet cons revenues
A1: Derivation of revenues of HT Media, March fiscal year-ends, 2007-20E (Rs mn)
C3: 2006 | D3: 2007 | E3: 2008 | F3: 2009 | G3: 2010 | H3: 2011E | I3: 2012E | J3: 2013E | K3: 2014E | L3: 2015E | M3: 2016E | N3: 2017E | O3: 2018E | P3: 2019E | Q3: 2020E
A4: Revenues (Rs mn)
A5: HT Delhi-NCR | D5: ='HT Delhi-NCR'!D5 -> 5900 | E5: ='HT Delhi-NCR'!E5 -> 6302.38 | F5: ='HT Delhi-NCR'!F5 -> 6446.704502 | G5: ='HT Delhi-NCR'!G5 -> 5802.034052 | H5: ='HT Delhi-NCR'!H5 -> 6857.424046 | I5: ='HT Delhi-NCR'!I5 -> 7200.295248 | J5: ='HT Delhi-NCR'!J5 -> 7937.605482 | K5: ='HT Delhi-NCR'!K5 -> 9080.620671 | L5: ='HT Delhi-NCR'!L5 -> 8938.962988 | M5: ='HT Delhi-NCR'!M5 -> 9096.288737 | N5: ='HT Delhi-NCR'!N5 -> 9838.545898 | O5: ='HT Delhi-NCR'!O5 -> 10641.37124 | P5: ='HT Delhi-NCR'!P5 -> 11179.82463 | Q5: ='HT Delhi-NCR'!Q5 -> 11745.52375
A6: HT Mumbai | D6: ='HT Mumbai'!D5 -> 800 | E6: ='HT Mumbai'!E5 -> 1010.08 | F6: ='HT Mumbai'!F5 -> 1112.704128 | G6: ='HT Mumbai'!G5 -> 1123.608628 | H6: ='HT Mumbai'!H5 -> 1409.00522 | I6: ='HT Mumbai'!I5 -> 1589.92149 | J6: ='HT Mumbai'!J5 -> 1904.407961 | K6: ='HT Mumbai'!K5 -> 2382.033478 | L6: ='HT Mumbai'!L5 -> 2599.751338 | M6: ='HT Mumbai'!M5 -> 2865.965875 | N6: ='HT Mumbai'!N5 -> 3220.199257 | O6: ='HT Mumbai'!O5 -> 3618.215885 | P6: ='HT Mumbai'!P5 -> 3988.721191 | Q6: ='HT Mumbai'!Q5 -> 4314.200841
A7: HT Others | D7: ='HT Others'!D5 -> 750 | E7: ='HT Others'!E5 -> 907.2 | F7: ='HT Others'!F5 -> 1000.09728 | G7: ='HT Others'!G5 -> 1050.502183 | H7: ='HT Others'!H5 -> 1256.400611 | I7: ='HT Others'!I5 -> 1411.189166 | J7: ='HT Others'!J5 -> 1614.400406 | K7: ='HT Others'!K5 -> 1899.503518 | L7: ='HT Others'!L5 -> 1987.640481 | M7: ='HT Others'!M5 -> 2106.89891 | N7: ='HT Others'!N5 -> 2367.311615 | O7: ='HT Others'!O5 -> 2659.91133 | P7: ='HT Others'!P5 -> 2932.286251 | Q7: ='HT Others'!Q5 -> 3232.552363
A8: HT Mint | D8: ='HT Mint'!D5 -> 50 | E8: ='HT Mint'!E5 -> 200 | F8: ='HT Mint'!F5 -> 300 | G8: ='HT Mint'!G5 -> 450 | H8: ='HT Mint'!H5 -> 630.99 | I8: ='HT Mint'!I5 -> 745.767081 | J8: ='HT Mint'!J5 -> 926.9884817 | K8: ='HT Mint'!K5 -> 1161.33117 | L8: ='HT Mint'!L5 -> 1215.216936 | M8: ='HT Mint'!M5 -> 1251.916488 | N8: ='HT Mint'!N5 -> 1391.880751 | O8: ='HT Mint'!O5 -> 1608.17902 | P8: ='HT Mint'!P5 -> 1823.996644 | Q8: ='HT Mint'!Q5 -> 2068.776994
A9: Hindustan | D9: =Hindustan!D5 -> 1273.6 | E9: =Hindustan!E5 -> 1651.7 | F9: =Hindustan!F5 -> 2439.9 | G9: =Hindustan!G5 -> 2979.9936 | H9: =Hindustan!H5 -> 3772.9548 | I9: =Hindustan!I5 -> 4402.504143 | J9: =Hindustan!J5 -> 5252.698853 | K9: =Hindustan!K5 -> 6379.559859 | L9: =Hindustan!L5 -> 7402.594239 | M9: =Hindustan!M5 -> 7921.978248 | N9: =Hindustan!N5 -> 9567.186461 | O9: =Hindustan!O5 -> 10928.5583 | P9: =Hindustan!P5 -> 12321.1615 | Q9: =Hindustan!Q5 -> 13884.02915
A10: Print advertising revenues | D10: =SUM(D5:D9) -> 8773.6 | E10: 10071.36 | F10: 11299.40591 | G10: 11406.13846 | H10: 13926.77468 | I10: 15349.67713 | J10: 17636.10118 | K10: 20903.0487 | L10: 22144.16598 | M10: 23243.04826 | N10: 26385.12398 | O10: 29456.23578 | P10: 32245.99022 | Q10: 35245.0831
A11: actual | D11: =Consolidated!J7 -> 8749.09 | E11: =Consolidated!K7 -> 10073.51 | F11: =Consolidated!L7 -> 11282.1 | G11: =Consolidated!M7 -> 11409.7
A13: Circulation revenues | D13: ='HT Delhi-NCR'!D10+'HT Mumbai'!D10+'HT Others'!D10+'HT Mint'!D10+Hindustan!D10 -> 1368.704 | E13: ='HT Delhi-NCR'!E10+'HT Mumbai'!E10+'HT Others'!E10+'HT Mint'!E10+Hindustan!E10 -> 1487.3064 | F13: ='HT Delhi-NCR'!F10+'HT Mumbai'!F10+'HT Others'!F10+'HT Mint'!F10+Hindustan!F10 -> 1563.2788 | G13: ='HT Delhi-NCR'!G10+'HT Mumbai'!G10+'HT Others'!G10+'HT Mint'!G10+Hindustan!G10 -> 1860.03792 | H13: ='HT Delhi-NCR'!H10+'HT Mumbai'!H10+'HT Others'!H10+'HT Mint'!H10+Hindustan!H10 -> 1808.1765 | I13: ='HT Delhi-NCR'!I10+'HT Mumbai'!I10+'HT Others'!I10+'HT Mint'!I10+Hindustan!I10 -> 1981.7298 | J13: ='HT Delhi-NCR'!J10+'HT Mumbai'!J10+'HT Others'!J10+'HT Mint'!J10+Hindustan!J10 -> 2214.980775 | K13: ='HT Delhi-NCR'!K10+'HT Mumbai'!K10+'HT Others'!K10+'HT Mint'!K10+Hindustan!K10 -> 2334.53628 | L13: ='HT Delhi-NCR'!L10+'HT Mumbai'!L10+'HT Others'!L10+'HT Mint'!L10+Hindustan!L10 -> 2364.75234 | M13: ='HT Delhi-NCR'!M10+'HT Mumbai'!M10+'HT Others'!M10+'HT Mint'!M10+Hindustan!M10 -> 2555.45685 | N13: ='HT Delhi-NCR'!N10+'HT Mumbai'!N10+'HT Others'!N10+'HT Mint'!N10+Hindustan!N10 -> 2778.6159 | O13: ='HT Delhi-NCR'!O10+'HT Mumbai'!O10+'HT Others'!O10+'HT Mint'!O10+Hindustan!O10 -> 2959.1928 | P13: ='HT Delhi-NCR'!P10+'HT Mumbai'!P10+'HT Others'!P10+'HT Mint'!P10+Hindustan!P10 -> 3189.006 | Q13: ='HT Delhi-NCR'!Q10+'HT Mumbai'!Q10+'HT Others'!Q10+'HT Mint'!Q10+Hindustan!Q10 -> 3357.702
A14: HT-Burda JV | D14: ='HT-Burda'!D4 -> 0 | E14: ='HT-Burda'!E4 -> 0 | F14: ='HT-Burda'!F4 -> 0 | G14: ='HT-Burda'!G4 -> 90 | H14: ='HT-Burda'!H4 -> 645.5163 | I14: ='HT-Burda'!I4 -> 1113.40125 | J14: ='HT-Burda'!J4 -> 1833.2028 | K14: ='HT-Burda'!K4 -> 2324.52828 | L14: ='HT-Burda'!L4 -> 2730.84966 | M14: ='HT-Burda'!M4 -> 3096.642948 | N14: ='HT-Burda'!N4 -> 3476.096588 | O14: ='HT-Burda'!O4 -> 3869.560276 | P14: ='HT-Burda'!P4 -> 4277.392905 | Q14: ='HT-Burda'!Q4 -> 4364.251163
A15: Fever FM | D15: ='Fever-FM'!D6 -> 21.4 | E15: ='Fever-FM'!E6 -> 257.9 | F15: ='Fever-FM'!F6 -> 338.7192859 | G15: ='Fever-FM'!G6 -> 437.1749053 | H15: ='Fever-FM'!H6 -> 631.91856 | I15: ='Fever-FM'!I6 -> 674.063208 | J15: ='Fever-FM'!J6 -> 785.0853834 | K15: ='Fever-FM'!K6 -> 863.5939218 | L15: ='Fever-FM'!L6 -> 1020.382169 | M15: ='Fever-FM'!M6 -> 1122.420386 | N15: ='Fever-FM'!N6 -> 1003.16322 | O15: ='Fever-FM'!O6 -> 272.6546187 | P15: ='Fever-FM'!P6 -> 0 | Q15: ='Fever-FM'!Q6 -> 0
A16: Internet | D16: =Internet!D6 -> 0 | E16: =Internet!E6 -> 0 | F16: =Internet!F6 -> 10 | G16: =Internet!G6 -> 40 | H16: =Internet!H6 -> 80 | I16: =Internet!I6 -> 200 | J16: =Internet!J6 -> 300 | K16: =Internet!K6 -> 390 | L16: =Internet!L6 -> 468 | M16: =Internet!M6 -> 538.2 | N16: =Internet!N6 -> 618.93 | O16: =Internet!O6 -> 711.7695 | P16: =Internet!P6 -> 818.534925 | Q16: =Internet!Q6 -> 941.3151637
A17: Other operating | D17: =SUM(Consolidated!J12:J16) -> 452.1087451 | E17: =SUM(Consolidated!K12:K16) -> 392.7566354 | F17: =SUM(Consolidated!L12:L16) -> 548.2388959 | G17: =SUM(Consolidated!M12:M16) -> 624.4174767 | H17: =SUM(Consolidated!N12:N16) -> 976.205887 | I17: =SUM(Consolidated!O12:O16) -> 1132.62 | J17: =SUM(Consolidated!P12:P16) -> 1245.817 | K17: =SUM(Consolidated!Q12:Q16) -> 1370.3887 | L17: =SUM(Consolidated!R12:R16) -> 1507.41757 | M17: =SUM(Consolidated!S12:S16) -> 1582.733449 | N17: =SUM(Consolidated!T12:T16) -> 1661.867621 | O17: =SUM(Consolidated!U12:U16) -> 1744.958502 | P17: =SUM(Consolidated!V12:V16) -> 1832.203927 | Q17: =SUM(Consolidated!W12:W16) -> 1923.811623
A18: Total revenues | D18: =D10+SUM(D13:D17) -> 10615.81275 | E18: =E10+SUM(E13:E17) -> 12209.32304 | F18: 13759.64289 | G18: 14457.76877 | H18: 18068.59192 | I18: 20451.49139 | J18: 24015.18714 | K18: 28186.09588 | L18: 30235.56772 | M18: 32138.50189 | N18: 35923.79731 | O18: 39014.37148 | P18: 42363.12797 | Q18: 45832.16305
A19: actual | D19: =Consolidated!J17 -> 10396.575 | E19: =Consolidated!K17 -> 12032.51 | F19: =Consolidated!L17 -> 13466.1 | G19: =Consolidated!M17 -> 14129.2
A21: Common-size (%)
A22: HT Delhi-NCR | D22: =D5/D$18*100 -> 55.57746865 | E22: 51.61940577 | F22: 46.8522661 | G22: 40.13090917 | H22: 37.95217732 | I22: 35.20670015 | J22: 33.05244067 | K22: 32.21666708 | L22: 29.56439605 | M22: 28.30339998 | N22: 27.38726592 | O22: 27.27551628 | P22: 26.39046067 | Q22: 25.62725163
A23: HT Mumbai | D23: =D6/D$18*100 -> 7.535927952 | E23: 8.273022157 | F23: 8.08672243 | G23: 7.771659975 | H23: 7.798090886 | I23: 7.774110261 | J23: 7.930015077 | K23: 8.451094072 | L23: 8.598321558 | M23: 8.917546575 | N23: 8.963972347 | O23: 9.274059143 | P23: 9.415549281 | Q23: 9.413042182
A24: HT Others | D24: =D7/D$18*100 -> 7.064932455 | E24: 7.430387396 | F24: 7.26833747 | G24: 7.266004872 | H24: 6.953505929 | I24: 6.900177299 | J24: 6.722414431 | K24: 6.739150842 | L24: 6.573848717 | M24: 6.555684882 | N24: 6.58981453 | O24: 6.817773118 | P24: 6.921788808 | Q24: 7.053021607
A25: HT Mint | D25: =D8/D$18*100 -> 0.470995497 | E25: 1.63809246 | F25: 2.180289142 | G25: 3.112513468 | H25: 3.492192434 | I25: 3.646516857 | J25: 3.860009402 | K25: 4.120227132 | L25: 4.019163613 | M25: 3.895379106 | N25: 3.874536812 | O25: 4.122016987 | P25: 4.305623148 | Q25: 4.513810512
A26: Hindustan | D26: =D9/D$18*100 -> 11.9971973 | E26: 13.52818658 | F26: 17.73229159 | G26: 20.61171159 | H26: 20.88128846 | I26: 21.52656772 | J26: 21.87240442 | K26: 22.63371234 | L26: 24.48306679 | M26: 24.64949448 | N26: 26.63189077 | O26: 28.0116221 | P26: 29.08463584 | Q26: 30.29320072
A27: Print advertising revenues | D27: =D10/D$18*100 -> 82.64652185 | E27: 82.48909436 | F27: 82.11990674 | G27: 78.89279908 | H27: 77.07725503 | I27: 75.05407228 | J27: 73.437284 | K27: 74.16085146 | L27: 73.23879673 | M27: 72.32150502 | N27: 73.44748038 | O27: 75.50098762 | P27: 76.11805775 | Q27: 76.90032666
A28: Circulation revenues | D28: =D13/D$18*100 -> 12.89306841 | E28: 12.18172699 | F28: 11.36133265 | G28: 12.86531795 | H28: 10.00729059 | I28: 9.689903599 | J28: 9.223250112 | K28: 8.282581207 | L28: 7.821094553 | M28: 7.951387587 | N28: 7.734749965 | O28: 7.584878823 | P28: 7.527786905 | Q28: 7.326082333
A29: HT-Burda JV | D29: =D14/D$18*100 -> 0 | E29: 0 | F29: 0 | G29: 0.6225026936 | H29: 3.572587741 | I29: 5.44410786 | J29: 7.633514531 | K29: 8.247074338 | L29: 9.031911308 | M29: 9.635305836 | N29: 9.676306092 | O29: 9.918294539 | P29: 10.09697137 | Q29: 9.522245673
A30: Fever FM | D30: =D15/D$18*100 -> 0.2015860727 | E30: 2.112320227 | F30: 2.461686605 | G30: 3.023806179 | H30: 3.497331517 | I30: 3.295912241 | J30: 3.269120406 | K30: 3.063900462 | L30: 3.3747743 | M30: 3.492447749 | N30: 2.792475448 | O30: 0.6988568786 | P30: 0 | Q30: 0
A31: Internet | D31: =D16/D$18*100 -> 0 | E31: 0 | F31: 0.07267630475 | G31: 0.2766678638 | H31: 0.442757246 | I31: 0.9779237916 | J31: 1.249209503 | K31: 1.383660943 | L31: 1.547845916 | M31: 1.674626907 | N31: 1.722896927 | O31: 1.824377718 | P31: 1.932187174 | Q31: 2.053830981
A32: Other operating | D32: =D17/D$18*100 -> 4.258823662 | E32: 3.216858414 | F32: 3.984397707 | G32: 4.318906236 | H32: 5.402777876 | I32: 5.538080224 | J32: 5.187621452 | K32: 4.861931592 | L32: 4.985577198 | M32: 4.924726902 | N32: 4.626091186 | O32: 4.472604417 | P32: 4.324996795 | Q32: 4.197514355
A33: Total revenues | D33: =D18/D$18*100 -> 100 | E33: 100 | F33: 100 | G33: 100 | H33: 100 | I33: 100 | J33: 100 | K33: 100 | L33: 100 | M33: 100 | N33: 100 | O33: 100 | P33: 100 | Q33: 100
A35: Growth (%)
A36: HT Delhi-NCR | E36: =(E5/D5-1)*100 -> 6.82 | F36: 2.29 | G36: -10 | H36: 18.19 | I36: 5 | J36: 10.24 | K36: 14.4 | L36: -1.56 | M36: 1.76 | N36: 8.16 | O36: 8.16 | P36: 5.06 | Q36: 5.06
A37: HT Mumbai | E37: =(E6/D6-1)*100 -> 26.26 | F37: 10.16 | G37: 0.98 | H37: 25.4 | I37: 12.84 | J37: 19.78 | K37: 25.08 | L37: 9.14 | M37: 10.24 | N37: 12.36 | O37: 12.36 | P37: 10.24 | Q37: 8.16
A38: HT Others | E38: =(E7/D7-1)*100 -> 20.96 | F38: 10.24 | G38: 5.04 | H38: 19.6 | I38: 12.32 | J38: 14.4 | K38: 17.66 | L38: 4.64 | M38: 6 | N38: 12.36 | O38: 12.36 | P38: 10.24 | Q38: 10.24
A39: HT Mint | E39: =(E8/D8-1)*100 -> 300 | F39: 50 | G39: 50 | H39: 40.22 | I39: 18.19 | J39: 24.3 | K39: 25.28 | L39: 4.64 | M39: 3.02 | N39: 11.18 | O39: 15.54 | P39: 13.42 | Q39: 13.42
A40: Hindustan | E40: =(E9/D9-1)*100 -> 29.6875 | F40: 47.72053036 | G40: 22.13589082 | H40: 26.60949339 | I40: 16.68584377 | J40: 19.31161634 | K40: 21.45299089 | L40: 16.03612792 | M40: 7.016243122 | N40: 20.76764366 | O40: 14.22959452 | P40: 12.74278968 | Q40: 12.68441815
A41: Advertising revenues | E41: =(E10/D10-1)*100 -> 14.79164767 | F41: 12.19344666 | G41: 0.9445855297 | H41: 22.09894454 | I41: 10.21702788 | J41: 14.89558402 | K41: 18.52420486 | L41: 5.937494117 | M41: 4.962400823 | N41: 13.51834617 | O41: 11.63955796 | P41: 9.470845009 | Q41: 9.300669208
A42: Circulation revenues | E42: =(E13/D13-1)*100 -> 8.665306743 | F42: 5.108053055 | G42: 18.98312188 | H42: -2.788191544 | I42: 9.59824995 | J42: 11.77006951 | K42: 5.397586577 | L42: 1.294306722 | M42: 8.064460146 | N42: 8.732647941 | O42: 6.498807554 | P42: 7.76607729 | Q42: 5.289924196
A43: HT-Burda JV | I43: =(I14/H14-1)*100 -> 72.48228279 | J43: 64.64889006 | K43: 26.8014799 | L43: 17.47973486 | M43: 13.39485265 | N43: 12.25370978 | O43: 11.31912414 | P43: 10.53950837 | Q43: 2.030635484
A44: Fever FM | F44: =(F15/E15-1)*100 -> 31.33745091 | G44: 29.06702496 | H44: 44.54593628 | I44: 6.669316375 | J44: 16.47058824 | K44: 10 | L44: 18.15532081 | M44: 10 | N44: -10.625 | O44: -72.82051282 | P44: -100
A45: Internet | H45: =(H16/G16-1)*100 -> 100 | I45: 150 | J45: 50 | K45: 30 | L45: 20 | M45: 15 | N45: 15 | O45: 15 | P45: 15 | Q45: 15
A46: Other operating | E46: =(E17/D17-1)*100 -> -13.12783934 | F46: 39.5874306 | G46: 13.89514342 | H46: 56.33865536 | I46: 16.0226562 | J46: 9.994261094 | K46: 9.999197314 | L46: 9.99927028 | M46: 4.996351376 | N46: 4.999842045 | O46: 4.999849567 | P46: 4.99985673 | Q46: 4.999863552
A47: Total revenues | E47: =(E18/D18-1)*100 -> 15.01072342 | F47: 12.69783633 | G47: 5.073720873 | H47: 24.97496825 | I47: 13.18807505 | J47: 17.42511432 | K47: 17.3677961 | L47: 7.271215753 | M47: 6.293694188 | N47: 11.77807053 | O47: 8.60313886 | P47: 8.583392144 | Q47: 8.188807678

Sheet cons expenses
A1: Derivation of expenses of HT Media, March fiscal year-ends, 2007-20E (Rs mn)
C3: 2006 | D3: 2007 | E3: 2008 | F3: 2009 | G3: 2010 | H3: 2011 | I3: 2012E | J3: 2013E | K3: 2014E | L3: 2015E | M3: 2016E | N3: 2017E | O3: 2018E | P3: 2019E | Q3: 2020E
A4: Expenses (Rs mn)
A5: Newsprint costs | D5: =D53 -> 4314.843987 | E5: 4670.887012 | F5: 5681.606951 | G5: 4746.055283 | H5: 6211.254635 | I5: 7444.033774 | J5: 9266.647469 | K5: 10407.94463 | L5: 10416.12606 | M5: 11025.59651 | N5: 12152.30841 | O5: 13410.30323 | P5: 14766.22402 | Q5: 15857.83527
A6: Employee costs | D6: =D67 -> 1551.15 | E6: 1904.225 | F6: 2377.78 | G6: 2503.287744 | H6: 3011.602906 | I6: 3547.717261 | J6: 4266.608661 | K6: 5048.96499 | L6: 5807.497998 | M6: 6150.573782 | N6: 6712.640002 | O6: 7103.254248 | P6: 7700.703568 | Q6: 8444.440219
A7: SG&A and other costs | D7: =D84 -> 2770.745 | E7: 3707.52 | F7: 4580.4 | G7: 4350.3 | H7: 5244.8 | I7: 6220.144688 | J7: 6868.336095 | K7: 7662.718914 | L7: 8376.344267 | M7: 8861.446763 | N7: 9618.661657 | O7: 10151.56881 | P7: 10912.388 | Q7: 11844.17865
A8: Total expenses | D8: =SUM(D5:D7) -> 8636.738987 | E8: 10282.63201 | F8: 12639.78695 | G8: 11599.64303 | H8: 14467.65754 | I8: 17211.89572 | J8: 20401.59222 | K8: 23119.62853 | L8: 24599.96832 | M8: 26037.61706 | N8: 28483.61007 | O8: 30665.12629 | P8: 33379.31559 | Q8: 36146.45414
A9: actual | D9: =Consolidated!J21+Consolidated!J25+Consolidated!J40 -> 8716.203 | E9: =Consolidated!K21+Consolidated!K25+Consolidated!K40 -> 10333.54 | F9: =Consolidated!L21+Consolidated!L25+Consolidated!L40 -> 12587.3 | G9: =Consolidated!M21+Consolidated!M25+Consolidated!M40 -> 11630.4
A11: Common-size (%)
A12: Newsprint costs | D12: =D5/D$8*100 -> 49.95918012 | E12: 45.42501382 | F12: 44.95017972 | G12: 40.9155288 | H12: 42.93199931 | I12: 43.24935436 | J12: 45.42119736 | K12: 45.01778484 | L12: 42.34203037 | M12: 42.34487544 | N12: 42.66421419 | O12: 43.7314463 | P12: 44.23764766 | Q12: 43.87106744
A13: Employee costs | D13: =D6/D$8*100 -> 17.95990364 | E13: 18.51884807 | F13: 18.81186771 | G13: 21.58073087 | H13: 20.81610584 | I13: 20.61200764 | J13: 20.91311607 | K13: 21.83843474 | L13: 23.60774584 | M13: 23.62187665 | N13: 23.56667566 | O13: 23.16394911 | P13: 23.07028599 | Q13: 23.36173885
A14: SG&A and other costs | D14: =D7/D$8*100 -> 32.08091624 | E14: 36.05613811 | F14: 36.23795257 | G14: 37.50374033 | H14: 36.25189486 | I14: 36.138638 | J14: 33.66568657 | K14: 33.14378041 | L14: 34.05022379 | M14: 34.03324791 | N14: 33.76911015 | O14: 33.10460459 | P14: 32.69206635 | Q14: 32.76719371
A15: Total expenses | D15: =D8/D$8*100 -> 100 | E15: 100 | F15: 100 | G15: 100 | H15: 100 | I15: 100 | J15: 100 | K15: 100 | L15: 100 | M15: 100 | N15: 100 | O15: 100 | P15: 100 | Q15: 100
A17: Growth (%)
A18: Newsprint costs | E18: =(E5/D5-1)*100 -> 8.251585147 | F18: 21.63871522 | G18: -16.46632152 | H18: 30.87194026 | I18: 19.84750603 | J18: 24.4842212 | K18: 12.31618193 | L18: 0.07860752605 | M18: 5.851220015 | N18: 10.21905615 | O18: 10.3519001 | P18: 10.11103747 | Q18: 7.392622876
A19: Employee costs | E19: =(E6/D6-1)*100 -> 22.76214422 | F19: 24.86864735 | G19: 5.278358132 | H19: 20.30590222 | I19: 17.80162832 | J19: 20.2634919 | K19: 18.33672574 | L19: 15.02353471 | M19: 5.907462813 | N19: 9.138435521 | O19: 5.81908528 | P19: 8.410924051 | Q19: 9.658035065
A20: SG&A and other costs | E20: =(E7/D7-1)*100 -> 33.80949889 | F20: 23.54350078 | G20: -5.023578727 | H20: 20.56180034 | I20: 18.59641335 | J20: 10.42084131 | K20: 11.56586993 | L20: 9.31295225 | M20: 5.791339044 | N20: 8.545048159 | O20: 5.540346129 | P20: 7.494597214 | Q20: 8.53883357
A21: Total expenses | E21: =(E8/D8-1)*100 -> 19.05688047 | F21: 22.92365356 | G21: -8.229125445 | H21: 24.72502392 | I21: 18.96808916 | J21: 18.5319302 | K21: 13.32266756 | L21: 6.402956635 | M21: 5.844108067 | N21: 9.394073988 | O21: 7.658847372 | P21: 8.851061861 | Q21: 8.289979907
A23: Source: Company data, Kotak Institutional Equities estimates
A25: Print standalone | D25: ='HT Delhi-NCR'!D79+'HT Mumbai'!D79+'HT Others'!D79+'HT Mint'!D79 -> 95716.8 | E25: ='HT Delhi-NCR'!E79+'HT Mumbai'!E79+'HT Others'!E79+'HT Mint'!E79 -> 113529.6 | F25: ='HT Delhi-NCR'!F79+'HT Mumbai'!F79+'HT Others'!F79+'HT Mint'!F79 -> 105786 | G25: ='HT Delhi-NCR'!G79+'HT Mumbai'!G79+'HT Others'!G79+'HT Mint'!G79 -> 101122.56 | H25: ='HT Delhi-NCR'!H79+'HT Mumbai'!H79+'HT Others'!H79+'HT Mint'!H79 -> 118720.8 | I25: ='HT Delhi-NCR'!I79+'HT Mumbai'!I79+'HT Others'!I79+'HT Mint'!I79 -> 125278.56 | J25: ='HT Delhi-NCR'!J79+'HT Mumbai'!J79+'HT Others'!J79+'HT Mint'!J79 -> 136429.92 | K25: ='HT Delhi-NCR'!K79+'HT Mumbai'!K79+'HT Others'!K79+'HT Mint'!K79 -> 149094 | L25: ='HT Delhi-NCR'!L79+'HT Mumbai'!L79+'HT Others'!L79+'HT Mint'!L79 -> 134799.84 | M25: ='HT Delhi-NCR'!M79+'HT Mumbai'!M79+'HT Others'!M79+'HT Mint'!M79 -> 134954.64 | N25: ='HT Delhi-NCR'!N79+'HT Mumbai'!N79+'HT Others'!N79+'HT Mint'!N79 -> 144072.36 | O25: ='HT Delhi-NCR'!O79+'HT Mumbai'!O79+'HT Others'!O79+'HT Mint'!O79 -> 152772.48 | P25: ='HT Delhi-NCR'!P79+'HT Mumbai'!P79+'HT Others'!P79+'HT Mint'!P79 -> 163938.6 | Q25: ='HT Delhi-NCR'!Q79+'HT Mumbai'!Q79+'HT Others'!Q79+'HT Mint'!Q79 -> 174938.4
A26: Print consolidated | D26: =D25+Hindustan!D43 -> 137601.675 | E26: =E25+Hindustan!E43 -> 161925.48 | F26: =F25+Hindustan!F43 -> 158814 | G26: =G25+Hindustan!G43 -> 160860.06 | H26: =H25+Hindustan!H43 -> 189757.8 | I26: =I25+Hindustan!I43 -> 202228.56 | J26: =J25+Hindustan!J43 -> 222148.17 | K26: =K25+Hindustan!K43 -> 243945 | L26: =L25+Hindustan!L43 -> 237406.59 | M26: =M25+Hindustan!M43 -> 240700.14 | N26: =N25+Hindustan!N43 -> 258201.36 | O26: =O25+Hindustan!O43 -> 276783.48 | P26: =P25+Hindustan!P43 -> 295644.6 | Q26: =Q25+Hindustan!Q43 -> 312476.4
A27: Print + Burda | D27: =D26+'HT-Burda'!D16 -> 137601.675 | E27: =E26+'HT-Burda'!E16 -> 161925.48 | F27: =F26+'HT-Burda'!F16 -> 158814 | G27: =G26+'HT-Burda'!G16 -> 160860.06 | H27: =H26+'HT-Burda'!H16 -> 202757.8 | I27: =I26+'HT-Burda'!I16 -> 225228.56 | J27: =J26+'HT-Burda'!J16 -> 255148.17 | K27: =K26+'HT-Burda'!K16 -> 283945 | L27: =L26+'HT-Burda'!L16 -> 282406.59 | M27: =M26+'HT-Burda'!M16 -> 290700.14 | N27: =N26+'HT-Burda'!N16 -> 313201.36 | O27: =O26+'HT-Burda'!O16 -> 336783.48 | P27: =P26+'HT-Burda'!P16 -> 360644.6 | Q27: =Q26+'HT-Burda'!Q16 -> 377476.4
E28: =(E27/D27-1)*100 -> 17.67696869 | F28: =(F27/E27-1)*100 -> -1.92155058 | G28: 1.2883373 | H28: 26.04608005 | I28: 11.08256255 | J28: 13.28411015 | K28: 11.2863165 | L28: -0.5417985878 | M28: 2.936740959 | N28: 7.740354029 | O28: 7.529379821 | P28: 7.085003101 | Q28: 4.667143221
A30: Key assumptions
A32: A. Imported np price
A33: Landed price (US$/ton) | D33: 680 | E33: 620 | F33: 710 | G33: 600 | H33: 620 | I33: 650 | J33: =650 -> 650 | K33: =J33*(1+2%) -> 663 | L33: 676.26 | M33: 689.7852 | N33: 703.580904 | O33: 717.6525221 | P33: 732.0055725 | Q33: 746.645684
A34: Forex rate (Rs/US Dollar) | D34: 46 | E34: 42 | F34: 45 | G34: 47 | H34: 46 | I34: 47 | J34: 52 | K34: =J34-1 -> 51 | L34: =K34-1 -> 50 | M34: =L34 -> 50 | N34: 50 | O34: 50 | P34: 50 | Q34: 50
A35: Import tariff (%) | D35: 5.1 | E35: 5.1 | F35: 3.1 | G35: 0 | H35: =G35 -> 0 | I35: =H35 -> 0 | J35: 0 | K35: 0 | L35: 0 | M35: 0 | N35: 0 | O35: 0 | P35: 0 | Q35: 0
A36: India price (Rs/ton) | D36: =D33*D34*(1+D35%) -> 32875.28 | E36: 27368.04 | F36: 32940.45 | G36: 28200 | H36: 28520 | I36: 30550 | J36: 33800 | K36: 33813 | L36: =L33*L34*(1+L35%) -> 33813 | M36: 34489.26 | N36: 35179.0452 | O36: 35882.6261 | P36: 36600.27863 | Q36: 37332.2842
A37: Discount to landed price (%) | D37: 5 | E37: =D37 -> 5 | F37: =E37 -> 5 | G37: 5 | H37: 5 | I37: 5 | J37: 5 | K37: 5 | L37: 5 | M37: 5 | N37: 5 | O37: 5 | P37: 5 | Q37: 5
A38: Transport cost (Rs/ton) | D38: 2500 | E38: 2750 | F38: 2750 | G38: 2750 | H38: =G38+250 -> 3000 | I38: =H38+250 -> 3250 | J38: =I38+250 -> 3500 | K38: =J38+250 -> 3750 | L38: =K38+250 -> 4000 | M38: =L38+100 -> 4100 | N38: =M38+100 -> 4200 | O38: =N38+100 -> 4300 | P38: =O38+100 -> 4400 | Q38: =P38+100 -> 4500
A39: Net imported price (Rs/ton) | D39: =D36*(1-D37%)+D38 -> 33731.516 | E39: =E36*(1-E37%)+E38 -> 28749.638 | F39: 34043.4275 | G39: 29540 | H39: 30094 | I39: 32272.5 | J39: 35610 | K39: 35872.35 | L39: =L36*(1-L37%)+L38 -> 36122.35 | M39: 36864.797 | N39: 37620.09294 | O39: 38388.4948 | P39: 39170.26469 | Q39: 39965.66999
A40: B. Domestic np price
A41: India price (Rs/ton) | D41: =D39*(1-18%) -> 27659.84312 | E41: =E39*(1-14%) -> 24724.68868 | F41: =F39*(1-20%) -> 27234.742 | G41: =G39*(1-14%) -> 25404.4 | H41: =H39*(1-20%) -> 24075.2 | I41: =I39*(1-6%) -> 30336.15 | J41: =J39*(1-12%) -> 31336.8 | K41: =K39*(1-12%) -> 31567.668 | L41: =L39*(1-12%) -> 31787.668 | M41: 32441.02136 | N41: 33105.68179 | O41: 33781.87542 | P41: 34469.83293 | Q41: 35169.78959
A42: Discount to landed price (%) | D42: 0 | E42: 0 | F42: 0 | G42: 0 | H42: =G42 -> 0 | I42: 0 | J42: 0 | K42: 0 | L42: 0 | M42: 0 | N42: 0 | O42: 0 | P42: 0 | Q42: 0
A43: Net domestic price (Rs/ton) | D43: =D41 -> 27659.84312 | E43: 24724.68868 | F43: 27234.742 | G43: 25404.4 | H43: 24075.2 | I43: 30336.15 | J43: 31336.8 | K43: 31567.668 | L43: 31787.668 | M43: 32441.02136 | N43: 33105.68179 | O43: 33781.87542 | P43: 34469.83293 | Q43: 35169.78959
A45: Newsprint costs
A46: HT Delhi-NCR | D46: ='HT Delhi-NCR'!D87 -> 2067.780574 | E46: ='HT Delhi-NCR'!E87 -> 2037.164849 | F46: ='HT Delhi-NCR'!F87 -> 2287.195421 | G46: ='HT Delhi-NCR'!G87 -> 1801.055596 | H46: ='HT Delhi-NCR'!H87 -> 2016.394301 | I46: ='HT Delhi-NCR'!I87 -> 2258.976892 | J46: ='HT Delhi-NCR'!J87 -> 2576.456543 | K46: ='HT Delhi-NCR'!K87 -> 2770.131053 | L46: ='HT Delhi-NCR'!L87 -> 2425.696717 | M46: ='HT Delhi-NCR'!M87 -> 2503.059848 | N46: ='HT Delhi-NCR'!N87 -> 2652.587185 | O46: ='HT Delhi-NCR'!O87 -> 2855.178267 | P46: ='HT Delhi-NCR'!P87 -> 3047.717463 | Q46: ='HT Delhi-NCR'!Q87 -> 3249.677815
A47: HT Mumbai | D47: ='HT Mumbai'!D87 -> 511.5602982 | E47: ='HT Mumbai'!E87 -> 537.8115202 | F47: ='HT Mumbai'!F87 -> 502.9712153 | G47: ='HT Mumbai'!G87 -> 491.1969807 | H47: ='HT Mumbai'!H87 -> 627.3226714 | I47: ='HT Mumbai'!I87 -> 823.2715783 | J47: ='HT Mumbai'!J87 -> 1065.265686 | K47: ='HT Mumbai'!K87 -> 1185.416442 | L47: ='HT Mumbai'!L87 -> 1131.991801 | M47: ='HT Mumbai'!M87 -> 1089.243626 | N47: ='HT Mumbai'!N87 -> 1226.646138 | O47: ='HT Mumbai'!O87 -> 1359.608698 | P47: ='HT Mumbai'!P87 -> 1517.355778 | Q47: ='HT Mumbai'!Q87 -> 1686.765617
A48: HT Others | D48: ='HT Others'!D87-'M-Now'!D5 -> 435.4351208 | E48: ='HT Others'!E87-'M-Now'!E5 -> 538.0759654 | F48: ='HT Others'!F87-'M-Now'!F5 -> 775.6449191 | G48: ='HT Others'!G87-'M-Now'!G5 -> 415.8645033 | H48: ='HT Others'!H87 -> 474.0671707 | I48: ='HT Others'!I87 -> 607.4291223 | J48: ='HT Others'!J87 -> 724.9329965 | K48: ='HT Others'!K87 -> 822.2342094 | L48: ='HT Others'!L87 -> 714.8480135 | M48: ='HT Others'!M87 -> 772.4549291 | N48: ='HT Others'!N87 -> 895.3653748 | O48: ='HT Others'!O87 -> 994.6317733 | P48: ='HT Others'!P87 -> 1124.833251 | Q48: ='HT Others'!Q87 -> 1265.60598
